Workbook

Sheet Introduction
A1: Welcome to the Yards Per Fantasy 2024 Projections Template!
A3: This document is set up to help you project the stats of every key player in the NFL for 2024
A4: All the hard work is done for you, just follow the instructions on the next page and have fun!
A6: Key Notes:
A7: 1. the projections are a data point, a guide to help you understand the range of outcomes for players. It is not an absolute prediction and guarantee of what can happen - even Vegas can't get that right!
A8: 2. there is no better way to truly understand how a team operates, functions and approaches games then go through this process. Whether you use the output or not, the process is vital to truly understand fantasy football
A9: 3. Yards Per Fantasy has a 3 part system that will give you everything you need to get from last season to the coming season
B11: - 2023 Compendium - start here to truly understand what happened in 2023. Not just the high level stats but full, nuanced and explained detail
B12: - 2024 Projections - this document to look at how 2024 might play out
B13: - 2024 Draft File - this will be released closer to the season and will give you everything you need to prepare for your fantasy drafts
A16: NOW LETS GO!

Sheet Settings & Instructions
B1: Welcome to the Yards Per Fantasy Projections Template! Instructions are below - have fun and hit us up with any questions or issues (admin@yardsperfantasy.com) | AA1: 1 | AB1: Week 1
B2: Not sure where to start? Check out our article on how to go about your projections | AA2: 2 | AB2: Week 2
B3: When you've finished, export your rankings and don't forget to tag us on Twitter | AA3: 3 | AB3: Week 3
AA4: 4 | AB4: Week 4
A5: League Settings | D5: {Manual Entry - update to match your individual settings} | F5: Use #SFB14 Settings? | G5: No | AA5: 5 | AB5: Week 5
C6: Value | D6: Value | E6: #SFB14 Settings - Coming Soon when available | AA6: 6 | AB6: Week 6
B7: QB Passing TDs | C7: =IF($G$5="YES",E7,D7) -> 4 | D7: 4 | AA7: 7 | AB7: Week 7
B8: QB Passing Yards | C8: =IF($G$5="YES",E8,D8) -> 0.04 | D8: =1/25 -> 0.04 | AA8: 8 | AB8: Week 8
B9: Interceptions | C9: -2 | D9: -2 | AA9: 9 | AB9: Week 9
B10: QB Completions | C10: 0 | D10: 0
B11: QB Incompletions | C11: 0 | D11: 0
B12: Rushing TD | C12: 6 | D12: 6 | AA12: 10 | AB12: Week 10
B13: Receptions | C13: 1 | D13: 1 | AA13: 11 | AB13: Week 11
B14: Premium - Tight End | C14: 1 | D14: 1 | AA14: 12 | AB14: Week 12
B15: Premium - Wide Receiver | C15: 0 | D15: 0 | AA15: 13 | AB15: Week 13
B16: Premium - Running Back | C16: 0 | D16: 0 | F16: WAIT! | AA16: 14 | AB16: Week 14
B17: Rushing Yards | C17: 0.1 | D17: 0.1 | F17: Before diving in to 2024 Projections, check out the Yards Per Fantasy 2023 Compendium to help you prep | AA17: 15 | AB17: Week 15
B18: Receiving Yards | C18: 0.1 | D18: 0.1 | F18: This has full and detailed analysis of all things 2023: | AA18: 16 | AB18: Week 16
B19: Receiving TDs | C19: 6 | D19: 6 | F19: - Draft Review | AA19: 17 | AB19: Week 17
B20: Rush Attempts / Carries | C20: 0 | D20: 0 | F20: - PPR Finishes - by Position and Totals, including ordered by 'Value Over Replacement Player'
B21: First Downs - Passing | C21: 0 | D21: 0 | F21: - Key Stats including # of weeks a player finished in the top 5/top 12, high/low metric scorers, and key takeaways
B22: First Downs - Rushing | C22: 0 | D22: 0 | F22: - Player Breakdown - select a player and see how their season split over weeks 1-6, 7-12, 13-17. And get their 'Real Story'
B23: First Downs - Receiving | C23: 0 | D23: 0 | F23: - Stats by Player - see a player's week-by-week stats and choose which weeks you want to review full-season paces for
B24: First Downs - Receiving (Tight End Premium) | C24: 0 | D24: 0 | F24: - Compare Players - compare two players side by side across metrics
F25: - Individual Team Breakdowns - each and every stat, week by week for each and every team | AA25: 18 | AB25: Week 18
A26: Instructions | D26: *If this file runs slow, go to the Formulas menu / Calculation Options and set to 'Manual'. When you've finished updating, put it back to 'Automatic' and 'Calculate Now' or Press F9 | F26: - Team Totals - key team-level stats including totals, pass breakdowns, redzone breakdowns, and much more
A28: 1 | B28: Update the above league settings with the settings that you want to project. Note: Receptions is used for PPR scoring and should be 0 if non-PPR
A29: 2 | B29: For the "Premium" settings, add the additional reception premium for that position. For example, if it's 1 point PPR scoring and 2 point PPR for Tight Ends, add an additional 1 to the Tight End position above
A30: 3 | B30: For each team, populate the Manual Entry cells. Refer to the 'Steps' guidance for help on how to get going
A31: 4 | B31: Start with the 2024 Projection line to project total play volume and passing %. Note: If you want to do weekly projections, just overwrite the Full Season plays with the weekly numbers you want
A32: 5 | B32: Insert the players against their positions and all other Manual Entry Cells (target share, catch %, yards per reception, etc)
A33: 6 | B33: Note: 2023 Data is shown underneath to help with the process
A34: 7 | B34: As well as detailed 2023 data at the bottom of each team page, you can see a single player's 2023 stats right there where you're projecting to help guide you
A35: 8 | B35: *NEW* If you select a player to view last season's stats, it will also give you the "Real Story". This is a summary of how that player's season actually played out in reality, not just overall stats
A36: 9 | B36: The Need-to-Know section on each team page helps to summarise that team's 2023 season and all the changes/expectations for the upcoming season
A37: 10 | B37: The Top Projected Players for each team will be nicely summarised at the top of the page so you can quickly see what you're projecting
A38: 11 | B38: Volume-Based Tiers. Next to each player, you will see a comment that appears automatically based on the projected volume only (e.g. Top Tier WR, not a top RB, etc). This is a high-level guide on how players with that volume have historically performed in terms of consistency
A39: 12 | B39: It is just to help you think about whether the volume you have projected is going to give you a week-in / week-out performer. Check out this article for more
A40: 13 | B40: Range of Outcomes. Next to each player, there is a theoretical calculation on the low and high range of each player along with an updated volume-based tier (see item 10 above). This is purely a guide based on data, it is not designed to pick up individual player nuances
A41: 14 | B41: Note: Target Share % and Rush Share % should each add up to 100%. If they don't, you will see an Error comment at the top
A42: 15 | B42: Once the skill position players have been completed, most of the Quarterback stats will auto-populate. Now update the Manual Entry elements for the Quarterbacks
A43: 16 | B43: If Calculations are turned to Manual (recommended if running slow), press F9 at any time to calculate
A44: 17 | B44: When each team is completed, you will see the players and their projections listed under Total Projections and QB Projections
A45: 18 | B45: On these tabs, you can sort by position, fantasy points or whatever other stat you want to sort by
A46: 19 | B46: The Total Rankings (excl QB), QB Rankings and Positional Rankings tabs will automatically rank each player
A47: 20 | B47: Manually add your Tiers to each position if you want to use it for drafting
A48: 21 | B48: *NEW* The Tiered Rankings will automatically show the player tiers based on the projected volume (see item 10 above). This will display it in a 'big board' way to see each category aligned at each position
A49: 22 | B49: Go to the Top 12 Export page, select the rankings you want to see and click 'run' to see your top 12 projected players - take the image and post it wherever you want to plant your flag!
A50: 23 | B50: Note: You'll to Enable Content for the top 12 export to work
A51: 24 | B51: Go to the Team Output page to see a summary of your projected outcomes for each individual team - just select the team you want, and you'll see a summary
A52: 25 | B52: *WILL BE ACTIVE IN THE NEXT REVISION WHEN #SFB14 SCORING SETTINGS ARE AVAILABLE* #SFB14 - If you want to see your projections using #SFB14 settings, simply select "Yes" in cell G5 above. Switch back anytime by selecting "No"
A53: 26 | B53: Prop Checker. Select your player/position and the prop you want to check, then put in the over/under from your preferred betting site and select your risk appetite.
B54: It will give you a recommendation of "over", "under" or "no bet" depending on those thresholds.
B55: Note: This is a tool to give you a recommendation based on your own projections. Please ensure you've given full consideration before making any bets

Sheet Total Projections (excl QB)
A1: Total Projections (Excl QB) | D1: Want to use #SFB14 settings? Go to 'Settings & Instructions' and select 'Yes' in cell G5 | U1: Range of Outcomes
U2: Low | W2: High
A3: Rank | B3: Team | C3: Position | D3: Player | E3: Targets | F3: Catch % | G3: Receptions | H3: Premium | I3: 1st Downs Rush (Calculated) | J3: 1st Downs Rec (Calculated) | K3: Yards per Reception | L3: Receiving Yards | M3: Receiving TDs | N3: Rush Att | O3: Yards per Carry | P3: Rushing Yards | Q3: Rushing TDs | R3: Fantasy Points (Excl 1st downs) | S3: Fantasy Points (incl 1st downs) | T3: Tier (Volume based) | U3: Fantasy Points | V3: Tier | W3: Fantasy Points | X3: Tier
A4: =RANK(S4,$S:$S,0)+COUNTIF($S$4:S4,S4)-1 -> 3 | B4: Arizona Cardinals | C4: Running Back | D4: ='Arizona Cardinals'!$B$142 -> James Conner | E4: ='Arizona Cardinals'!$D$142 -> 28.985 | F4: ='Arizona Cardinals'!$E$142 -> 0.8 | G4: ='Arizona Cardinals'!$F$142 -> 23.188 | H4: ='Arizona Cardinals'!$O$142 -> 0 | I4: =IF(((0.0572*P4)-2.646)<0,0,(0.0572*P4)-2.646) -> 52.292169 | J4: =IF(G4=0,0,(0.0461*L4)+2.0516) -> 8.9998842 | K4: ='Arizona Cardinals'!$G$142 -> 6.5 | L4: ='Arizona Cardinals'!$H$142 -> 150.722 | M4: ='Arizona Cardinals'!$I$142 -> 2 | N4: ='Arizona Cardinals'!$K$142 -> 213.435 | O4: ='Arizona Cardinals'!$L$142 -> 4.5 | P4: ='Arizona Cardinals'!$M$142 -> 960.4575 | Q4: ='Arizona Cardinals'!$N$142 -> 6 | R4: ='Arizona Cardinals'!$P$142 -> 182.30595 | S4: =IF(R4=0,0,(R4+(I4*'Settings & Instructions'!$C$22)+(J4*'Settings & Instructions'!$C$23)+IF(C4="Tight End",J4*'Settings & Instructions'!$C$24,0))) -> 182.30595 | T4: ='Arizona Cardinals'!$R$142 -> Consistent RB2 | U4: ='Arizona Cardinals'!$T$142 -> 175.4488071 | V4: ='Arizona Cardinals'!$U$142 -> Not a top RB | W4: ='Arizona Cardinals'!$V$142 -> 251.3227429 | X4: ='Arizona Cardinals'!$W$142 -> Elite RB
A5: =RANK(S5,$S:$S,0)+COUNTIF($S$4:S5,S5)-1 -> 4 | B5: Arizona Cardinals | C5: Running Back | D5: ='Arizona Cardinals'!$B$143 -> Trey Benson | E5: ='Arizona Cardinals'!$D$143 -> 23.188 | F5: ='Arizona Cardinals'!$E$143 -> 0.8 | G5: ='Arizona Cardinals'!$F$143 -> 18.5504 | H5: ='Arizona Cardinals'!$O$143 -> 0 | I5: =IF(((0.0572*P5)-2.646)<0,0,(0.0572*P5)-2.646) -> 33.979446 | J5: =IF(G5=0,0,(0.0461*L5)+2.0516) -> 7.61022736 | K5: ='Arizona Cardinals'!$G$143 -> 6.5 | L5: ='Arizona Cardinals'!$H$143 -> 120.5776 | M5: ='Arizona Cardinals'!$I$143 -> 1 | N5: ='Arizona Cardinals'!$K$143 -> 142.29 | O5: ='Arizona Cardinals'!$L$143 -> 4.5 | P5: ='Arizona Cardinals'!$M$143 -> 640.305 | Q5: ='Arizona Cardinals'!$N$143 -> 3 | R5: ='Arizona Cardinals'!$P$143 -> 118.63866 | S5: =IF(R5=0,0,(R5+(I5*'Settings & Instructions'!$C$22)+(J5*'Settings & Instructions'!$C$23)+IF(C5="Tight End",J5*'Settings & Instructions'!$C$24,0))) -> 118.63866 | T5: ='Arizona Cardinals'!$R$143 -> Not a top RB | U5: ='Arizona Cardinals'!$T$143 -> 115.2100886 | V5: ='Arizona Cardinals'!$U$143 -> Not a top RB | W5: ='Arizona Cardinals'!$V$143 -> 122.0672314 | X5: ='Arizona Cardinals'!$W$143 -> Not a top RB
A6: =RANK(S6,$S:$S,0)+COUNTIF($S$4:S6,S6)-1 -> 10 | B6: Arizona Cardinals | C6: Running Back | D6: ='Arizona Cardinals'!$B$144 -> Emari Demercado | E6: ='Arizona Cardinals'!$D$144 -> 5.797 | F6: ='Arizona Cardinals'!$E$144 -> 0.8 | G6: ='Arizona Cardinals'!$F$144 -> 4.6376 | H6: ='Arizona Cardinals'!$O$144 -> 0 | I6: =IF(((0.0572*P6)-2.646)<0,0,(0.0572*P6)-2.646) -> 3.458241 | J6: 3.44125684 | K6: ='Arizona Cardinals'!$G$144 -> 6.5 | L6: ='Arizona Cardinals'!$H$144 -> 30.1444 | M6: ='Arizona Cardinals'!$I$144 -> 0 | N6: ='Arizona Cardinals'!$K$144 -> 23.715 | O6: ='Arizona Cardinals'!$L$144 -> 4.5 | P6: ='Arizona Cardinals'!$M$144 -> 106.7175 | Q6: ='Arizona Cardinals'!$N$144 -> 0 | R6: ='Arizona Cardinals'!$P$144 -> 18.32379 | S6: =IF(R6=0,0,(R6+(I6*'Settings & Instructions'!$C$22)+(J6*'Settings & Instructions'!$C$23)+IF(C6="Tight End",J6*'Settings & Instructions'!$C$24,0))) -> 18.32379 | T6: ='Arizona Cardinals'!$R$144 -> Not a top RB | U6: ='Arizona Cardinals'!$T$144 -> 18.32379 | V6: ='Arizona Cardinals'!$U$144 -> Not a top RB | W6: ='Arizona Cardinals'!$V$144 -> 18.32379 | X6: ='Arizona Cardinals'!$W$144 -> Not a top RB
A7: =RANK(S7,$S:$S,0)+COUNTIF($S$4:S7,S7)-1 -> 11 | B7: Arizona Cardinals | C7: Running Back | D7: ='Arizona Cardinals'!$B$145 -> Michael Carter | E7: ='Arizona Cardinals'!$D$145 -> 5.797 | F7: ='Arizona Cardinals'!$E$145 -> 0.8 | G7: ='Arizona Cardinals'!$F$145 -> 4.6376 | H7: ='Arizona Cardinals'!$O$145 -> 0 | I7: =IF(((0.0572*P7)-2.646)<0,0,(0.0572*P7)-2.646) -> 3.458241 | J7: 3.44125684 | K7: ='Arizona Cardinals'!$G$145 -> 6.5 | L7: ='Arizona Cardinals'!$H$145 -> 30.1444 | M7: ='Arizona Cardinals'!$I$145 -> 0 | N7: ='Arizona Cardinals'!$K$145 -> 23.715 | O7: ='Arizona Cardinals'!$L$145 -> 4.5 | P7: ='Arizona Cardinals'!$M$145 -> 106.7175 | Q7: ='Arizona Cardinals'!$N$145 -> 0 | R7: ='Arizona Cardinals'!$P$145 -> 18.32379 | S7: =IF(R7=0,0,(R7+(I7*'Settings & Instructions'!$C$22)+(J7*'Settings & Instructions'!$C$23)+IF(C7="Tight End",J7*'Settings & Instructions'!$C$24,0))) -> 18.32379 | T7: ='Arizona Cardinals'!$R$145 -> Not a top RB | U7: ='Arizona Cardinals'!$T$145 -> 18.32379 | V7: ='Arizona Cardinals'!$U$145 -> Not a top RB | W7: ='Arizona Cardinals'!$V$145 -> 18.32379 | X7: ='Arizona Cardinals'!$W$145 -> Not a top RB
A8: =RANK(S8,$S:$S,0)+COUNTIF($S$4:S8,S8)-1 -> 2 | B8: Arizona Cardinals | C8: Wide Receiver | D8: ='Arizona Cardinals'!$B$118 -> Marvin Harrison | E8: ='Arizona Cardinals'!$D$118 -> 144.925 | F8: ='Arizona Cardinals'!$E$118 -> 0.7 | G8: ='Arizona Cardinals'!$F$118 -> 101.4475 | H8: ='Arizona Cardinals'!$O$118 -> 0 | I8: =IF(((0.0572*P8)-2.646)<0,0,(0.0572*P8)-2.646) -> 0 | J8: =IF(G8=0,0,(0.0461*L8)+2.0516) -> 72.20254625 | K8: ='Arizona Cardinals'!$G$118 -> 15 | L8: ='Arizona Cardinals'!$H$118 -> 1521.7125 | M8: ='Arizona Cardinals'!$I$118 -> 7 | N8: ='Arizona Cardinals'!$K$118 -> 0 | O8: ='Arizona Cardinals'!$L$118 -> 0 | P8: ='Arizona Cardinals'!$M$118 -> 0 | Q8: ='Arizona Cardinals'!$N$118 -> 0 | R8: ='Arizona Cardinals'!$P$118 -> 295.61875 | S8: =IF(R8=0,0,(R8+(I8*'Settings & Instructions'!$C$22)+(J8*'Settings & Instructions'!$C$23)+IF(C8="Tight End",J8*'Settings & Instructions'!$C$24,0))) -> 295.61875 | T8: ='Arizona Cardinals'!$R$118 -> 2nd Tier WR1 | U8: ='Arizona Cardinals'!$T$118 -> 271.3582 | V8: ='Arizona Cardinals'!$U$118 -> Consistent WR2 | W8: ='Arizona Cardinals'!$V$118 -> 332.053 | X8: ='Arizona Cardinals'!$W$118 -> Elite WR
A9: =RANK(S9,$S:$S,0)+COUNTIF($S$4:S9,S9)-1 -> 5 | B9: Arizona Cardinals | C9: Wide Receiver | D9: ='Arizona Cardinals'!$B$119 -> Michael Wilson | E9: ='Arizona Cardinals'!$D$119 -> 63.767 | F9: ='Arizona Cardinals'!$E$119 -> 0.62 | G9: ='Arizona Cardinals'!$F$119 -> 39.53554 | H9: ='Arizona Cardinals'!$O$119 -> 0 | I9: =IF(((0.0572*P9)-2.646)<0,0,(0.0572*P9)-2.646) -> 0 | J9: =IF(G9=0,0,(0.0461*L9)+2.0516) -> 27.56783752 | K9: ='Arizona Cardinals'!$G$119 -> 14 | L9: ='Arizona Cardinals'!$H$119 -> 553.49756 | M9: ='Arizona Cardinals'!$I$119 -> 3 | N9: ='Arizona Cardinals'!$K$119 -> 0 | O9: ='Arizona Cardinals'!$L$119 -> 0 | P9: ='Arizona Cardinals'!$M$119 -> 0 | Q9: ='Arizona Cardinals'!$N$119 -> 0 | R9: ='Arizona Cardinals'!$P$119 -> 112.885296 | S9: =IF(R9=0,0,(R9+(I9*'Settings & Instructions'!$C$22)+(J9*'Settings & Instructions'!$C$23)+IF(C9="Tight End",J9*'Settings & Instructions'!$C$24,0))) -> 112.885296 | T9: ='Arizona Cardinals'!$R$119 -> Not a top WR | U9: ='Arizona Cardinals'!$T$119 -> 95.21847943 | V9: ='Arizona Cardinals'!$U$119 -> Not a top WR | W9: ='Arizona Cardinals'!$V$119 -> 115.4567246 | X9: ='Arizona Cardinals'!$W$119 -> Not a top WR
A10: =RANK(S10,$S:$S,0)+COUNTIF($S$4:S10,S10)-1 -> 6 | B10: Arizona Cardinals | C10: Wide Receiver | D10: ='Arizona Cardinals'!$B$120 -> Greg Dortch | E10: ='Arizona Cardinals'!$D$120 -> 69.564 | F10: ='Arizona Cardinals'!$E$120 -> 0.68 | G10: ='Arizona Cardinals'!$F$120 -> 47.30352 | H10: ='Arizona Cardinals'!$O$120 -> 0 | I10: 0 | J10: 23.85852272 | K10: ='Arizona Cardinals'!$G$120 -> 10 | L10: ='Arizona Cardinals'!$H$120 -> 473.0352 | M10: ='Arizona Cardinals'!$I$120 -> 3 | N10: ='Arizona Cardinals'!$K$120 -> 0 | O10: ='Arizona Cardinals'!$L$120 -> 0 | P10: ='Arizona Cardinals'!$M$120 -> 0 | Q10: ='Arizona Cardinals'!$N$120 -> 0 | R10: ='Arizona Cardinals'!$P$120 -> 112.60704 | S10: =IF(R10=0,0,(R10+(I10*'Settings & Instructions'!$C$22)+(J10*'Settings & Instructions'!$C$23)+IF(C10="Tight End",J10*'Settings & Instructions'!$C$24,0))) -> 112.60704 | T10: ='Arizona Cardinals'!$R$120 -> Not a top WR | U10: ='Arizona Cardinals'!$T$120 -> 98.20973143 | V10: ='Arizona Cardinals'!$U$120 -> Not a top WR | W10: ='Arizona Cardinals'!$V$120 -> 115.1784686 | X10: ='Arizona Cardinals'!$W$120 -> Not a top WR
A11: =RANK(S11,$S:$S,0)+COUNTIF($S$4:S11,S11)-1 -> 7 | B11: Arizona Cardinals | C11: Wide Receiver | D11: ='Arizona Cardinals'!$B$121 -> Zach Pascal | E11: ='Arizona Cardinals'!$D$121 -> 34.782 | F11: ='Arizona Cardinals'!$E$121 -> 0.64 | G11: ='Arizona Cardinals'!$F$121 -> 22.26048 | H11: ='Arizona Cardinals'!$O$121 -> 0 | I11: 0 | J11: 12.31368128 | K11: ='Arizona Cardinals'!$G$121 -> 10 | L11: ='Arizona Cardinals'!$H$121 -> 222.6048 | M11: ='Arizona Cardinals'!$I$121 -> 1 | N11: ='Arizona Cardinals'!$K$121 -> 0 | O11: ='Arizona Cardinals'!$L$121 -> 0 | P11: ='Arizona Cardinals'!$M$121 -> 0 | Q11: ='Arizona Cardinals'!$N$121 -> 0 | R11: ='Arizona Cardinals'!$P$121 -> 50.52096 | S11: =IF(R11=0,0,(R11+(I11*'Settings & Instructions'!$C$22)+(J11*'Settings & Instructions'!$C$23)+IF(C11="Tight End",J11*'Settings & Instructions'!$C$24,0))) -> 50.52096 | T11: ='Arizona Cardinals'!$R$121 -> Not a top WR | U11: ='Arizona Cardinals'!$T$121 -> 42.24365714 | V11: ='Arizona Cardinals'!$U$121 -> Not a top WR | W11: ='Arizona Cardinals'!$V$121 -> 51.37810286 | X11: ='Arizona Cardinals'!$W$121 -> Not a top WR
A12: =RANK(S12,$S:$S,0)+COUNTIF($S$4:S12,S12)-1 -> 8 | B12: Arizona Cardinals | C12: Wide Receiver | D12: ='Arizona Cardinals'!$B$122 -> Chris Moore | E12: ='Arizona Cardinals'!$D$122 -> 23.188 | F12: ='Arizona Cardinals'!$E$122 -> 0.58 | G12: ='Arizona Cardinals'!$F$122 -> 13.44904 | H12: ='Arizona Cardinals'!$O$122 -> 0 | I12: 0 | J12: 10.73161042 | K12: ='Arizona Cardinals'!$G$122 -> 14 | L12: ='Arizona Cardinals'!$H$122 -> 188.28656 | M12: ='Arizona Cardinals'!$I$122 -> 0 | N12: ='Arizona Cardinals'!$K$122 -> 0 | O12: ='Arizona Cardinals'!$L$122 -> 0 | P12: ='Arizona Cardinals'!$M$122 -> 0 | Q12: ='Arizona Cardinals'!$N$122 -> 0 | R12: ='Arizona Cardinals'!$P$122 -> 32.277696 | S12: =IF(R12=0,0,(R12+(I12*'Settings & Instructions'!$C$22)+(J12*'Settings & Instructions'!$C$23)+IF(C12="Tight End",J12*'Settings & Instructions'!$C$24,0))) -> 32.277696 | T12: ='Arizona Cardinals'!$R$122 -> Not a top WR | U12: ='Arizona Cardinals'!$T$122 -> 32.277696 | V12: ='Arizona Cardinals'!$U$122 -> Not a top WR | W12: ='Arizona Cardinals'!$V$122 -> 32.277696 | X12: ='Arizona Cardinals'!$W$122 -> Not a top WR
A13: =RANK(S13,$S:$S,0)+COUNTIF($S$4:S13,S13)-1 -> 12 | B13: Arizona Cardinals | C13: Wide Receiver | D13: ='Arizona Cardinals'!$B$123 -> Tejhaun Palmer | E13: ='Arizona Cardinals'!$D$123 -> 11.594 | F13: ='Arizona Cardinals'!$E$123 -> 0.6 | G13: ='Arizona Cardinals'!$F$123 -> 6.9564 | H13: ='Arizona Cardinals'!$O$123 -> 0 | I13: 0 | J13: 5.89988048 | K13: ='Arizona Cardinals'!$G$123 -> 12 | L13: ='Arizona Cardinals'!$H$123 -> 83.4768 | M13: ='Arizona Cardinals'!$I$123 -> 0 | N13: ='Arizona Cardinals'!$K$123 -> 0 | O13: ='Arizona Cardinals'!$L$123 -> 0 | P13: ='Arizona Cardinals'!$M$123 -> 0 | Q13: ='Arizona Cardinals'!$N$123 -> 0 | R13: ='Arizona Cardinals'!$P$123 -> 15.30408 | S13: =IF(R13=0,0,(R13+(I13*'Settings & Instructions'!$C$22)+(J13*'Settings & Instructions'!$C$23)+IF(C13="Tight End",J13*'Settings & Instructions'!$C$24,0))) -> 15.30408 | T13: ='Arizona Cardinals'!$R$123 -> Not a top WR | U13: ='Arizona Cardinals'!$T$123 -> 15.30408 | V13: ='Arizona Cardinals'!$U$123 -> Not a top WR | W13: ='Arizona Cardinals'!$V$123 -> 15.30408 | X13: ='Arizona Cardinals'!$W$123 -> Not a top WR
A14: =RANK(S14,$S:$S,0)+COUNTIF($S$4:S14,S14)-1 -> 13 | B14: Arizona Cardinals | C14: Wide Receiver | D14: ='Arizona Cardinals'!$B$124 -> 0 | E14: ='Arizona Cardinals'!$D$124 -> 0 | F14: ='Arizona Cardinals'!$E$124 -> 0 | G14: ='Arizona Cardinals'!$F$124 -> 0 | H14: ='Arizona Cardinals'!$O$124 -> 0 | I14: 0 | J14: 0 | K14: ='Arizona Cardinals'!$G$124 -> 0 | L14: ='Arizona Cardinals'!$H$124 -> 0 | M14: ='Arizona Cardinals'!$I$124 -> 0 | N14: ='Arizona Cardinals'!$K$124 -> 0 | O14: ='Arizona Cardinals'!$L$124 -> 0 | P14: ='Arizona Cardinals'!$M$124 -> 0 | Q14: ='Arizona Cardinals'!$N$124 -> 0 | R14: ='Arizona Cardinals'!$P$124 -> 0 | S14: =IF(R14=0,0,(R14+(I14*'Settings & Instructions'!$C$22)+(J14*'Settings & Instructions'!$C$23)+IF(C14="Tight End",J14*'Settings & Instructions'!$C$24,0))) -> 0 | T14: ='Arizona Cardinals'!$R$124 -> Not a top WR | U14: ='Arizona Cardinals'!$T$124 -> 0 | V14: ='Arizona Cardinals'!$U$124 -> Not a top WR | W14: ='Arizona Cardinals'!$V$124 -> 0 | X14: ='Arizona Cardinals'!$W$124 -> Not a top WR
A15: =RANK(S15,$S:$S,0)+COUNTIF($S$4:S15,S15)-1 -> 14 | B15: Arizona Cardinals | C15: Wide Receiver | D15: ='Arizona Cardinals'!$B$125 -> 0 | E15: ='Arizona Cardinals'!$D$125 -> 0 | F15: ='Arizona Cardinals'!$E$125 -> 0 | G15: ='Arizona Cardinals'!$F$125 -> 0 | H15: ='Arizona Cardinals'!$O$125 -> 0 | I15: 0 | J15: 0 | K15: ='Arizona Cardinals'!$G$125 -> 0 | L15: ='Arizona Cardinals'!$H$125 -> 0 | M15: ='Arizona Cardinals'!$I$125 -> 0 | N15: ='Arizona Cardinals'!$K$125 -> 0 | O15: ='Arizona Cardinals'!$L$125 -> 0 | P15: ='Arizona Cardinals'!$M$125 -> 0 | Q15: ='Arizona Cardinals'!$N$125 -> 0 | R15: ='Arizona Cardinals'!$P$125 -> 0 | S15: =IF(R15=0,0,(R15+(I15*'Settings & Instructions'!$C$22)+(J15*'Settings & Instructions'!$C$23)+IF(C15="Tight End",J15*'Settings & Instructions'!$C$24,0))) -> 0 | T15: ='Arizona Cardinals'!$R$125 -> Not a top WR | U15: ='Arizona Cardinals'!$T$125 -> 0 | V15: ='Arizona Cardinals'!$U$125 -> Not a top WR | W15: ='Arizona Cardinals'!$V$125 -> 0 | X15: ='Arizona Cardinals'!$W$125 -> Not a top WR
A16: =RANK(S16,$S:$S,0)+COUNTIF($S$4:S16,S16)-1 -> 1 | B16: Arizona Cardinals | C16: Tight End | D16: ='Arizona Cardinals'!$B$162 -> Trey McBride | E16: ='Arizona Cardinals'!$D$162 -> 127.534 | F16: ='Arizona Cardinals'!$E$162 -> 0.75 | G16: ='Arizona Cardinals'!$F$162 -> 95.6505 | H16: ='Arizona Cardinals'!$O$162 -> 1 | I16: 0 | J16: 46.1464805 | K16: ='Arizona Cardinals'!$G$162 -> 10 | L16: ='Arizona Cardinals'!$H$162 -> 956.505 | M16: ='Arizona Cardinals'!$I$162 -> 5 | N16: ='Arizona Cardinals'!$K$162 -> 0 | O16: ='Arizona Cardinals'!$L$162 -> 0 | P16: ='Arizona Cardinals'!$M$162 -> 0 | Q16: ='Arizona Cardinals'!$N$162 -> 0 | R16: ='Arizona Cardinals'!$P$162 -> 316.9515 | S16: =IF(R16=0,0,(R16+(I16*'Settings & Instructions'!$C$22)+(J16*'Settings & Instructions'!$C$23)+IF(C16="Tight End",J16*'Settings & Instructions'!$C$24,0))) -> 316.9515 | T16: ='Arizona Cardinals'!$R$162 -> Top TE | U16: ='Arizona Cardinals'!$T$162 -> 292.3762857 | V16: ='Arizona Cardinals'!$U$162 -> Top TE | W16: ='Arizona Cardinals'!$V$162 -> 334.2804643 | X16: ='Arizona Cardinals'!$W$162 -> Top TE
A17: =RANK(S17,$S:$S,0)+COUNTIF($S$4:S17,S17)-1 -> 9 | B17: Arizona Cardinals | C17: Tight End | D17: ='Arizona Cardinals'!$B$163 -> Tip Reiman | E17: ='Arizona Cardinals'!$D$163 -> 11.594 | F17: ='Arizona Cardinals'!$E$163 -> 0.75 | G17: ='Arizona Cardinals'!$F$163 -> 8.6955 | H17: ='Arizona Cardinals'!$O$163 -> 1 | I17: 0 | J17: =IF(G17=0,0,(0.0461*L17)+2.0516) -> 6.0602255 | K17: ='Arizona Cardinals'!$G$163 -> 10 | L17: ='Arizona Cardinals'!$H$163 -> 86.955 | M17: ='Arizona Cardinals'!$I$163 -> 0 | N17: ='Arizona Cardinals'!$K$163 -> 0 | O17: ='Arizona Cardinals'!$L$163 -> 0 | P17: ='Arizona Cardinals'!$M$163 -> 0 | Q17: ='Arizona Cardinals'!$N$163 -> 0 | R17: ='Arizona Cardinals'!$P$163 -> 26.0865 | S17: =IF(R17=0,0,(R17+(I17*'Settings & Instructions'!$C$22)+(J17*'Settings & Instructions'!$C$23)+IF(C17="Tight End",J17*'Settings & Instructions'!$C$24,0))) -> 26.0865 | T17: ='Arizona Cardinals'!$R$163 -> Not a top TE | U17: ='Arizona Cardinals'!$T$163 -> 26.0865 | V17: ='Arizona Cardinals'!$U$163 -> Not a top TE | W17: ='Arizona Cardinals'!$V$163 -> 26.0865 | X17: ='Arizona Cardinals'!$W$163 -> Not a top TE
A18: =RANK(S18,$S:$S,0)+COUNTIF($S$4:S18,S18)-1 -> 15 | B18: Arizona Cardinals | C18: Tight End | D18: ='Arizona Cardinals'!$B$164 -> 0 | E18: ='Arizona Cardinals'!$D$164 -> 0 | F18: ='Arizona Cardinals'!$E$164 -> 0 | G18: ='Arizona Cardinals'!$F$164 -> 0 | H18: ='Arizona Cardinals'!$O$164 -> 1 | I18: 0 | J18: 0 | K18: ='Arizona Cardinals'!$G$164 -> 0 | L18: ='Arizona Cardinals'!$H$164 -> 0 | M18: ='Arizona Cardinals'!$I$164 -> 0 | N18: ='Arizona Cardinals'!$K$164 -> 0 | O18: ='Arizona Cardinals'!$L$164 -> 0 | P18: ='Arizona Cardinals'!$M$164 -> 0 | Q18: ='Arizona Cardinals'!$N$164 -> 0 | R18: ='Arizona Cardinals'!$P$164 -> 0 | S18: =IF(R18=0,0,(R18+(I18*'Settings & Instructions'!$C$22)+(J18*'Settings & Instructions'!$C$23)+IF(C18="Tight End",J18*'Settings & Instructions'!$C$24,0))) -> 0 | T18: ='Arizona Cardinals'!$R$164 -> Not a top TE | U18: ='Arizona Cardinals'!$T$164 -> 0 | V18: ='Arizona Cardinals'!$U$164 -> Not a top TE | W18: ='Arizona Cardinals'!$V$164 -> 0 | X18: ='Arizona Cardinals'!$W$164 -> Not a top TE
A19: =RANK(S19,$S:$S,0)+COUNTIF($S$4:S19,S19)-1 -> 16 | B19: Arizona Cardinals | C19: Tight End | D19: ='Arizona Cardinals'!$B$165 -> 0 | E19: ='Arizona Cardinals'!$D$165 -> 0 | F19: ='Arizona Cardinals'!$E$165 -> 0 | G19: ='Arizona Cardinals'!$F$165 -> 0 | H19: ='Arizona Cardinals'!$O$165 -> 1 | I19: 0 | J19: 0 | K19: ='Arizona Cardinals'!$G$165 -> 0 | L19: ='Arizona Cardinals'!$H$165 -> 0 | M19: ='Arizona Cardinals'!$I$165 -> 0 | N19: ='Arizona Cardinals'!$K$165 -> 0 | O19: ='Arizona Cardinals'!$L$165 -> 0 | P19: ='Arizona Cardinals'!$M$165 -> 0 | Q19: ='Arizona Cardinals'!$N$165 -> 0 | R19: ='Arizona Cardinals'!$P$165 -> 0 | S19: =IF(R19=0,0,(R19+(I19*'Settings & Instructions'!$C$22)+(J19*'Settings & Instructions'!$C$23)+IF(C19="Tight End",J19*'Settings & Instructions'!$C$24,0))) -> 0 | T19: ='Arizona Cardinals'!$R$165 -> Not a top TE | U19: ='Arizona Cardinals'!$T$165 -> 0 | V19: ='Arizona Cardinals'!$U$165 -> Not a top TE | W19: ='Arizona Cardinals'!$V$165 -> 0 | X19: ='Arizona Cardinals'!$W$165 -> Not a top TE
A20: =RANK(S20,$S:$S,0)+COUNTIF($S$4:S20,S20)-1 -> 16 | B20: Atlanta Falcons | C20: Running Back
A21: =RANK(S21,$S:$S,0)+COUNTIF($S$4:S21,S21)-1 -> 16 | B21: Atlanta Falcons | C21: Running Back
A22: =RANK(S22,$S:$S,0)+COUNTIF($S$4:S22,S22)-1 -> 16 | B22: Atlanta Falcons | C22: Running Back
A23: =RANK(S23,$S:$S,0)+COUNTIF($S$4:S23,S23)-1 -> 16 | B23: Atlanta Falcons | C23: Running Back
A24: =RANK(S24,$S:$S,0)+COUNTIF($S$4:S24,S24)-1 -> 16 | B24: Atlanta Falcons | C24: Wide Receiver
A25: =RANK(S25,$S:$S,0)+COUNTIF($S$4:S25,S25)-1 -> 16 | B25: Atlanta Falcons | C25: Wide Receiver
A26: =RANK(S26,$S:$S,0)+COUNTIF($S$4:S26,S26)-1 -> 16 | B26: Atlanta Falcons | C26: Wide Receiver
A27: =RANK(S27,$S:$S,0)+COUNTIF($S$4:S27,S27)-1 -> 16 | B27: Atlanta Falcons | C27: Wide Receiver
A28: =RANK(S28,$S:$S,0)+COUNTIF($S$4:S28,S28)-1 -> 16 | B28: Atlanta Falcons | C28: Wide Receiver
A29: =RANK(S29,$S:$S,0)+COUNTIF($S$4:S29,S29)-1 -> 16 | B29: Atlanta Falcons | C29: Wide Receiver
A30: =RANK(S30,$S:$S,0)+COUNTIF($S$4:S30,S30)-1 -> 16 | B30: Atlanta Falcons | C30: Wide Receiver
A31: =RANK(S31,$S:$S,0)+COUNTIF($S$4:S31,S31)-1 -> 16 | B31: Atlanta Falcons | C31: Wide Receiver
A32: =RANK(S32,$S:$S,0)+COUNTIF($S$4:S32,S32)-1 -> 16 | B32: Atlanta Falcons | C32: Tight End
A33: =RANK(S33,$S:$S,0)+COUNTIF($S$4:S33,S33)-1 -> 16 | B33: Atlanta Falcons | C33: Tight End
A34: =RANK(S34,$S:$S,0)+COUNTIF($S$4:S34,S34)-1 -> 16 | B34: Atlanta Falcons | C34: Tight End
A35: =RANK(S35,$S:$S,0)+COUNTIF($S$4:S35,S35)-1 -> 16 | B35: Atlanta Falcons | C35: Tight End
A36: =RANK(S36,$S:$S,0)+COUNTIF($S$4:S36,S36)-1 -> 16 | B36: Baltimore Ravens | C36: Running Back
A37: =RANK(S37,$S:$S,0)+COUNTIF($S$4:S37,S37)-1 -> 16 | B37: Baltimore Ravens | C37: Running Back
A38: =RANK(S38,$S:$S,0)+COUNTIF($S$4:S38,S38)-1 -> 16 | B38: Baltimore Ravens | C38: Running Back
A39: =RANK(S39,$S:$S,0)+COUNTIF($S$4:S39,S39)-1 -> 16 | B39: Baltimore Ravens | C39: Running Back
A40: =RANK(S40,$S:$S,0)+COUNTIF($S$4:S40,S40)-1 -> 16 | B40: Baltimore Ravens | C40: Wide Receiver
A41: =RANK(S41,$S:$S,0)+COUNTIF($S$4:S41,S41)-1 -> 16 | B41: Baltimore Ravens | C41: Wide Receiver
A42: =RANK(S42,$S:$S,0)+COUNTIF($S$4:S42,S42)-1 -> 16 | B42: Baltimore Ravens | C42: Wide Receiver
A43: =RANK(S43,$S:$S,0)+COUNTIF($S$4:S43,S43)-1 -> 16 | B43: Baltimore Ravens | C43: Wide Receiver
A44: =RANK(S44,$S:$S,0)+COUNTIF($S$4:S44,S44)-1 -> 16 | B44: Baltimore Ravens | C44: Wide Receiver
A45: =RANK(S45,$S:$S,0)+COUNTIF($S$4:S45,S45)-1 -> 16 | B45: Baltimore Ravens | C45: Wide Receiver
A46: =RANK(S46,$S:$S,0)+COUNTIF($S$4:S46,S46)-1 -> 16 | B46: Baltimore Ravens | C46: Wide Receiver
A47: =RANK(S47,$S:$S,0)+COUNTIF($S$4:S47,S47)-1 -> 16 | B47: Baltimore Ravens | C47: Wide Receiver
A48: =RANK(S48,$S:$S,0)+COUNTIF($S$4:S48,S48)-1 -> 16 | B48: Baltimore Ravens | C48: Tight End
A49: =RANK(S49,$S:$S,0)+COUNTIF($S$4:S49,S49)-1 -> 16 | B49: Baltimore Ravens | C49: Tight End
A50: =RANK(S50,$S:$S,0)+COUNTIF($S$4:S50,S50)-1 -> 16 | B50: Baltimore Ravens | C50: Tight End
A51: =RANK(S51,$S:$S,0)+COUNTIF($S$4:S51,S51)-1 -> 16 | B51: Baltimore Ravens | C51: Tight End
A52: =RANK(S52,$S:$S,0)+COUNTIF($S$4:S52,S52)-1 -> 16 | B52: Buffalo Bills | C52: Running Back
A53: =RANK(S53,$S:$S,0)+COUNTIF($S$4:S53,S53)-1 -> 16 | B53: Buffalo Bills | C53: Running Back
A54: =RANK(S54,$S:$S,0)+COUNTIF($S$4:S54,S54)-1 -> 16 | B54: Buffalo Bills | C54: Running Back
A55: =RANK(S55,$S:$S,0)+COUNTIF($S$4:S55,S55)-1 -> 16 | B55: Buffalo Bills | C55: Running Back
A56: =RANK(S56,$S:$S,0)+COUNTIF($S$4:S56,S56)-1 -> 16 | B56: Buffalo Bills | C56: Wide Receiver
A57: =RANK(S57,$S:$S,0)+COUNTIF($S$4:S57,S57)-1 -> 16 | B57: Buffalo Bills | C57: Wide Receiver
A58: =RANK(S58,$S:$S,0)+COUNTIF($S$4:S58,S58)-1 -> 16 | B58: Buffalo Bills | C58: Wide Receiver
A59: =RANK(S59,$S:$S,0)+COUNTIF($S$4:S59,S59)-1 -> 16 | B59: Buffalo Bills | C59: Wide Receiver
A60: =RANK(S60,$S:$S,0)+COUNTIF($S$4:S60,S60)-1 -> 16 | B60: Buffalo Bills | C60: Wide Receiver
A61: =RANK(S61,$S:$S,0)+COUNTIF($S$4:S61,S61)-1 -> 16 | B61: Buffalo Bills | C61: Wide Receiver
A62: =RANK(S62,$S:$S,0)+COUNTIF($S$4:S62,S62)-1 -> 16 | B62: Buffalo Bills | C62: Wide Receiver
A63: =RANK(S63,$S:$S,0)+COUNTIF($S$4:S63,S63)-1 -> 16 | B63: Buffalo Bills | C63: Wide Receiver
A64: =RANK(S64,$S:$S,0)+COUNTIF($S$4:S64,S64)-1 -> 16 | B64: Buffalo Bills | C64: Tight End
A65: =RANK(S65,$S:$S,0)+COUNTIF($S$4:S65,S65)-1 -> 16 | B65: Buffalo Bills | C65: Tight End
A66: =RANK(S66,$S:$S,0)+COUNTIF($S$4:S66,S66)-1 -> 16 | B66: Buffalo Bills | C66: Tight End
A67: =RANK(S67,$S:$S,0)+COUNTIF($S$4:S67,S67)-1 -> 16 | B67: Buffalo Bills | C67: Tight End
A68: =RANK(S68,$S:$S,0)+COUNTIF($S$4:S68,S68)-1 -> 16 | B68: Carolina Panthers | C68: Running Back
A69: =RANK(S69,$S:$S,0)+COUNTIF($S$4:S69,S69)-1 -> 16 | B69: Carolina Panthers | C69: Running Back
A70: =RANK(S70,$S:$S,0)+COUNTIF($S$4:S70,S70)-1 -> 16 | B70: Carolina Panthers | C70: Running Back
A71: =RANK(S71,$S:$S,0)+COUNTIF($S$4:S71,S71)-1 -> 16 | B71: Carolina Panthers | C71: Running Back
A72: =RANK(S72,$S:$S,0)+COUNTIF($S$4:S72,S72)-1 -> 16 | B72: Carolina Panthers | C72: Wide Receiver
A73: =RANK(S73,$S:$S,0)+COUNTIF($S$4:S73,S73)-1 -> 16 | B73: Carolina Panthers | C73: Wide Receiver
A74: =RANK(S74,$S:$S,0)+COUNTIF($S$4:S74,S74)-1 -> 16 | B74: Carolina Panthers | C74: Wide Receiver
A75: =RANK(S75,$S:$S,0)+COUNTIF($S$4:S75,S75)-1 -> 16 | B75: Carolina Panthers | C75: Wide Receiver
A76: =RANK(S76,$S:$S,0)+COUNTIF($S$4:S76,S76)-1 -> 16 | B76: Carolina Panthers | C76: Wide Receiver
A77: =RANK(S77,$S:$S,0)+COUNTIF($S$4:S77,S77)-1 -> 16 | B77: Carolina Panthers | C77: Wide Receiver
A78: =RANK(S78,$S:$S,0)+COUNTIF($S$4:S78,S78)-1 -> 16 | B78: Carolina Panthers | C78: Wide Receiver
A79: =RANK(S79,$S:$S,0)+COUNTIF($S$4:S79,S79)-1 -> 16 | B79: Carolina Panthers | C79: Wide Receiver
A80: =RANK(S80,$S:$S,0)+COUNTIF($S$4:S80,S80)-1 -> 16 | B80: Carolina Panthers | C80: Tight End
A81: =RANK(S81,$S:$S,0)+COUNTIF($S$4:S81,S81)-1 -> 16 | B81: Carolina Panthers | C81: Tight End
A82: =RANK(S82,$S:$S,0)+COUNTIF($S$4:S82,S82)-1 -> 16 | B82: Carolina Panthers | C82: Tight End
A83: =RANK(S83,$S:$S,0)+COUNTIF($S$4:S83,S83)-1 -> 16 | B83: Carolina Panthers | C83: Tight End
A84: =RANK(S84,$S:$S,0)+COUNTIF($S$4:S84,S84)-1 -> 16 | B84: Chicago Bears | C84: Running Back
A85: =RANK(S85,$S:$S,0)+COUNTIF($S$4:S85,S85)-1 -> 16 | B85: Chicago Bears | C85: Running Back
A86: =RANK(S86,$S:$S,0)+COUNTIF($S$4:S86,S86)-1 -> 16 | B86: Chicago Bears | C86: Running Back
A87: =RANK(S87,$S:$S,0)+COUNTIF($S$4:S87,S87)-1 -> 16 | B87: Chicago Bears | C87: Running Back
A88: =RANK(S88,$S:$S,0)+COUNTIF($S$4:S88,S88)-1 -> 16 | B88: Chicago Bears | C88: Wide Receiver
A89: =RANK(S89,$S:$S,0)+COUNTIF($S$4:S89,S89)-1 -> 16 | B89: Chicago Bears | C89: Wide Receiver
A90: =RANK(S90,$S:$S,0)+COUNTIF($S$4:S90,S90)-1 -> 16 | B90: Chicago Bears | C90: Wide Receiver
A91: =RANK(S91,$S:$S,0)+COUNTIF($S$4:S91,S91)-1 -> 16 | B91: Chicago Bears | C91: Wide Receiver
A92: =RANK(S92,$S:$S,0)+COUNTIF($S$4:S92,S92)-1 -> 16 | B92: Chicago Bears | C92: Wide Receiver
A93: =RANK(S93,$S:$S,0)+COUNTIF($S$4:S93,S93)-1 -> 16 | B93: Chicago Bears | C93: Wide Receiver
A94: =RANK(S94,$S:$S,0)+COUNTIF($S$4:S94,S94)-1 -> 16 | B94: Chicago Bears | C94: Wide Receiver
A95: =RANK(S95,$S:$S,0)+COUNTIF($S$4:S95,S95)-1 -> 16 | B95: Chicago Bears | C95: Wide Receiver
A96: =RANK(S96,$S:$S,0)+COUNTIF($S$4:S96,S96)-1 -> 16 | B96: Chicago Bears | C96: Tight End
A97: =RANK(S97,$S:$S,0)+COUNTIF($S$4:S97,S97)-1 -> 16 | B97: Chicago Bears | C97: Tight End
A98: =RANK(S98,$S:$S,0)+COUNTIF($S$4:S98,S98)-1 -> 16 | B98: Chicago Bears | C98: Tight End
A99: =RANK(S99,$S:$S,0)+COUNTIF($S$4:S99,S99)-1 -> 16 | B99: Chicago Bears | C99: Tight End
A100: =RANK(S100,$S:$S,0)+COUNTIF($S$4:S100,S100)-1 -> 16 | B100: Cincinnati Bengals | C100: Running Back
A101: =RANK(S101,$S:$S,0)+COUNTIF($S$4:S101,S101)-1 -> 16 | B101: Cincinnati Bengals | C101: Running Back
A102: =RANK(S102,$S:$S,0)+COUNTIF($S$4:S102,S102)-1 -> 16 | B102: Cincinnati Bengals | C102: Running Back
A103: =RANK(S103,$S:$S,0)+COUNTIF($S$4:S103,S103)-1 -> 16 | B103: Cincinnati Bengals | C103: Running Back
A104: =RANK(S104,$S:$S,0)+COUNTIF($S$4:S104,S104)-1 -> 16 | B104: Cincinnati Bengals | C104: Wide Receiver
A105: =RANK(S105,$S:$S,0)+COUNTIF($S$4:S105,S105)-1 -> 16 | B105: Cincinnati Bengals | C105: Wide Receiver
A106: =RANK(S106,$S:$S,0)+COUNTIF($S$4:S106,S106)-1 -> 16 | B106: Cincinnati Bengals | C106: Wide Receiver
A107: =RANK(S107,$S:$S,0)+COUNTIF($S$4:S107,S107)-1 -> 16 | B107: Cincinnati Bengals | C107: Wide Receiver
A108: =RANK(S108,$S:$S,0)+COUNTIF($S$4:S108,S108)-1 -> 16 | B108: Cincinnati Bengals | C108: Wide Receiver
A109: =RANK(S109,$S:$S,0)+COUNTIF($S$4:S109,S109)-1 -> 16 | B109: Cincinnati Bengals | C109: Wide Receiver
A110: =RANK(S110,$S:$S,0)+COUNTIF($S$4:S110,S110)-1 -> 16 | B110: Cincinnati Bengals | C110: Wide Receiver
A111: =RANK(S111,$S:$S,0)+COUNTIF($S$4:S111,S111)-1 -> 16 | B111: Cincinnati Bengals | C111: Wide Receiver
A112: =RANK(S112,$S:$S,0)+COUNTIF($S$4:S112,S112)-1 -> 16 | B112: Cincinnati Bengals | C112: Tight End
A113: =RANK(S113,$S:$S,0)+COUNTIF($S$4:S113,S113)-1 -> 16 | B113: Cincinnati Bengals | C113: Tight End
A114: =RANK(S114,$S:$S,0)+COUNTIF($S$4:S114,S114)-1 -> 16 | B114: Cincinnati Bengals | C114: Tight End
A115: =RANK(S115,$S:$S,0)+COUNTIF($S$4:S115,S115)-1 -> 16 | B115: Cincinnati Bengals | C115: Tight End
A116: =RANK(S116,$S:$S,0)+COUNTIF($S$4:S116,S116)-1 -> 16 | B116: Cleveland Browns | C116: Running Back
A117: =RANK(S117,$S:$S,0)+COUNTIF($S$4:S117,S117)-1 -> 16 | B117: Cleveland Browns | C117: Running Back
A118: =RANK(S118,$S:$S,0)+COUNTIF($S$4:S118,S118)-1 -> 16 | B118: Cleveland Browns | C118: Running Back
A119: =RANK(S119,$S:$S,0)+COUNTIF($S$4:S119,S119)-1 -> 16 | B119: Cleveland Browns | C119: Running Back
A120: =RANK(S120,$S:$S,0)+COUNTIF($S$4:S120,S120)-1 -> 16 | B120: Cleveland Browns | C120: Wide Receiver
A121: =RANK(S121,$S:$S,0)+COUNTIF($S$4:S121,S121)-1 -> 16 | B121: Cleveland Browns | C121: Wide Receiver
A122: =RANK(S122,$S:$S,0)+COUNTIF($S$4:S122,S122)-1 -> 16 | B122: Cleveland Browns | C122: Wide Receiver
A123: =RANK(S123,$S:$S,0)+COUNTIF($S$4:S123,S123)-1 -> 16 | B123: Cleveland Browns | C123: Wide Receiver
A124: =RANK(S124,$S:$S,0)+COUNTIF($S$4:S124,S124)-1 -> 16 | B124: Cleveland Browns | C124: Wide Receiver
A125: =RANK(S125,$S:$S,0)+COUNTIF($S$4:S125,S125)-1 -> 16 | B125: Cleveland Browns | C125: Wide Receiver
A126: =RANK(S126,$S:$S,0)+COUNTIF($S$4:S126,S126)-1 -> 16 | B126: Cleveland Browns | C126: Wide Receiver
A127: =RANK(S127,$S:$S,0)+COUNTIF($S$4:S127,S127)-1 -> 16 | B127: Cleveland Browns | C127: Wide Receiver
A128: =RANK(S128,$S:$S,0)+COUNTIF($S$4:S128,S128)-1 -> 16 | B128: Cleveland Browns | C128: Tight End
A129: =RANK(S129,$S:$S,0)+COUNTIF($S$4:S129,S129)-1 -> 16 | B129: Cleveland Browns | C129: Tight End
A130: =RANK(S130,$S:$S,0)+COUNTIF($S$4:S130,S130)-1 -> 16 | B130: Cleveland Browns | C130: Tight End
A131: =RANK(S131,$S:$S,0)+COUNTIF($S$4:S131,S131)-1 -> 16 | B131: Cleveland Browns | C131: Tight End
A132: =RANK(S132,$S:$S,0)+COUNTIF($S$4:S132,S132)-1 -> 16 | B132: Dallas Cowboys | C132: Running Back
A133: =RANK(S133,$S:$S,0)+COUNTIF($S$4:S133,S133)-1 -> 16 | B133: Dallas Cowboys | C133: Running Back
A134: =RANK(S134,$S:$S,0)+COUNTIF($S$4:S134,S134)-1 -> 16 | B134: Dallas Cowboys | C134: Running Back
A135: =RANK(S135,$S:$S,0)+COUNTIF($S$4:S135,S135)-1 -> 16 | B135: Dallas Cowboys | C135: Running Back
A136: =RANK(S136,$S:$S,0)+COUNTIF($S$4:S136,S136)-1 -> 16 | B136: Dallas Cowboys | C136: Wide Receiver
A137: =RANK(S137,$S:$S,0)+COUNTIF($S$4:S137,S137)-1 -> 16 | B137: Dallas Cowboys | C137: Wide Receiver
A138: =RANK(S138,$S:$S,0)+COUNTIF($S$4:S138,S138)-1 -> 16 | B138: Dallas Cowboys | C138: Wide Receiver
A139: =RANK(S139,$S:$S,0)+COUNTIF($S$4:S139,S139)-1 -> 16 | B139: Dallas Cowboys | C139: Wide Receiver
A140: =RANK(S140,$S:$S,0)+COUNTIF($S$4:S140,S140)-1 -> 16 | B140: Dallas Cowboys | C140: Wide Receiver
A141: =RANK(S141,$S:$S,0)+COUNTIF($S$4:S141,S141)-1 -> 16 | B141: Dallas Cowboys | C141: Wide Receiver
A142: =RANK(S142,$S:$S,0)+COUNTIF($S$4:S142,S142)-1 -> 16 | B142: Dallas Cowboys | C142: Wide Receiver
A143: =RANK(S143,$S:$S,0)+COUNTIF($S$4:S143,S143)-1 -> 16 | B143: Dallas Cowboys | C143: Wide Receiver
A144: =RANK(S144,$S:$S,0)+COUNTIF($S$4:S144,S144)-1 -> 16 | B144: Dallas Cowboys | C144: Tight End
A145: =RANK(S145,$S:$S,0)+COUNTIF($S$4:S145,S145)-1 -> 16 | B145: Dallas Cowboys | C145: Tight End
A146: =RANK(S146,$S:$S,0)+COUNTIF($S$4:S146,S146)-1 -> 16 | B146: Dallas Cowboys | C146: Tight End
A147: =RANK(S147,$S:$S,0)+COUNTIF($S$4:S147,S147)-1 -> 16 | B147: Dallas Cowboys | C147: Tight End
A148: =RANK(S148,$S:$S,0)+COUNTIF($S$4:S148,S148)-1 -> 16 | B148: Denver Broncos | C148: Running Back
A149: =RANK(S149,$S:$S,0)+COUNTIF($S$4:S149,S149)-1 -> 16 | B149: Denver Broncos | C149: Running Back
A150: =RANK(S150,$S:$S,0)+COUNTIF($S$4:S150,S150)-1 -> 16 | B150: Denver Broncos | C150: Running Back
A151: =RANK(S151,$S:$S,0)+COUNTIF($S$4:S151,S151)-1 -> 16 | B151: Denver Broncos | C151: Running Back
A152: =RANK(S152,$S:$S,0)+COUNTIF($S$4:S152,S152)-1 -> 16 | B152: Denver Broncos | C152: Wide Receiver
A153: =RANK(S153,$S:$S,0)+COUNTIF($S$4:S153,S153)-1 -> 16 | B153: Denver Broncos | C153: Wide Receiver
A154: =RANK(S154,$S:$S,0)+COUNTIF($S$4:S154,S154)-1 -> 16 | B154: Denver Broncos | C154: Wide Receiver
A155: =RANK(S155,$S:$S,0)+COUNTIF($S$4:S155,S155)-1 -> 16 | B155: Denver Broncos | C155: Wide Receiver
A156: =RANK(S156,$S:$S,0)+COUNTIF($S$4:S156,S156)-1 -> 16 | B156: Denver Broncos | C156: Wide Receiver
A157: =RANK(S157,$S:$S,0)+COUNTIF($S$4:S157,S157)-1 -> 16 | B157: Denver Broncos | C157: Wide Receiver
A158: =RANK(S158,$S:$S,0)+COUNTIF($S$4:S158,S158)-1 -> 16 | B158: Denver Broncos | C158: Wide Receiver
A159: =RANK(S159,$S:$S,0)+COUNTIF($S$4:S159,S159)-1 -> 16 | B159: Denver Broncos | C159: Wide Receiver
A160: =RANK(S160,$S:$S,0)+COUNTIF($S$4:S160,S160)-1 -> 16 | B160: Denver Broncos | C160: Tight End
A161: =RANK(S161,$S:$S,0)+COUNTIF($S$4:S161,S161)-1 -> 16 | B161: Denver Broncos | C161: Tight End
A162: =RANK(S162,$S:$S,0)+COUNTIF($S$4:S162,S162)-1 -> 16 | B162: Denver Broncos | C162: Tight End
A163: =RANK(S163,$S:$S,0)+COUNTIF($S$4:S163,S163)-1 -> 16 | B163: Denver Broncos | C163: Tight End
A164: =RANK(S164,$S:$S,0)+COUNTIF($S$4:S164,S164)-1 -> 16 | B164: Detroit Lions | C164: Running Back
A165: =RANK(S165,$S:$S,0)+COUNTIF($S$4:S165,S165)-1 -> 16 | B165: Detroit Lions | C165: Running Back
A166: =RANK(S166,$S:$S,0)+COUNTIF($S$4:S166,S166)-1 -> 16 | B166: Detroit Lions | C166: Running Back
A167: =RANK(S167,$S:$S,0)+COUNTIF($S$4:S167,S167)-1 -> 16 | B167: Detroit Lions | C167: Running Back
A168: =RANK(S168,$S:$S,0)+COUNTIF($S$4:S168,S168)-1 -> 16 | B168: Detroit Lions | C168: Wide Receiver
A169: =RANK(S169,$S:$S,0)+COUNTIF($S$4:S169,S169)-1 -> 16 | B169: Detroit Lions | C169: Wide Receiver
A170: =RANK(S170,$S:$S,0)+COUNTIF($S$4:S170,S170)-1 -> 16 | B170: Detroit Lions | C170: Wide Receiver
A171: =RANK(S171,$S:$S,0)+COUNTIF($S$4:S171,S171)-1 -> 16 | B171: Detroit Lions | C171: Wide Receiver
A172: =RANK(S172,$S:$S,0)+COUNTIF($S$4:S172,S172)-1 -> 16 | B172: Detroit Lions | C172: Wide Receiver
A173: =RANK(S173,$S:$S,0)+COUNTIF($S$4:S173,S173)-1 -> 16 | B173: Detroit Lions | C173: Wide Receiver
A174: =RANK(S174,$S:$S,0)+COUNTIF($S$4:S174,S174)-1 -> 16 | B174: Detroit Lions | C174: Wide Receiver
A175: =RANK(S175,$S:$S,0)+COUNTIF($S$4:S175,S175)-1 -> 16 | B175: Detroit Lions | C175: Wide Receiver
A176: =RANK(S176,$S:$S,0)+COUNTIF($S$4:S176,S176)-1 -> 16 | B176: Detroit Lions | C176: Tight End
A177: =RANK(S177,$S:$S,0)+COUNTIF($S$4:S177,S177)-1 -> 16 | B177: Detroit Lions | C177: Tight End
A178: =RANK(S178,$S:$S,0)+COUNTIF($S$4:S178,S178)-1 -> 16 | B178: Detroit Lions | C178: Tight End
A179: =RANK(S179,$S:$S,0)+COUNTIF($S$4:S179,S179)-1 -> 16 | B179: Detroit Lions | C179: Tight End
A180: =RANK(S180,$S:$S,0)+COUNTIF($S$4:S180,S180)-1 -> 16 | B180: Green Bay Packers | C180: Running Back
A181: =RANK(S181,$S:$S,0)+COUNTIF($S$4:S181,S181)-1 -> 16 | B181: Green Bay Packers | C181: Running Back
A182: =RANK(S182,$S:$S,0)+COUNTIF($S$4:S182,S182)-1 -> 16 | B182: Green Bay Packers | C182: Running Back
A183: =RANK(S183,$S:$S,0)+COUNTIF($S$4:S183,S183)-1 -> 16 | B183: Green Bay Packers | C183: Running Back
A184: =RANK(S184,$S:$S,0)+COUNTIF($S$4:S184,S184)-1 -> 16 | B184: Green Bay Packers | C184: Wide Receiver
A185: =RANK(S185,$S:$S,0)+COUNTIF($S$4:S185,S185)-1 -> 16 | B185: Green Bay Packers | C185: Wide Receiver
A186: =RANK(S186,$S:$S,0)+COUNTIF($S$4:S186,S186)-1 -> 16 | B186: Green Bay Packers | C186: Wide Receiver
A187: =RANK(S187,$S:$S,0)+COUNTIF($S$4:S187,S187)-1 -> 16 | B187: Green Bay Packers | C187: Wide Receiver
A188: =RANK(S188,$S:$S,0)+COUNTIF($S$4:S188,S188)-1 -> 16 | B188: Green Bay Packers | C188: Wide Receiver
A189: =RANK(S189,$S:$S,0)+COUNTIF($S$4:S189,S189)-1 -> 16 | B189: Green Bay Packers | C189: Wide Receiver
A190: =RANK(S190,$S:$S,0)+COUNTIF($S$4:S190,S190)-1 -> 16 | B190: Green Bay Packers | C190: Wide Receiver
A191: =RANK(S191,$S:$S,0)+COUNTIF($S$4:S191,S191)-1 -> 16 | B191: Green Bay Packers | C191: Wide Receiver
A192: =RANK(S192,$S:$S,0)+COUNTIF($S$4:S192,S192)-1 -> 16 | B192: Green Bay Packers | C192: Tight End
A193: =RANK(S193,$S:$S,0)+COUNTIF($S$4:S193,S193)-1 -> 16 | B193: Green Bay Packers | C193: Tight End
A194: =RANK(S194,$S:$S,0)+COUNTIF($S$4:S194,S194)-1 -> 16 | B194: Green Bay Packers | C194: Tight End
A195: =RANK(S195,$S:$S,0)+COUNTIF($S$4:S195,S195)-1 -> 16 | B195: Green Bay Packers | C195: Tight End
A196: =RANK(S196,$S:$S,0)+COUNTIF($S$4:S196,S196)-1 -> 16 | B196: Houston Texans | C196: Running Back
A197: =RANK(S197,$S:$S,0)+COUNTIF($S$4:S197,S197)-1 -> 16 | B197: Houston Texans | C197: Running Back
A198: =RANK(S198,$S:$S,0)+COUNTIF($S$4:S198,S198)-1 -> 16 | B198: Houston Texans | C198: Running Back
A199: =RANK(S199,$S:$S,0)+COUNTIF($S$4:S199,S199)-1 -> 16 | B199: Houston Texans | C199: Running Back
A200: =RANK(S200,$S:$S,0)+COUNTIF($S$4:S200,S200)-1 -> 16 | B200: Houston Texans | C200: Wide Receiver
... 315 more rows

Sheet QB Projections
A1: Quarterback Projections | D1: Want to use #SFB14 settings? Go to 'Settings & Instructions' and select 'Yes' in cell G5 | R1: Range of Outcomes
R2: Low | T2: High
A3: Rank | B3: Team | C3: Player | D3: Pass Att. | E3: Completions | F3: Pass Yds. | G3: Pass TD | H3: Int | I3: Rush Att | J3: Rushing Yds | K3: Rushing TDs | L3: Fantasy Points (excl 1st down) | M3: Fantasy Points (incl 1st down) | N3: QB Completion % | O3: QB TD % | P3: YPA | Q3: Tier (Volume based) | R3: Fantasy Points | S3: Tier | T3: Fantasy Points | U3: Tier
A4: =RANK(M4,$M:$M,0)+COUNTIF($M$4:M4,M4)-1 -> 1 | B4: Arizona Cardinals | C4: ='Arizona Cardinals'!$B$102 -> Kyler Murray | D4: ='Arizona Cardinals'!$C$102 -> 562.309 | E4: ='Arizona Cardinals'!$D$102 -> 393.50036 | F4: ='Arizona Cardinals'!$E$102 -> 4417.66182 | G4: ='Arizona Cardinals'!$F$102 -> 22 | H4: ='Arizona Cardinals'!$G$102 -> 12 | I4: ='Arizona Cardinals'!$I$102 -> 71.145 | J4: ='Arizona Cardinals'!$K$102 -> 426.87 | K4: ='Arizona Cardinals'!$L$102 -> 4 | L4: ='Arizona Cardinals'!$P$102 -> 307.3934728 | M4: =MAX(L4+(((0.0572*J4)-2.646)*'Settings & Instructions'!$C$22)+(((0.3608*D4)-7.7781)*'Settings & Instructions'!$C$21),0) -> 307.3934728 | N4: ='Arizona Cardinals'!$M$102 -> 0.6997938144 | O4: ='Arizona Cardinals'!$N$102 -> 0.03912439602 | P4: ='Arizona Cardinals'!$O$102 -> 7.85628866 | Q4: ='Arizona Cardinals'!$R$102 -> 2nd Tier QB1 | R4: ='Arizona Cardinals'!$T$102 -> 268.0970417 | S4: ='Arizona Cardinals'!$U$102 -> 2nd Tier QB1 | T4: ='Arizona Cardinals'!$V$102 -> 330.5048603 | U4: ='Arizona Cardinals'!$W$102 -> 2nd Tier QB1

Sheet Total Rankings (excl QB)
A1: Total Rankings (Excl QB) | G1: Open '+' for Range of Outcomes | H1: Range of Outcomes | M1: Want to use #SFB14 settings? Go to 'Settings & Instructions' and select 'Yes' in cell G5
H2: Low | J2: High
A3: Rank | B3: Team | C3: Position | D3: Player | E3: Fantasy Points | F3: Pos Rank | G3: Tier (Volume based) | H3: Fantasy Points | I3: Tier | J3: Fantasy Points | K3: Tier | M3: PPR & Premium Settings
A4: 1 | B4: =VLOOKUP($A4,'Total Projections (excl QB)'!$A:$Y,2,0) -> Arizona Cardinals | C4: =VLOOKUP($A4,'Total Projections (excl QB)'!$A:$Y,3,0) -> Tight End | D4: =VLOOKUP($A4,'Total Projections (excl QB)'!$A:$Y,4,0) -> Trey McBride | E4: =VLOOKUP($A4,'Total Projections (excl QB)'!$A:$Y,19,0) -> 316.9515 | F4: =COUNTIFS(C:C,C4,E:E,">"&E4)+1 -> 1 | G4: =VLOOKUP($A4,'Total Projections (excl QB)'!$A:$Y,20,0) -> Top TE | H4: =VLOOKUP($A4,'Total Projections (excl QB)'!$A:$Y,21,0) -> 292.3762857 | I4: =VLOOKUP($A4,'Total Projections (excl QB)'!$A:$Y,22,0) -> Top TE | J4: =VLOOKUP($A4,'Total Projections (excl QB)'!$A:$Y,23,0) -> 334.2804643 | K4: =VLOOKUP($A4,'Total Projections (excl QB)'!$A:$Y,24,0) -> Top TE
A5: 2 | B5: =VLOOKUP($A5,'Total Projections (excl QB)'!$A:$Y,2,0) -> Arizona Cardinals | C5: =VLOOKUP($A5,'Total Projections (excl QB)'!$A:$Y,3,0) -> Wide Receiver | D5: =VLOOKUP($A5,'Total Projections (excl QB)'!$A:$Y,4,0) -> Marvin Harrison | E5: =VLOOKUP($A5,'Total Projections (excl QB)'!$A:$Y,19,0) -> 295.61875 | F5: 1 | G5: =VLOOKUP($A5,'Total Projections (excl QB)'!$A:$Y,20,0) -> 2nd Tier WR1 | H5: =VLOOKUP($A5,'Total Projections (excl QB)'!$A:$Y,21,0) -> 271.3582 | I5: =VLOOKUP($A5,'Total Projections (excl QB)'!$A:$Y,22,0) -> Consistent WR2 | J5: =VLOOKUP($A5,'Total Projections (excl QB)'!$A:$Y,23,0) -> 332.053 | K5: =VLOOKUP($A5,'Total Projections (excl QB)'!$A:$Y,24,0) -> Elite WR | M5: Receptions | N5: ='Settings & Instructions'!C13 -> 1
A6: 3 | B6: =VLOOKUP($A6,'Total Projections (excl QB)'!$A:$Y,2,0) -> Arizona Cardinals | C6: =VLOOKUP($A6,'Total Projections (excl QB)'!$A:$Y,3,0) -> Running Back | D6: =VLOOKUP($A6,'Total Projections (excl QB)'!$A:$Y,4,0) -> James Conner | E6: =VLOOKUP($A6,'Total Projections (excl QB)'!$A:$Y,19,0) -> 182.30595 | F6: 1 | G6: =VLOOKUP($A6,'Total Projections (excl QB)'!$A:$Y,20,0) -> Consistent RB2 | H6: =VLOOKUP($A6,'Total Projections (excl QB)'!$A:$Y,21,0) -> 175.4488071 | I6: =VLOOKUP($A6,'Total Projections (excl QB)'!$A:$Y,22,0) -> Not a top RB | J6: =VLOOKUP($A6,'Total Projections (excl QB)'!$A:$Y,23,0) -> 251.3227429 | K6: =VLOOKUP($A6,'Total Projections (excl QB)'!$A:$Y,24,0) -> Elite RB | M6: Premium - Tight End | N6: ='Settings & Instructions'!C14 -> 1
A7: 4 | B7: =VLOOKUP($A7,'Total Projections (excl QB)'!$A:$Y,2,0) -> Arizona Cardinals | C7: =VLOOKUP($A7,'Total Projections (excl QB)'!$A:$Y,3,0) -> Running Back | D7: =VLOOKUP($A7,'Total Projections (excl QB)'!$A:$Y,4,0) -> Trey Benson | E7: =VLOOKUP($A7,'Total Projections (excl QB)'!$A:$Y,19,0) -> 118.63866 | F7: 2 | G7: =VLOOKUP($A7,'Total Projections (excl QB)'!$A:$Y,20,0) -> Not a top RB | H7: =VLOOKUP($A7,'Total Projections (excl QB)'!$A:$Y,21,0) -> 115.2100886 | I7: =VLOOKUP($A7,'Total Projections (excl QB)'!$A:$Y,22,0) -> Not a top RB | J7: =VLOOKUP($A7,'Total Projections (excl QB)'!$A:$Y,23,0) -> 122.0672314 | K7: =VLOOKUP($A7,'Total Projections (excl QB)'!$A:$Y,24,0) -> Not a top RB | M7: Premium - Wide Receiver | N7: ='Settings & Instructions'!C15 -> 0
A8: 5 | B8: =VLOOKUP($A8,'Total Projections (excl QB)'!$A:$Y,2,0) -> Arizona Cardinals | C8: =VLOOKUP($A8,'Total Projections (excl QB)'!$A:$Y,3,0) -> Wide Receiver | D8: =VLOOKUP($A8,'Total Projections (excl QB)'!$A:$Y,4,0) -> Michael Wilson | E8: =VLOOKUP($A8,'Total Projections (excl QB)'!$A:$Y,19,0) -> 112.885296 | F8: 2 | G8: =VLOOKUP($A8,'Total Projections (excl QB)'!$A:$Y,20,0) -> Not a top WR | H8: =VLOOKUP($A8,'Total Projections (excl QB)'!$A:$Y,21,0) -> 95.21847943 | I8: =VLOOKUP($A8,'Total Projections (excl QB)'!$A:$Y,22,0) -> Not a top WR | J8: =VLOOKUP($A8,'Total Projections (excl QB)'!$A:$Y,23,0) -> 115.4567246 | K8: =VLOOKUP($A8,'Total Projections (excl QB)'!$A:$Y,24,0) -> Not a top WR | M8: Premium - Running Back | N8: ='Settings & Instructions'!C16 -> 0
A9: 6 | B9: =VLOOKUP($A9,'Total Projections (excl QB)'!$A:$Y,2,0) -> Arizona Cardinals | C9: =VLOOKUP($A9,'Total Projections (excl QB)'!$A:$Y,3,0) -> Wide Receiver | D9: =VLOOKUP($A9,'Total Projections (excl QB)'!$A:$Y,4,0) -> Greg Dortch | E9: =VLOOKUP($A9,'Total Projections (excl QB)'!$A:$Y,19,0) -> 112.60704 | F9: 3 | G9: =VLOOKUP($A9,'Total Projections (excl QB)'!$A:$Y,20,0) -> Not a top WR | H9: =VLOOKUP($A9,'Total Projections (excl QB)'!$A:$Y,21,0) -> 98.20973143 | I9: =VLOOKUP($A9,'Total Projections (excl QB)'!$A:$Y,22,0) -> Not a top WR | J9: =VLOOKUP($A9,'Total Projections (excl QB)'!$A:$Y,23,0) -> 115.1784686 | K9: =VLOOKUP($A9,'Total Projections (excl QB)'!$A:$Y,24,0) -> Not a top WR
A10: 7 | B10: =VLOOKUP($A10,'Total Projections (excl QB)'!$A:$Y,2,0) -> Arizona Cardinals | C10: =VLOOKUP($A10,'Total Projections (excl QB)'!$A:$Y,3,0) -> Wide Receiver | D10: =VLOOKUP($A10,'Total Projections (excl QB)'!$A:$Y,4,0) -> Zach Pascal | E10: =VLOOKUP($A10,'Total Projections (excl QB)'!$A:$Y,19,0) -> 50.52096 | F10: 4 | G10: =VLOOKUP($A10,'Total Projections (excl QB)'!$A:$Y,20,0) -> Not a top WR | H10: =VLOOKUP($A10,'Total Projections (excl QB)'!$A:$Y,21,0) -> 42.24365714 | I10: =VLOOKUP($A10,'Total Projections (excl QB)'!$A:$Y,22,0) -> Not a top WR | J10: =VLOOKUP($A10,'Total Projections (excl QB)'!$A:$Y,23,0) -> 51.37810286 | K10: =VLOOKUP($A10,'Total Projections (excl QB)'!$A:$Y,24,0) -> Not a top WR
A11: 8 | B11: =VLOOKUP($A11,'Total Projections (excl QB)'!$A:$Y,2,0) -> Arizona Cardinals | C11: =VLOOKUP($A11,'Total Projections (excl QB)'!$A:$Y,3,0) -> Wide Receiver | D11: =VLOOKUP($A11,'Total Projections (excl QB)'!$A:$Y,4,0) -> Chris Moore | E11: =VLOOKUP($A11,'Total Projections (excl QB)'!$A:$Y,19,0) -> 32.277696 | F11: 5 | G11: =VLOOKUP($A11,'Total Projections (excl QB)'!$A:$Y,20,0) -> Not a top WR | H11: =VLOOKUP($A11,'Total Projections (excl QB)'!$A:$Y,21,0) -> 32.277696 | I11: =VLOOKUP($A11,'Total Projections (excl QB)'!$A:$Y,22,0) -> Not a top WR | J11: =VLOOKUP($A11,'Total Projections (excl QB)'!$A:$Y,23,0) -> 32.277696 | K11: =VLOOKUP($A11,'Total Projections (excl QB)'!$A:$Y,24,0) -> Not a top WR
A12: 9 | B12: =VLOOKUP($A12,'Total Projections (excl QB)'!$A:$Y,2,0) -> Arizona Cardinals | C12: =VLOOKUP($A12,'Total Projections (excl QB)'!$A:$Y,3,0) -> Tight End | D12: =VLOOKUP($A12,'Total Projections (excl QB)'!$A:$Y,4,0) -> Tip Reiman | E12: =VLOOKUP($A12,'Total Projections (excl QB)'!$A:$Y,19,0) -> 26.0865 | F12: 2 | G12: =VLOOKUP($A12,'Total Projections (excl QB)'!$A:$Y,20,0) -> Not a top TE | H12: =VLOOKUP($A12,'Total Projections (excl QB)'!$A:$Y,21,0) -> 26.0865 | I12: =VLOOKUP($A12,'Total Projections (excl QB)'!$A:$Y,22,0) -> Not a top TE | J12: =VLOOKUP($A12,'Total Projections (excl QB)'!$A:$Y,23,0) -> 26.0865 | K12: =VLOOKUP($A12,'Total Projections (excl QB)'!$A:$Y,24,0) -> Not a top TE
A13: 10 | B13: =VLOOKUP($A13,'Total Projections (excl QB)'!$A:$Y,2,0) -> Arizona Cardinals | C13: =VLOOKUP($A13,'Total Projections (excl QB)'!$A:$Y,3,0) -> Running Back | D13: =VLOOKUP($A13,'Total Projections (excl QB)'!$A:$Y,4,0) -> Emari Demercado | E13: =VLOOKUP($A13,'Total Projections (excl QB)'!$A:$Y,19,0) -> 18.32379 | F13: 3 | G13: =VLOOKUP($A13,'Total Projections (excl QB)'!$A:$Y,20,0) -> Not a top RB | H13: =VLOOKUP($A13,'Total Projections (excl QB)'!$A:$Y,21,0) -> 18.32379 | I13: =VLOOKUP($A13,'Total Projections (excl QB)'!$A:$Y,22,0) -> Not a top RB | J13: =VLOOKUP($A13,'Total Projections (excl QB)'!$A:$Y,23,0) -> 18.32379 | K13: =VLOOKUP($A13,'Total Projections (excl QB)'!$A:$Y,24,0) -> Not a top RB
A14: 11 | B14: =VLOOKUP($A14,'Total Projections (excl QB)'!$A:$Y,2,0) -> Arizona Cardinals | C14: =VLOOKUP($A14,'Total Projections (excl QB)'!$A:$Y,3,0) -> Running Back | D14: =VLOOKUP($A14,'Total Projections (excl QB)'!$A:$Y,4,0) -> Michael Carter | E14: =VLOOKUP($A14,'Total Projections (excl QB)'!$A:$Y,19,0) -> 18.32379 | F14: 3 | G14: =VLOOKUP($A14,'Total Projections (excl QB)'!$A:$Y,20,0) -> Not a top RB | H14: =VLOOKUP($A14,'Total Projections (excl QB)'!$A:$Y,21,0) -> 18.32379 | I14: =VLOOKUP($A14,'Total Projections (excl QB)'!$A:$Y,22,0) -> Not a top RB | J14: =VLOOKUP($A14,'Total Projections (excl QB)'!$A:$Y,23,0) -> 18.32379 | K14: =VLOOKUP($A14,'Total Projections (excl QB)'!$A:$Y,24,0) -> Not a top RB
A15: 12 | B15: =VLOOKUP($A15,'Total Projections (excl QB)'!$A:$Y,2,0) -> Arizona Cardinals | C15: =VLOOKUP($A15,'Total Projections (excl QB)'!$A:$Y,3,0) -> Wide Receiver | D15: =VLOOKUP($A15,'Total Projections (excl QB)'!$A:$Y,4,0) -> Tejhaun Palmer | E15: =VLOOKUP($A15,'Total Projections (excl QB)'!$A:$Y,19,0) -> 15.30408 | F15: 6 | G15: =VLOOKUP($A15,'Total Projections (excl QB)'!$A:$Y,20,0) -> Not a top WR | H15: =VLOOKUP($A15,'Total Projections (excl QB)'!$A:$Y,21,0) -> 15.30408 | I15: =VLOOKUP($A15,'Total Projections (excl QB)'!$A:$Y,22,0) -> Not a top WR | J15: =VLOOKUP($A15,'Total Projections (excl QB)'!$A:$Y,23,0) -> 15.30408 | K15: =VLOOKUP($A15,'Total Projections (excl QB)'!$A:$Y,24,0) -> Not a top WR
A16: 13 | B16: =VLOOKUP($A16,'Total Projections (excl QB)'!$A:$Y,2,0) -> Arizona Cardinals | C16: =VLOOKUP($A16,'Total Projections (excl QB)'!$A:$Y,3,0) -> Wide Receiver | D16: =VLOOKUP($A16,'Total Projections (excl QB)'!$A:$Y,4,0) -> 0 | E16: =VLOOKUP($A16,'Total Projections (excl QB)'!$A:$Y,19,0) -> 0 | F16: 7 | G16: =VLOOKUP($A16,'Total Projections (excl QB)'!$A:$Y,20,0) -> Not a top WR | H16: =VLOOKUP($A16,'Total Projections (excl QB)'!$A:$Y,21,0) -> 0 | I16: =VLOOKUP($A16,'Total Projections (excl QB)'!$A:$Y,22,0) -> Not a top WR | J16: =VLOOKUP($A16,'Total Projections (excl QB)'!$A:$Y,23,0) -> 0 | K16: =VLOOKUP($A16,'Total Projections (excl QB)'!$A:$Y,24,0) -> Not a top WR
A17: 14 | B17: =VLOOKUP($A17,'Total Projections (excl QB)'!$A:$Y,2,0) -> Arizona Cardinals | C17: =VLOOKUP($A17,'Total Projections (excl QB)'!$A:$Y,3,0) -> Wide Receiver | D17: =VLOOKUP($A17,'Total Projections (excl QB)'!$A:$Y,4,0) -> 0 | E17: =VLOOKUP($A17,'Total Projections (excl QB)'!$A:$Y,19,0) -> 0 | F17: 7 | G17: =VLOOKUP($A17,'Total Projections (excl QB)'!$A:$Y,20,0) -> Not a top WR | H17: =VLOOKUP($A17,'Total Projections (excl QB)'!$A:$Y,21,0) -> 0 | I17: =VLOOKUP($A17,'Total Projections (excl QB)'!$A:$Y,22,0) -> Not a top WR | J17: =VLOOKUP($A17,'Total Projections (excl QB)'!$A:$Y,23,0) -> 0 | K17: =VLOOKUP($A17,'Total Projections (excl QB)'!$A:$Y,24,0) -> Not a top WR
A18: 15 | B18: =VLOOKUP($A18,'Total Projections (excl QB)'!$A:$Y,2,0) -> Arizona Cardinals | C18: =VLOOKUP($A18,'Total Projections (excl QB)'!$A:$Y,3,0) -> Tight End | D18: =VLOOKUP($A18,'Total Projections (excl QB)'!$A:$Y,4,0) -> 0 | E18: =VLOOKUP($A18,'Total Projections (excl QB)'!$A:$Y,19,0) -> 0 | F18: 3 | G18: =VLOOKUP($A18,'Total Projections (excl QB)'!$A:$Y,20,0) -> Not a top TE | H18: =VLOOKUP($A18,'Total Projections (excl QB)'!$A:$Y,21,0) -> 0 | I18: =VLOOKUP($A18,'Total Projections (excl QB)'!$A:$Y,22,0) -> Not a top TE | J18: =VLOOKUP($A18,'Total Projections (excl QB)'!$A:$Y,23,0) -> 0 | K18: =VLOOKUP($A18,'Total Projections (excl QB)'!$A:$Y,24,0) -> Not a top TE
A19: 16 | B19: =VLOOKUP($A19,'Total Projections (excl QB)'!$A:$Y,2,0) -> Arizona Cardinals | C19: =VLOOKUP($A19,'Total Projections (excl QB)'!$A:$Y,3,0) -> Tight End | D19: =VLOOKUP($A19,'Total Projections (excl QB)'!$A:$Y,4,0) -> 0 | E19: =VLOOKUP($A19,'Total Projections (excl QB)'!$A:$Y,19,0) -> 0 | F19: 3 | G19: =VLOOKUP($A19,'Total Projections (excl QB)'!$A:$Y,20,0) -> Not a top TE | H19: =VLOOKUP($A19,'Total Projections (excl QB)'!$A:$Y,21,0) -> 0 | I19: =VLOOKUP($A19,'Total Projections (excl QB)'!$A:$Y,22,0) -> Not a top TE | J19: =VLOOKUP($A19,'Total Projections (excl QB)'!$A:$Y,23,0) -> 0 | K19: =VLOOKUP($A19,'Total Projections (excl QB)'!$A:$Y,24,0) -> Not a top TE
A20: 17
A21: 18
A22: 19
A23: 20
A24: 21
A25: 22
A26: 23
A27: 24
A28: 25
A29: 26
A30: 27
A31: 28
A32: 29
A33: 30
A34: 31
A35: 32
A36: 33
A37: 34
A38: 35
A39: 36
A40: 37
A41: 38
A42: 39
A43: 40
A44: 41
A45: 42
A46: 43
A47: 44
A48: 45
A49: 46
A50: 47
A51: 48
A52: 49
A53: 50
A54: 51
A55: 52
A56: 53
A57: 54
A58: 55
A59: 56
A60: 57
A61: 58
A62: 59
A63: 60
A64: 61
A65: 62
A66: 63
A67: 64
A68: 65
A69: 66
A70: 67
A71: 68
A72: 69
A73: 70
A74: 71
A75: 72
A76: 73
A77: 74
A78: 75
A79: 76
A80: 77
A81: 78
A82: 79
A83: 80
A84: 81
A85: 82
A86: 83
A87: 84
A88: 85
A89: 86
A90: 87
A91: 88
A92: 89
A93: 90
A94: 91
A95: 92
A96: 93
A97: 94
A98: 95
A99: 96
A100: 97
A101: 98
A102: 99
A103: 100
A104: 101
A105: 102
A106: 103
A107: 104
A108: 105
A109: 106
A110: 107
A111: 108
A112: 109
A113: 110
A114: 111
A115: 112
A116: 113
A117: 114
A118: 115
A119: 116
A120: 117
A121: 118
A122: 119
A123: 120
A124: 121
A125: 122
A126: 123
A127: 124
A128: 125
A129: 126
A130: 127
A131: 128
A132: 129
A133: 130
A134: 131
A135: 132
A136: 133
A137: 134
A138: 135
A139: 136
A140: 137
A141: 138
A142: 139
A143: 140
A144: 141
A145: 142
A146: 143
A147: 144
A148: 145
A149: 146
A150: 147
A151: 148
A152: 149
A153: 150
A154: 151
A155: 152
A156: 153
A157: 154
A158: 155
A159: 156
A160: 157
A161: 158
A162: 159
A163: 160
A164: 161
A165: 162
A166: 163
A167: 164
A168: 165
A169: 166
A170: 167
A171: 168
A172: 169
A173: 170
A174: 171
A175: 172
A176: 173
A177: 174
A178: 175
A179: 176
A180: 177
A181: 178
A182: 179
A183: 180
A184: 181
A185: 182
A186: 183
A187: 184
A188: 185
A189: 186
A190: 187
A191: 188
A192: 189
A193: 190
A194: 191
A195: 192
A196: 193
A197: 194
A198: 195
A199: 196
A200: 197
... 315 more rows

Sheet QB Rankings
A1: Quarterback Projections | E1: Open '+' for Range of Outcomes | F1: Range of Outcomes | K1: Want to use #SFB14 settings? Go to 'Settings & Instructions' and select 'Yes' in cell G5
F2: Low | H2: High
A3: Rank | B3: Team | C3: Player | D3: Fantasy Points | E3: Tier (Volume based) | F3: Fantasy Points | G3: Tier | H3: Fantasy Points | I3: Tier
A4: 1 | B4: =VLOOKUP($A4,'QB Projections'!$A:$M,2,0) -> Arizona Cardinals | C4: =VLOOKUP($A4,'QB Projections'!$A:$M,3,0) -> Kyler Murray | D4: =VLOOKUP($A4,'QB Projections'!$A:$M,13,0) -> 307.3934728 | E4: =VLOOKUP($A4,'QB Projections'!$A:$V,17,0) -> 2nd Tier QB1 | F4: =VLOOKUP($A4,'QB Projections'!$A:$V,18,0) -> 268.0970417 | G4: =VLOOKUP($A4,'QB Projections'!$A:$V,19,0) -> 2nd Tier QB1 | H4: =VLOOKUP($A4,'QB Projections'!$A:$V,20,0) -> 330.5048603 | I4: =VLOOKUP($A4,'QB Projections'!$A:$V,21,0) -> 2nd Tier QB1
A5: 2
A6: 3
A7: 4
A8: 5
A9: 6
A10: 7
A11: 8
A12: 9
A13: 10
A14: 11
A15: 12
A16: 13
A17: 14
A18: 15
A19: 16
A20: 17
A21: 18
A22: 19
A23: 20
A24: 21
A25: 22
A26: 23
A27: 24
A28: 25
A29: 26
A30: 27
A31: 28
A32: 29
A33: 30
A34: 31
A35: 32
A36: 33
A37: 34
A38: 35
A39: 36
A40: 37
A41: 38
A42: 39
A43: 40
A44: 41
A45: 42
A46: 43
A47: 44
A48: 45
A49: 46
A50: 47
A51: 48
A52: 49
A53: 50
A54: 51
A55: 52
A56: 53
A57: 54
A58: 55
A59: 56
A60: 57
A61: 58
A62: 59
A63: 60
A64: 61
A65: 62
A66: 63
A67: 64

Sheet Positional Ranks
A1: Wide Receiver | F1: Open '+' for Range of Outcomes | G1: Range of Outcomes | L1: Running Back | Q1: Open '+' for Range of Outcomes | R1: Range of Outcomes | W1: Tight End | AB1: Open '+' for Range of Outcomes | AC1: Range of Outcomes | AH1: Quarterback | AM1: Open '+' for Range of Outcomes | AN1: Range of Outcomes
G2: Low | I2: High | R2: Low | T2: High | AC2: Low | AE2: High | AN2: Low | AP2: High
A3: Rank | B3: Player | C3: Fantasy Points | D3: Points per Game | E3: Manual Tier | F3: Tier (Volume based) | G3: Fantasy Points | H3: Tier | I3: Fantasy Points | J3: Tier | L3: Rank | M3: Player | N3: Fantasy Points | O3: Points per Game | P3: Manual Tier | Q3: Tier (Volume based) | R3: Fantasy Points | S3: Tier | T3: Fantasy Points | U3: Tier | W3: Rank | X3: Player | Y3: Fantasy Points | Z3: Points per Game | AA3: Manual Tier | AB3: Tier (Volume based) | AC3: Fantasy Points | AD3: Tier | AE3: Fantasy Points | AF3: Tier | AH3: Rank | AI3: Player | AJ3: Fantasy Points | AK3: Points per Game | AL3: Manual Tier | AM3: Tier (Volume based) | AN3: Fantasy Points | AO3: Tier | AP3: Fantasy Points | AQ3: Tier
A4: 1 | B4: =IFERROR(INDEX('Total Rankings (excl QB)'!$D:$D,MATCH(1,("Wide Receiver"='Total Rankings (excl QB)'!$C:$C)*(A4='Total Rankings (excl QB)'!$F:$F),0),1),"") -> Marvin Harrison | C4: =IFERROR(VLOOKUP($B4,'Total Rankings (excl QB)'!$D:$E,2,0),0) -> 295.61875 | D4: =IFERROR(C4/17,0) -> 17.38933824 | F4: =IFERROR(VLOOKUP($B4,'Total Rankings (excl QB)'!$D:$L,4,0),"") -> 2nd Tier WR1 | G4: =IFERROR(VLOOKUP($B4,'Total Rankings (excl QB)'!$D:$L,5,0),"") -> 271.3582 | H4: =IFERROR(VLOOKUP($B4,'Total Rankings (excl QB)'!$D:$L,6,0),"") -> Consistent WR2 | I4: =IFERROR(VLOOKUP($B4,'Total Rankings (excl QB)'!$D:$L,7,0),"") -> 332.053 | J4: =IFERROR(VLOOKUP($B4,'Total Rankings (excl QB)'!$D:$L,8,0),"") -> Elite WR | L4: 1 | M4: =IFERROR(INDEX('Total Rankings (excl QB)'!$D:$D,MATCH(1,("Running Back"='Total Rankings (excl QB)'!$C:$C)*(L4='Total Rankings (excl QB)'!$F:$F),0),1),"") -> James Conner | N4: =IFERROR(VLOOKUP($M4,'Total Rankings (excl QB)'!$D:$E,2,0),0) -> 182.30595 | O4: =IFERROR(N4/17,0) -> 10.72387941 | Q4: =IFERROR(VLOOKUP($M4,'Total Rankings (excl QB)'!$D:$L,4,0),"") -> Consistent RB2 | R4: =IFERROR(VLOOKUP($M4,'Total Rankings (excl QB)'!$D:$L,5,0),"") -> 175.4488071 | S4: =IFERROR(VLOOKUP($M4,'Total Rankings (excl QB)'!$D:$L,6,0),"") -> Not a top RB | T4: =IFERROR(VLOOKUP($M4,'Total Rankings (excl QB)'!$D:$L,7,0),"") -> 251.3227429 | U4: =IFERROR(VLOOKUP($M4,'Total Rankings (excl QB)'!$D:$L,8,0),"") -> Elite RB | W4: 1 | X4: =IFERROR(INDEX('Total Rankings (excl QB)'!$D:$D,MATCH(1,("Tight End"='Total Rankings (excl QB)'!$C:$C)*(W4='Total Rankings (excl QB)'!$F:$F),0),1),"") -> Trey McBride | Y4: =IFERROR(VLOOKUP($X4,'Total Rankings (excl QB)'!$D:$E,2,0),0) -> 316.9515 | Z4: =IFERROR(Y4/17,0) -> 18.64420588 | AB4: =IFERROR(VLOOKUP($X4,'Total Rankings (excl QB)'!$D:$L,4,0),"") -> Top TE | AC4: =IFERROR(VLOOKUP($X4,'Total Rankings (excl QB)'!$D:$L,5,0),"") -> 292.3762857 | AD4: =IFERROR(VLOOKUP($X4,'Total Rankings (excl QB)'!$D:$L,6,0),"") -> Top TE | AE4: =IFERROR(VLOOKUP($X4,'Total Rankings (excl QB)'!$D:$L,7,0),"") -> 334.2804643 | AF4: =IFERROR(VLOOKUP($X4,'Total Rankings (excl QB)'!$D:$L,8,0),"") -> Top TE | AH4: 1 | AI4: ='QB Rankings'!C4 -> Kyler Murray | AJ4: ='QB Rankings'!D4 -> 307.3934728 | AK4: =AJ4/17 -> 18.08196899 | AM4: ='QB Rankings'!E4 -> 2nd Tier QB1 | AN4: ='QB Rankings'!F4 -> 268.0970417 | AO4: ='QB Rankings'!G4 -> 2nd Tier QB1 | AP4: ='QB Rankings'!H4 -> 330.5048603 | AQ4: ='QB Rankings'!I4 -> 2nd Tier QB1
A5: 2 | B5: =IFERROR(INDEX('Total Rankings (excl QB)'!$D:$D,MATCH(1,("Wide Receiver"='Total Rankings (excl QB)'!$C:$C)*(A5='Total Rankings (excl QB)'!$F:$F),0),1),"") -> Michael Wilson | C5: =IFERROR(VLOOKUP($B5,'Total Rankings (excl QB)'!$D:$E,2,0),0) -> 112.885296 | D5: 6.640311529 | F5: =IFERROR(VLOOKUP($B5,'Total Rankings (excl QB)'!$D:$L,4,0),"") -> Not a top WR | G5: =IFERROR(VLOOKUP($B5,'Total Rankings (excl QB)'!$D:$L,5,0),"") -> 95.21847943 | H5: =IFERROR(VLOOKUP($B5,'Total Rankings (excl QB)'!$D:$L,6,0),"") -> Not a top WR | I5: =IFERROR(VLOOKUP($B5,'Total Rankings (excl QB)'!$D:$L,7,0),"") -> 115.4567246 | J5: =IFERROR(VLOOKUP($B5,'Total Rankings (excl QB)'!$D:$L,8,0),"") -> Not a top WR | L5: 2 | M5: =IFERROR(INDEX('Total Rankings (excl QB)'!$D:$D,MATCH(1,("Running Back"='Total Rankings (excl QB)'!$C:$C)*(L5='Total Rankings (excl QB)'!$F:$F),0),1),"") -> Trey Benson | N5: =IFERROR(VLOOKUP($M5,'Total Rankings (excl QB)'!$D:$E,2,0),0) -> 118.63866 | O5: =IFERROR(N5/17,0) -> 6.978744706 | Q5: =IFERROR(VLOOKUP($M5,'Total Rankings (excl QB)'!$D:$L,4,0),"") -> Not a top RB | R5: =IFERROR(VLOOKUP($M5,'Total Rankings (excl QB)'!$D:$L,5,0),"") -> 115.2100886 | S5: =IFERROR(VLOOKUP($M5,'Total Rankings (excl QB)'!$D:$L,6,0),"") -> Not a top RB | T5: =IFERROR(VLOOKUP($M5,'Total Rankings (excl QB)'!$D:$L,7,0),"") -> 122.0672314 | U5: =IFERROR(VLOOKUP($M5,'Total Rankings (excl QB)'!$D:$L,8,0),"") -> Not a top RB | W5: 2 | X5: =IFERROR(INDEX('Total Rankings (excl QB)'!$D:$D,MATCH(1,("Tight End"='Total Rankings (excl QB)'!$C:$C)*(W5='Total Rankings (excl QB)'!$F:$F),0),1),"") -> Tip Reiman | Y5: =IFERROR(VLOOKUP($X5,'Total Rankings (excl QB)'!$D:$E,2,0),0) -> 26.0865 | Z5: =IFERROR(Y5/17,0) -> 1.5345 | AB5: =IFERROR(VLOOKUP($X5,'Total Rankings (excl QB)'!$D:$L,4,0),"") -> Not a top TE | AC5: =IFERROR(VLOOKUP($X5,'Total Rankings (excl QB)'!$D:$L,5,0),"") -> 26.0865 | AD5: =IFERROR(VLOOKUP($X5,'Total Rankings (excl QB)'!$D:$L,6,0),"") -> Not a top TE | AE5: =IFERROR(VLOOKUP($X5,'Total Rankings (excl QB)'!$D:$L,7,0),"") -> 26.0865 | AF5: =IFERROR(VLOOKUP($X5,'Total Rankings (excl QB)'!$D:$L,8,0),"") -> Not a top TE | AH5: 2 | AI5: ='QB Rankings'!C5 -> 0 | AJ5: ='QB Rankings'!D5 -> 0 | AK5: =AJ5/17 -> 0 | AM5: ='QB Rankings'!E5 -> 0 | AN5: ='QB Rankings'!F5 -> 0 | AO5: ='QB Rankings'!G5 -> 0 | AP5: ='QB Rankings'!H5 -> 0 | AQ5: ='QB Rankings'!I5 -> 0
A6: 3 | B6: =IFERROR(INDEX('Total Rankings (excl QB)'!$D:$D,MATCH(1,("Wide Receiver"='Total Rankings (excl QB)'!$C:$C)*(A6='Total Rankings (excl QB)'!$F:$F),0),1),"") -> Greg Dortch | C6: =IFERROR(VLOOKUP($B6,'Total Rankings (excl QB)'!$D:$E,2,0),0) -> 112.60704 | D6: 6.623943529 | F6: =IFERROR(VLOOKUP($B6,'Total Rankings (excl QB)'!$D:$L,4,0),"") -> Not a top WR | G6: =IFERROR(VLOOKUP($B6,'Total Rankings (excl QB)'!$D:$L,5,0),"") -> 98.20973143 | H6: =IFERROR(VLOOKUP($B6,'Total Rankings (excl QB)'!$D:$L,6,0),"") -> Not a top WR | I6: =IFERROR(VLOOKUP($B6,'Total Rankings (excl QB)'!$D:$L,7,0),"") -> 115.1784686 | J6: =IFERROR(VLOOKUP($B6,'Total Rankings (excl QB)'!$D:$L,8,0),"") -> Not a top WR | L6: 3 | M6: =IFERROR(INDEX('Total Rankings (excl QB)'!$D:$D,MATCH(1,("Running Back"='Total Rankings (excl QB)'!$C:$C)*(L6='Total Rankings (excl QB)'!$F:$F),0),1),"") -> Emari Demercado | N6: =IFERROR(VLOOKUP($M6,'Total Rankings (excl QB)'!$D:$E,2,0),0) -> 18.32379 | O6: 1.07787 | Q6: =IFERROR(VLOOKUP($M6,'Total Rankings (excl QB)'!$D:$L,4,0),"") -> Not a top RB | R6: =IFERROR(VLOOKUP($M6,'Total Rankings (excl QB)'!$D:$L,5,0),"") -> 18.32379 | S6: =IFERROR(VLOOKUP($M6,'Total Rankings (excl QB)'!$D:$L,6,0),"") -> Not a top RB | T6: =IFERROR(VLOOKUP($M6,'Total Rankings (excl QB)'!$D:$L,7,0),"") -> 18.32379 | U6: =IFERROR(VLOOKUP($M6,'Total Rankings (excl QB)'!$D:$L,8,0),"") -> Not a top RB | W6: 3 | X6: =IFERROR(INDEX('Total Rankings (excl QB)'!$D:$D,MATCH(1,("Tight End"='Total Rankings (excl QB)'!$C:$C)*(W6='Total Rankings (excl QB)'!$F:$F),0),1),"") -> 0 | Y6: =IFERROR(VLOOKUP($X6,'Total Rankings (excl QB)'!$D:$E,2,0),0) -> 0 | Z6: 0 | AB6: =IFERROR(VLOOKUP($X6,'Total Rankings (excl QB)'!$D:$L,4,0),"") -> Not a top WR | AC6: =IFERROR(VLOOKUP($X6,'Total Rankings (excl QB)'!$D:$L,5,0),"") -> 0 | AD6: =IFERROR(VLOOKUP($X6,'Total Rankings (excl QB)'!$D:$L,6,0),"") -> Not a top WR | AE6: =IFERROR(VLOOKUP($X6,'Total Rankings (excl QB)'!$D:$L,7,0),"") -> 0 | AF6: =IFERROR(VLOOKUP($X6,'Total Rankings (excl QB)'!$D:$L,8,0),"") -> Not a top WR | AH6: 3 | AI6: ='QB Rankings'!C6 -> 0 | AJ6: ='QB Rankings'!D6 -> 0 | AK6: 0 | AM6: ='QB Rankings'!E6 -> 0 | AN6: ='QB Rankings'!F6 -> 0 | AO6: ='QB Rankings'!G6 -> 0 | AP6: ='QB Rankings'!H6 -> 0 | AQ6: ='QB Rankings'!I6 -> 0
A7: 4 | B7: =IFERROR(INDEX('Total Rankings (excl QB)'!$D:$D,MATCH(1,("Wide Receiver"='Total Rankings (excl QB)'!$C:$C)*(A7='Total Rankings (excl QB)'!$F:$F),0),1),"") -> Zach Pascal | C7: =IFERROR(VLOOKUP($B7,'Total Rankings (excl QB)'!$D:$E,2,0),0) -> 50.52096 | D7: 2.971821176 | F7: =IFERROR(VLOOKUP($B7,'Total Rankings (excl QB)'!$D:$L,4,0),"") -> Not a top WR | G7: =IFERROR(VLOOKUP($B7,'Total Rankings (excl QB)'!$D:$L,5,0),"") -> 42.24365714 | H7: =IFERROR(VLOOKUP($B7,'Total Rankings (excl QB)'!$D:$L,6,0),"") -> Not a top WR | I7: =IFERROR(VLOOKUP($B7,'Total Rankings (excl QB)'!$D:$L,7,0),"") -> 51.37810286 | J7: =IFERROR(VLOOKUP($B7,'Total Rankings (excl QB)'!$D:$L,8,0),"") -> Not a top WR | L7: 4 | M7: =IFERROR(INDEX('Total Rankings (excl QB)'!$D:$D,MATCH(1,("Running Back"='Total Rankings (excl QB)'!$C:$C)*(L7='Total Rankings (excl QB)'!$F:$F),0),1),"") ->  | N7: =IFERROR(VLOOKUP($M7,'Total Rankings (excl QB)'!$D:$E,2,0),0) -> 0 | O7: 0 | Q7: =IFERROR(VLOOKUP($M7,'Total Rankings (excl QB)'!$D:$L,4,0),"") ->  | R7: =IFERROR(VLOOKUP($M7,'Total Rankings (excl QB)'!$D:$L,5,0),"") ->  | S7: =IFERROR(VLOOKUP($M7,'Total Rankings (excl QB)'!$D:$L,6,0),"") ->  | T7: =IFERROR(VLOOKUP($M7,'Total Rankings (excl QB)'!$D:$L,7,0),"") ->  | U7: =IFERROR(VLOOKUP($M7,'Total Rankings (excl QB)'!$D:$L,8,0),"") ->  | W7: 4 | X7: =IFERROR(INDEX('Total Rankings (excl QB)'!$D:$D,MATCH(1,("Tight End"='Total Rankings (excl QB)'!$C:$C)*(W7='Total Rankings (excl QB)'!$F:$F),0),1),"") ->  | Y7: =IFERROR(VLOOKUP($X7,'Total Rankings (excl QB)'!$D:$E,2,0),0) -> 0 | Z7: 0 | AB7: =IFERROR(VLOOKUP($X7,'Total Rankings (excl QB)'!$D:$L,4,0),"") ->  | AC7: =IFERROR(VLOOKUP($X7,'Total Rankings (excl QB)'!$D:$L,5,0),"") ->  | AD7: =IFERROR(VLOOKUP($X7,'Total Rankings (excl QB)'!$D:$L,6,0),"") ->  | AE7: =IFERROR(VLOOKUP($X7,'Total Rankings (excl QB)'!$D:$L,7,0),"") ->  | AF7: =IFERROR(VLOOKUP($X7,'Total Rankings (excl QB)'!$D:$L,8,0),"") ->  | AH7: 4 | AI7: ='QB Rankings'!C7 -> 0 | AJ7: ='QB Rankings'!D7 -> 0 | AK7: 0 | AM7: ='QB Rankings'!E7 -> 0 | AN7: ='QB Rankings'!F7 -> 0 | AO7: ='QB Rankings'!G7 -> 0 | AP7: ='QB Rankings'!H7 -> 0 | AQ7: ='QB Rankings'!I7 -> 0
A8: 5 | B8: =IFERROR(INDEX('Total Rankings (excl QB)'!$D:$D,MATCH(1,("Wide Receiver"='Total Rankings (excl QB)'!$C:$C)*(A8='Total Rankings (excl QB)'!$F:$F),0),1),"") -> Chris Moore | C8: =IFERROR(VLOOKUP($B8,'Total Rankings (excl QB)'!$D:$E,2,0),0) -> 32.277696 | D8: 1.898688 | F8: =IFERROR(VLOOKUP($B8,'Total Rankings (excl QB)'!$D:$L,4,0),"") -> Not a top WR | G8: =IFERROR(VLOOKUP($B8,'Total Rankings (excl QB)'!$D:$L,5,0),"") -> 32.277696 | H8: =IFERROR(VLOOKUP($B8,'Total Rankings (excl QB)'!$D:$L,6,0),"") -> Not a top WR | I8: =IFERROR(VLOOKUP($B8,'Total Rankings (excl QB)'!$D:$L,7,0),"") -> 32.277696 | J8: =IFERROR(VLOOKUP($B8,'Total Rankings (excl QB)'!$D:$L,8,0),"") -> Not a top WR | L8: 5 | M8: =IFERROR(INDEX('Total Rankings (excl QB)'!$D:$D,MATCH(1,("Running Back"='Total Rankings (excl QB)'!$C:$C)*(L8='Total Rankings (excl QB)'!$F:$F),0),1),"") ->  | N8: =IFERROR(VLOOKUP($M8,'Total Rankings (excl QB)'!$D:$E,2,0),0) -> 0 | O8: 0 | Q8: =IFERROR(VLOOKUP($M8,'Total Rankings (excl QB)'!$D:$L,4,0),"") ->  | R8: =IFERROR(VLOOKUP($M8,'Total Rankings (excl QB)'!$D:$L,5,0),"") ->  | S8: =IFERROR(VLOOKUP($M8,'Total Rankings (excl QB)'!$D:$L,6,0),"") ->  | T8: =IFERROR(VLOOKUP($M8,'Total Rankings (excl QB)'!$D:$L,7,0),"") ->  | U8: =IFERROR(VLOOKUP($M8,'Total Rankings (excl QB)'!$D:$L,8,0),"") ->  | W8: 5 | X8: =IFERROR(INDEX('Total Rankings (excl QB)'!$D:$D,MATCH(1,("Tight End"='Total Rankings (excl QB)'!$C:$C)*(W8='Total Rankings (excl QB)'!$F:$F),0),1),"") ->  | Y8: =IFERROR(VLOOKUP($X8,'Total Rankings (excl QB)'!$D:$E,2,0),0) -> 0 | Z8: 0 | AB8: =IFERROR(VLOOKUP($X8,'Total Rankings (excl QB)'!$D:$L,4,0),"") ->  | AC8: =IFERROR(VLOOKUP($X8,'Total Rankings (excl QB)'!$D:$L,5,0),"") ->  | AD8: =IFERROR(VLOOKUP($X8,'Total Rankings (excl QB)'!$D:$L,6,0),"") ->  | AE8: =IFERROR(VLOOKUP($X8,'Total Rankings (excl QB)'!$D:$L,7,0),"") ->  | AF8: =IFERROR(VLOOKUP($X8,'Total Rankings (excl QB)'!$D:$L,8,0),"") ->  | AH8: 5 | AI8: ='QB Rankings'!C8 -> 0 | AJ8: ='QB Rankings'!D8 -> 0 | AK8: 0 | AM8: ='QB Rankings'!E8 -> 0 | AN8: ='QB Rankings'!F8 -> 0 | AO8: ='QB Rankings'!G8 -> 0 | AP8: ='QB Rankings'!H8 -> 0 | AQ8: ='QB Rankings'!I8 -> 0
A9: 6 | B9: =IFERROR(INDEX('Total Rankings (excl QB)'!$D:$D,MATCH(1,("Wide Receiver"='Total Rankings (excl QB)'!$C:$C)*(A9='Total Rankings (excl QB)'!$F:$F),0),1),"") -> Tejhaun Palmer | C9: =IFERROR(VLOOKUP($B9,'Total Rankings (excl QB)'!$D:$E,2,0),0) -> 15.30408 | D9: 0.90024 | F9: =IFERROR(VLOOKUP($B9,'Total Rankings (excl QB)'!$D:$L,4,0),"") -> Not a top WR | G9: =IFERROR(VLOOKUP($B9,'Total Rankings (excl QB)'!$D:$L,5,0),"") -> 15.30408 | H9: =IFERROR(VLOOKUP($B9,'Total Rankings (excl QB)'!$D:$L,6,0),"") -> Not a top WR | I9: =IFERROR(VLOOKUP($B9,'Total Rankings (excl QB)'!$D:$L,7,0),"") -> 15.30408 | J9: =IFERROR(VLOOKUP($B9,'Total Rankings (excl QB)'!$D:$L,8,0),"") -> Not a top WR | L9: 6 | M9: =IFERROR(INDEX('Total Rankings (excl QB)'!$D:$D,MATCH(1,("Running Back"='Total Rankings (excl QB)'!$C:$C)*(L9='Total Rankings (excl QB)'!$F:$F),0),1),"") ->  | N9: =IFERROR(VLOOKUP($M9,'Total Rankings (excl QB)'!$D:$E,2,0),0) -> 0 | O9: 0 | Q9: =IFERROR(VLOOKUP($M9,'Total Rankings (excl QB)'!$D:$L,4,0),"") ->  | R9: =IFERROR(VLOOKUP($M9,'Total Rankings (excl QB)'!$D:$L,5,0),"") ->  | S9: =IFERROR(VLOOKUP($M9,'Total Rankings (excl QB)'!$D:$L,6,0),"") ->  | T9: =IFERROR(VLOOKUP($M9,'Total Rankings (excl QB)'!$D:$L,7,0),"") ->  | U9: =IFERROR(VLOOKUP($M9,'Total Rankings (excl QB)'!$D:$L,8,0),"") ->  | W9: 6 | X9: =IFERROR(INDEX('Total Rankings (excl QB)'!$D:$D,MATCH(1,("Tight End"='Total Rankings (excl QB)'!$C:$C)*(W9='Total Rankings (excl QB)'!$F:$F),0),1),"") ->  | Y9: =IFERROR(VLOOKUP($X9,'Total Rankings (excl QB)'!$D:$E,2,0),0) -> 0 | Z9: 0 | AB9: =IFERROR(VLOOKUP($X9,'Total Rankings (excl QB)'!$D:$L,4,0),"") ->  | AC9: =IFERROR(VLOOKUP($X9,'Total Rankings (excl QB)'!$D:$L,5,0),"") ->  | AD9: =IFERROR(VLOOKUP($X9,'Total Rankings (excl QB)'!$D:$L,6,0),"") ->  | AE9: =IFERROR(VLOOKUP($X9,'Total Rankings (excl QB)'!$D:$L,7,0),"") ->  | AF9: =IFERROR(VLOOKUP($X9,'Total Rankings (excl QB)'!$D:$L,8,0),"") ->  | AH9: 6 | AI9: ='QB Rankings'!C9 -> 0 | AJ9: ='QB Rankings'!D9 -> 0 | AK9: 0 | AM9: ='QB Rankings'!E9 -> 0 | AN9: ='QB Rankings'!F9 -> 0 | AO9: ='QB Rankings'!G9 -> 0 | AP9: ='QB Rankings'!H9 -> 0 | AQ9: ='QB Rankings'!I9 -> 0
A10: 7 | B10: =IFERROR(INDEX('Total Rankings (excl QB)'!$D:$D,MATCH(1,("Wide Receiver"='Total Rankings (excl QB)'!$C:$C)*(A10='Total Rankings (excl QB)'!$F:$F),0),1),"") -> 0 | C10: =IFERROR(VLOOKUP($B10,'Total Rankings (excl QB)'!$D:$E,2,0),0) -> 0 | D10: 0 | F10: =IFERROR(VLOOKUP($B10,'Total Rankings (excl QB)'!$D:$L,4,0),"") -> Not a top WR | G10: =IFERROR(VLOOKUP($B10,'Total Rankings (excl QB)'!$D:$L,5,0),"") -> 0 | H10: =IFERROR(VLOOKUP($B10,'Total Rankings (excl QB)'!$D:$L,6,0),"") -> Not a top WR | I10: =IFERROR(VLOOKUP($B10,'Total Rankings (excl QB)'!$D:$L,7,0),"") -> 0 | J10: =IFERROR(VLOOKUP($B10,'Total Rankings (excl QB)'!$D:$L,8,0),"") -> Not a top WR | L10: 7 | M10: =IFERROR(INDEX('Total Rankings (excl QB)'!$D:$D,MATCH(1,("Running Back"='Total Rankings (excl QB)'!$C:$C)*(L10='Total Rankings (excl QB)'!$F:$F),0),1),"") ->  | N10: =IFERROR(VLOOKUP($M10,'Total Rankings (excl QB)'!$D:$E,2,0),0) -> 0 | O10: 0 | Q10: =IFERROR(VLOOKUP($M10,'Total Rankings (excl QB)'!$D:$L,4,0),"") ->  | R10: =IFERROR(VLOOKUP($M10,'Total Rankings (excl QB)'!$D:$L,5,0),"") ->  | S10: =IFERROR(VLOOKUP($M10,'Total Rankings (excl QB)'!$D:$L,6,0),"") ->  | T10: =IFERROR(VLOOKUP($M10,'Total Rankings (excl QB)'!$D:$L,7,0),"") ->  | U10: =IFERROR(VLOOKUP($M10,'Total Rankings (excl QB)'!$D:$L,8,0),"") ->  | W10: 7 | X10: =IFERROR(INDEX('Total Rankings (excl QB)'!$D:$D,MATCH(1,("Tight End"='Total Rankings (excl QB)'!$C:$C)*(W10='Total Rankings (excl QB)'!$F:$F),0),1),"") ->  | Y10: =IFERROR(VLOOKUP($X10,'Total Rankings (excl QB)'!$D:$E,2,0),0) -> 0 | Z10: 0 | AB10: =IFERROR(VLOOKUP($X10,'Total Rankings (excl QB)'!$D:$L,4,0),"") ->  | AC10: =IFERROR(VLOOKUP($X10,'Total Rankings (excl QB)'!$D:$L,5,0),"") ->  | AD10: =IFERROR(VLOOKUP($X10,'Total Rankings (excl QB)'!$D:$L,6,0),"") ->  | AE10: =IFERROR(VLOOKUP($X10,'Total Rankings (excl QB)'!$D:$L,7,0),"") ->  | AF10: =IFERROR(VLOOKUP($X10,'Total Rankings (excl QB)'!$D:$L,8,0),"") ->  | AH10: 7 | AI10: ='QB Rankings'!C10 -> 0 | AJ10: ='QB Rankings'!D10 -> 0 | AK10: 0 | AM10: ='QB Rankings'!E10 -> 0 | AN10: ='QB Rankings'!F10 -> 0 | AO10: ='QB Rankings'!G10 -> 0 | AP10: ='QB Rankings'!H10 -> 0 | AQ10: ='QB Rankings'!I10 -> 0
A11: 8 | B11: =IFERROR(INDEX('Total Rankings (excl QB)'!$D:$D,MATCH(1,("Wide Receiver"='Total Rankings (excl QB)'!$C:$C)*(A11='Total Rankings (excl QB)'!$F:$F),0),1),"") ->  | C11: =IFERROR(VLOOKUP($B11,'Total Rankings (excl QB)'!$D:$E,2,0),0) -> 0 | D11: 0 | F11: =IFERROR(VLOOKUP($B11,'Total Rankings (excl QB)'!$D:$L,4,0),"") ->  | G11: =IFERROR(VLOOKUP($B11,'Total Rankings (excl QB)'!$D:$L,5,0),"") ->  | H11: =IFERROR(VLOOKUP($B11,'Total Rankings (excl QB)'!$D:$L,6,0),"") ->  | I11: =IFERROR(VLOOKUP($B11,'Total Rankings (excl QB)'!$D:$L,7,0),"") ->  | J11: =IFERROR(VLOOKUP($B11,'Total Rankings (excl QB)'!$D:$L,8,0),"") ->  | L11: 8 | M11: =IFERROR(INDEX('Total Rankings (excl QB)'!$D:$D,MATCH(1,("Running Back"='Total Rankings (excl QB)'!$C:$C)*(L11='Total Rankings (excl QB)'!$F:$F),0),1),"") ->  | N11: =IFERROR(VLOOKUP($M11,'Total Rankings (excl QB)'!$D:$E,2,0),0) -> 0 | O11: 0 | Q11: =IFERROR(VLOOKUP($M11,'Total Rankings (excl QB)'!$D:$L,4,0),"") ->  | R11: =IFERROR(VLOOKUP($M11,'Total Rankings (excl QB)'!$D:$L,5,0),"") ->  | S11: =IFERROR(VLOOKUP($M11,'Total Rankings (excl QB)'!$D:$L,6,0),"") ->  | T11: =IFERROR(VLOOKUP($M11,'Total Rankings (excl QB)'!$D:$L,7,0),"") ->  | U11: =IFERROR(VLOOKUP($M11,'Total Rankings (excl QB)'!$D:$L,8,0),"") ->  | W11: 8 | X11: =IFERROR(INDEX('Total Rankings (excl QB)'!$D:$D,MATCH(1,("Tight End"='Total Rankings (excl QB)'!$C:$C)*(W11='Total Rankings (excl QB)'!$F:$F),0),1),"") ->  | Y11: =IFERROR(VLOOKUP($X11,'Total Rankings (excl QB)'!$D:$E,2,0),0) -> 0 | Z11: 0 | AB11: =IFERROR(VLOOKUP($X11,'Total Rankings (excl QB)'!$D:$L,4,0),"") ->  | AC11: =IFERROR(VLOOKUP($X11,'Total Rankings (excl QB)'!$D:$L,5,0),"") ->  | AD11: =IFERROR(VLOOKUP($X11,'Total Rankings (excl QB)'!$D:$L,6,0),"") ->  | AE11: =IFERROR(VLOOKUP($X11,'Total Rankings (excl QB)'!$D:$L,7,0),"") ->  | AF11: =IFERROR(VLOOKUP($X11,'Total Rankings (excl QB)'!$D:$L,8,0),"") ->  | AH11: 8 | AI11: ='QB Rankings'!C11 -> 0 | AJ11: ='QB Rankings'!D11 -> 0 | AK11: 0 | AM11: ='QB Rankings'!E11 -> 0 | AN11: ='QB Rankings'!F11 -> 0 | AO11: ='QB Rankings'!G11 -> 0 | AP11: ='QB Rankings'!H11 -> 0 | AQ11: ='QB Rankings'!I11 -> 0
A12: 9 | B12: =IFERROR(INDEX('Total Rankings (excl QB)'!$D:$D,MATCH(1,("Wide Receiver"='Total Rankings (excl QB)'!$C:$C)*(A12='Total Rankings (excl QB)'!$F:$F),0),1),"") ->  | C12: =IFERROR(VLOOKUP($B12,'Total Rankings (excl QB)'!$D:$E,2,0),0) -> 0 | D12: 0 | F12: =IFERROR(VLOOKUP($B12,'Total Rankings (excl QB)'!$D:$L,4,0),"") ->  | G12: =IFERROR(VLOOKUP($B12,'Total Rankings (excl QB)'!$D:$L,5,0),"") ->  | H12: =IFERROR(VLOOKUP($B12,'Total Rankings (excl QB)'!$D:$L,6,0),"") ->  | I12: =IFERROR(VLOOKUP($B12,'Total Rankings (excl QB)'!$D:$L,7,0),"") ->  | J12: =IFERROR(VLOOKUP($B12,'Total Rankings (excl QB)'!$D:$L,8,0),"") ->  | L12: 9 | M12: =IFERROR(INDEX('Total Rankings (excl QB)'!$D:$D,MATCH(1,("Running Back"='Total Rankings (excl QB)'!$C:$C)*(L12='Total Rankings (excl QB)'!$F:$F),0),1),"") ->  | N12: =IFERROR(VLOOKUP($M12,'Total Rankings (excl QB)'!$D:$E,2,0),0) -> 0 | O12: 0 | Q12: =IFERROR(VLOOKUP($M12,'Total Rankings (excl QB)'!$D:$L,4,0),"") ->  | R12: =IFERROR(VLOOKUP($M12,'Total Rankings (excl QB)'!$D:$L,5,0),"") ->  | S12: =IFERROR(VLOOKUP($M12,'Total Rankings (excl QB)'!$D:$L,6,0),"") ->  | T12: =IFERROR(VLOOKUP($M12,'Total Rankings (excl QB)'!$D:$L,7,0),"") ->  | U12: =IFERROR(VLOOKUP($M12,'Total Rankings (excl QB)'!$D:$L,8,0),"") ->  | W12: 9 | X12: =IFERROR(INDEX('Total Rankings (excl QB)'!$D:$D,MATCH(1,("Tight End"='Total Rankings (excl QB)'!$C:$C)*(W12='Total Rankings (excl QB)'!$F:$F),0),1),"") ->  | Y12: =IFERROR(VLOOKUP($X12,'Total Rankings (excl QB)'!$D:$E,2,0),0) -> 0 | Z12: 0 | AB12: =IFERROR(VLOOKUP($X12,'Total Rankings (excl QB)'!$D:$L,4,0),"") ->  | AC12: =IFERROR(VLOOKUP($X12,'Total Rankings (excl QB)'!$D:$L,5,0),"") ->  | AD12: =IFERROR(VLOOKUP($X12,'Total Rankings (excl QB)'!$D:$L,6,0),"") ->  | AE12: =IFERROR(VLOOKUP($X12,'Total Rankings (excl QB)'!$D:$L,7,0),"") ->  | AF12: =IFERROR(VLOOKUP($X12,'Total Rankings (excl QB)'!$D:$L,8,0),"") ->  | AH12: 9 | AI12: ='QB Rankings'!C12 -> 0 | AJ12: ='QB Rankings'!D12 -> 0 | AK12: 0 | AM12: ='QB Rankings'!E12 -> 0 | AN12: ='QB Rankings'!F12 -> 0 | AO12: ='QB Rankings'!G12 -> 0 | AP12: ='QB Rankings'!H12 -> 0 | AQ12: ='QB Rankings'!I12 -> 0
A13: 10 | B13: =IFERROR(INDEX('Total Rankings (excl QB)'!$D:$D,MATCH(1,("Wide Receiver"='Total Rankings (excl QB)'!$C:$C)*(A13='Total Rankings (excl QB)'!$F:$F),0),1),"") ->  | C13: =IFERROR(VLOOKUP($B13,'Total Rankings (excl QB)'!$D:$E,2,0),0) -> 0 | D13: 0 | F13: =IFERROR(VLOOKUP($B13,'Total Rankings (excl QB)'!$D:$L,4,0),"") ->  | G13: =IFERROR(VLOOKUP($B13,'Total Rankings (excl QB)'!$D:$L,5,0),"") ->  | H13: =IFERROR(VLOOKUP($B13,'Total Rankings (excl QB)'!$D:$L,6,0),"") ->  | I13: =IFERROR(VLOOKUP($B13,'Total Rankings (excl QB)'!$D:$L,7,0),"") ->  | J13: =IFERROR(VLOOKUP($B13,'Total Rankings (excl QB)'!$D:$L,8,0),"") ->  | L13: 10 | M13: =IFERROR(INDEX('Total Rankings (excl QB)'!$D:$D,MATCH(1,("Running Back"='Total Rankings (excl QB)'!$C:$C)*(L13='Total Rankings (excl QB)'!$F:$F),0),1),"") ->  | N13: =IFERROR(VLOOKUP($M13,'Total Rankings (excl QB)'!$D:$E,2,0),0) -> 0 | O13: 0 | Q13: =IFERROR(VLOOKUP($M13,'Total Rankings (excl QB)'!$D:$L,4,0),"") ->  | R13: =IFERROR(VLOOKUP($M13,'Total Rankings (excl QB)'!$D:$L,5,0),"") ->  | S13: =IFERROR(VLOOKUP($M13,'Total Rankings (excl QB)'!$D:$L,6,0),"") ->  | T13: =IFERROR(VLOOKUP($M13,'Total Rankings (excl QB)'!$D:$L,7,0),"") ->  | U13: =IFERROR(VLOOKUP($M13,'Total Rankings (excl QB)'!$D:$L,8,0),"") ->  | W13: 10 | X13: =IFERROR(INDEX('Total Rankings (excl QB)'!$D:$D,MATCH(1,("Tight End"='Total Rankings (excl QB)'!$C:$C)*(W13='Total Rankings (excl QB)'!$F:$F),0),1),"") ->  | Y13: =IFERROR(VLOOKUP($X13,'Total Rankings (excl QB)'!$D:$E,2,0),0) -> 0 | Z13: 0 | AB13: =IFERROR(VLOOKUP($X13,'Total Rankings (excl QB)'!$D:$L,4,0),"") ->  | AC13: =IFERROR(VLOOKUP($X13,'Total Rankings (excl QB)'!$D:$L,5,0),"") ->  | AD13: =IFERROR(VLOOKUP($X13,'Total Rankings (excl QB)'!$D:$L,6,0),"") ->  | AE13: =IFERROR(VLOOKUP($X13,'Total Rankings (excl QB)'!$D:$L,7,0),"") ->  | AF13: =IFERROR(VLOOKUP($X13,'Total Rankings (excl QB)'!$D:$L,8,0),"") ->  | AH13: 10 | AI13: ='QB Rankings'!C13 -> 0 | AJ13: ='QB Rankings'!D13 -> 0 | AK13: 0 | AM13: ='QB Rankings'!E13 -> 0 | AN13: ='QB Rankings'!F13 -> 0 | AO13: ='QB Rankings'!G13 -> 0 | AP13: ='QB Rankings'!H13 -> 0 | AQ13: ='QB Rankings'!I13 -> 0
A14: 11 | B14: =IFERROR(INDEX('Total Rankings (excl QB)'!$D:$D,MATCH(1,("Wide Receiver"='Total Rankings (excl QB)'!$C:$C)*(A14='Total Rankings (excl QB)'!$F:$F),0),1),"") ->  | C14: =IFERROR(VLOOKUP($B14,'Total Rankings (excl QB)'!$D:$E,2,0),0) -> 0 | D14: 0 | F14: =IFERROR(VLOOKUP($B14,'Total Rankings (excl QB)'!$D:$L,4,0),"") ->  | G14: =IFERROR(VLOOKUP($B14,'Total Rankings (excl QB)'!$D:$L,5,0),"") ->  | H14: =IFERROR(VLOOKUP($B14,'Total Rankings (excl QB)'!$D:$L,6,0),"") ->  | I14: =IFERROR(VLOOKUP($B14,'Total Rankings (excl QB)'!$D:$L,7,0),"") ->  | J14: =IFERROR(VLOOKUP($B14,'Total Rankings (excl QB)'!$D:$L,8,0),"") ->  | L14: 11 | M14: =IFERROR(INDEX('Total Rankings (excl QB)'!$D:$D,MATCH(1,("Running Back"='Total Rankings (excl QB)'!$C:$C)*(L14='Total Rankings (excl QB)'!$F:$F),0),1),"") ->  | N14: =IFERROR(VLOOKUP($M14,'Total Rankings (excl QB)'!$D:$E,2,0),0) -> 0 | O14: 0 | Q14: =IFERROR(VLOOKUP($M14,'Total Rankings (excl QB)'!$D:$L,4,0),"") ->  | R14: =IFERROR(VLOOKUP($M14,'Total Rankings (excl QB)'!$D:$L,5,0),"") ->  | S14: =IFERROR(VLOOKUP($M14,'Total Rankings (excl QB)'!$D:$L,6,0),"") ->  | T14: =IFERROR(VLOOKUP($M14,'Total Rankings (excl QB)'!$D:$L,7,0),"") ->  | U14: =IFERROR(VLOOKUP($M14,'Total Rankings (excl QB)'!$D:$L,8,0),"") ->  | W14: 11 | X14: =IFERROR(INDEX('Total Rankings (excl QB)'!$D:$D,MATCH(1,("Tight End"='Total Rankings (excl QB)'!$C:$C)*(W14='Total Rankings (excl QB)'!$F:$F),0),1),"") ->  | Y14: =IFERROR(VLOOKUP($X14,'Total Rankings (excl QB)'!$D:$E,2,0),0) -> 0 | Z14: 0 | AB14: =IFERROR(VLOOKUP($X14,'Total Rankings (excl QB)'!$D:$L,4,0),"") ->  | AC14: =IFERROR(VLOOKUP($X14,'Total Rankings (excl QB)'!$D:$L,5,0),"") ->  | AD14: =IFERROR(VLOOKUP($X14,'Total Rankings (excl QB)'!$D:$L,6,0),"") ->  | AE14: =IFERROR(VLOOKUP($X14,'Total Rankings (excl QB)'!$D:$L,7,0),"") ->  | AF14: =IFERROR(VLOOKUP($X14,'Total Rankings (excl QB)'!$D:$L,8,0),"") ->  | AH14: 11 | AI14: ='QB Rankings'!C14 -> 0 | AJ14: ='QB Rankings'!D14 -> 0 | AK14: 0 | AM14: ='QB Rankings'!E14 -> 0 | AN14: ='QB Rankings'!F14 -> 0 | AO14: ='QB Rankings'!G14 -> 0 | AP14: ='QB Rankings'!H14 -> 0 | AQ14: ='QB Rankings'!I14 -> 0
A15: 12 | B15: =IFERROR(INDEX('Total Rankings (excl QB)'!$D:$D,MATCH(1,("Wide Receiver"='Total Rankings (excl QB)'!$C:$C)*(A15='Total Rankings (excl QB)'!$F:$F),0),1),"") ->  | C15: =IFERROR(VLOOKUP($B15,'Total Rankings (excl QB)'!$D:$E,2,0),0) -> 0 | D15: 0 | F15: =IFERROR(VLOOKUP($B15,'Total Rankings (excl QB)'!$D:$L,4,0),"") ->  | G15: =IFERROR(VLOOKUP($B15,'Total Rankings (excl QB)'!$D:$L,5,0),"") ->  | H15: =IFERROR(VLOOKUP($B15,'Total Rankings (excl QB)'!$D:$L,6,0),"") ->  | I15: =IFERROR(VLOOKUP($B15,'Total Rankings (excl QB)'!$D:$L,7,0),"") ->  | J15: =IFERROR(VLOOKUP($B15,'Total Rankings (excl QB)'!$D:$L,8,0),"") ->  | L15: 12 | M15: =IFERROR(INDEX('Total Rankings (excl QB)'!$D:$D,MATCH(1,("Running Back"='Total Rankings (excl QB)'!$C:$C)*(L15='Total Rankings (excl QB)'!$F:$F),0),1),"") ->  | N15: =IFERROR(VLOOKUP($M15,'Total Rankings (excl QB)'!$D:$E,2,0),0) -> 0 | O15: 0 | Q15: =IFERROR(VLOOKUP($M15,'Total Rankings (excl QB)'!$D:$L,4,0),"") ->  | R15: =IFERROR(VLOOKUP($M15,'Total Rankings (excl QB)'!$D:$L,5,0),"") ->  | S15: =IFERROR(VLOOKUP($M15,'Total Rankings (excl QB)'!$D:$L,6,0),"") ->  | T15: =IFERROR(VLOOKUP($M15,'Total Rankings (excl QB)'!$D:$L,7,0),"") ->  | U15: =IFERROR(VLOOKUP($M15,'Total Rankings (excl QB)'!$D:$L,8,0),"") ->  | W15: 12 | X15: =IFERROR(INDEX('Total Rankings (excl QB)'!$D:$D,MATCH(1,("Tight End"='Total Rankings (excl QB)'!$C:$C)*(W15='Total Rankings (excl QB)'!$F:$F),0),1),"") ->  | Y15: =IFERROR(VLOOKUP($X15,'Total Rankings (excl QB)'!$D:$E,2,0),0) -> 0 | Z15: 0 | AB15: =IFERROR(VLOOKUP($X15,'Total Rankings (excl QB)'!$D:$L,4,0),"") ->  | AC15: =IFERROR(VLOOKUP($X15,'Total Rankings (excl QB)'!$D:$L,5,0),"") ->  | AD15: =IFERROR(VLOOKUP($X15,'Total Rankings (excl QB)'!$D:$L,6,0),"") ->  | AE15: =IFERROR(VLOOKUP($X15,'Total Rankings (excl QB)'!$D:$L,7,0),"") ->  | AF15: =IFERROR(VLOOKUP($X15,'Total Rankings (excl QB)'!$D:$L,8,0),"") ->  | AH15: 12 | AI15: ='QB Rankings'!C15 -> 0 | AJ15: ='QB Rankings'!D15 -> 0 | AK15: 0 | AM15: ='QB Rankings'!E15 -> 0 | AN15: ='QB Rankings'!F15 -> 0 | AO15: ='QB Rankings'!G15 -> 0 | AP15: ='QB Rankings'!H15 -> 0 | AQ15: ='QB Rankings'!I15 -> 0
A16: 13 | B16: =IFERROR(INDEX('Total Rankings (excl QB)'!$D:$D,MATCH(1,("Wide Receiver"='Total Rankings (excl QB)'!$C:$C)*(A16='Total Rankings (excl QB)'!$F:$F),0),1),"") ->  | C16: =IFERROR(VLOOKUP($B16,'Total Rankings (excl QB)'!$D:$E,2,0),0) -> 0 | D16: 0 | F16: =IFERROR(VLOOKUP($B16,'Total Rankings (excl QB)'!$D:$L,4,0),"") ->  | G16: =IFERROR(VLOOKUP($B16,'Total Rankings (excl QB)'!$D:$L,5,0),"") ->  | H16: =IFERROR(VLOOKUP($B16,'Total Rankings (excl QB)'!$D:$L,6,0),"") ->  | I16: =IFERROR(VLOOKUP($B16,'Total Rankings (excl QB)'!$D:$L,7,0),"") ->  | J16: =IFERROR(VLOOKUP($B16,'Total Rankings (excl QB)'!$D:$L,8,0),"") ->  | L16: 13 | M16: =IFERROR(INDEX('Total Rankings (excl QB)'!$D:$D,MATCH(1,("Running Back"='Total Rankings (excl QB)'!$C:$C)*(L16='Total Rankings (excl QB)'!$F:$F),0),1),"") ->  | N16: =IFERROR(VLOOKUP($M16,'Total Rankings (excl QB)'!$D:$E,2,0),0) -> 0 | O16: 0 | Q16: =IFERROR(VLOOKUP($M16,'Total Rankings (excl QB)'!$D:$L,4,0),"") ->  | R16: =IFERROR(VLOOKUP($M16,'Total Rankings (excl QB)'!$D:$L,5,0),"") ->  | S16: =IFERROR(VLOOKUP($M16,'Total Rankings (excl QB)'!$D:$L,6,0),"") ->  | T16: =IFERROR(VLOOKUP($M16,'Total Rankings (excl QB)'!$D:$L,7,0),"") ->  | U16: =IFERROR(VLOOKUP($M16,'Total Rankings (excl QB)'!$D:$L,8,0),"") ->  | W16: 13 | X16: =IFERROR(INDEX('Total Rankings (excl QB)'!$D:$D,MATCH(1,("Tight End"='Total Rankings (excl QB)'!$C:$C)*(W16='Total Rankings (excl QB)'!$F:$F),0),1),"") ->  | Y16: =IFERROR(VLOOKUP($X16,'Total Rankings (excl QB)'!$D:$E,2,0),0) -> 0 | Z16: 0 | AB16: =IFERROR(VLOOKUP($X16,'Total Rankings (excl QB)'!$D:$L,4,0),"") ->  | AC16: =IFERROR(VLOOKUP($X16,'Total Rankings (excl QB)'!$D:$L,5,0),"") ->  | AD16: =IFERROR(VLOOKUP($X16,'Total Rankings (excl QB)'!$D:$L,6,0),"") ->  | AE16: =IFERROR(VLOOKUP($X16,'Total Rankings (excl QB)'!$D:$L,7,0),"") ->  | AF16: =IFERROR(VLOOKUP($X16,'Total Rankings (excl QB)'!$D:$L,8,0),"") ->  | AH16: 13 | AI16: ='QB Rankings'!C16 -> 0 | AJ16: ='QB Rankings'!D16 -> 0 | AK16: 0 | AM16: ='QB Rankings'!E16 -> 0 | AN16: ='QB Rankings'!F16 -> 0 | AO16: ='QB Rankings'!G16 -> 0 | AP16: ='QB Rankings'!H16 -> 0 | AQ16: ='QB Rankings'!I16 -> 0
A17: 14 | B17: =IFERROR(INDEX('Total Rankings (excl QB)'!$D:$D,MATCH(1,("Wide Receiver"='Total Rankings (excl QB)'!$C:$C)*(A17='Total Rankings (excl QB)'!$F:$F),0),1),"") ->  | C17: =IFERROR(VLOOKUP($B17,'Total Rankings (excl QB)'!$D:$E,2,0),0) -> 0 | D17: 0 | F17: =IFERROR(VLOOKUP($B17,'Total Rankings (excl QB)'!$D:$L,4,0),"") ->  | G17: =IFERROR(VLOOKUP($B17,'Total Rankings (excl QB)'!$D:$L,5,0),"") ->  | H17: =IFERROR(VLOOKUP($B17,'Total Rankings (excl QB)'!$D:$L,6,0),"") ->  | I17: =IFERROR(VLOOKUP($B17,'Total Rankings (excl QB)'!$D:$L,7,0),"") ->  | J17: =IFERROR(VLOOKUP($B17,'Total Rankings (excl QB)'!$D:$L,8,0),"") ->  | L17: 14 | M17: =IFERROR(INDEX('Total Rankings (excl QB)'!$D:$D,MATCH(1,("Running Back"='Total Rankings (excl QB)'!$C:$C)*(L17='Total Rankings (excl QB)'!$F:$F),0),1),"") ->  | N17: =IFERROR(VLOOKUP($M17,'Total Rankings (excl QB)'!$D:$E,2,0),0) -> 0 | O17: 0 | Q17: =IFERROR(VLOOKUP($M17,'Total Rankings (excl QB)'!$D:$L,4,0),"") ->  | R17: =IFERROR(VLOOKUP($M17,'Total Rankings (excl QB)'!$D:$L,5,0),"") ->  | S17: =IFERROR(VLOOKUP($M17,'Total Rankings (excl QB)'!$D:$L,6,0),"") ->  | T17: =IFERROR(VLOOKUP($M17,'Total Rankings (excl QB)'!$D:$L,7,0),"") ->  | U17: =IFERROR(VLOOKUP($M17,'Total Rankings (excl QB)'!$D:$L,8,0),"") ->  | W17: 14 | X17: =IFERROR(INDEX('Total Rankings (excl QB)'!$D:$D,MATCH(1,("Tight End"='Total Rankings (excl QB)'!$C:$C)*(W17='Total Rankings (excl QB)'!$F:$F),0),1),"") ->  | Y17: =IFERROR(VLOOKUP($X17,'Total Rankings (excl QB)'!$D:$E,2,0),0) -> 0 | Z17: 0 | AB17: =IFERROR(VLOOKUP($X17,'Total Rankings (excl QB)'!$D:$L,4,0),"") ->  | AC17: =IFERROR(VLOOKUP($X17,'Total Rankings (excl QB)'!$D:$L,5,0),"") ->  | AD17: =IFERROR(VLOOKUP($X17,'Total Rankings (excl QB)'!$D:$L,6,0),"") ->  | AE17: =IFERROR(VLOOKUP($X17,'Total Rankings (excl QB)'!$D:$L,7,0),"") ->  | AF17: =IFERROR(VLOOKUP($X17,'Total Rankings (excl QB)'!$D:$L,8,0),"") ->  | AH17: 14 | AI17: ='QB Rankings'!C17 -> 0 | AJ17: ='QB Rankings'!D17 -> 0 | AK17: 0 | AM17: ='QB Rankings'!E17 -> 0 | AN17: ='QB Rankings'!F17 -> 0 | AO17: ='QB Rankings'!G17 -> 0 | AP17: ='QB Rankings'!H17 -> 0 | AQ17: ='QB Rankings'!I17 -> 0
A18: 15 | B18: =IFERROR(INDEX('Total Rankings (excl QB)'!$D:$D,MATCH(1,("Wide Receiver"='Total Rankings (excl QB)'!$C:$C)*(A18='Total Rankings (excl QB)'!$F:$F),0),1),"") ->  | C18: =IFERROR(VLOOKUP($B18,'Total Rankings (excl QB)'!$D:$E,2,0),0) -> 0 | D18: 0 | F18: =IFERROR(VLOOKUP($B18,'Total Rankings (excl QB)'!$D:$L,4,0),"") ->  | G18: =IFERROR(VLOOKUP($B18,'Total Rankings (excl QB)'!$D:$L,5,0),"") ->  | H18: =IFERROR(VLOOKUP($B18,'Total Rankings (excl QB)'!$D:$L,6,0),"") ->  | I18: =IFERROR(VLOOKUP($B18,'Total Rankings (excl QB)'!$D:$L,7,0),"") ->  | J18: =IFERROR(VLOOKUP($B18,'Total Rankings (excl QB)'!$D:$L,8,0),"") ->  | L18: 15 | M18: =IFERROR(INDEX('Total Rankings (excl QB)'!$D:$D,MATCH(1,("Running Back"='Total Rankings (excl QB)'!$C:$C)*(L18='Total Rankings (excl QB)'!$F:$F),0),1),"") ->  | N18: =IFERROR(VLOOKUP($M18,'Total Rankings (excl QB)'!$D:$E,2,0),0) -> 0 | O18: 0 | Q18: =IFERROR(VLOOKUP($M18,'Total Rankings (excl QB)'!$D:$L,4,0),"") ->  | R18: =IFERROR(VLOOKUP($M18,'Total Rankings (excl QB)'!$D:$L,5,0),"") ->  | S18: =IFERROR(VLOOKUP($M18,'Total Rankings (excl QB)'!$D:$L,6,0),"") ->  | T18: =IFERROR(VLOOKUP($M18,'Total Rankings (excl QB)'!$D:$L,7,0),"") ->  | U18: =IFERROR(VLOOKUP($M18,'Total Rankings (excl QB)'!$D:$L,8,0),"") ->  | W18: 15 | X18: =IFERROR(INDEX('Total Rankings (excl QB)'!$D:$D,MATCH(1,("Tight End"='Total Rankings (excl QB)'!$C:$C)*(W18='Total Rankings (excl QB)'!$F:$F),0),1),"") ->  | Y18: =IFERROR(VLOOKUP($X18,'Total Rankings (excl QB)'!$D:$E,2,0),0) -> 0 | Z18: 0 | AB18: =IFERROR(VLOOKUP($X18,'Total Rankings (excl QB)'!$D:$L,4,0),"") ->  | AC18: =IFERROR(VLOOKUP($X18,'Total Rankings (excl QB)'!$D:$L,5,0),"") ->  | AD18: =IFERROR(VLOOKUP($X18,'Total Rankings (excl QB)'!$D:$L,6,0),"") ->  | AE18: =IFERROR(VLOOKUP($X18,'Total Rankings (excl QB)'!$D:$L,7,0),"") ->  | AF18: =IFERROR(VLOOKUP($X18,'Total Rankings (excl QB)'!$D:$L,8,0),"") ->  | AH18: 15 | AI18: ='QB Rankings'!C18 -> 0 | AJ18: ='QB Rankings'!D18 -> 0 | AK18: 0 | AM18: ='QB Rankings'!E18 -> 0 | AN18: ='QB Rankings'!F18 -> 0 | AO18: ='QB Rankings'!G18 -> 0 | AP18: ='QB Rankings'!H18 -> 0 | AQ18: ='QB Rankings'!I18 -> 0
A19: 16 | B19: =IFERROR(INDEX('Total Rankings (excl QB)'!$D:$D,MATCH(1,("Wide Receiver"='Total Rankings (excl QB)'!$C:$C)*(A19='Total Rankings (excl QB)'!$F:$F),0),1),"") ->  | C19: =IFERROR(VLOOKUP($B19,'Total Rankings (excl QB)'!$D:$E,2,0),0) -> 0 | D19: 0 | F19: =IFERROR(VLOOKUP($B19,'Total Rankings (excl QB)'!$D:$L,4,0),"") ->  | G19: =IFERROR(VLOOKUP($B19,'Total Rankings (excl QB)'!$D:$L,5,0),"") ->  | H19: =IFERROR(VLOOKUP($B19,'Total Rankings (excl QB)'!$D:$L,6,0),"") ->  | I19: =IFERROR(VLOOKUP($B19,'Total Rankings (excl QB)'!$D:$L,7,0),"") ->  | J19: =IFERROR(VLOOKUP($B19,'Total Rankings (excl QB)'!$D:$L,8,0),"") ->  | L19: 16 | M19: =IFERROR(INDEX('Total Rankings (excl QB)'!$D:$D,MATCH(1,("Running Back"='Total Rankings (excl QB)'!$C:$C)*(L19='Total Rankings (excl QB)'!$F:$F),0),1),"") ->  | N19: =IFERROR(VLOOKUP($M19,'Total Rankings (excl QB)'!$D:$E,2,0),0) -> 0 | O19: 0 | Q19: =IFERROR(VLOOKUP($M19,'Total Rankings (excl QB)'!$D:$L,4,0),"") ->  | R19: =IFERROR(VLOOKUP($M19,'Total Rankings (excl QB)'!$D:$L,5,0),"") ->  | S19: =IFERROR(VLOOKUP($M19,'Total Rankings (excl QB)'!$D:$L,6,0),"") ->  | T19: =IFERROR(VLOOKUP($M19,'Total Rankings (excl QB)'!$D:$L,7,0),"") ->  | U19: =IFERROR(VLOOKUP($M19,'Total Rankings (excl QB)'!$D:$L,8,0),"") ->  | W19: 16 | X19: =IFERROR(INDEX('Total Rankings (excl QB)'!$D:$D,MATCH(1,("Tight End"='Total Rankings (excl QB)'!$C:$C)*(W19='Total Rankings (excl QB)'!$F:$F),0),1),"") ->  | Y19: =IFERROR(VLOOKUP($X19,'Total Rankings (excl QB)'!$D:$E,2,0),0) -> 0 | Z19: 0 | AB19: =IFERROR(VLOOKUP($X19,'Total Rankings (excl QB)'!$D:$L,4,0),"") ->  | AC19: =IFERROR(VLOOKUP($X19,'Total Rankings (excl QB)'!$D:$L,5,0),"") ->  | AD19: =IFERROR(VLOOKUP($X19,'Total Rankings (excl QB)'!$D:$L,6,0),"") ->  | AE19: =IFERROR(VLOOKUP($X19,'Total Rankings (excl QB)'!$D:$L,7,0),"") ->  | AF19: =IFERROR(VLOOKUP($X19,'Total Rankings (excl QB)'!$D:$L,8,0),"") ->  | AH19: 16 | AI19: ='QB Rankings'!C19 -> 0 | AJ19: ='QB Rankings'!D19 -> 0 | AK19: 0 | AM19: ='QB Rankings'!E19 -> 0 | AN19: ='QB Rankings'!F19 -> 0 | AO19: ='QB Rankings'!G19 -> 0 | AP19: ='QB Rankings'!H19 -> 0 | AQ19: ='QB Rankings'!I19 -> 0
A20: 17 | B20: =IFERROR(INDEX('Total Rankings (excl QB)'!$D:$D,MATCH(1,("Wide Receiver"='Total Rankings (excl QB)'!$C:$C)*(A20='Total Rankings (excl QB)'!$F:$F),0),1),"") ->  | C20: =IFERROR(VLOOKUP($B20,'Total Rankings (excl QB)'!$D:$E,2,0),0) -> 0 | D20: 0 | F20: =IFERROR(VLOOKUP($B20,'Total Rankings (excl QB)'!$D:$L,4,0),"") ->  | G20: =IFERROR(VLOOKUP($B20,'Total Rankings (excl QB)'!$D:$L,5,0),"") ->  | H20: =IFERROR(VLOOKUP($B20,'Total Rankings (excl QB)'!$D:$L,6,0),"") ->  | I20: =IFERROR(VLOOKUP($B20,'Total Rankings (excl QB)'!$D:$L,7,0),"") ->  | J20: =IFERROR(VLOOKUP($B20,'Total Rankings (excl QB)'!$D:$L,8,0),"") ->  | L20: 17 | M20: =IFERROR(INDEX('Total Rankings (excl QB)'!$D:$D,MATCH(1,("Running Back"='Total Rankings (excl QB)'!$C:$C)*(L20='Total Rankings (excl QB)'!$F:$F),0),1),"") ->  | N20: =IFERROR(VLOOKUP($M20,'Total Rankings (excl QB)'!$D:$E,2,0),0) -> 0 | O20: 0 | Q20: =IFERROR(VLOOKUP($M20,'Total Rankings (excl QB)'!$D:$L,4,0),"") ->  | R20: =IFERROR(VLOOKUP($M20,'Total Rankings (excl QB)'!$D:$L,5,0),"") ->  | S20: =IFERROR(VLOOKUP($M20,'Total Rankings (excl QB)'!$D:$L,6,0),"") ->  | T20: =IFERROR(VLOOKUP($M20,'Total Rankings (excl QB)'!$D:$L,7,0),"") ->  | U20: =IFERROR(VLOOKUP($M20,'Total Rankings (excl QB)'!$D:$L,8,0),"") ->  | W20: 17 | X20: =IFERROR(INDEX('Total Rankings (excl QB)'!$D:$D,MATCH(1,("Tight End"='Total Rankings (excl QB)'!$C:$C)*(W20='Total Rankings (excl QB)'!$F:$F),0),1),"") ->  | Y20: =IFERROR(VLOOKUP($X20,'Total Rankings (excl QB)'!$D:$E,2,0),0) -> 0 | Z20: 0 | AB20: =IFERROR(VLOOKUP($X20,'Total Rankings (excl QB)'!$D:$L,4,0),"") ->  | AC20: =IFERROR(VLOOKUP($X20,'Total Rankings (excl QB)'!$D:$L,5,0),"") ->  | AD20: =IFERROR(VLOOKUP($X20,'Total Rankings (excl QB)'!$D:$L,6,0),"") ->  | AE20: =IFERROR(VLOOKUP($X20,'Total Rankings (excl QB)'!$D:$L,7,0),"") ->  | AF20: =IFERROR(VLOOKUP($X20,'Total Rankings (excl QB)'!$D:$L,8,0),"") ->  | AH20: 17 | AI20: ='QB Rankings'!C20 -> 0 | AJ20: ='QB Rankings'!D20 -> 0 | AK20: 0 | AM20: ='QB Rankings'!E20 -> 0 | AN20: ='QB Rankings'!F20 -> 0 | AO20: ='QB Rankings'!G20 -> 0 | AP20: ='QB Rankings'!H20 -> 0 | AQ20: ='QB Rankings'!I20 -> 0
A21: 18 | B21: =IFERROR(INDEX('Total Rankings (excl QB)'!$D:$D,MATCH(1,("Wide Receiver"='Total Rankings (excl QB)'!$C:$C)*(A21='Total Rankings (excl QB)'!$F:$F),0),1),"") ->  | C21: =IFERROR(VLOOKUP($B21,'Total Rankings (excl QB)'!$D:$E,2,0),0) -> 0 | D21: 0 | F21: =IFERROR(VLOOKUP($B21,'Total Rankings (excl QB)'!$D:$L,4,0),"") ->  | G21: =IFERROR(VLOOKUP($B21,'Total Rankings (excl QB)'!$D:$L,5,0),"") ->  | H21: =IFERROR(VLOOKUP($B21,'Total Rankings (excl QB)'!$D:$L,6,0),"") ->  | I21: =IFERROR(VLOOKUP($B21,'Total Rankings (excl QB)'!$D:$L,7,0),"") ->  | J21: =IFERROR(VLOOKUP($B21,'Total Rankings (excl QB)'!$D:$L,8,0),"") ->  | L21: 18 | M21: =IFERROR(INDEX('Total Rankings (excl QB)'!$D:$D,MATCH(1,("Running Back"='Total Rankings (excl QB)'!$C:$C)*(L21='Total Rankings (excl QB)'!$F:$F),0),1),"") ->  | N21: =IFERROR(VLOOKUP($M21,'Total Rankings (excl QB)'!$D:$E,2,0),0) -> 0 | O21: 0 | Q21: =IFERROR(VLOOKUP($M21,'Total Rankings (excl QB)'!$D:$L,4,0),"") ->  | R21: =IFERROR(VLOOKUP($M21,'Total Rankings (excl QB)'!$D:$L,5,0),"") ->  | S21: =IFERROR(VLOOKUP($M21,'Total Rankings (excl QB)'!$D:$L,6,0),"") ->  | T21: =IFERROR(VLOOKUP($M21,'Total Rankings (excl QB)'!$D:$L,7,0),"") ->  | U21: =IFERROR(VLOOKUP($M21,'Total Rankings (excl QB)'!$D:$L,8,0),"") ->  | W21: 18 | X21: =IFERROR(INDEX('Total Rankings (excl QB)'!$D:$D,MATCH(1,("Tight End"='Total Rankings (excl QB)'!$C:$C)*(W21='Total Rankings (excl QB)'!$F:$F),0),1),"") ->  | Y21: =IFERROR(VLOOKUP($X21,'Total Rankings (excl QB)'!$D:$E,2,0),0) -> 0 | Z21: 0 | AB21: =IFERROR(VLOOKUP($X21,'Total Rankings (excl QB)'!$D:$L,4,0),"") ->  | AC21: =IFERROR(VLOOKUP($X21,'Total Rankings (excl QB)'!$D:$L,5,0),"") ->  | AD21: =IFERROR(VLOOKUP($X21,'Total Rankings (excl QB)'!$D:$L,6,0),"") ->  | AE21: =IFERROR(VLOOKUP($X21,'Total Rankings (excl QB)'!$D:$L,7,0),"") ->  | AF21: =IFERROR(VLOOKUP($X21,'Total Rankings (excl QB)'!$D:$L,8,0),"") ->  | AH21: 18 | AI21: ='QB Rankings'!C21 -> 0 | AJ21: ='QB Rankings'!D21 -> 0 | AK21: 0 | AM21: ='QB Rankings'!E21 -> 0 | AN21: ='QB Rankings'!F21 -> 0 | AO21: ='QB Rankings'!G21 -> 0 | AP21: ='QB Rankings'!H21 -> 0 | AQ21: ='QB Rankings'!I21 -> 0
A22: 19 | B22: =IFERROR(INDEX('Total Rankings (excl QB)'!$D:$D,MATCH(1,("Wide Receiver"='Total Rankings (excl QB)'!$C:$C)*(A22='Total Rankings (excl QB)'!$F:$F),0),1),"") ->  | C22: =IFERROR(VLOOKUP($B22,'Total Rankings (excl QB)'!$D:$E,2,0),0) -> 0 | D22: 0 | F22: =IFERROR(VLOOKUP($B22,'Total Rankings (excl QB)'!$D:$L,4,0),"") ->  | G22: =IFERROR(VLOOKUP($B22,'Total Rankings (excl QB)'!$D:$L,5,0),"") ->  | H22: =IFERROR(VLOOKUP($B22,'Total Rankings (excl QB)'!$D:$L,6,0),"") ->  | I22: =IFERROR(VLOOKUP($B22,'Total Rankings (excl QB)'!$D:$L,7,0),"") ->  | J22: =IFERROR(VLOOKUP($B22,'Total Rankings (excl QB)'!$D:$L,8,0),"") ->  | L22: 19 | M22: =IFERROR(INDEX('Total Rankings (excl QB)'!$D:$D,MATCH(1,("Running Back"='Total Rankings (excl QB)'!$C:$C)*(L22='Total Rankings (excl QB)'!$F:$F),0),1),"") ->  | N22: =IFERROR(VLOOKUP($M22,'Total Rankings (excl QB)'!$D:$E,2,0),0) -> 0 | O22: 0 | Q22: =IFERROR(VLOOKUP($M22,'Total Rankings (excl QB)'!$D:$L,4,0),"") ->  | R22: =IFERROR(VLOOKUP($M22,'Total Rankings (excl QB)'!$D:$L,5,0),"") ->  | S22: =IFERROR(VLOOKUP($M22,'Total Rankings (excl QB)'!$D:$L,6,0),"") ->  | T22: =IFERROR(VLOOKUP($M22,'Total Rankings (excl QB)'!$D:$L,7,0),"") ->  | U22: =IFERROR(VLOOKUP($M22,'Total Rankings (excl QB)'!$D:$L,8,0),"") ->  | W22: 19 | X22: =IFERROR(INDEX('Total Rankings (excl QB)'!$D:$D,MATCH(1,("Tight End"='Total Rankings (excl QB)'!$C:$C)*(W22='Total Rankings (excl QB)'!$F:$F),0),1),"") ->  | Y22: =IFERROR(VLOOKUP($X22,'Total Rankings (excl QB)'!$D:$E,2,0),0) -> 0 | Z22: 0 | AB22: =IFERROR(VLOOKUP($X22,'Total Rankings (excl QB)'!$D:$L,4,0),"") ->  | AC22: =IFERROR(VLOOKUP($X22,'Total Rankings (excl QB)'!$D:$L,5,0),"") ->  | AD22: =IFERROR(VLOOKUP($X22,'Total Rankings (excl QB)'!$D:$L,6,0),"") ->  | AE22: =IFERROR(VLOOKUP($X22,'Total Rankings (excl QB)'!$D:$L,7,0),"") ->  | AF22: =IFERROR(VLOOKUP($X22,'Total Rankings (excl QB)'!$D:$L,8,0),"") ->  | AH22: 19 | AI22: ='QB Rankings'!C22 -> 0 | AJ22: ='QB Rankings'!D22 -> 0 | AK22: 0 | AM22: ='QB Rankings'!E22 -> 0 | AN22: ='QB Rankings'!F22 -> 0 | AO22: ='QB Rankings'!G22 -> 0 | AP22: ='QB Rankings'!H22 -> 0 | AQ22: ='QB Rankings'!I22 -> 0
A23: 20 | B23: =IFERROR(INDEX('Total Rankings (excl QB)'!$D:$D,MATCH(1,("Wide Receiver"='Total Rankings (excl QB)'!$C:$C)*(A23='Total Rankings (excl QB)'!$F:$F),0),1),"") ->  | C23: =IFERROR(VLOOKUP($B23,'Total Rankings (excl QB)'!$D:$E,2,0),0) -> 0 | D23: 0 | F23: =IFERROR(VLOOKUP($B23,'Total Rankings (excl QB)'!$D:$L,4,0),"") ->  | G23: =IFERROR(VLOOKUP($B23,'Total Rankings (excl QB)'!$D:$L,5,0),"") ->  | H23: =IFERROR(VLOOKUP($B23,'Total Rankings (excl QB)'!$D:$L,6,0),"") ->  | I23: =IFERROR(VLOOKUP($B23,'Total Rankings (excl QB)'!$D:$L,7,0),"") ->  | J23: =IFERROR(VLOOKUP($B23,'Total Rankings (excl QB)'!$D:$L,8,0),"") ->  | L23: 20 | M23: =IFERROR(INDEX('Total Rankings (excl QB)'!$D:$D,MATCH(1,("Running Back"='Total Rankings (excl QB)'!$C:$C)*(L23='Total Rankings (excl QB)'!$F:$F),0),1),"") ->  | N23: =IFERROR(VLOOKUP($M23,'Total Rankings (excl QB)'!$D:$E,2,0),0) -> 0 | O23: 0 | Q23: =IFERROR(VLOOKUP($M23,'Total Rankings (excl QB)'!$D:$L,4,0),"") ->  | R23: =IFERROR(VLOOKUP($M23,'Total Rankings (excl QB)'!$D:$L,5,0),"") ->  | S23: =IFERROR(VLOOKUP($M23,'Total Rankings (excl QB)'!$D:$L,6,0),"") ->  | T23: =IFERROR(VLOOKUP($M23,'Total Rankings (excl QB)'!$D:$L,7,0),"") ->  | U23: =IFERROR(VLOOKUP($M23,'Total Rankings (excl QB)'!$D:$L,8,0),"") ->  | W23: 20 | X23: =IFERROR(INDEX('Total Rankings (excl QB)'!$D:$D,MATCH(1,("Tight End"='Total Rankings (excl QB)'!$C:$C)*(W23='Total Rankings (excl QB)'!$F:$F),0),1),"") ->  | Y23: =IFERROR(VLOOKUP($X23,'Total Rankings (excl QB)'!$D:$E,2,0),0) -> 0 | Z23: 0 | AB23: =IFERROR(VLOOKUP($X23,'Total Rankings (excl QB)'!$D:$L,4,0),"") ->  | AC23: =IFERROR(VLOOKUP($X23,'Total Rankings (excl QB)'!$D:$L,5,0),"") ->  | AD23: =IFERROR(VLOOKUP($X23,'Total Rankings (excl QB)'!$D:$L,6,0),"") ->  | AE23: =IFERROR(VLOOKUP($X23,'Total Rankings (excl QB)'!$D:$L,7,0),"") ->  | AF23: =IFERROR(VLOOKUP($X23,'Total Rankings (excl QB)'!$D:$L,8,0),"") ->  | AH23: 20 | AI23: ='QB Rankings'!C23 -> 0 | AJ23: ='QB Rankings'!D23 -> 0 | AK23: 0 | AM23: ='QB Rankings'!E23 -> 0 | AN23: ='QB Rankings'!F23 -> 0 | AO23: ='QB Rankings'!G23 -> 0 | AP23: ='QB Rankings'!H23 -> 0 | AQ23: ='QB Rankings'!I23 -> 0
A24: 21 | B24: =IFERROR(INDEX('Total Rankings (excl QB)'!$D:$D,MATCH(1,("Wide Receiver"='Total Rankings (excl QB)'!$C:$C)*(A24='Total Rankings (excl QB)'!$F:$F),0),1),"") ->  | C24: =IFERROR(VLOOKUP($B24,'Total Rankings (excl QB)'!$D:$E,2,0),0) -> 0 | D24: 0 | F24: =IFERROR(VLOOKUP($B24,'Total Rankings (excl QB)'!$D:$L,4,0),"") ->  | G24: =IFERROR(VLOOKUP($B24,'Total Rankings (excl QB)'!$D:$L,5,0),"") ->  | H24: =IFERROR(VLOOKUP($B24,'Total Rankings (excl QB)'!$D:$L,6,0),"") ->  | I24: =IFERROR(VLOOKUP($B24,'Total Rankings (excl QB)'!$D:$L,7,0),"") ->  | J24: =IFERROR(VLOOKUP($B24,'Total Rankings (excl QB)'!$D:$L,8,0),"") ->  | L24: 21 | M24: =IFERROR(INDEX('Total Rankings (excl QB)'!$D:$D,MATCH(1,("Running Back"='Total Rankings (excl QB)'!$C:$C)*(L24='Total Rankings (excl QB)'!$F:$F),0),1),"") ->  | N24: =IFERROR(VLOOKUP($M24,'Total Rankings (excl QB)'!$D:$E,2,0),0) -> 0 | O24: 0 | Q24: =IFERROR(VLOOKUP($M24,'Total Rankings (excl QB)'!$D:$L,4,0),"") ->  | R24: =IFERROR(VLOOKUP($M24,'Total Rankings (excl QB)'!$D:$L,5,0),"") ->  | S24: =IFERROR(VLOOKUP($M24,'Total Rankings (excl QB)'!$D:$L,6,0),"") ->  | T24: =IFERROR(VLOOKUP($M24,'Total Rankings (excl QB)'!$D:$L,7,0),"") ->  | U24: =IFERROR(VLOOKUP($M24,'Total Rankings (excl QB)'!$D:$L,8,0),"") ->  | W24: 21 | X24: =IFERROR(INDEX('Total Rankings (excl QB)'!$D:$D,MATCH(1,("Tight End"='Total Rankings (excl QB)'!$C:$C)*(W24='Total Rankings (excl QB)'!$F:$F),0),1),"") ->  | Y24: =IFERROR(VLOOKUP($X24,'Total Rankings (excl QB)'!$D:$E,2,0),0) -> 0 | Z24: 0 | AB24: =IFERROR(VLOOKUP($X24,'Total Rankings (excl QB)'!$D:$L,4,0),"") ->  | AC24: =IFERROR(VLOOKUP($X24,'Total Rankings (excl QB)'!$D:$L,5,0),"") ->  | AD24: =IFERROR(VLOOKUP($X24,'Total Rankings (excl QB)'!$D:$L,6,0),"") ->  | AE24: =IFERROR(VLOOKUP($X24,'Total Rankings (excl QB)'!$D:$L,7,0),"") ->  | AF24: =IFERROR(VLOOKUP($X24,'Total Rankings (excl QB)'!$D:$L,8,0),"") ->  | AH24: 21 | AI24: ='QB Rankings'!C24 -> 0 | AJ24: ='QB Rankings'!D24 -> 0 | AK24: 0 | AM24: ='QB Rankings'!E24 -> 0 | AN24: ='QB Rankings'!F24 -> 0 | AO24: ='QB Rankings'!G24 -> 0 | AP24: ='QB Rankings'!H24 -> 0 | AQ24: ='QB Rankings'!I24 -> 0
A25: 22 | B25: =IFERROR(INDEX('Total Rankings (excl QB)'!$D:$D,MATCH(1,("Wide Receiver"='Total Rankings (excl QB)'!$C:$C)*(A25='Total Rankings (excl QB)'!$F:$F),0),1),"") ->  | C25: =IFERROR(VLOOKUP($B25,'Total Rankings (excl QB)'!$D:$E,2,0),0) -> 0 | D25: 0 | F25: =IFERROR(VLOOKUP($B25,'Total Rankings (excl QB)'!$D:$L,4,0),"") ->  | G25: =IFERROR(VLOOKUP($B25,'Total Rankings (excl QB)'!$D:$L,5,0),"") ->  | H25: =IFERROR(VLOOKUP($B25,'Total Rankings (excl QB)'!$D:$L,6,0),"") ->  | I25: =IFERROR(VLOOKUP($B25,'Total Rankings (excl QB)'!$D:$L,7,0),"") ->  | J25: =IFERROR(VLOOKUP($B25,'Total Rankings (excl QB)'!$D:$L,8,0),"") ->  | L25: 22 | M25: =IFERROR(INDEX('Total Rankings (excl QB)'!$D:$D,MATCH(1,("Running Back"='Total Rankings (excl QB)'!$C:$C)*(L25='Total Rankings (excl QB)'!$F:$F),0),1),"") ->  | N25: =IFERROR(VLOOKUP($M25,'Total Rankings (excl QB)'!$D:$E,2,0),0) -> 0 | O25: 0 | Q25: =IFERROR(VLOOKUP($M25,'Total Rankings (excl QB)'!$D:$L,4,0),"") ->  | R25: =IFERROR(VLOOKUP($M25,'Total Rankings (excl QB)'!$D:$L,5,0),"") ->  | S25: =IFERROR(VLOOKUP($M25,'Total Rankings (excl QB)'!$D:$L,6,0),"") ->  | T25: =IFERROR(VLOOKUP($M25,'Total Rankings (excl QB)'!$D:$L,7,0),"") ->  | U25: =IFERROR(VLOOKUP($M25,'Total Rankings (excl QB)'!$D:$L,8,0),"") ->  | W25: 22 | X25: =IFERROR(INDEX('Total Rankings (excl QB)'!$D:$D,MATCH(1,("Tight End"='Total Rankings (excl QB)'!$C:$C)*(W25='Total Rankings (excl QB)'!$F:$F),0),1),"") ->  | Y25: =IFERROR(VLOOKUP($X25,'Total Rankings (excl QB)'!$D:$E,2,0),0) -> 0 | Z25: 0 | AB25: =IFERROR(VLOOKUP($X25,'Total Rankings (excl QB)'!$D:$L,4,0),"") ->  | AC25: =IFERROR(VLOOKUP($X25,'Total Rankings (excl QB)'!$D:$L,5,0),"") ->  | AD25: =IFERROR(VLOOKUP($X25,'Total Rankings (excl QB)'!$D:$L,6,0),"") ->  | AE25: =IFERROR(VLOOKUP($X25,'Total Rankings (excl QB)'!$D:$L,7,0),"") ->  | AF25: =IFERROR(VLOOKUP($X25,'Total Rankings (excl QB)'!$D:$L,8,0),"") ->  | AH25: 22 | AI25: ='QB Rankings'!C25 -> 0 | AJ25: ='QB Rankings'!D25 -> 0 | AK25: 0 | AM25: ='QB Rankings'!E25 -> 0 | AN25: ='QB Rankings'!F25 -> 0 | AO25: ='QB Rankings'!G25 -> 0 | AP25: ='QB Rankings'!H25 -> 0 | AQ25: ='QB Rankings'!I25 -> 0
A26: 23 | B26: =IFERROR(INDEX('Total Rankings (excl QB)'!$D:$D,MATCH(1,("Wide Receiver"='Total Rankings (excl QB)'!$C:$C)*(A26='Total Rankings (excl QB)'!$F:$F),0),1),"") ->  | C26: =IFERROR(VLOOKUP($B26,'Total Rankings (excl QB)'!$D:$E,2,0),0) -> 0 | D26: 0 | F26: =IFERROR(VLOOKUP($B26,'Total Rankings (excl QB)'!$D:$L,4,0),"") ->  | G26: =IFERROR(VLOOKUP($B26,'Total Rankings (excl QB)'!$D:$L,5,0),"") ->  | H26: =IFERROR(VLOOKUP($B26,'Total Rankings (excl QB)'!$D:$L,6,0),"") ->  | I26: =IFERROR(VLOOKUP($B26,'Total Rankings (excl QB)'!$D:$L,7,0),"") ->  | J26: =IFERROR(VLOOKUP($B26,'Total Rankings (excl QB)'!$D:$L,8,0),"") ->  | L26: 23 | M26: =IFERROR(INDEX('Total Rankings (excl QB)'!$D:$D,MATCH(1,("Running Back"='Total Rankings (excl QB)'!$C:$C)*(L26='Total Rankings (excl QB)'!$F:$F),0),1),"") ->  | N26: =IFERROR(VLOOKUP($M26,'Total Rankings (excl QB)'!$D:$E,2,0),0) -> 0 | O26: 0 | Q26: =IFERROR(VLOOKUP($M26,'Total Rankings (excl QB)'!$D:$L,4,0),"") ->  | R26: =IFERROR(VLOOKUP($M26,'Total Rankings (excl QB)'!$D:$L,5,0),"") ->  | S26: =IFERROR(VLOOKUP($M26,'Total Rankings (excl QB)'!$D:$L,6,0),"") ->  | T26: =IFERROR(VLOOKUP($M26,'Total Rankings (excl QB)'!$D:$L,7,0),"") ->  | U26: =IFERROR(VLOOKUP($M26,'Total Rankings (excl QB)'!$D:$L,8,0),"") ->  | W26: 23 | X26: =IFERROR(INDEX('Total Rankings (excl QB)'!$D:$D,MATCH(1,("Tight End"='Total Rankings (excl QB)'!$C:$C)*(W26='Total Rankings (excl QB)'!$F:$F),0),1),"") ->  | Y26: =IFERROR(VLOOKUP($X26,'Total Rankings (excl QB)'!$D:$E,2,0),0) -> 0 | Z26: 0 | AB26: =IFERROR(VLOOKUP($X26,'Total Rankings (excl QB)'!$D:$L,4,0),"") ->  | AC26: =IFERROR(VLOOKUP($X26,'Total Rankings (excl QB)'!$D:$L,5,0),"") ->  | AD26: =IFERROR(VLOOKUP($X26,'Total Rankings (excl QB)'!$D:$L,6,0),"") ->  | AE26: =IFERROR(VLOOKUP($X26,'Total Rankings (excl QB)'!$D:$L,7,0),"") ->  | AF26: =IFERROR(VLOOKUP($X26,'Total Rankings (excl QB)'!$D:$L,8,0),"") ->  | AH26: 23 | AI26: ='QB Rankings'!C26 -> 0 | AJ26: ='QB Rankings'!D26 -> 0 | AK26: 0 | AM26: ='QB Rankings'!E26 -> 0 | AN26: ='QB Rankings'!F26 -> 0 | AO26: ='QB Rankings'!G26 -> 0 | AP26: ='QB Rankings'!H26 -> 0 | AQ26: ='QB Rankings'!I26 -> 0
A27: 24 | B27: =IFERROR(INDEX('Total Rankings (excl QB)'!$D:$D,MATCH(1,("Wide Receiver"='Total Rankings (excl QB)'!$C:$C)*(A27='Total Rankings (excl QB)'!$F:$F),0),1),"") ->  | C27: =IFERROR(VLOOKUP($B27,'Total Rankings (excl QB)'!$D:$E,2,0),0) -> 0 | D27: 0 | F27: =IFERROR(VLOOKUP($B27,'Total Rankings (excl QB)'!$D:$L,4,0),"") ->  | G27: =IFERROR(VLOOKUP($B27,'Total Rankings (excl QB)'!$D:$L,5,0),"") ->  | H27: =IFERROR(VLOOKUP($B27,'Total Rankings (excl QB)'!$D:$L,6,0),"") ->  | I27: =IFERROR(VLOOKUP($B27,'Total Rankings (excl QB)'!$D:$L,7,0),"") ->  | J27: =IFERROR(VLOOKUP($B27,'Total Rankings (excl QB)'!$D:$L,8,0),"") ->  | L27: 24 | M27: =IFERROR(INDEX('Total Rankings (excl QB)'!$D:$D,MATCH(1,("Running Back"='Total Rankings (excl QB)'!$C:$C)*(L27='Total Rankings (excl QB)'!$F:$F),0),1),"") ->  | N27: =IFERROR(VLOOKUP($M27,'Total Rankings (excl QB)'!$D:$E,2,0),0) -> 0 | O27: 0 | Q27: =IFERROR(VLOOKUP($M27,'Total Rankings (excl QB)'!$D:$L,4,0),"") ->  | R27: =IFERROR(VLOOKUP($M27,'Total Rankings (excl QB)'!$D:$L,5,0),"") ->  | S27: =IFERROR(VLOOKUP($M27,'Total Rankings (excl QB)'!$D:$L,6,0),"") ->  | T27: =IFERROR(VLOOKUP($M27,'Total Rankings (excl QB)'!$D:$L,7,0),"") ->  | U27: =IFERROR(VLOOKUP($M27,'Total Rankings (excl QB)'!$D:$L,8,0),"") ->  | W27: 24 | X27: =IFERROR(INDEX('Total Rankings (excl QB)'!$D:$D,MATCH(1,("Tight End"='Total Rankings (excl QB)'!$C:$C)*(W27='Total Rankings (excl QB)'!$F:$F),0),1),"") ->  | Y27: =IFERROR(VLOOKUP($X27,'Total Rankings (excl QB)'!$D:$E,2,0),0) -> 0 | Z27: 0 | AB27: =IFERROR(VLOOKUP($X27,'Total Rankings (excl QB)'!$D:$L,4,0),"") ->  | AC27: =IFERROR(VLOOKUP($X27,'Total Rankings (excl QB)'!$D:$L,5,0),"") ->  | AD27: =IFERROR(VLOOKUP($X27,'Total Rankings (excl QB)'!$D:$L,6,0),"") ->  | AE27: =IFERROR(VLOOKUP($X27,'Total Rankings (excl QB)'!$D:$L,7,0),"") ->  | AF27: =IFERROR(VLOOKUP($X27,'Total Rankings (excl QB)'!$D:$L,8,0),"") ->  | AH27: 24 | AI27: ='QB Rankings'!C27 -> 0 | AJ27: ='QB Rankings'!D27 -> 0 | AK27: 0 | AM27: ='QB Rankings'!E27 -> 0 | AN27: ='QB Rankings'!F27 -> 0 | AO27: ='QB Rankings'!G27 -> 0 | AP27: ='QB Rankings'!H27 -> 0 | AQ27: ='QB Rankings'!I27 -> 0
A28: 25 | B28: =IFERROR(INDEX('Total Rankings (excl QB)'!$D:$D,MATCH(1,("Wide Receiver"='Total Rankings (excl QB)'!$C:$C)*(A28='Total Rankings (excl QB)'!$F:$F),0),1),"") ->  | C28: =IFERROR(VLOOKUP($B28,'Total Rankings (excl QB)'!$D:$E,2,0),0) -> 0 | D28: 0 | F28: =IFERROR(VLOOKUP($B28,'Total Rankings (excl QB)'!$D:$L,4,0),"") ->  | G28: =IFERROR(VLOOKUP($B28,'Total Rankings (excl QB)'!$D:$L,5,0),"") ->  | H28: =IFERROR(VLOOKUP($B28,'Total Rankings (excl QB)'!$D:$L,6,0),"") ->  | I28: =IFERROR(VLOOKUP($B28,'Total Rankings (excl QB)'!$D:$L,7,0),"") ->  | J28: =IFERROR(VLOOKUP($B28,'Total Rankings (excl QB)'!$D:$L,8,0),"") ->  | L28: 25 | M28: =IFERROR(INDEX('Total Rankings (excl QB)'!$D:$D,MATCH(1,("Running Back"='Total Rankings (excl QB)'!$C:$C)*(L28='Total Rankings (excl QB)'!$F:$F),0),1),"") ->  | N28: =IFERROR(VLOOKUP($M28,'Total Rankings (excl QB)'!$D:$E,2,0),0) -> 0 | O28: 0 | Q28: =IFERROR(VLOOKUP($M28,'Total Rankings (excl QB)'!$D:$L,4,0),"") ->  | R28: =IFERROR(VLOOKUP($M28,'Total Rankings (excl QB)'!$D:$L,5,0),"") ->  | S28: =IFERROR(VLOOKUP($M28,'Total Rankings (excl QB)'!$D:$L,6,0),"") ->  | T28: =IFERROR(VLOOKUP($M28,'Total Rankings (excl QB)'!$D:$L,7,0),"") ->  | U28: =IFERROR(VLOOKUP($M28,'Total Rankings (excl QB)'!$D:$L,8,0),"") ->  | W28: 25 | X28: =IFERROR(INDEX('Total Rankings (excl QB)'!$D:$D,MATCH(1,("Tight End"='Total Rankings (excl QB)'!$C:$C)*(W28='Total Rankings (excl QB)'!$F:$F),0),1),"") ->  | Y28: =IFERROR(VLOOKUP($X28,'Total Rankings (excl QB)'!$D:$E,2,0),0) -> 0 | Z28: 0 | AB28: =IFERROR(VLOOKUP($X28,'Total Rankings (excl QB)'!$D:$L,4,0),"") ->  | AC28: =IFERROR(VLOOKUP($X28,'Total Rankings (excl QB)'!$D:$L,5,0),"") ->  | AD28: =IFERROR(VLOOKUP($X28,'Total Rankings (excl QB)'!$D:$L,6,0),"") ->  | AE28: =IFERROR(VLOOKUP($X28,'Total Rankings (excl QB)'!$D:$L,7,0),"") ->  | AF28: =IFERROR(VLOOKUP($X28,'Total Rankings (excl QB)'!$D:$L,8,0),"") ->  | AH28: 25 | AI28: ='QB Rankings'!C28 -> 0 | AJ28: ='QB Rankings'!D28 -> 0 | AK28: 0 | AM28: ='QB Rankings'!E28 -> 0 | AN28: ='QB Rankings'!F28 -> 0 | AO28: ='QB Rankings'!G28 -> 0 | AP28: ='QB Rankings'!H28 -> 0 | AQ28: ='QB Rankings'!I28 -> 0
A29: 26 | B29: =IFERROR(INDEX('Total Rankings (excl QB)'!$D:$D,MATCH(1,("Wide Receiver"='Total Rankings (excl QB)'!$C:$C)*(A29='Total Rankings (excl QB)'!$F:$F),0),1),"") ->  | C29: =IFERROR(VLOOKUP($B29,'Total Rankings (excl QB)'!$D:$E,2,0),0) -> 0 | D29: 0 | F29: =IFERROR(VLOOKUP($B29,'Total Rankings (excl QB)'!$D:$L,4,0),"") ->  | G29: =IFERROR(VLOOKUP($B29,'Total Rankings (excl QB)'!$D:$L,5,0),"") ->  | H29: =IFERROR(VLOOKUP($B29,'Total Rankings (excl QB)'!$D:$L,6,0),"") ->  | I29: =IFERROR(VLOOKUP($B29,'Total Rankings (excl QB)'!$D:$L,7,0),"") ->  | J29: =IFERROR(VLOOKUP($B29,'Total Rankings (excl QB)'!$D:$L,8,0),"") ->  | L29: 26 | M29: =IFERROR(INDEX('Total Rankings (excl QB)'!$D:$D,MATCH(1,("Running Back"='Total Rankings (excl QB)'!$C:$C)*(L29='Total Rankings (excl QB)'!$F:$F),0),1),"") ->  | N29: =IFERROR(VLOOKUP($M29,'Total Rankings (excl QB)'!$D:$E,2,0),0) -> 0 | O29: 0 | Q29: =IFERROR(VLOOKUP($M29,'Total Rankings (excl QB)'!$D:$L,4,0),"") ->  | R29: =IFERROR(VLOOKUP($M29,'Total Rankings (excl QB)'!$D:$L,5,0),"") ->  | S29: =IFERROR(VLOOKUP($M29,'Total Rankings (excl QB)'!$D:$L,6,0),"") ->  | T29: =IFERROR(VLOOKUP($M29,'Total Rankings (excl QB)'!$D:$L,7,0),"") ->  | U29: =IFERROR(VLOOKUP($M29,'Total Rankings (excl QB)'!$D:$L,8,0),"") ->  | W29: 26 | X29: =IFERROR(INDEX('Total Rankings (excl QB)'!$D:$D,MATCH(1,("Tight End"='Total Rankings (excl QB)'!$C:$C)*(W29='Total Rankings (excl QB)'!$F:$F),0),1),"") ->  | Y29: =IFERROR(VLOOKUP($X29,'Total Rankings (excl QB)'!$D:$E,2,0),0) -> 0 | Z29: 0 | AB29: =IFERROR(VLOOKUP($X29,'Total Rankings (excl QB)'!$D:$L,4,0),"") ->  | AC29: =IFERROR(VLOOKUP($X29,'Total Rankings (excl QB)'!$D:$L,5,0),"") ->  | AD29: =IFERROR(VLOOKUP($X29,'Total Rankings (excl QB)'!$D:$L,6,0),"") ->  | AE29: =IFERROR(VLOOKUP($X29,'Total Rankings (excl QB)'!$D:$L,7,0),"") ->  | AF29: =IFERROR(VLOOKUP($X29,'Total Rankings (excl QB)'!$D:$L,8,0),"") ->  | AH29: 26 | AI29: ='QB Rankings'!C29 -> 0 | AJ29: ='QB Rankings'!D29 -> 0 | AK29: 0 | AM29: ='QB Rankings'!E29 -> 0 | AN29: ='QB Rankings'!F29 -> 0 | AO29: ='QB Rankings'!G29 -> 0 | AP29: ='QB Rankings'!H29 -> 0 | AQ29: ='QB Rankings'!I29 -> 0
A30: 27 | B30: =IFERROR(INDEX('Total Rankings (excl QB)'!$D:$D,MATCH(1,("Wide Receiver"='Total Rankings (excl QB)'!$C:$C)*(A30='Total Rankings (excl QB)'!$F:$F),0),1),"") ->  | C30: =IFERROR(VLOOKUP($B30,'Total Rankings (excl QB)'!$D:$E,2,0),0) -> 0 | D30: 0 | F30: =IFERROR(VLOOKUP($B30,'Total Rankings (excl QB)'!$D:$L,4,0),"") ->  | G30: =IFERROR(VLOOKUP($B30,'Total Rankings (excl QB)'!$D:$L,5,0),"") ->  | H30: =IFERROR(VLOOKUP($B30,'Total Rankings (excl QB)'!$D:$L,6,0),"") ->  | I30: =IFERROR(VLOOKUP($B30,'Total Rankings (excl QB)'!$D:$L,7,0),"") ->  | J30: =IFERROR(VLOOKUP($B30,'Total Rankings (excl QB)'!$D:$L,8,0),"") ->  | L30: 27 | M30: =IFERROR(INDEX('Total Rankings (excl QB)'!$D:$D,MATCH(1,("Running Back"='Total Rankings (excl QB)'!$C:$C)*(L30='Total Rankings (excl QB)'!$F:$F),0),1),"") ->  | N30: =IFERROR(VLOOKUP($M30,'Total Rankings (excl QB)'!$D:$E,2,0),0) -> 0 | O30: 0 | Q30: =IFERROR(VLOOKUP($M30,'Total Rankings (excl QB)'!$D:$L,4,0),"") ->  | R30: =IFERROR(VLOOKUP($M30,'Total Rankings (excl QB)'!$D:$L,5,0),"") ->  | S30: =IFERROR(VLOOKUP($M30,'Total Rankings (excl QB)'!$D:$L,6,0),"") ->  | T30: =IFERROR(VLOOKUP($M30,'Total Rankings (excl QB)'!$D:$L,7,0),"") ->  | U30: =IFERROR(VLOOKUP($M30,'Total Rankings (excl QB)'!$D:$L,8,0),"") ->  | W30: 27 | X30: =IFERROR(INDEX('Total Rankings (excl QB)'!$D:$D,MATCH(1,("Tight End"='Total Rankings (excl QB)'!$C:$C)*(W30='Total Rankings (excl QB)'!$F:$F),0),1),"") ->  | Y30: =IFERROR(VLOOKUP($X30,'Total Rankings (excl QB)'!$D:$E,2,0),0) -> 0 | Z30: 0 | AB30: =IFERROR(VLOOKUP($X30,'Total Rankings (excl QB)'!$D:$L,4,0),"") ->  | AC30: =IFERROR(VLOOKUP($X30,'Total Rankings (excl QB)'!$D:$L,5,0),"") ->  | AD30: =IFERROR(VLOOKUP($X30,'Total Rankings (excl QB)'!$D:$L,6,0),"") ->  | AE30: =IFERROR(VLOOKUP($X30,'Total Rankings (excl QB)'!$D:$L,7,0),"") ->  | AF30: =IFERROR(VLOOKUP($X30,'Total Rankings (excl QB)'!$D:$L,8,0),"") ->  | AH30: 27 | AI30: ='QB Rankings'!C30 -> 0 | AJ30: ='QB Rankings'!D30 -> 0 | AK30: 0 | AM30: ='QB Rankings'!E30 -> 0 | AN30: ='QB Rankings'!F30 -> 0 | AO30: ='QB Rankings'!G30 -> 0 | AP30: ='QB Rankings'!H30 -> 0 | AQ30: ='QB Rankings'!I30 -> 0
A31: 28 | B31: =IFERROR(INDEX('Total Rankings (excl QB)'!$D:$D,MATCH(1,("Wide Receiver"='Total Rankings (excl QB)'!$C:$C)*(A31='Total Rankings (excl QB)'!$F:$F),0),1),"") ->  | C31: =IFERROR(VLOOKUP($B31,'Total Rankings (excl QB)'!$D:$E,2,0),0) -> 0 | D31: 0 | F31: =IFERROR(VLOOKUP($B31,'Total Rankings (excl QB)'!$D:$L,4,0),"") ->  | G31: =IFERROR(VLOOKUP($B31,'Total Rankings (excl QB)'!$D:$L,5,0),"") ->  | H31: =IFERROR(VLOOKUP($B31,'Total Rankings (excl QB)'!$D:$L,6,0),"") ->  | I31: =IFERROR(VLOOKUP($B31,'Total Rankings (excl QB)'!$D:$L,7,0),"") ->  | J31: =IFERROR(VLOOKUP($B31,'Total Rankings (excl QB)'!$D:$L,8,0),"") ->  | L31: 28 | M31: =IFERROR(INDEX('Total Rankings (excl QB)'!$D:$D,MATCH(1,("Running Back"='Total Rankings (excl QB)'!$C:$C)*(L31='Total Rankings (excl QB)'!$F:$F),0),1),"") ->  | N31: =IFERROR(VLOOKUP($M31,'Total Rankings (excl QB)'!$D:$E,2,0),0) -> 0 | O31: 0 | Q31: =IFERROR(VLOOKUP($M31,'Total Rankings (excl QB)'!$D:$L,4,0),"") ->  | R31: =IFERROR(VLOOKUP($M31,'Total Rankings (excl QB)'!$D:$L,5,0),"") ->  | S31: =IFERROR(VLOOKUP($M31,'Total Rankings (excl QB)'!$D:$L,6,0),"") ->  | T31: =IFERROR(VLOOKUP($M31,'Total Rankings (excl QB)'!$D:$L,7,0),"") ->  | U31: =IFERROR(VLOOKUP($M31,'Total Rankings (excl QB)'!$D:$L,8,0),"") ->  | W31: 28 | X31: =IFERROR(INDEX('Total Rankings (excl QB)'!$D:$D,MATCH(1,("Tight End"='Total Rankings (excl QB)'!$C:$C)*(W31='Total Rankings (excl QB)'!$F:$F),0),1),"") ->  | Y31: =IFERROR(VLOOKUP($X31,'Total Rankings (excl QB)'!$D:$E,2,0),0) -> 0 | Z31: 0 | AB31: =IFERROR(VLOOKUP($X31,'Total Rankings (excl QB)'!$D:$L,4,0),"") ->  | AC31: =IFERROR(VLOOKUP($X31,'Total Rankings (excl QB)'!$D:$L,5,0),"") ->  | AD31: =IFERROR(VLOOKUP($X31,'Total Rankings (excl QB)'!$D:$L,6,0),"") ->  | AE31: =IFERROR(VLOOKUP($X31,'Total Rankings (excl QB)'!$D:$L,7,0),"") ->  | AF31: =IFERROR(VLOOKUP($X31,'Total Rankings (excl QB)'!$D:$L,8,0),"") ->  | AH31: 28 | AI31: ='QB Rankings'!C31 -> 0 | AJ31: ='QB Rankings'!D31 -> 0 | AK31: 0 | AM31: ='QB Rankings'!E31 -> 0 | AN31: ='QB Rankings'!F31 -> 0 | AO31: ='QB Rankings'!G31 -> 0 | AP31: ='QB Rankings'!H31 -> 0 | AQ31: ='QB Rankings'!I31 -> 0
A32: 29 | B32: =IFERROR(INDEX('Total Rankings (excl QB)'!$D:$D,MATCH(1,("Wide Receiver"='Total Rankings (excl QB)'!$C:$C)*(A32='Total Rankings (excl QB)'!$F:$F),0),1),"") ->  | C32: =IFERROR(VLOOKUP($B32,'Total Rankings (excl QB)'!$D:$E,2,0),0) -> 0 | D32: 0 | F32: =IFERROR(VLOOKUP($B32,'Total Rankings (excl QB)'!$D:$L,4,0),"") ->  | G32: =IFERROR(VLOOKUP($B32,'Total Rankings (excl QB)'!$D:$L,5,0),"") ->  | H32: =IFERROR(VLOOKUP($B32,'Total Rankings (excl QB)'!$D:$L,6,0),"") ->  | I32: =IFERROR(VLOOKUP($B32,'Total Rankings (excl QB)'!$D:$L,7,0),"") ->  | J32: =IFERROR(VLOOKUP($B32,'Total Rankings (excl QB)'!$D:$L,8,0),"") ->  | L32: 29 | M32: =IFERROR(INDEX('Total Rankings (excl QB)'!$D:$D,MATCH(1,("Running Back"='Total Rankings (excl QB)'!$C:$C)*(L32='Total Rankings (excl QB)'!$F:$F),0),1),"") ->  | N32: =IFERROR(VLOOKUP($M32,'Total Rankings (excl QB)'!$D:$E,2,0),0) -> 0 | O32: 0 | Q32: =IFERROR(VLOOKUP($M32,'Total Rankings (excl QB)'!$D:$L,4,0),"") ->  | R32: =IFERROR(VLOOKUP($M32,'Total Rankings (excl QB)'!$D:$L,5,0),"") ->  | S32: =IFERROR(VLOOKUP($M32,'Total Rankings (excl QB)'!$D:$L,6,0),"") ->  | T32: =IFERROR(VLOOKUP($M32,'Total Rankings (excl QB)'!$D:$L,7,0),"") ->  | U32: =IFERROR(VLOOKUP($M32,'Total Rankings (excl QB)'!$D:$L,8,0),"") ->  | W32: 29 | X32: =IFERROR(INDEX('Total Rankings (excl QB)'!$D:$D,MATCH(1,("Tight End"='Total Rankings (excl QB)'!$C:$C)*(W32='Total Rankings (excl QB)'!$F:$F),0),1),"") ->  | Y32: =IFERROR(VLOOKUP($X32,'Total Rankings (excl QB)'!$D:$E,2,0),0) -> 0 | Z32: 0 | AB32: =IFERROR(VLOOKUP($X32,'Total Rankings (excl QB)'!$D:$L,4,0),"") ->  | AC32: =IFERROR(VLOOKUP($X32,'Total Rankings (excl QB)'!$D:$L,5,0),"") ->  | AD32: =IFERROR(VLOOKUP($X32,'Total Rankings (excl QB)'!$D:$L,6,0),"") ->  | AE32: =IFERROR(VLOOKUP($X32,'Total Rankings (excl QB)'!$D:$L,7,0),"") ->  | AF32: =IFERROR(VLOOKUP($X32,'Total Rankings (excl QB)'!$D:$L,8,0),"") ->  | AH32: 29 | AI32: ='QB Rankings'!C32 -> 0 | AJ32: ='QB Rankings'!D32 -> 0 | AK32: 0 | AM32: ='QB Rankings'!E32 -> 0 | AN32: ='QB Rankings'!F32 -> 0 | AO32: ='QB Rankings'!G32 -> 0 | AP32: ='QB Rankings'!H32 -> 0 | AQ32: ='QB Rankings'!I32 -> 0
A33: 30 | B33: =IFERROR(INDEX('Total Rankings (excl QB)'!$D:$D,MATCH(1,("Wide Receiver"='Total Rankings (excl QB)'!$C:$C)*(A33='Total Rankings (excl QB)'!$F:$F),0),1),"") ->  | C33: =IFERROR(VLOOKUP($B33,'Total Rankings (excl QB)'!$D:$E,2,0),0) -> 0 | D33: 0 | F33: =IFERROR(VLOOKUP($B33,'Total Rankings (excl QB)'!$D:$L,4,0),"") ->  | G33: =IFERROR(VLOOKUP($B33,'Total Rankings (excl QB)'!$D:$L,5,0),"") ->  | H33: =IFERROR(VLOOKUP($B33,'Total Rankings (excl QB)'!$D:$L,6,0),"") ->  | I33: =IFERROR(VLOOKUP($B33,'Total Rankings (excl QB)'!$D:$L,7,0),"") ->  | J33: =IFERROR(VLOOKUP($B33,'Total Rankings (excl QB)'!$D:$L,8,0),"") ->  | L33: 30 | M33: =IFERROR(INDEX('Total Rankings (excl QB)'!$D:$D,MATCH(1,("Running Back"='Total Rankings (excl QB)'!$C:$C)*(L33='Total Rankings (excl QB)'!$F:$F),0),1),"") ->  | N33: =IFERROR(VLOOKUP($M33,'Total Rankings (excl QB)'!$D:$E,2,0),0) -> 0 | O33: 0 | Q33: =IFERROR(VLOOKUP($M33,'Total Rankings (excl QB)'!$D:$L,4,0),"") ->  | R33: =IFERROR(VLOOKUP($M33,'Total Rankings (excl QB)'!$D:$L,5,0),"") ->  | S33: =IFERROR(VLOOKUP($M33,'Total Rankings (excl QB)'!$D:$L,6,0),"") ->  | T33: =IFERROR(VLOOKUP($M33,'Total Rankings (excl QB)'!$D:$L,7,0),"") ->  | U33: =IFERROR(VLOOKUP($M33,'Total Rankings (excl QB)'!$D:$L,8,0),"") ->  | W33: 30 | X33: =IFERROR(INDEX('Total Rankings (excl QB)'!$D:$D,MATCH(1,("Tight End"='Total Rankings (excl QB)'!$C:$C)*(W33='Total Rankings (excl QB)'!$F:$F),0),1),"") ->  | Y33: =IFERROR(VLOOKUP($X33,'Total Rankings (excl QB)'!$D:$E,2,0),0) -> 0 | Z33: 0 | AB33: =IFERROR(VLOOKUP($X33,'Total Rankings (excl QB)'!$D:$L,4,0),"") ->  | AC33: =IFERROR(VLOOKUP($X33,'Total Rankings (excl QB)'!$D:$L,5,0),"") ->  | AD33: =IFERROR(VLOOKUP($X33,'Total Rankings (excl QB)'!$D:$L,6,0),"") ->  | AE33: =IFERROR(VLOOKUP($X33,'Total Rankings (excl QB)'!$D:$L,7,0),"") ->  | AF33: =IFERROR(VLOOKUP($X33,'Total Rankings (excl QB)'!$D:$L,8,0),"") ->  | AH33: 30 | AI33: ='QB Rankings'!C33 -> 0 | AJ33: ='QB Rankings'!D33 -> 0 | AK33: 0 | AM33: ='QB Rankings'!E33 -> 0 | AN33: ='QB Rankings'!F33 -> 0 | AO33: ='QB Rankings'!G33 -> 0 | AP33: ='QB Rankings'!H33 -> 0 | AQ33: ='QB Rankings'!I33 -> 0
A34: 31 | B34: =IFERROR(INDEX('Total Rankings (excl QB)'!$D:$D,MATCH(1,("Wide Receiver"='Total Rankings (excl QB)'!$C:$C)*(A34='Total Rankings (excl QB)'!$F:$F),0),1),"") ->  | C34: =IFERROR(VLOOKUP($B34,'Total Rankings (excl QB)'!$D:$E,2,0),0) -> 0 | D34: 0 | F34: =IFERROR(VLOOKUP($B34,'Total Rankings (excl QB)'!$D:$L,4,0),"") ->  | G34: =IFERROR(VLOOKUP($B34,'Total Rankings (excl QB)'!$D:$L,5,0),"") ->  | H34: =IFERROR(VLOOKUP($B34,'Total Rankings (excl QB)'!$D:$L,6,0),"") ->  | I34: =IFERROR(VLOOKUP($B34,'Total Rankings (excl QB)'!$D:$L,7,0),"") ->  | J34: =IFERROR(VLOOKUP($B34,'Total Rankings (excl QB)'!$D:$L,8,0),"") ->  | L34: 31 | M34: =IFERROR(INDEX('Total Rankings (excl QB)'!$D:$D,MATCH(1,("Running Back"='Total Rankings (excl QB)'!$C:$C)*(L34='Total Rankings (excl QB)'!$F:$F),0),1),"") ->  | N34: =IFERROR(VLOOKUP($M34,'Total Rankings (excl QB)'!$D:$E,2,0),0) -> 0 | O34: 0 | Q34: =IFERROR(VLOOKUP($M34,'Total Rankings (excl QB)'!$D:$L,4,0),"") ->  | R34: =IFERROR(VLOOKUP($M34,'Total Rankings (excl QB)'!$D:$L,5,0),"") ->  | S34: =IFERROR(VLOOKUP($M34,'Total Rankings (excl QB)'!$D:$L,6,0),"") ->  | T34: =IFERROR(VLOOKUP($M34,'Total Rankings (excl QB)'!$D:$L,7,0),"") ->  | U34: =IFERROR(VLOOKUP($M34,'Total Rankings (excl QB)'!$D:$L,8,0),"") ->  | W34: 31 | X34: =IFERROR(INDEX('Total Rankings (excl QB)'!$D:$D,MATCH(1,("Tight End"='Total Rankings (excl QB)'!$C:$C)*(W34='Total Rankings (excl QB)'!$F:$F),0),1),"") ->  | Y34: =IFERROR(VLOOKUP($X34,'Total Rankings (excl QB)'!$D:$E,2,0),0) -> 0 | Z34: 0 | AB34: =IFERROR(VLOOKUP($X34,'Total Rankings (excl QB)'!$D:$L,4,0),"") ->  | AC34: =IFERROR(VLOOKUP($X34,'Total Rankings (excl QB)'!$D:$L,5,0),"") ->  | AD34: =IFERROR(VLOOKUP($X34,'Total Rankings (excl QB)'!$D:$L,6,0),"") ->  | AE34: =IFERROR(VLOOKUP($X34,'Total Rankings (excl QB)'!$D:$L,7,0),"") ->  | AF34: =IFERROR(VLOOKUP($X34,'Total Rankings (excl QB)'!$D:$L,8,0),"") ->  | AH34: 31 | AI34: ='QB Rankings'!C34 -> 0 | AJ34: ='QB Rankings'!D34 -> 0 | AK34: 0 | AM34: ='QB Rankings'!E34 -> 0 | AN34: ='QB Rankings'!F34 -> 0 | AO34: ='QB Rankings'!G34 -> 0 | AP34: ='QB Rankings'!H34 -> 0 | AQ34: ='QB Rankings'!I34 -> 0
A35: 32 | B35: =IFERROR(INDEX('Total Rankings (excl QB)'!$D:$D,MATCH(1,("Wide Receiver"='Total Rankings (excl QB)'!$C:$C)*(A35='Total Rankings (excl QB)'!$F:$F),0),1),"") ->  | C35: =IFERROR(VLOOKUP($B35,'Total Rankings (excl QB)'!$D:$E,2,0),0) -> 0 | D35: 0 | F35: =IFERROR(VLOOKUP($B35,'Total Rankings (excl QB)'!$D:$L,4,0),"") ->  | G35: =IFERROR(VLOOKUP($B35,'Total Rankings (excl QB)'!$D:$L,5,0),"") ->  | H35: =IFERROR(VLOOKUP($B35,'Total Rankings (excl QB)'!$D:$L,6,0),"") ->  | I35: =IFERROR(VLOOKUP($B35,'Total Rankings (excl QB)'!$D:$L,7,0),"") ->  | J35: =IFERROR(VLOOKUP($B35,'Total Rankings (excl QB)'!$D:$L,8,0),"") ->  | L35: 32 | M35: =IFERROR(INDEX('Total Rankings (excl QB)'!$D:$D,MATCH(1,("Running Back"='Total Rankings (excl QB)'!$C:$C)*(L35='Total Rankings (excl QB)'!$F:$F),0),1),"") ->  | N35: =IFERROR(VLOOKUP($M35,'Total Rankings (excl QB)'!$D:$E,2,0),0) -> 0 | O35: 0 | Q35: =IFERROR(VLOOKUP($M35,'Total Rankings (excl QB)'!$D:$L,4,0),"") ->  | R35: =IFERROR(VLOOKUP($M35,'Total Rankings (excl QB)'!$D:$L,5,0),"") ->  | S35: =IFERROR(VLOOKUP($M35,'Total Rankings (excl QB)'!$D:$L,6,0),"") ->  | T35: =IFERROR(VLOOKUP($M35,'Total Rankings (excl QB)'!$D:$L,7,0),"") ->  | U35: =IFERROR(VLOOKUP($M35,'Total Rankings (excl QB)'!$D:$L,8,0),"") ->  | W35: 32 | X35: =IFERROR(INDEX('Total Rankings (excl QB)'!$D:$D,MATCH(1,("Tight End"='Total Rankings (excl QB)'!$C:$C)*(W35='Total Rankings (excl QB)'!$F:$F),0),1),"") ->  | Y35: =IFERROR(VLOOKUP($X35,'Total Rankings (excl QB)'!$D:$E,2,0),0) -> 0 | Z35: 0 | AB35: =IFERROR(VLOOKUP($X35,'Total Rankings (excl QB)'!$D:$L,4,0),"") ->  | AC35: =IFERROR(VLOOKUP($X35,'Total Rankings (excl QB)'!$D:$L,5,0),"") ->  | AD35: =IFERROR(VLOOKUP($X35,'Total Rankings (excl QB)'!$D:$L,6,0),"") ->  | AE35: =IFERROR(VLOOKUP($X35,'Total Rankings (excl QB)'!$D:$L,7,0),"") ->  | AF35: =IFERROR(VLOOKUP($X35,'Total Rankings (excl QB)'!$D:$L,8,0),"") ->  | AH35: 32 | AI35: ='QB Rankings'!C35 -> 0 | AJ35: ='QB Rankings'!D35 -> 0 | AK35: 0 | AM35: ='QB Rankings'!E35 -> 0 | AN35: ='QB Rankings'!F35 -> 0 | AO35: ='QB Rankings'!G35 -> 0 | AP35: ='QB Rankings'!H35 -> 0 | AQ35: ='QB Rankings'!I35 -> 0
A36: 33 | B36: =IFERROR(INDEX('Total Rankings (excl QB)'!$D:$D,MATCH(1,("Wide Receiver"='Total Rankings (excl QB)'!$C:$C)*(A36='Total Rankings (excl QB)'!$F:$F),0),1),"") ->  | C36: =IFERROR(VLOOKUP($B36,'Total Rankings (excl QB)'!$D:$E,2,0),0) -> 0 | D36: 0 | F36: =IFERROR(VLOOKUP($B36,'Total Rankings (excl QB)'!$D:$L,4,0),"") ->  | G36: =IFERROR(VLOOKUP($B36,'Total Rankings (excl QB)'!$D:$L,5,0),"") ->  | H36: =IFERROR(VLOOKUP($B36,'Total Rankings (excl QB)'!$D:$L,6,0),"") ->  | I36: =IFERROR(VLOOKUP($B36,'Total Rankings (excl QB)'!$D:$L,7,0),"") ->  | J36: =IFERROR(VLOOKUP($B36,'Total Rankings (excl QB)'!$D:$L,8,0),"") ->  | L36: 33 | M36: =IFERROR(INDEX('Total Rankings (excl QB)'!$D:$D,MATCH(1,("Running Back"='Total Rankings (excl QB)'!$C:$C)*(L36='Total Rankings (excl QB)'!$F:$F),0),1),"") ->  | N36: =IFERROR(VLOOKUP($M36,'Total Rankings (excl QB)'!$D:$E,2,0),0) -> 0 | O36: 0 | Q36: =IFERROR(VLOOKUP($M36,'Total Rankings (excl QB)'!$D:$L,4,0),"") ->  | R36: =IFERROR(VLOOKUP($M36,'Total Rankings (excl QB)'!$D:$L,5,0),"") ->  | S36: =IFERROR(VLOOKUP($M36,'Total Rankings (excl QB)'!$D:$L,6,0),"") ->  | T36: =IFERROR(VLOOKUP($M36,'Total Rankings (excl QB)'!$D:$L,7,0),"") ->  | U36: =IFERROR(VLOOKUP($M36,'Total Rankings (excl QB)'!$D:$L,8,0),"") ->  | W36: 33 | X36: =IFERROR(INDEX('Total Rankings (excl QB)'!$D:$D,MATCH(1,("Tight End"='Total Rankings (excl QB)'!$C:$C)*(W36='Total Rankings (excl QB)'!$F:$F),0),1),"") ->  | Y36: =IFERROR(VLOOKUP($X36,'Total Rankings (excl QB)'!$D:$E,2,0),0) -> 0 | Z36: 0 | AB36: =IFERROR(VLOOKUP($X36,'Total Rankings (excl QB)'!$D:$L,4,0),"") ->  | AC36: =IFERROR(VLOOKUP($X36,'Total Rankings (excl QB)'!$D:$L,5,0),"") ->  | AD36: =IFERROR(VLOOKUP($X36,'Total Rankings (excl QB)'!$D:$L,6,0),"") ->  | AE36: =IFERROR(VLOOKUP($X36,'Total Rankings (excl QB)'!$D:$L,7,0),"") ->  | AF36: =IFERROR(VLOOKUP($X36,'Total Rankings (excl QB)'!$D:$L,8,0),"") ->  | AH36: 33 | AI36: ='QB Rankings'!C36 -> 0 | AJ36: ='QB Rankings'!D36 -> 0 | AK36: 0 | AM36: ='QB Rankings'!E36 -> 0 | AN36: ='QB Rankings'!F36 -> 0 | AO36: ='QB Rankings'!G36 -> 0 | AP36: ='QB Rankings'!H36 -> 0 | AQ36: ='QB Rankings'!I36 -> 0
A37: 34 | B37: =IFERROR(INDEX('Total Rankings (excl QB)'!$D:$D,MATCH(1,("Wide Receiver"='Total Rankings (excl QB)'!$C:$C)*(A37='Total Rankings (excl QB)'!$F:$F),0),1),"") ->  | C37: =IFERROR(VLOOKUP($B37,'Total Rankings (excl QB)'!$D:$E,2,0),0) -> 0 | D37: 0 | F37: =IFERROR(VLOOKUP($B37,'Total Rankings (excl QB)'!$D:$L,4,0),"") ->  | G37: =IFERROR(VLOOKUP($B37,'Total Rankings (excl QB)'!$D:$L,5,0),"") ->  | H37: =IFERROR(VLOOKUP($B37,'Total Rankings (excl QB)'!$D:$L,6,0),"") ->  | I37: =IFERROR(VLOOKUP($B37,'Total Rankings (excl QB)'!$D:$L,7,0),"") ->  | J37: =IFERROR(VLOOKUP($B37,'Total Rankings (excl QB)'!$D:$L,8,0),"") ->  | L37: 34 | M37: =IFERROR(INDEX('Total Rankings (excl QB)'!$D:$D,MATCH(1,("Running Back"='Total Rankings (excl QB)'!$C:$C)*(L37='Total Rankings (excl QB)'!$F:$F),0),1),"") ->  | N37: =IFERROR(VLOOKUP($M37,'Total Rankings (excl QB)'!$D:$E,2,0),0) -> 0 | O37: 0 | Q37: =IFERROR(VLOOKUP($M37,'Total Rankings (excl QB)'!$D:$L,4,0),"") ->  | R37: =IFERROR(VLOOKUP($M37,'Total Rankings (excl QB)'!$D:$L,5,0),"") ->  | S37: =IFERROR(VLOOKUP($M37,'Total Rankings (excl QB)'!$D:$L,6,0),"") ->  | T37: =IFERROR(VLOOKUP($M37,'Total Rankings (excl QB)'!$D:$L,7,0),"") ->  | U37: =IFERROR(VLOOKUP($M37,'Total Rankings (excl QB)'!$D:$L,8,0),"") ->  | W37: 34 | X37: =IFERROR(INDEX('Total Rankings (excl QB)'!$D:$D,MATCH(1,("Tight End"='Total Rankings (excl QB)'!$C:$C)*(W37='Total Rankings (excl QB)'!$F:$F),0),1),"") ->  | Y37: =IFERROR(VLOOKUP($X37,'Total Rankings (excl QB)'!$D:$E,2,0),0) -> 0 | Z37: 0 | AB37: =IFERROR(VLOOKUP($X37,'Total Rankings (excl QB)'!$D:$L,4,0),"") ->  | AC37: =IFERROR(VLOOKUP($X37,'Total Rankings (excl QB)'!$D:$L,5,0),"") ->  | AD37: =IFERROR(VLOOKUP($X37,'Total Rankings (excl QB)'!$D:$L,6,0),"") ->  | AE37: =IFERROR(VLOOKUP($X37,'Total Rankings (excl QB)'!$D:$L,7,0),"") ->  | AF37: =IFERROR(VLOOKUP($X37,'Total Rankings (excl QB)'!$D:$L,8,0),"") ->  | AH37: 34 | AI37: ='QB Rankings'!C37 -> 0 | AJ37: ='QB Rankings'!D37 -> 0 | AK37: 0 | AM37: ='QB Rankings'!E37 -> 0 | AN37: ='QB Rankings'!F37 -> 0 | AO37: ='QB Rankings'!G37 -> 0 | AP37: ='QB Rankings'!H37 -> 0 | AQ37: ='QB Rankings'!I37 -> 0
A38: 35 | B38: =IFERROR(INDEX('Total Rankings (excl QB)'!$D:$D,MATCH(1,("Wide Receiver"='Total Rankings (excl QB)'!$C:$C)*(A38='Total Rankings (excl QB)'!$F:$F),0),1),"") ->  | C38: =IFERROR(VLOOKUP($B38,'Total Rankings (excl QB)'!$D:$E,2,0),0) -> 0 | D38: 0 | F38: =IFERROR(VLOOKUP($B38,'Total Rankings (excl QB)'!$D:$L,4,0),"") ->  | G38: =IFERROR(VLOOKUP($B38,'Total Rankings (excl QB)'!$D:$L,5,0),"") ->  | H38: =IFERROR(VLOOKUP($B38,'Total Rankings (excl QB)'!$D:$L,6,0),"") ->  | I38: =IFERROR(VLOOKUP($B38,'Total Rankings (excl QB)'!$D:$L,7,0),"") ->  | J38: =IFERROR(VLOOKUP($B38,'Total Rankings (excl QB)'!$D:$L,8,0),"") ->  | L38: 35 | M38: =IFERROR(INDEX('Total Rankings (excl QB)'!$D:$D,MATCH(1,("Running Back"='Total Rankings (excl QB)'!$C:$C)*(L38='Total Rankings (excl QB)'!$F:$F),0),1),"") ->  | N38: =IFERROR(VLOOKUP($M38,'Total Rankings (excl QB)'!$D:$E,2,0),0) -> 0 | O38: 0 | Q38: =IFERROR(VLOOKUP($M38,'Total Rankings (excl QB)'!$D:$L,4,0),"") ->  | R38: =IFERROR(VLOOKUP($M38,'Total Rankings (excl QB)'!$D:$L,5,0),"") ->  | S38: =IFERROR(VLOOKUP($M38,'Total Rankings (excl QB)'!$D:$L,6,0),"") ->  | T38: =IFERROR(VLOOKUP($M38,'Total Rankings (excl QB)'!$D:$L,7,0),"") ->  | U38: =IFERROR(VLOOKUP($M38,'Total Rankings (excl QB)'!$D:$L,8,0),"") ->  | W38: 35 | X38: =IFERROR(INDEX('Total Rankings (excl QB)'!$D:$D,MATCH(1,("Tight End"='Total Rankings (excl QB)'!$C:$C)*(W38='Total Rankings (excl QB)'!$F:$F),0),1),"") ->  | Y38: =IFERROR(VLOOKUP($X38,'Total Rankings (excl QB)'!$D:$E,2,0),0) -> 0 | Z38: 0 | AB38: =IFERROR(VLOOKUP($X38,'Total Rankings (excl QB)'!$D:$L,4,0),"") ->  | AC38: =IFERROR(VLOOKUP($X38,'Total Rankings (excl QB)'!$D:$L,5,0),"") ->  | AD38: =IFERROR(VLOOKUP($X38,'Total Rankings (excl QB)'!$D:$L,6,0),"") ->  | AE38: =IFERROR(VLOOKUP($X38,'Total Rankings (excl QB)'!$D:$L,7,0),"") ->  | AF38: =IFERROR(VLOOKUP($X38,'Total Rankings (excl QB)'!$D:$L,8,0),"") ->  | AH38: 35 | AI38: ='QB Rankings'!C38 -> 0 | AJ38: ='QB Rankings'!D38 -> 0 | AK38: 0 | AM38: ='QB Rankings'!E38 -> 0 | AN38: ='QB Rankings'!F38 -> 0 | AO38: ='QB Rankings'!G38 -> 0 | AP38: ='QB Rankings'!H38 -> 0 | AQ38: ='QB Rankings'!I38 -> 0
A39: 36 | B39: =IFERROR(INDEX('Total Rankings (excl QB)'!$D:$D,MATCH(1,("Wide Receiver"='Total Rankings (excl QB)'!$C:$C)*(A39='Total Rankings (excl QB)'!$F:$F),0),1),"") ->  | C39: =IFERROR(VLOOKUP($B39,'Total Rankings (excl QB)'!$D:$E,2,0),0) -> 0 | D39: 0 | F39: =IFERROR(VLOOKUP($B39,'Total Rankings (excl QB)'!$D:$L,4,0),"") ->  | G39: =IFERROR(VLOOKUP($B39,'Total Rankings (excl QB)'!$D:$L,5,0),"") ->  | H39: =IFERROR(VLOOKUP($B39,'Total Rankings (excl QB)'!$D:$L,6,0),"") ->  | I39: =IFERROR(VLOOKUP($B39,'Total Rankings (excl QB)'!$D:$L,7,0),"") ->  | J39: =IFERROR(VLOOKUP($B39,'Total Rankings (excl QB)'!$D:$L,8,0),"") ->  | L39: 36 | M39: =IFERROR(INDEX('Total Rankings (excl QB)'!$D:$D,MATCH(1,("Running Back"='Total Rankings (excl QB)'!$C:$C)*(L39='Total Rankings (excl QB)'!$F:$F),0),1),"") ->  | N39: =IFERROR(VLOOKUP($M39,'Total Rankings (excl QB)'!$D:$E,2,0),0) -> 0 | O39: 0 | Q39: =IFERROR(VLOOKUP($M39,'Total Rankings (excl QB)'!$D:$L,4,0),"") ->  | R39: =IFERROR(VLOOKUP($M39,'Total Rankings (excl QB)'!$D:$L,5,0),"") ->  | S39: =IFERROR(VLOOKUP($M39,'Total Rankings (excl QB)'!$D:$L,6,0),"") ->  | T39: =IFERROR(VLOOKUP($M39,'Total Rankings (excl QB)'!$D:$L,7,0),"") ->  | U39: =IFERROR(VLOOKUP($M39,'Total Rankings (excl QB)'!$D:$L,8,0),"") ->  | W39: 36 | X39: =IFERROR(INDEX('Total Rankings (excl QB)'!$D:$D,MATCH(1,("Tight End"='Total Rankings (excl QB)'!$C:$C)*(W39='Total Rankings (excl QB)'!$F:$F),0),1),"") ->  | Y39: =IFERROR(VLOOKUP($X39,'Total Rankings (excl QB)'!$D:$E,2,0),0) -> 0 | Z39: 0 | AB39: =IFERROR(VLOOKUP($X39,'Total Rankings (excl QB)'!$D:$L,4,0),"") ->  | AC39: =IFERROR(VLOOKUP($X39,'Total Rankings (excl QB)'!$D:$L,5,0),"") ->  | AD39: =IFERROR(VLOOKUP($X39,'Total Rankings (excl QB)'!$D:$L,6,0),"") ->  | AE39: =IFERROR(VLOOKUP($X39,'Total Rankings (excl QB)'!$D:$L,7,0),"") ->  | AF39: =IFERROR(VLOOKUP($X39,'Total Rankings (excl QB)'!$D:$L,8,0),"") ->  | AH39: 36 | AI39: ='QB Rankings'!C39 -> 0 | AJ39: ='QB Rankings'!D39 -> 0 | AK39: 0 | AM39: ='QB Rankings'!E39 -> 0 | AN39: ='QB Rankings'!F39 -> 0 | AO39: ='QB Rankings'!G39 -> 0 | AP39: ='QB Rankings'!H39 -> 0 | AQ39: ='QB Rankings'!I39 -> 0
A40: 37 | B40: =IFERROR(INDEX('Total Rankings (excl QB)'!$D:$D,MATCH(1,("Wide Receiver"='Total Rankings (excl QB)'!$C:$C)*(A40='Total Rankings (excl QB)'!$F:$F),0),1),"") ->  | C40: =IFERROR(VLOOKUP($B40,'Total Rankings (excl QB)'!$D:$E,2,0),0) -> 0 | D40: 0 | F40: =IFERROR(VLOOKUP($B40,'Total Rankings (excl QB)'!$D:$L,4,0),"") ->  | G40: =IFERROR(VLOOKUP($B40,'Total Rankings (excl QB)'!$D:$L,5,0),"") ->  | H40: =IFERROR(VLOOKUP($B40,'Total Rankings (excl QB)'!$D:$L,6,0),"") ->  | I40: =IFERROR(VLOOKUP($B40,'Total Rankings (excl QB)'!$D:$L,7,0),"") ->  | J40: =IFERROR(VLOOKUP($B40,'Total Rankings (excl QB)'!$D:$L,8,0),"") ->  | L40: 37 | M40: =IFERROR(INDEX('Total Rankings (excl QB)'!$D:$D,MATCH(1,("Running Back"='Total Rankings (excl QB)'!$C:$C)*(L40='Total Rankings (excl QB)'!$F:$F),0),1),"") ->  | N40: =IFERROR(VLOOKUP($M40,'Total Rankings (excl QB)'!$D:$E,2,0),0) -> 0 | O40: 0 | Q40: =IFERROR(VLOOKUP($M40,'Total Rankings (excl QB)'!$D:$L,4,0),"") ->  | R40: =IFERROR(VLOOKUP($M40,'Total Rankings (excl QB)'!$D:$L,5,0),"") ->  | S40: =IFERROR(VLOOKUP($M40,'Total Rankings (excl QB)'!$D:$L,6,0),"") ->  | T40: =IFERROR(VLOOKUP($M40,'Total Rankings (excl QB)'!$D:$L,7,0),"") ->  | U40: =IFERROR(VLOOKUP($M40,'Total Rankings (excl QB)'!$D:$L,8,0),"") ->  | W40: 37 | X40: =IFERROR(INDEX('Total Rankings (excl QB)'!$D:$D,MATCH(1,("Tight End"='Total Rankings (excl QB)'!$C:$C)*(W40='Total Rankings (excl QB)'!$F:$F),0),1),"") ->  | Y40: =IFERROR(VLOOKUP($X40,'Total Rankings (excl QB)'!$D:$E,2,0),0) -> 0 | Z40: 0 | AB40: =IFERROR(VLOOKUP($X40,'Total Rankings (excl QB)'!$D:$L,4,0),"") ->  | AC40: =IFERROR(VLOOKUP($X40,'Total Rankings (excl QB)'!$D:$L,5,0),"") ->  | AD40: =IFERROR(VLOOKUP($X40,'Total Rankings (excl QB)'!$D:$L,6,0),"") ->  | AE40: =IFERROR(VLOOKUP($X40,'Total Rankings (excl QB)'!$D:$L,7,0),"") ->  | AF40: =IFERROR(VLOOKUP($X40,'Total Rankings (excl QB)'!$D:$L,8,0),"") ->  | AH40: 37 | AI40: ='QB Rankings'!C40 -> 0 | AJ40: ='QB Rankings'!D40 -> 0 | AK40: 0 | AM40: ='QB Rankings'!E40 -> 0 | AN40: ='QB Rankings'!F40 -> 0 | AO40: ='QB Rankings'!G40 -> 0 | AP40: ='QB Rankings'!H40 -> 0 | AQ40: ='QB Rankings'!I40 -> 0
A41: 38 | B41: =IFERROR(INDEX('Total Rankings (excl QB)'!$D:$D,MATCH(1,("Wide Receiver"='Total Rankings (excl QB)'!$C:$C)*(A41='Total Rankings (excl QB)'!$F:$F),0),1),"") ->  | C41: =IFERROR(VLOOKUP($B41,'Total Rankings (excl QB)'!$D:$E,2,0),0) -> 0 | D41: 0 | F41: =IFERROR(VLOOKUP($B41,'Total Rankings (excl QB)'!$D:$L,4,0),"") ->  | G41: =IFERROR(VLOOKUP($B41,'Total Rankings (excl QB)'!$D:$L,5,0),"") ->  | H41: =IFERROR(VLOOKUP($B41,'Total Rankings (excl QB)'!$D:$L,6,0),"") ->  | I41: =IFERROR(VLOOKUP($B41,'Total Rankings (excl QB)'!$D:$L,7,0),"") ->  | J41: =IFERROR(VLOOKUP($B41,'Total Rankings (excl QB)'!$D:$L,8,0),"") ->  | L41: 38 | M41: =IFERROR(INDEX('Total Rankings (excl QB)'!$D:$D,MATCH(1,("Running Back"='Total Rankings (excl QB)'!$C:$C)*(L41='Total Rankings (excl QB)'!$F:$F),0),1),"") ->  | N41: =IFERROR(VLOOKUP($M41,'Total Rankings (excl QB)'!$D:$E,2,0),0) -> 0 | O41: 0 | Q41: =IFERROR(VLOOKUP($M41,'Total Rankings (excl QB)'!$D:$L,4,0),"") ->  | R41: =IFERROR(VLOOKUP($M41,'Total Rankings (excl QB)'!$D:$L,5,0),"") ->  | S41: =IFERROR(VLOOKUP($M41,'Total Rankings (excl QB)'!$D:$L,6,0),"") ->  | T41: =IFERROR(VLOOKUP($M41,'Total Rankings (excl QB)'!$D:$L,7,0),"") ->  | U41: =IFERROR(VLOOKUP($M41,'Total Rankings (excl QB)'!$D:$L,8,0),"") ->  | W41: 38 | X41: =IFERROR(INDEX('Total Rankings (excl QB)'!$D:$D,MATCH(1,("Tight End"='Total Rankings (excl QB)'!$C:$C)*(W41='Total Rankings (excl QB)'!$F:$F),0),1),"") ->  | Y41: =IFERROR(VLOOKUP($X41,'Total Rankings (excl QB)'!$D:$E,2,0),0) -> 0 | Z41: 0 | AB41: =IFERROR(VLOOKUP($X41,'Total Rankings (excl QB)'!$D:$L,4,0),"") ->  | AC41: =IFERROR(VLOOKUP($X41,'Total Rankings (excl QB)'!$D:$L,5,0),"") ->  | AD41: =IFERROR(VLOOKUP($X41,'Total Rankings (excl QB)'!$D:$L,6,0),"") ->  | AE41: =IFERROR(VLOOKUP($X41,'Total Rankings (excl QB)'!$D:$L,7,0),"") ->  | AF41: =IFERROR(VLOOKUP($X41,'Total Rankings (excl QB)'!$D:$L,8,0),"") ->  | AH41: 38 | AI41: ='QB Rankings'!C41 -> 0 | AJ41: ='QB Rankings'!D41 -> 0 | AK41: 0 | AM41: ='QB Rankings'!E41 -> 0 | AN41: ='QB Rankings'!F41 -> 0 | AO41: ='QB Rankings'!G41 -> 0 | AP41: ='QB Rankings'!H41 -> 0 | AQ41: ='QB Rankings'!I41 -> 0
A42: 39 | B42: =IFERROR(INDEX('Total Rankings (excl QB)'!$D:$D,MATCH(1,("Wide Receiver"='Total Rankings (excl QB)'!$C:$C)*(A42='Total Rankings (excl QB)'!$F:$F),0),1),"") ->  | C42: =IFERROR(VLOOKUP($B42,'Total Rankings (excl QB)'!$D:$E,2,0),0) -> 0 | D42: 0 | F42: =IFERROR(VLOOKUP($B42,'Total Rankings (excl QB)'!$D:$L,4,0),"") ->  | G42: =IFERROR(VLOOKUP($B42,'Total Rankings (excl QB)'!$D:$L,5,0),"") ->  | H42: =IFERROR(VLOOKUP($B42,'Total Rankings (excl QB)'!$D:$L,6,0),"") ->  | I42: =IFERROR(VLOOKUP($B42,'Total Rankings (excl QB)'!$D:$L,7,0),"") ->  | J42: =IFERROR(VLOOKUP($B42,'Total Rankings (excl QB)'!$D:$L,8,0),"") ->  | L42: 39 | M42: =IFERROR(INDEX('Total Rankings (excl QB)'!$D:$D,MATCH(1,("Running Back"='Total Rankings (excl QB)'!$C:$C)*(L42='Total Rankings (excl QB)'!$F:$F),0),1),"") ->  | N42: =IFERROR(VLOOKUP($M42,'Total Rankings (excl QB)'!$D:$E,2,0),0) -> 0 | O42: 0 | Q42: =IFERROR(VLOOKUP($M42,'Total Rankings (excl QB)'!$D:$L,4,0),"") ->  | R42: =IFERROR(VLOOKUP($M42,'Total Rankings (excl QB)'!$D:$L,5,0),"") ->  | S42: =IFERROR(VLOOKUP($M42,'Total Rankings (excl QB)'!$D:$L,6,0),"") ->  | T42: =IFERROR(VLOOKUP($M42,'Total Rankings (excl QB)'!$D:$L,7,0),"") ->  | U42: =IFERROR(VLOOKUP($M42,'Total Rankings (excl QB)'!$D:$L,8,0),"") ->  | W42: 39 | X42: =IFERROR(INDEX('Total Rankings (excl QB)'!$D:$D,MATCH(1,("Tight End"='Total Rankings (excl QB)'!$C:$C)*(W42='Total Rankings (excl QB)'!$F:$F),0),1),"") ->  | Y42: =IFERROR(VLOOKUP($X42,'Total Rankings (excl QB)'!$D:$E,2,0),0) -> 0 | Z42: 0 | AB42: =IFERROR(VLOOKUP($X42,'Total Rankings (excl QB)'!$D:$L,4,0),"") ->  | AC42: =IFERROR(VLOOKUP($X42,'Total Rankings (excl QB)'!$D:$L,5,0),"") ->  | AD42: =IFERROR(VLOOKUP($X42,'Total Rankings (excl QB)'!$D:$L,6,0),"") ->  | AE42: =IFERROR(VLOOKUP($X42,'Total Rankings (excl QB)'!$D:$L,7,0),"") ->  | AF42: =IFERROR(VLOOKUP($X42,'Total Rankings (excl QB)'!$D:$L,8,0),"") ->  | AH42: 39 | AI42: ='QB Rankings'!C42 -> 0 | AJ42: ='QB Rankings'!D42 -> 0 | AK42: 0 | AM42: ='QB Rankings'!E42 -> 0 | AN42: ='QB Rankings'!F42 -> 0 | AO42: ='QB Rankings'!G42 -> 0 | AP42: ='QB Rankings'!H42 -> 0 | AQ42: ='QB Rankings'!I42 -> 0
A43: 40 | B43: =IFERROR(INDEX('Total Rankings (excl QB)'!$D:$D,MATCH(1,("Wide Receiver"='Total Rankings (excl QB)'!$C:$C)*(A43='Total Rankings (excl QB)'!$F:$F),0),1),"") ->  | C43: =IFERROR(VLOOKUP($B43,'Total Rankings (excl QB)'!$D:$E,2,0),0) -> 0 | D43: 0 | F43: =IFERROR(VLOOKUP($B43,'Total Rankings (excl QB)'!$D:$L,4,0),"") ->  | G43: =IFERROR(VLOOKUP($B43,'Total Rankings (excl QB)'!$D:$L,5,0),"") ->  | H43: =IFERROR(VLOOKUP($B43,'Total Rankings (excl QB)'!$D:$L,6,0),"") ->  | I43: =IFERROR(VLOOKUP($B43,'Total Rankings (excl QB)'!$D:$L,7,0),"") ->  | J43: =IFERROR(VLOOKUP($B43,'Total Rankings (excl QB)'!$D:$L,8,0),"") ->  | L43: 40 | M43: =IFERROR(INDEX('Total Rankings (excl QB)'!$D:$D,MATCH(1,("Running Back"='Total Rankings (excl QB)'!$C:$C)*(L43='Total Rankings (excl QB)'!$F:$F),0),1),"") ->  | N43: =IFERROR(VLOOKUP($M43,'Total Rankings (excl QB)'!$D:$E,2,0),0) -> 0 | O43: 0 | Q43: =IFERROR(VLOOKUP($M43,'Total Rankings (excl QB)'!$D:$L,4,0),"") ->  | R43: =IFERROR(VLOOKUP($M43,'Total Rankings (excl QB)'!$D:$L,5,0),"") ->  | S43: =IFERROR(VLOOKUP($M43,'Total Rankings (excl QB)'!$D:$L,6,0),"") ->  | T43: =IFERROR(VLOOKUP($M43,'Total Rankings (excl QB)'!$D:$L,7,0),"") ->  | U43: =IFERROR(VLOOKUP($M43,'Total Rankings (excl QB)'!$D:$L,8,0),"") ->  | W43: 40 | X43: =IFERROR(INDEX('Total Rankings (excl QB)'!$D:$D,MATCH(1,("Tight End"='Total Rankings (excl QB)'!$C:$C)*(W43='Total Rankings (excl QB)'!$F:$F),0),1),"") ->  | Y43: =IFERROR(VLOOKUP($X43,'Total Rankings (excl QB)'!$D:$E,2,0),0) -> 0 | Z43: 0 | AB43: =IFERROR(VLOOKUP($X43,'Total Rankings (excl QB)'!$D:$L,4,0),"") ->  | AC43: =IFERROR(VLOOKUP($X43,'Total Rankings (excl QB)'!$D:$L,5,0),"") ->  | AD43: =IFERROR(VLOOKUP($X43,'Total Rankings (excl QB)'!$D:$L,6,0),"") ->  | AE43: =IFERROR(VLOOKUP($X43,'Total Rankings (excl QB)'!$D:$L,7,0),"") ->  | AF43: =IFERROR(VLOOKUP($X43,'Total Rankings (excl QB)'!$D:$L,8,0),"") ->  | AH43: 40 | AI43: ='QB Rankings'!C43 -> 0 | AJ43: ='QB Rankings'!D43 -> 0 | AK43: 0 | AM43: ='QB Rankings'!E43 -> 0 | AN43: ='QB Rankings'!F43 -> 0 | AO43: ='QB Rankings'!G43 -> 0 | AP43: ='QB Rankings'!H43 -> 0 | AQ43: ='QB Rankings'!I43 -> 0
A44: 41 | B44: =IFERROR(INDEX('Total Rankings (excl QB)'!$D:$D,MATCH(1,("Wide Receiver"='Total Rankings (excl QB)'!$C:$C)*(A44='Total Rankings (excl QB)'!$F:$F),0),1),"") ->  | C44: =IFERROR(VLOOKUP($B44,'Total Rankings (excl QB)'!$D:$E,2,0),0) -> 0 | D44: 0 | F44: =IFERROR(VLOOKUP($B44,'Total Rankings (excl QB)'!$D:$L,4,0),"") ->  | G44: =IFERROR(VLOOKUP($B44,'Total Rankings (excl QB)'!$D:$L,5,0),"") ->  | H44: =IFERROR(VLOOKUP($B44,'Total Rankings (excl QB)'!$D:$L,6,0),"") ->  | I44: =IFERROR(VLOOKUP($B44,'Total Rankings (excl QB)'!$D:$L,7,0),"") ->  | J44: =IFERROR(VLOOKUP($B44,'Total Rankings (excl QB)'!$D:$L,8,0),"") ->  | L44: 41 | M44: =IFERROR(INDEX('Total Rankings (excl QB)'!$D:$D,MATCH(1,("Running Back"='Total Rankings (excl QB)'!$C:$C)*(L44='Total Rankings (excl QB)'!$F:$F),0),1),"") ->  | N44: =IFERROR(VLOOKUP($M44,'Total Rankings (excl QB)'!$D:$E,2,0),0) -> 0 | O44: 0 | Q44: =IFERROR(VLOOKUP($M44,'Total Rankings (excl QB)'!$D:$L,4,0),"") ->  | R44: =IFERROR(VLOOKUP($M44,'Total Rankings (excl QB)'!$D:$L,5,0),"") ->  | S44: =IFERROR(VLOOKUP($M44,'Total Rankings (excl QB)'!$D:$L,6,0),"") ->  | T44: =IFERROR(VLOOKUP($M44,'Total Rankings (excl QB)'!$D:$L,7,0),"") ->  | U44: =IFERROR(VLOOKUP($M44,'Total Rankings (excl QB)'!$D:$L,8,0),"") ->  | W44: 41 | X44: =IFERROR(INDEX('Total Rankings (excl QB)'!$D:$D,MATCH(1,("Tight End"='Total Rankings (excl QB)'!$C:$C)*(W44='Total Rankings (excl QB)'!$F:$F),0),1),"") ->  | Y44: =IFERROR(VLOOKUP($X44,'Total Rankings (excl QB)'!$D:$E,2,0),0) -> 0 | Z44: 0 | AB44: =IFERROR(VLOOKUP($X44,'Total Rankings (excl QB)'!$D:$L,4,0),"") ->  | AC44: =IFERROR(VLOOKUP($X44,'Total Rankings (excl QB)'!$D:$L,5,0),"") ->  | AD44: =IFERROR(VLOOKUP($X44,'Total Rankings (excl QB)'!$D:$L,6,0),"") ->  | AE44: =IFERROR(VLOOKUP($X44,'Total Rankings (excl QB)'!$D:$L,7,0),"") ->  | AF44: =IFERROR(VLOOKUP($X44,'Total Rankings (excl QB)'!$D:$L,8,0),"") ->  | AH44: 41 | AI44: ='QB Rankings'!C44 -> 0 | AJ44: ='QB Rankings'!D44 -> 0 | AK44: =AJ44/17 -> 0 | AM44: ='QB Rankings'!E44 -> 0 | AN44: ='QB Rankings'!F44 -> 0 | AO44: ='QB Rankings'!G44 -> 0 | AP44: ='QB Rankings'!H44 -> 0 | AQ44: ='QB Rankings'!I44 -> 0
A45: 42 | B45: =IFERROR(INDEX('Total Rankings (excl QB)'!$D:$D,MATCH(1,("Wide Receiver"='Total Rankings (excl QB)'!$C:$C)*(A45='Total Rankings (excl QB)'!$F:$F),0),1),"") ->  | C45: =IFERROR(VLOOKUP($B45,'Total Rankings (excl QB)'!$D:$E,2,0),0) -> 0 | D45: 0 | F45: =IFERROR(VLOOKUP($B45,'Total Rankings (excl QB)'!$D:$L,4,0),"") ->  | G45: =IFERROR(VLOOKUP($B45,'Total Rankings (excl QB)'!$D:$L,5,0),"") ->  | H45: =IFERROR(VLOOKUP($B45,'Total Rankings (excl QB)'!$D:$L,6,0),"") ->  | I45: =IFERROR(VLOOKUP($B45,'Total Rankings (excl QB)'!$D:$L,7,0),"") ->  | J45: =IFERROR(VLOOKUP($B45,'Total Rankings (excl QB)'!$D:$L,8,0),"") ->  | L45: 42 | M45: =IFERROR(INDEX('Total Rankings (excl QB)'!$D:$D,MATCH(1,("Running Back"='Total Rankings (excl QB)'!$C:$C)*(L45='Total Rankings (excl QB)'!$F:$F),0),1),"") ->  | N45: =IFERROR(VLOOKUP($M45,'Total Rankings (excl QB)'!$D:$E,2,0),0) -> 0 | O45: 0 | Q45: =IFERROR(VLOOKUP($M45,'Total Rankings (excl QB)'!$D:$L,4,0),"") ->  | R45: =IFERROR(VLOOKUP($M45,'Total Rankings (excl QB)'!$D:$L,5,0),"") ->  | S45: =IFERROR(VLOOKUP($M45,'Total Rankings (excl QB)'!$D:$L,6,0),"") ->  | T45: =IFERROR(VLOOKUP($M45,'Total Rankings (excl QB)'!$D:$L,7,0),"") ->  | U45: =IFERROR(VLOOKUP($M45,'Total Rankings (excl QB)'!$D:$L,8,0),"") ->  | W45: 42 | X45: =IFERROR(INDEX('Total Rankings (excl QB)'!$D:$D,MATCH(1,("Tight End"='Total Rankings (excl QB)'!$C:$C)*(W45='Total Rankings (excl QB)'!$F:$F),0),1),"") ->  | Y45: =IFERROR(VLOOKUP($X45,'Total Rankings (excl QB)'!$D:$E,2,0),0) -> 0 | Z45: 0 | AB45: =IFERROR(VLOOKUP($X45,'Total Rankings (excl QB)'!$D:$L,4,0),"") ->  | AC45: =IFERROR(VLOOKUP($X45,'Total Rankings (excl QB)'!$D:$L,5,0),"") ->  | AD45: =IFERROR(VLOOKUP($X45,'Total Rankings (excl QB)'!$D:$L,6,0),"") ->  | AE45: =IFERROR(VLOOKUP($X45,'Total Rankings (excl QB)'!$D:$L,7,0),"") ->  | AF45: =IFERROR(VLOOKUP($X45,'Total Rankings (excl QB)'!$D:$L,8,0),"") ->  | AH45: 42 | AI45: ='QB Rankings'!C45 -> 0 | AJ45: ='QB Rankings'!D45 -> 0 | AK45: 0 | AM45: ='QB Rankings'!E45 -> 0 | AN45: ='QB Rankings'!F45 -> 0 | AO45: ='QB Rankings'!G45 -> 0 | AP45: ='QB Rankings'!H45 -> 0 | AQ45: ='QB Rankings'!I45 -> 0
A46: 43 | B46: =IFERROR(INDEX('Total Rankings (excl QB)'!$D:$D,MATCH(1,("Wide Receiver"='Total Rankings (excl QB)'!$C:$C)*(A46='Total Rankings (excl QB)'!$F:$F),0),1),"") ->  | C46: =IFERROR(VLOOKUP($B46,'Total Rankings (excl QB)'!$D:$E,2,0),0) -> 0 | D46: 0 | F46: =IFERROR(VLOOKUP($B46,'Total Rankings (excl QB)'!$D:$L,4,0),"") ->  | G46: =IFERROR(VLOOKUP($B46,'Total Rankings (excl QB)'!$D:$L,5,0),"") ->  | H46: =IFERROR(VLOOKUP($B46,'Total Rankings (excl QB)'!$D:$L,6,0),"") ->  | I46: =IFERROR(VLOOKUP($B46,'Total Rankings (excl QB)'!$D:$L,7,0),"") ->  | J46: =IFERROR(VLOOKUP($B46,'Total Rankings (excl QB)'!$D:$L,8,0),"") ->  | L46: 43 | M46: =IFERROR(INDEX('Total Rankings (excl QB)'!$D:$D,MATCH(1,("Running Back"='Total Rankings (excl QB)'!$C:$C)*(L46='Total Rankings (excl QB)'!$F:$F),0),1),"") ->  | N46: =IFERROR(VLOOKUP($M46,'Total Rankings (excl QB)'!$D:$E,2,0),0) -> 0 | O46: 0 | Q46: =IFERROR(VLOOKUP($M46,'Total Rankings (excl QB)'!$D:$L,4,0),"") ->  | R46: =IFERROR(VLOOKUP($M46,'Total Rankings (excl QB)'!$D:$L,5,0),"") ->  | S46: =IFERROR(VLOOKUP($M46,'Total Rankings (excl QB)'!$D:$L,6,0),"") ->  | T46: =IFERROR(VLOOKUP($M46,'Total Rankings (excl QB)'!$D:$L,7,0),"") ->  | U46: =IFERROR(VLOOKUP($M46,'Total Rankings (excl QB)'!$D:$L,8,0),"") ->  | W46: 43 | X46: =IFERROR(INDEX('Total Rankings (excl QB)'!$D:$D,MATCH(1,("Tight End"='Total Rankings (excl QB)'!$C:$C)*(W46='Total Rankings (excl QB)'!$F:$F),0),1),"") ->  | Y46: =IFERROR(VLOOKUP($X46,'Total Rankings (excl QB)'!$D:$E,2,0),0) -> 0 | Z46: 0 | AB46: =IFERROR(VLOOKUP($X46,'Total Rankings (excl QB)'!$D:$L,4,0),"") ->  | AC46: =IFERROR(VLOOKUP($X46,'Total Rankings (excl QB)'!$D:$L,5,0),"") ->  | AD46: =IFERROR(VLOOKUP($X46,'Total Rankings (excl QB)'!$D:$L,6,0),"") ->  | AE46: =IFERROR(VLOOKUP($X46,'Total Rankings (excl QB)'!$D:$L,7,0),"") ->  | AF46: =IFERROR(VLOOKUP($X46,'Total Rankings (excl QB)'!$D:$L,8,0),"") ->  | AH46: 43 | AI46: ='QB Rankings'!C46 -> 0 | AJ46: ='QB Rankings'!D46 -> 0 | AK46: 0 | AM46: ='QB Rankings'!E46 -> 0 | AN46: ='QB Rankings'!F46 -> 0 | AO46: ='QB Rankings'!G46 -> 0 | AP46: ='QB Rankings'!H46 -> 0 | AQ46: ='QB Rankings'!I46 -> 0
A47: 44 | B47: =IFERROR(INDEX('Total Rankings (excl QB)'!$D:$D,MATCH(1,("Wide Receiver"='Total Rankings (excl QB)'!$C:$C)*(A47='Total Rankings (excl QB)'!$F:$F),0),1),"") ->  | C47: =IFERROR(VLOOKUP($B47,'Total Rankings (excl QB)'!$D:$E,2,0),0) -> 0 | D47: 0 | F47: =IFERROR(VLOOKUP($B47,'Total Rankings (excl QB)'!$D:$L,4,0),"") ->  | G47: =IFERROR(VLOOKUP($B47,'Total Rankings (excl QB)'!$D:$L,5,0),"") ->  | H47: =IFERROR(VLOOKUP($B47,'Total Rankings (excl QB)'!$D:$L,6,0),"") ->  | I47: =IFERROR(VLOOKUP($B47,'Total Rankings (excl QB)'!$D:$L,7,0),"") ->  | J47: =IFERROR(VLOOKUP($B47,'Total Rankings (excl QB)'!$D:$L,8,0),"") ->  | L47: 44 | M47: =IFERROR(INDEX('Total Rankings (excl QB)'!$D:$D,MATCH(1,("Running Back"='Total Rankings (excl QB)'!$C:$C)*(L47='Total Rankings (excl QB)'!$F:$F),0),1),"") ->  | N47: =IFERROR(VLOOKUP($M47,'Total Rankings (excl QB)'!$D:$E,2,0),0) -> 0 | O47: 0 | Q47: =IFERROR(VLOOKUP($M47,'Total Rankings (excl QB)'!$D:$L,4,0),"") ->  | R47: =IFERROR(VLOOKUP($M47,'Total Rankings (excl QB)'!$D:$L,5,0),"") ->  | S47: =IFERROR(VLOOKUP($M47,'Total Rankings (excl QB)'!$D:$L,6,0),"") ->  | T47: =IFERROR(VLOOKUP($M47,'Total Rankings (excl QB)'!$D:$L,7,0),"") ->  | U47: =IFERROR(VLOOKUP($M47,'Total Rankings (excl QB)'!$D:$L,8,0),"") ->  | W47: 44 | X47: =IFERROR(INDEX('Total Rankings (excl QB)'!$D:$D,MATCH(1,("Tight End"='Total Rankings (excl QB)'!$C:$C)*(W47='Total Rankings (excl QB)'!$F:$F),0),1),"") ->  | Y47: =IFERROR(VLOOKUP($X47,'Total Rankings (excl QB)'!$D:$E,2,0),0) -> 0 | Z47: 0 | AB47: =IFERROR(VLOOKUP($X47,'Total Rankings (excl QB)'!$D:$L,4,0),"") ->  | AC47: =IFERROR(VLOOKUP($X47,'Total Rankings (excl QB)'!$D:$L,5,0),"") ->  | AD47: =IFERROR(VLOOKUP($X47,'Total Rankings (excl QB)'!$D:$L,6,0),"") ->  | AE47: =IFERROR(VLOOKUP($X47,'Total Rankings (excl QB)'!$D:$L,7,0),"") ->  | AF47: =IFERROR(VLOOKUP($X47,'Total Rankings (excl QB)'!$D:$L,8,0),"") ->  | AH47: 44 | AI47: ='QB Rankings'!C47 -> 0 | AJ47: ='QB Rankings'!D47 -> 0 | AK47: 0 | AM47: ='QB Rankings'!E47 -> 0 | AN47: ='QB Rankings'!F47 -> 0 | AO47: ='QB Rankings'!G47 -> 0 | AP47: ='QB Rankings'!H47 -> 0 | AQ47: ='QB Rankings'!I47 -> 0
A48: 45 | B48: =IFERROR(INDEX('Total Rankings (excl QB)'!$D:$D,MATCH(1,("Wide Receiver"='Total Rankings (excl QB)'!$C:$C)*(A48='Total Rankings (excl QB)'!$F:$F),0),1),"") ->  | C48: =IFERROR(VLOOKUP($B48,'Total Rankings (excl QB)'!$D:$E,2,0),0) -> 0 | D48: 0 | F48: =IFERROR(VLOOKUP($B48,'Total Rankings (excl QB)'!$D:$L,4,0),"") ->  | G48: =IFERROR(VLOOKUP($B48,'Total Rankings (excl QB)'!$D:$L,5,0),"") ->  | H48: =IFERROR(VLOOKUP($B48,'Total Rankings (excl QB)'!$D:$L,6,0),"") ->  | I48: =IFERROR(VLOOKUP($B48,'Total Rankings (excl QB)'!$D:$L,7,0),"") ->  | J48: =IFERROR(VLOOKUP($B48,'Total Rankings (excl QB)'!$D:$L,8,0),"") ->  | L48: 45 | M48: =IFERROR(INDEX('Total Rankings (excl QB)'!$D:$D,MATCH(1,("Running Back"='Total Rankings (excl QB)'!$C:$C)*(L48='Total Rankings (excl QB)'!$F:$F),0),1),"") ->  | N48: =IFERROR(VLOOKUP($M48,'Total Rankings (excl QB)'!$D:$E,2,0),0) -> 0 | O48: 0 | Q48: =IFERROR(VLOOKUP($M48,'Total Rankings (excl QB)'!$D:$L,4,0),"") ->  | R48: =IFERROR(VLOOKUP($M48,'Total Rankings (excl QB)'!$D:$L,5,0),"") ->  | S48: =IFERROR(VLOOKUP($M48,'Total Rankings (excl QB)'!$D:$L,6,0),"") ->  | T48: =IFERROR(VLOOKUP($M48,'Total Rankings (excl QB)'!$D:$L,7,0),"") ->  | U48: =IFERROR(VLOOKUP($M48,'Total Rankings (excl QB)'!$D:$L,8,0),"") ->  | W48: 45 | X48: =IFERROR(INDEX('Total Rankings (excl QB)'!$D:$D,MATCH(1,("Tight End"='Total Rankings (excl QB)'!$C:$C)*(W48='Total Rankings (excl QB)'!$F:$F),0),1),"") ->  | Y48: =IFERROR(VLOOKUP($X48,'Total Rankings (excl QB)'!$D:$E,2,0),0) -> 0 | Z48: 0 | AB48: =IFERROR(VLOOKUP($X48,'Total Rankings (excl QB)'!$D:$L,4,0),"") ->  | AC48: =IFERROR(VLOOKUP($X48,'Total Rankings (excl QB)'!$D:$L,5,0),"") ->  | AD48: =IFERROR(VLOOKUP($X48,'Total Rankings (excl QB)'!$D:$L,6,0),"") ->  | AE48: =IFERROR(VLOOKUP($X48,'Total Rankings (excl QB)'!$D:$L,7,0),"") ->  | AF48: =IFERROR(VLOOKUP($X48,'Total Rankings (excl QB)'!$D:$L,8,0),"") ->  | AH48: 45 | AI48: ='QB Rankings'!C48 -> 0 | AJ48: ='QB Rankings'!D48 -> 0 | AK48: 0 | AM48: ='QB Rankings'!E48 -> 0 | AN48: ='QB Rankings'!F48 -> 0 | AO48: ='QB Rankings'!G48 -> 0 | AP48: ='QB Rankings'!H48 -> 0 | AQ48: ='QB Rankings'!I48 -> 0
A49: 46 | B49: =IFERROR(INDEX('Total Rankings (excl QB)'!$D:$D,MATCH(1,("Wide Receiver"='Total Rankings (excl QB)'!$C:$C)*(A49='Total Rankings (excl QB)'!$F:$F),0),1),"") ->  | C49: =IFERROR(VLOOKUP($B49,'Total Rankings (excl QB)'!$D:$E,2,0),0) -> 0 | D49: 0 | F49: =IFERROR(VLOOKUP($B49,'Total Rankings (excl QB)'!$D:$L,4,0),"") ->  | G49: =IFERROR(VLOOKUP($B49,'Total Rankings (excl QB)'!$D:$L,5,0),"") ->  | H49: =IFERROR(VLOOKUP($B49,'Total Rankings (excl QB)'!$D:$L,6,0),"") ->  | I49: =IFERROR(VLOOKUP($B49,'Total Rankings (excl QB)'!$D:$L,7,0),"") ->  | J49: =IFERROR(VLOOKUP($B49,'Total Rankings (excl QB)'!$D:$L,8,0),"") ->  | L49: 46 | M49: =IFERROR(INDEX('Total Rankings (excl QB)'!$D:$D,MATCH(1,("Running Back"='Total Rankings (excl QB)'!$C:$C)*(L49='Total Rankings (excl QB)'!$F:$F),0),1),"") ->  | N49: =IFERROR(VLOOKUP($M49,'Total Rankings (excl QB)'!$D:$E,2,0),0) -> 0 | O49: 0 | Q49: =IFERROR(VLOOKUP($M49,'Total Rankings (excl QB)'!$D:$L,4,0),"") ->  | R49: =IFERROR(VLOOKUP($M49,'Total Rankings (excl QB)'!$D:$L,5,0),"") ->  | S49: =IFERROR(VLOOKUP($M49,'Total Rankings (excl QB)'!$D:$L,6,0),"") ->  | T49: =IFERROR(VLOOKUP($M49,'Total Rankings (excl QB)'!$D:$L,7,0),"") ->  | U49: =IFERROR(VLOOKUP($M49,'Total Rankings (excl QB)'!$D:$L,8,0),"") ->  | W49: 46 | X49: =IFERROR(INDEX('Total Rankings (excl QB)'!$D:$D,MATCH(1,("Tight End"='Total Rankings (excl QB)'!$C:$C)*(W49='Total Rankings (excl QB)'!$F:$F),0),1),"") ->  | Y49: =IFERROR(VLOOKUP($X49,'Total Rankings (excl QB)'!$D:$E,2,0),0) -> 0 | Z49: 0 | AB49: =IFERROR(VLOOKUP($X49,'Total Rankings (excl QB)'!$D:$L,4,0),"") ->  | AC49: =IFERROR(VLOOKUP($X49,'Total Rankings (excl QB)'!$D:$L,5,0),"") ->  | AD49: =IFERROR(VLOOKUP($X49,'Total Rankings (excl QB)'!$D:$L,6,0),"") ->  | AE49: =IFERROR(VLOOKUP($X49,'Total Rankings (excl QB)'!$D:$L,7,0),"") ->  | AF49: =IFERROR(VLOOKUP($X49,'Total Rankings (excl QB)'!$D:$L,8,0),"") ->  | AH49: 46 | AI49: ='QB Rankings'!C49 -> 0 | AJ49: ='QB Rankings'!D49 -> 0 | AK49: 0 | AM49: ='QB Rankings'!E49 -> 0 | AN49: ='QB Rankings'!F49 -> 0 | AO49: ='QB Rankings'!G49 -> 0 | AP49: ='QB Rankings'!H49 -> 0 | AQ49: ='QB Rankings'!I49 -> 0
A50: 47 | B50: =IFERROR(INDEX('Total Rankings (excl QB)'!$D:$D,MATCH(1,("Wide Receiver"='Total Rankings (excl QB)'!$C:$C)*(A50='Total Rankings (excl QB)'!$F:$F),0),1),"") ->  | C50: =IFERROR(VLOOKUP($B50,'Total Rankings (excl QB)'!$D:$E,2,0),0) -> 0 | D50: 0 | F50: =IFERROR(VLOOKUP($B50,'Total Rankings (excl QB)'!$D:$L,4,0),"") ->  | G50: =IFERROR(VLOOKUP($B50,'Total Rankings (excl QB)'!$D:$L,5,0),"") ->  | H50: =IFERROR(VLOOKUP($B50,'Total Rankings (excl QB)'!$D:$L,6,0),"") ->  | I50: =IFERROR(VLOOKUP($B50,'Total Rankings (excl QB)'!$D:$L,7,0),"") ->  | J50: =IFERROR(VLOOKUP($B50,'Total Rankings (excl QB)'!$D:$L,8,0),"") ->  | L50: 47 | M50: =IFERROR(INDEX('Total Rankings (excl QB)'!$D:$D,MATCH(1,("Running Back"='Total Rankings (excl QB)'!$C:$C)*(L50='Total Rankings (excl QB)'!$F:$F),0),1),"") ->  | N50: =IFERROR(VLOOKUP($M50,'Total Rankings (excl QB)'!$D:$E,2,0),0) -> 0 | O50: 0 | Q50: =IFERROR(VLOOKUP($M50,'Total Rankings (excl QB)'!$D:$L,4,0),"") ->  | R50: =IFERROR(VLOOKUP($M50,'Total Rankings (excl QB)'!$D:$L,5,0),"") ->  | S50: =IFERROR(VLOOKUP($M50,'Total Rankings (excl QB)'!$D:$L,6,0),"") ->  | T50: =IFERROR(VLOOKUP($M50,'Total Rankings (excl QB)'!$D:$L,7,0),"") ->  | U50: =IFERROR(VLOOKUP($M50,'Total Rankings (excl QB)'!$D:$L,8,0),"") ->  | W50: 47 | X50: =IFERROR(INDEX('Total Rankings (excl QB)'!$D:$D,MATCH(1,("Tight End"='Total Rankings (excl QB)'!$C:$C)*(W50='Total Rankings (excl QB)'!$F:$F),0),1),"") ->  | Y50: =IFERROR(VLOOKUP($X50,'Total Rankings (excl QB)'!$D:$E,2,0),0) -> 0 | Z50: 0 | AB50: =IFERROR(VLOOKUP($X50,'Total Rankings (excl QB)'!$D:$L,4,0),"") ->  | AC50: =IFERROR(VLOOKUP($X50,'Total Rankings (excl QB)'!$D:$L,5,0),"") ->  | AD50: =IFERROR(VLOOKUP($X50,'Total Rankings (excl QB)'!$D:$L,6,0),"") ->  | AE50: =IFERROR(VLOOKUP($X50,'Total Rankings (excl QB)'!$D:$L,7,0),"") ->  | AF50: =IFERROR(VLOOKUP($X50,'Total Rankings (excl QB)'!$D:$L,8,0),"") ->  | AH50: 47 | AI50: ='QB Rankings'!C50 -> 0 | AJ50: ='QB Rankings'!D50 -> 0 | AK50: 0 | AM50: ='QB Rankings'!E50 -> 0 | AN50: ='QB Rankings'!F50 -> 0 | AO50: ='QB Rankings'!G50 -> 0 | AP50: ='QB Rankings'!H50 -> 0 | AQ50: ='QB Rankings'!I50 -> 0
A51: 48 | B51: =IFERROR(INDEX('Total Rankings (excl QB)'!$D:$D,MATCH(1,("Wide Receiver"='Total Rankings (excl QB)'!$C:$C)*(A51='Total Rankings (excl QB)'!$F:$F),0),1),"") ->  | C51: =IFERROR(VLOOKUP($B51,'Total Rankings (excl QB)'!$D:$E,2,0),0) -> 0 | D51: 0 | F51: =IFERROR(VLOOKUP($B51,'Total Rankings (excl QB)'!$D:$L,4,0),"") ->  | G51: =IFERROR(VLOOKUP($B51,'Total Rankings (excl QB)'!$D:$L,5,0),"") ->  | H51: =IFERROR(VLOOKUP($B51,'Total Rankings (excl QB)'!$D:$L,6,0),"") ->  | I51: =IFERROR(VLOOKUP($B51,'Total Rankings (excl QB)'!$D:$L,7,0),"") ->  | J51: =IFERROR(VLOOKUP($B51,'Total Rankings (excl QB)'!$D:$L,8,0),"") ->  | L51: 48 | M51: =IFERROR(INDEX('Total Rankings (excl QB)'!$D:$D,MATCH(1,("Running Back"='Total Rankings (excl QB)'!$C:$C)*(L51='Total Rankings (excl QB)'!$F:$F),0),1),"") ->  | N51: =IFERROR(VLOOKUP($M51,'Total Rankings (excl QB)'!$D:$E,2,0),0) -> 0 | O51: 0 | Q51: =IFERROR(VLOOKUP($M51,'Total Rankings (excl QB)'!$D:$L,4,0),"") ->  | R51: =IFERROR(VLOOKUP($M51,'Total Rankings (excl QB)'!$D:$L,5,0),"") ->  | S51: =IFERROR(VLOOKUP($M51,'Total Rankings (excl QB)'!$D:$L,6,0),"") ->  | T51: =IFERROR(VLOOKUP($M51,'Total Rankings (excl QB)'!$D:$L,7,0),"") ->  | U51: =IFERROR(VLOOKUP($M51,'Total Rankings (excl QB)'!$D:$L,8,0),"") ->  | W51: 48 | X51: =IFERROR(INDEX('Total Rankings (excl QB)'!$D:$D,MATCH(1,("Tight End"='Total Rankings (excl QB)'!$C:$C)*(W51='Total Rankings (excl QB)'!$F:$F),0),1),"") ->  | Y51: =IFERROR(VLOOKUP($X51,'Total Rankings (excl QB)'!$D:$E,2,0),0) -> 0 | Z51: 0 | AB51: =IFERROR(VLOOKUP($X51,'Total Rankings (excl QB)'!$D:$L,4,0),"") ->  | AC51: =IFERROR(VLOOKUP($X51,'Total Rankings (excl QB)'!$D:$L,5,0),"") ->  | AD51: =IFERROR(VLOOKUP($X51,'Total Rankings (excl QB)'!$D:$L,6,0),"") ->  | AE51: =IFERROR(VLOOKUP($X51,'Total Rankings (excl QB)'!$D:$L,7,0),"") ->  | AF51: =IFERROR(VLOOKUP($X51,'Total Rankings (excl QB)'!$D:$L,8,0),"") ->  | AH51: 48 | AI51: ='QB Rankings'!C51 -> 0 | AJ51: ='QB Rankings'!D51 -> 0 | AK51: 0 | AM51: ='QB Rankings'!E51 -> 0 | AN51: ='QB Rankings'!F51 -> 0 | AO51: ='QB Rankings'!G51 -> 0 | AP51: ='QB Rankings'!H51 -> 0 | AQ51: ='QB Rankings'!I51 -> 0
A52: 49 | B52: =IFERROR(INDEX('Total Rankings (excl QB)'!$D:$D,MATCH(1,("Wide Receiver"='Total Rankings (excl QB)'!$C:$C)*(A52='Total Rankings (excl QB)'!$F:$F),0),1),"") ->  | C52: =IFERROR(VLOOKUP($B52,'Total Rankings (excl QB)'!$D:$E,2,0),0) -> 0 | D52: 0 | F52: =IFERROR(VLOOKUP($B52,'Total Rankings (excl QB)'!$D:$L,4,0),"") ->  | G52: =IFERROR(VLOOKUP($B52,'Total Rankings (excl QB)'!$D:$L,5,0),"") ->  | H52: =IFERROR(VLOOKUP($B52,'Total Rankings (excl QB)'!$D:$L,6,0),"") ->  | I52: =IFERROR(VLOOKUP($B52,'Total Rankings (excl QB)'!$D:$L,7,0),"") ->  | J52: =IFERROR(VLOOKUP($B52,'Total Rankings (excl QB)'!$D:$L,8,0),"") ->  | L52: 49 | M52: =IFERROR(INDEX('Total Rankings (excl QB)'!$D:$D,MATCH(1,("Running Back"='Total Rankings (excl QB)'!$C:$C)*(L52='Total Rankings (excl QB)'!$F:$F),0),1),"") ->  | N52: =IFERROR(VLOOKUP($M52,'Total Rankings (excl QB)'!$D:$E,2,0),0) -> 0 | O52: 0 | Q52: =IFERROR(VLOOKUP($M52,'Total Rankings (excl QB)'!$D:$L,4,0),"") ->  | R52: =IFERROR(VLOOKUP($M52,'Total Rankings (excl QB)'!$D:$L,5,0),"") ->  | S52: =IFERROR(VLOOKUP($M52,'Total Rankings (excl QB)'!$D:$L,6,0),"") ->  | T52: =IFERROR(VLOOKUP($M52,'Total Rankings (excl QB)'!$D:$L,7,0),"") ->  | U52: =IFERROR(VLOOKUP($M52,'Total Rankings (excl QB)'!$D:$L,8,0),"") ->  | W52: 49 | X52: =IFERROR(INDEX('Total Rankings (excl QB)'!$D:$D,MATCH(1,("Tight End"='Total Rankings (excl QB)'!$C:$C)*(W52='Total Rankings (excl QB)'!$F:$F),0),1),"") ->  | Y52: =IFERROR(VLOOKUP($X52,'Total Rankings (excl QB)'!$D:$E,2,0),0) -> 0 | Z52: 0 | AB52: =IFERROR(VLOOKUP($X52,'Total Rankings (excl QB)'!$D:$L,4,0),"") ->  | AC52: =IFERROR(VLOOKUP($X52,'Total Rankings (excl QB)'!$D:$L,5,0),"") ->  | AD52: =IFERROR(VLOOKUP($X52,'Total Rankings (excl QB)'!$D:$L,6,0),"") ->  | AE52: =IFERROR(VLOOKUP($X52,'Total Rankings (excl QB)'!$D:$L,7,0),"") ->  | AF52: =IFERROR(VLOOKUP($X52,'Total Rankings (excl QB)'!$D:$L,8,0),"") ->  | AH52: 49 | AI52: ='QB Rankings'!C52 -> 0 | AJ52: ='QB Rankings'!D52 -> 0 | AK52: 0 | AM52: ='QB Rankings'!E52 -> 0 | AN52: ='QB Rankings'!F52 -> 0 | AO52: ='QB Rankings'!G52 -> 0 | AP52: ='QB Rankings'!H52 -> 0 | AQ52: ='QB Rankings'!I52 -> 0
A53: 50 | B53: =IFERROR(INDEX('Total Rankings (excl QB)'!$D:$D,MATCH(1,("Wide Receiver"='Total Rankings (excl QB)'!$C:$C)*(A53='Total Rankings (excl QB)'!$F:$F),0),1),"") ->  | C53: =IFERROR(VLOOKUP($B53,'Total Rankings (excl QB)'!$D:$E,2,0),0) -> 0 | D53: 0 | F53: =IFERROR(VLOOKUP($B53,'Total Rankings (excl QB)'!$D:$L,4,0),"") ->  | G53: =IFERROR(VLOOKUP($B53,'Total Rankings (excl QB)'!$D:$L,5,0),"") ->  | H53: =IFERROR(VLOOKUP($B53,'Total Rankings (excl QB)'!$D:$L,6,0),"") ->  | I53: =IFERROR(VLOOKUP($B53,'Total Rankings (excl QB)'!$D:$L,7,0),"") ->  | J53: =IFERROR(VLOOKUP($B53,'Total Rankings (excl QB)'!$D:$L,8,0),"") ->  | L53: 50 | M53: =IFERROR(INDEX('Total Rankings (excl QB)'!$D:$D,MATCH(1,("Running Back"='Total Rankings (excl QB)'!$C:$C)*(L53='Total Rankings (excl QB)'!$F:$F),0),1),"") ->  | N53: =IFERROR(VLOOKUP($M53,'Total Rankings (excl QB)'!$D:$E,2,0),0) -> 0 | O53: 0 | Q53: =IFERROR(VLOOKUP($M53,'Total Rankings (excl QB)'!$D:$L,4,0),"") ->  | R53: =IFERROR(VLOOKUP($M53,'Total Rankings (excl QB)'!$D:$L,5,0),"") ->  | S53: =IFERROR(VLOOKUP($M53,'Total Rankings (excl QB)'!$D:$L,6,0),"") ->  | T53: =IFERROR(VLOOKUP($M53,'Total Rankings (excl QB)'!$D:$L,7,0),"") ->  | U53: =IFERROR(VLOOKUP($M53,'Total Rankings (excl QB)'!$D:$L,8,0),"") ->  | W53: 50 | X53: =IFERROR(INDEX('Total Rankings (excl QB)'!$D:$D,MATCH(1,("Tight End"='Total Rankings (excl QB)'!$C:$C)*(W53='Total Rankings (excl QB)'!$F:$F),0),1),"") ->  | Y53: =IFERROR(VLOOKUP($X53,'Total Rankings (excl QB)'!$D:$E,2,0),0) -> 0 | Z53: 0 | AB53: =IFERROR(VLOOKUP($X53,'Total Rankings (excl QB)'!$D:$L,4,0),"") ->  | AC53: =IFERROR(VLOOKUP($X53,'Total Rankings (excl QB)'!$D:$L,5,0),"") ->  | AD53: =IFERROR(VLOOKUP($X53,'Total Rankings (excl QB)'!$D:$L,6,0),"") ->  | AE53: =IFERROR(VLOOKUP($X53,'Total Rankings (excl QB)'!$D:$L,7,0),"") ->  | AF53: =IFERROR(VLOOKUP($X53,'Total Rankings (excl QB)'!$D:$L,8,0),"") ->  | AH53: 50 | AI53: ='QB Rankings'!C53 -> 0 | AJ53: ='QB Rankings'!D53 -> 0 | AK53: 0 | AM53: ='QB Rankings'!E53 -> 0 | AN53: ='QB Rankings'!F53 -> 0 | AO53: ='QB Rankings'!G53 -> 0 | AP53: ='QB Rankings'!H53 -> 0 | AQ53: ='QB Rankings'!I53 -> 0
A54: 51 | B54: =IFERROR(INDEX('Total Rankings (excl QB)'!$D:$D,MATCH(1,("Wide Receiver"='Total Rankings (excl QB)'!$C:$C)*(A54='Total Rankings (excl QB)'!$F:$F),0),1),"") ->  | C54: =IFERROR(VLOOKUP($B54,'Total Rankings (excl QB)'!$D:$E,2,0),0) -> 0 | D54: 0 | F54: =IFERROR(VLOOKUP($B54,'Total Rankings (excl QB)'!$D:$L,4,0),"") ->  | G54: =IFERROR(VLOOKUP($B54,'Total Rankings (excl QB)'!$D:$L,5,0),"") ->  | H54: =IFERROR(VLOOKUP($B54,'Total Rankings (excl QB)'!$D:$L,6,0),"") ->  | I54: =IFERROR(VLOOKUP($B54,'Total Rankings (excl QB)'!$D:$L,7,0),"") ->  | J54: =IFERROR(VLOOKUP($B54,'Total Rankings (excl QB)'!$D:$L,8,0),"") ->  | L54: 51 | M54: =IFERROR(INDEX('Total Rankings (excl QB)'!$D:$D,MATCH(1,("Running Back"='Total Rankings (excl QB)'!$C:$C)*(L54='Total Rankings (excl QB)'!$F:$F),0),1),"") ->  | N54: =IFERROR(VLOOKUP($M54,'Total Rankings (excl QB)'!$D:$E,2,0),0) -> 0 | O54: 0 | Q54: =IFERROR(VLOOKUP($M54,'Total Rankings (excl QB)'!$D:$L,4,0),"") ->  | R54: =IFERROR(VLOOKUP($M54,'Total Rankings (excl QB)'!$D:$L,5,0),"") ->  | S54: =IFERROR(VLOOKUP($M54,'Total Rankings (excl QB)'!$D:$L,6,0),"") ->  | T54: =IFERROR(VLOOKUP($M54,'Total Rankings (excl QB)'!$D:$L,7,0),"") ->  | U54: =IFERROR(VLOOKUP($M54,'Total Rankings (excl QB)'!$D:$L,8,0),"") ->  | W54: 51 | X54: =IFERROR(INDEX('Total Rankings (excl QB)'!$D:$D,MATCH(1,("Tight End"='Total Rankings (excl QB)'!$C:$C)*(W54='Total Rankings (excl QB)'!$F:$F),0),1),"") ->  | Y54: =IFERROR(VLOOKUP($X54,'Total Rankings (excl QB)'!$D:$E,2,0),0) -> 0 | Z54: 0 | AB54: =IFERROR(VLOOKUP($X54,'Total Rankings (excl QB)'!$D:$L,4,0),"") ->  | AC54: =IFERROR(VLOOKUP($X54,'Total Rankings (excl QB)'!$D:$L,5,0),"") ->  | AD54: =IFERROR(VLOOKUP($X54,'Total Rankings (excl QB)'!$D:$L,6,0),"") ->  | AE54: =IFERROR(VLOOKUP($X54,'Total Rankings (excl QB)'!$D:$L,7,0),"") ->  | AF54: =IFERROR(VLOOKUP($X54,'Total Rankings (excl QB)'!$D:$L,8,0),"") ->  | AH54: 51 | AI54: ='QB Rankings'!C54 -> 0 | AJ54: ='QB Rankings'!D54 -> 0 | AK54: 0 | AM54: ='QB Rankings'!E54 -> 0 | AN54: ='QB Rankings'!F54 -> 0 | AO54: ='QB Rankings'!G54 -> 0 | AP54: ='QB Rankings'!H54 -> 0 | AQ54: ='QB Rankings'!I54 -> 0
A55: 52 | B55: =IFERROR(INDEX('Total Rankings (excl QB)'!$D:$D,MATCH(1,("Wide Receiver"='Total Rankings (excl QB)'!$C:$C)*(A55='Total Rankings (excl QB)'!$F:$F),0),1),"") ->  | C55: =IFERROR(VLOOKUP($B55,'Total Rankings (excl QB)'!$D:$E,2,0),0) -> 0 | D55: 0 | F55: =IFERROR(VLOOKUP($B55,'Total Rankings (excl QB)'!$D:$L,4,0),"") ->  | G55: =IFERROR(VLOOKUP($B55,'Total Rankings (excl QB)'!$D:$L,5,0),"") ->  | H55: =IFERROR(VLOOKUP($B55,'Total Rankings (excl QB)'!$D:$L,6,0),"") ->  | I55: =IFERROR(VLOOKUP($B55,'Total Rankings (excl QB)'!$D:$L,7,0),"") ->  | J55: =IFERROR(VLOOKUP($B55,'Total Rankings (excl QB)'!$D:$L,8,0),"") ->  | L55: 52 | M55: =IFERROR(INDEX('Total Rankings (excl QB)'!$D:$D,MATCH(1,("Running Back"='Total Rankings (excl QB)'!$C:$C)*(L55='Total Rankings (excl QB)'!$F:$F),0),1),"") ->  | N55: =IFERROR(VLOOKUP($M55,'Total Rankings (excl QB)'!$D:$E,2,0),0) -> 0 | O55: 0 | Q55: =IFERROR(VLOOKUP($M55,'Total Rankings (excl QB)'!$D:$L,4,0),"") ->  | R55: =IFERROR(VLOOKUP($M55,'Total Rankings (excl QB)'!$D:$L,5,0),"") ->  | S55: =IFERROR(VLOOKUP($M55,'Total Rankings (excl QB)'!$D:$L,6,0),"") ->  | T55: =IFERROR(VLOOKUP($M55,'Total Rankings (excl QB)'!$D:$L,7,0),"") ->  | U55: =IFERROR(VLOOKUP($M55,'Total Rankings (excl QB)'!$D:$L,8,0),"") ->  | W55: 52 | X55: =IFERROR(INDEX('Total Rankings (excl QB)'!$D:$D,MATCH(1,("Tight End"='Total Rankings (excl QB)'!$C:$C)*(W55='Total Rankings (excl QB)'!$F:$F),0),1),"") ->  | Y55: =IFERROR(VLOOKUP($X55,'Total Rankings (excl QB)'!$D:$E,2,0),0) -> 0 | Z55: 0 | AB55: =IFERROR(VLOOKUP($X55,'Total Rankings (excl QB)'!$D:$L,4,0),"") ->  | AC55: =IFERROR(VLOOKUP($X55,'Total Rankings (excl QB)'!$D:$L,5,0),"") ->  | AD55: =IFERROR(VLOOKUP($X55,'Total Rankings (excl QB)'!$D:$L,6,0),"") ->  | AE55: =IFERROR(VLOOKUP($X55,'Total Rankings (excl QB)'!$D:$L,7,0),"") ->  | AF55: =IFERROR(VLOOKUP($X55,'Total Rankings (excl QB)'!$D:$L,8,0),"") ->  | AH55: 52 | AI55: ='QB Rankings'!C55 -> 0 | AJ55: ='QB Rankings'!D55 -> 0 | AK55: 0 | AM55: ='QB Rankings'!E55 -> 0 | AN55: ='QB Rankings'!F55 -> 0 | AO55: ='QB Rankings'!G55 -> 0 | AP55: ='QB Rankings'!H55 -> 0 | AQ55: ='QB Rankings'!I55 -> 0
A56: 53 | B56: =IFERROR(INDEX('Total Rankings (excl QB)'!$D:$D,MATCH(1,("Wide Receiver"='Total Rankings (excl QB)'!$C:$C)*(A56='Total Rankings (excl QB)'!$F:$F),0),1),"") ->  | C56: =IFERROR(VLOOKUP($B56,'Total Rankings (excl QB)'!$D:$E,2,0),0) -> 0 | D56: 0 | F56: =IFERROR(VLOOKUP($B56,'Total Rankings (excl QB)'!$D:$L,4,0),"") ->  | G56: =IFERROR(VLOOKUP($B56,'Total Rankings (excl QB)'!$D:$L,5,0),"") ->  | H56: =IFERROR(VLOOKUP($B56,'Total Rankings (excl QB)'!$D:$L,6,0),"") ->  | I56: =IFERROR(VLOOKUP($B56,'Total Rankings (excl QB)'!$D:$L,7,0),"") ->  | J56: =IFERROR(VLOOKUP($B56,'Total Rankings (excl QB)'!$D:$L,8,0),"") ->  | L56: 53 | M56: =IFERROR(INDEX('Total Rankings (excl QB)'!$D:$D,MATCH(1,("Running Back"='Total Rankings (excl QB)'!$C:$C)*(L56='Total Rankings (excl QB)'!$F:$F),0),1),"") ->  | N56: =IFERROR(VLOOKUP($M56,'Total Rankings (excl QB)'!$D:$E,2,0),0) -> 0 | O56: 0 | Q56: =IFERROR(VLOOKUP($M56,'Total Rankings (excl QB)'!$D:$L,4,0),"") ->  | R56: =IFERROR(VLOOKUP($M56,'Total Rankings (excl QB)'!$D:$L,5,0),"") ->  | S56: =IFERROR(VLOOKUP($M56,'Total Rankings (excl QB)'!$D:$L,6,0),"") ->  | T56: =IFERROR(VLOOKUP($M56,'Total Rankings (excl QB)'!$D:$L,7,0),"") ->  | U56: =IFERROR(VLOOKUP($M56,'Total Rankings (excl QB)'!$D:$L,8,0),"") ->  | W56: 53 | X56: =IFERROR(INDEX('Total Rankings (excl QB)'!$D:$D,MATCH(1,("Tight End"='Total Rankings (excl QB)'!$C:$C)*(W56='Total Rankings (excl QB)'!$F:$F),0),1),"") ->  | Y56: =IFERROR(VLOOKUP($X56,'Total Rankings (excl QB)'!$D:$E,2,0),0) -> 0 | Z56: 0 | AB56: =IFERROR(VLOOKUP($X56,'Total Rankings (excl QB)'!$D:$L,4,0),"") ->  | AC56: =IFERROR(VLOOKUP($X56,'Total Rankings (excl QB)'!$D:$L,5,0),"") ->  | AD56: =IFERROR(VLOOKUP($X56,'Total Rankings (excl QB)'!$D:$L,6,0),"") ->  | AE56: =IFERROR(VLOOKUP($X56,'Total Rankings (excl QB)'!$D:$L,7,0),"") ->  | AF56: =IFERROR(VLOOKUP($X56,'Total Rankings (excl QB)'!$D:$L,8,0),"") ->  | AH56: 53 | AI56: ='QB Rankings'!C56 -> 0 | AJ56: ='QB Rankings'!D56 -> 0 | AK56: 0 | AM56: ='QB Rankings'!E56 -> 0 | AN56: ='QB Rankings'!F56 -> 0 | AO56: ='QB Rankings'!G56 -> 0 | AP56: ='QB Rankings'!H56 -> 0 | AQ56: ='QB Rankings'!I56 -> 0
A57: 54 | B57: =IFERROR(INDEX('Total Rankings (excl QB)'!$D:$D,MATCH(1,("Wide Receiver"='Total Rankings (excl QB)'!$C:$C)*(A57='Total Rankings (excl QB)'!$F:$F),0),1),"") ->  | C57: =IFERROR(VLOOKUP($B57,'Total Rankings (excl QB)'!$D:$E,2,0),0) -> 0 | D57: 0 | F57: =IFERROR(VLOOKUP($B57,'Total Rankings (excl QB)'!$D:$L,4,0),"") ->  | G57: =IFERROR(VLOOKUP($B57,'Total Rankings (excl QB)'!$D:$L,5,0),"") ->  | H57: =IFERROR(VLOOKUP($B57,'Total Rankings (excl QB)'!$D:$L,6,0),"") ->  | I57: =IFERROR(VLOOKUP($B57,'Total Rankings (excl QB)'!$D:$L,7,0),"") ->  | J57: =IFERROR(VLOOKUP($B57,'Total Rankings (excl QB)'!$D:$L,8,0),"") ->  | L57: 54 | M57: =IFERROR(INDEX('Total Rankings (excl QB)'!$D:$D,MATCH(1,("Running Back"='Total Rankings (excl QB)'!$C:$C)*(L57='Total Rankings (excl QB)'!$F:$F),0),1),"") ->  | N57: =IFERROR(VLOOKUP($M57,'Total Rankings (excl QB)'!$D:$E,2,0),0) -> 0 | O57: 0 | Q57: =IFERROR(VLOOKUP($M57,'Total Rankings (excl QB)'!$D:$L,4,0),"") ->  | R57: =IFERROR(VLOOKUP($M57,'Total Rankings (excl QB)'!$D:$L,5,0),"") ->  | S57: =IFERROR(VLOOKUP($M57,'Total Rankings (excl QB)'!$D:$L,6,0),"") ->  | T57: =IFERROR(VLOOKUP($M57,'Total Rankings (excl QB)'!$D:$L,7,0),"") ->  | U57: =IFERROR(VLOOKUP($M57,'Total Rankings (excl QB)'!$D:$L,8,0),"") ->  | W57: 54 | X57: =IFERROR(INDEX('Total Rankings (excl QB)'!$D:$D,MATCH(1,("Tight End"='Total Rankings (excl QB)'!$C:$C)*(W57='Total Rankings (excl QB)'!$F:$F),0),1),"") ->  | Y57: =IFERROR(VLOOKUP($X57,'Total Rankings (excl QB)'!$D:$E,2,0),0) -> 0 | Z57: 0 | AB57: =IFERROR(VLOOKUP($X57,'Total Rankings (excl QB)'!$D:$L,4,0),"") ->  | AC57: =IFERROR(VLOOKUP($X57,'Total Rankings (excl QB)'!$D:$L,5,0),"") ->  | AD57: =IFERROR(VLOOKUP($X57,'Total Rankings (excl QB)'!$D:$L,6,0),"") ->  | AE57: =IFERROR(VLOOKUP($X57,'Total Rankings (excl QB)'!$D:$L,7,0),"") ->  | AF57: =IFERROR(VLOOKUP($X57,'Total Rankings (excl QB)'!$D:$L,8,0),"") ->  | AH57: 54 | AI57: ='QB Rankings'!C57 -> 0 | AJ57: ='QB Rankings'!D57 -> 0 | AK57: 0 | AM57: ='QB Rankings'!E57 -> 0 | AN57: ='QB Rankings'!F57 -> 0 | AO57: ='QB Rankings'!G57 -> 0 | AP57: ='QB Rankings'!H57 -> 0 | AQ57: ='QB Rankings'!I57 -> 0
A58: 55 | B58: =IFERROR(INDEX('Total Rankings (excl QB)'!$D:$D,MATCH(1,("Wide Receiver"='Total Rankings (excl QB)'!$C:$C)*(A58='Total Rankings (excl QB)'!$F:$F),0),1),"") ->  | C58: =IFERROR(VLOOKUP($B58,'Total Rankings (excl QB)'!$D:$E,2,0),0) -> 0 | D58: 0 | F58: =IFERROR(VLOOKUP($B58,'Total Rankings (excl QB)'!$D:$L,4,0),"") ->  | G58: =IFERROR(VLOOKUP($B58,'Total Rankings (excl QB)'!$D:$L,5,0),"") ->  | H58: =IFERROR(VLOOKUP($B58,'Total Rankings (excl QB)'!$D:$L,6,0),"") ->  | I58: =IFERROR(VLOOKUP($B58,'Total Rankings (excl QB)'!$D:$L,7,0),"") ->  | J58: =IFERROR(VLOOKUP($B58,'Total Rankings (excl QB)'!$D:$L,8,0),"") ->  | L58: 55 | M58: =IFERROR(INDEX('Total Rankings (excl QB)'!$D:$D,MATCH(1,("Running Back"='Total Rankings (excl QB)'!$C:$C)*(L58='Total Rankings (excl QB)'!$F:$F),0),1),"") ->  | N58: =IFERROR(VLOOKUP($M58,'Total Rankings (excl QB)'!$D:$E,2,0),0) -> 0 | O58: 0 | Q58: =IFERROR(VLOOKUP($M58,'Total Rankings (excl QB)'!$D:$L,4,0),"") ->  | R58: =IFERROR(VLOOKUP($M58,'Total Rankings (excl QB)'!$D:$L,5,0),"") ->  | S58: =IFERROR(VLOOKUP($M58,'Total Rankings (excl QB)'!$D:$L,6,0),"") ->  | T58: =IFERROR(VLOOKUP($M58,'Total Rankings (excl QB)'!$D:$L,7,0),"") ->  | U58: =IFERROR(VLOOKUP($M58,'Total Rankings (excl QB)'!$D:$L,8,0),"") ->  | W58: 55 | X58: =IFERROR(INDEX('Total Rankings (excl QB)'!$D:$D,MATCH(1,("Tight End"='Total Rankings (excl QB)'!$C:$C)*(W58='Total Rankings (excl QB)'!$F:$F),0),1),"") ->  | Y58: =IFERROR(VLOOKUP($X58,'Total Rankings (excl QB)'!$D:$E,2,0),0) -> 0 | Z58: 0 | AB58: =IFERROR(VLOOKUP($X58,'Total Rankings (excl QB)'!$D:$L,4,0),"") ->  | AC58: =IFERROR(VLOOKUP($X58,'Total Rankings (excl QB)'!$D:$L,5,0),"") ->  | AD58: =IFERROR(VLOOKUP($X58,'Total Rankings (excl QB)'!$D:$L,6,0),"") ->  | AE58: =IFERROR(VLOOKUP($X58,'Total Rankings (excl QB)'!$D:$L,7,0),"") ->  | AF58: =IFERROR(VLOOKUP($X58,'Total Rankings (excl QB)'!$D:$L,8,0),"") ->  | AH58: 55 | AI58: ='QB Rankings'!C58 -> 0 | AJ58: ='QB Rankings'!D58 -> 0 | AK58: 0 | AM58: ='QB Rankings'!E58 -> 0 | AN58: ='QB Rankings'!F58 -> 0 | AO58: ='QB Rankings'!G58 -> 0 | AP58: ='QB Rankings'!H58 -> 0 | AQ58: ='QB Rankings'!I58 -> 0
A59: 56 | B59: =IFERROR(INDEX('Total Rankings (excl QB)'!$D:$D,MATCH(1,("Wide Receiver"='Total Rankings (excl QB)'!$C:$C)*(A59='Total Rankings (excl QB)'!$F:$F),0),1),"") ->  | C59: =IFERROR(VLOOKUP($B59,'Total Rankings (excl QB)'!$D:$E,2,0),0) -> 0 | D59: 0 | F59: =IFERROR(VLOOKUP($B59,'Total Rankings (excl QB)'!$D:$L,4,0),"") ->  | G59: =IFERROR(VLOOKUP($B59,'Total Rankings (excl QB)'!$D:$L,5,0),"") ->  | H59: =IFERROR(VLOOKUP($B59,'Total Rankings (excl QB)'!$D:$L,6,0),"") ->  | I59: =IFERROR(VLOOKUP($B59,'Total Rankings (excl QB)'!$D:$L,7,0),"") ->  | J59: =IFERROR(VLOOKUP($B59,'Total Rankings (excl QB)'!$D:$L,8,0),"") ->  | L59: 56 | M59: =IFERROR(INDEX('Total Rankings (excl QB)'!$D:$D,MATCH(1,("Running Back"='Total Rankings (excl QB)'!$C:$C)*(L59='Total Rankings (excl QB)'!$F:$F),0),1),"") ->  | N59: =IFERROR(VLOOKUP($M59,'Total Rankings (excl QB)'!$D:$E,2,0),0) -> 0 | O59: 0 | Q59: =IFERROR(VLOOKUP($M59,'Total Rankings (excl QB)'!$D:$L,4,0),"") ->  | R59: =IFERROR(VLOOKUP($M59,'Total Rankings (excl QB)'!$D:$L,5,0),"") ->  | S59: =IFERROR(VLOOKUP($M59,'Total Rankings (excl QB)'!$D:$L,6,0),"") ->  | T59: =IFERROR(VLOOKUP($M59,'Total Rankings (excl QB)'!$D:$L,7,0),"") ->  | U59: =IFERROR(VLOOKUP($M59,'Total Rankings (excl QB)'!$D:$L,8,0),"") ->  | W59: 56 | X59: =IFERROR(INDEX('Total Rankings (excl QB)'!$D:$D,MATCH(1,("Tight End"='Total Rankings (excl QB)'!$C:$C)*(W59='Total Rankings (excl QB)'!$F:$F),0),1),"") ->  | Y59: =IFERROR(VLOOKUP($X59,'Total Rankings (excl QB)'!$D:$E,2,0),0) -> 0 | Z59: 0 | AB59: =IFERROR(VLOOKUP($X59,'Total Rankings (excl QB)'!$D:$L,4,0),"") ->  | AC59: =IFERROR(VLOOKUP($X59,'Total Rankings (excl QB)'!$D:$L,5,0),"") ->  | AD59: =IFERROR(VLOOKUP($X59,'Total Rankings (excl QB)'!$D:$L,6,0),"") ->  | AE59: =IFERROR(VLOOKUP($X59,'Total Rankings (excl QB)'!$D:$L,7,0),"") ->  | AF59: =IFERROR(VLOOKUP($X59,'Total Rankings (excl QB)'!$D:$L,8,0),"") ->  | AH59: 56 | AI59: ='QB Rankings'!C59 -> 0 | AJ59: ='QB Rankings'!D59 -> 0 | AK59: 0 | AM59: ='QB Rankings'!E59 -> 0 | AN59: ='QB Rankings'!F59 -> 0 | AO59: ='QB Rankings'!G59 -> 0 | AP59: ='QB Rankings'!H59 -> 0 | AQ59: ='QB Rankings'!I59 -> 0
A60: 57 | B60: =IFERROR(INDEX('Total Rankings (excl QB)'!$D:$D,MATCH(1,("Wide Receiver"='Total Rankings (excl QB)'!$C:$C)*(A60='Total Rankings (excl QB)'!$F:$F),0),1),"") ->  | C60: =IFERROR(VLOOKUP($B60,'Total Rankings (excl QB)'!$D:$E,2,0),0) -> 0 | D60: 0 | F60: =IFERROR(VLOOKUP($B60,'Total Rankings (excl QB)'!$D:$L,4,0),"") ->  | G60: =IFERROR(VLOOKUP($B60,'Total Rankings (excl QB)'!$D:$L,5,0),"") ->  | H60: =IFERROR(VLOOKUP($B60,'Total Rankings (excl QB)'!$D:$L,6,0),"") ->  | I60: =IFERROR(VLOOKUP($B60,'Total Rankings (excl QB)'!$D:$L,7,0),"") ->  | J60: =IFERROR(VLOOKUP($B60,'Total Rankings (excl QB)'!$D:$L,8,0),"") ->  | L60: 57 | M60: =IFERROR(INDEX('Total Rankings (excl QB)'!$D:$D,MATCH(1,("Running Back"='Total Rankings (excl QB)'!$C:$C)*(L60='Total Rankings (excl QB)'!$F:$F),0),1),"") ->  | N60: =IFERROR(VLOOKUP($M60,'Total Rankings (excl QB)'!$D:$E,2,0),0) -> 0 | O60: 0 | Q60: =IFERROR(VLOOKUP($M60,'Total Rankings (excl QB)'!$D:$L,4,0),"") ->  | R60: =IFERROR(VLOOKUP($M60,'Total Rankings (excl QB)'!$D:$L,5,0),"") ->  | S60: =IFERROR(VLOOKUP($M60,'Total Rankings (excl QB)'!$D:$L,6,0),"") ->  | T60: =IFERROR(VLOOKUP($M60,'Total Rankings (excl QB)'!$D:$L,7,0),"") ->  | U60: =IFERROR(VLOOKUP($M60,'Total Rankings (excl QB)'!$D:$L,8,0),"") ->  | W60: 57 | X60: =IFERROR(INDEX('Total Rankings (excl QB)'!$D:$D,MATCH(1,("Tight End"='Total Rankings (excl QB)'!$C:$C)*(W60='Total Rankings (excl QB)'!$F:$F),0),1),"") ->  | Y60: =IFERROR(VLOOKUP($X60,'Total Rankings (excl QB)'!$D:$E,2,0),0) -> 0 | Z60: 0 | AB60: =IFERROR(VLOOKUP($X60,'Total Rankings (excl QB)'!$D:$L,4,0),"") ->  | AC60: =IFERROR(VLOOKUP($X60,'Total Rankings (excl QB)'!$D:$L,5,0),"") ->  | AD60: =IFERROR(VLOOKUP($X60,'Total Rankings (excl QB)'!$D:$L,6,0),"") ->  | AE60: =IFERROR(VLOOKUP($X60,'Total Rankings (excl QB)'!$D:$L,7,0),"") ->  | AF60: =IFERROR(VLOOKUP($X60,'Total Rankings (excl QB)'!$D:$L,8,0),"") ->  | AH60: 57 | AI60: ='QB Rankings'!C60 -> 0 | AJ60: ='QB Rankings'!D60 -> 0 | AK60: 0 | AM60: ='QB Rankings'!E60 -> 0 | AN60: ='QB Rankings'!F60 -> 0 | AO60: ='QB Rankings'!G60 -> 0 | AP60: ='QB Rankings'!H60 -> 0 | AQ60: ='QB Rankings'!I60 -> 0
A61: 58 | B61: =IFERROR(INDEX('Total Rankings (excl QB)'!$D:$D,MATCH(1,("Wide Receiver"='Total Rankings (excl QB)'!$C:$C)*(A61='Total Rankings (excl QB)'!$F:$F),0),1),"") ->  | C61: =IFERROR(VLOOKUP($B61,'Total Rankings (excl QB)'!$D:$E,2,0),0) -> 0 | D61: 0 | F61: =IFERROR(VLOOKUP($B61,'Total Rankings (excl QB)'!$D:$L,4,0),"") ->  | G61: =IFERROR(VLOOKUP($B61,'Total Rankings (excl QB)'!$D:$L,5,0),"") ->  | H61: =IFERROR(VLOOKUP($B61,'Total Rankings (excl QB)'!$D:$L,6,0),"") ->  | I61: =IFERROR(VLOOKUP($B61,'Total Rankings (excl QB)'!$D:$L,7,0),"") ->  | J61: =IFERROR(VLOOKUP($B61,'Total Rankings (excl QB)'!$D:$L,8,0),"") ->  | L61: 58 | M61: =IFERROR(INDEX('Total Rankings (excl QB)'!$D:$D,MATCH(1,("Running Back"='Total Rankings (excl QB)'!$C:$C)*(L61='Total Rankings (excl QB)'!$F:$F),0),1),"") ->  | N61: =IFERROR(VLOOKUP($M61,'Total Rankings (excl QB)'!$D:$E,2,0),0) -> 0 | O61: 0 | Q61: =IFERROR(VLOOKUP($M61,'Total Rankings (excl QB)'!$D:$L,4,0),"") ->  | R61: =IFERROR(VLOOKUP($M61,'Total Rankings (excl QB)'!$D:$L,5,0),"") ->  | S61: =IFERROR(VLOOKUP($M61,'Total Rankings (excl QB)'!$D:$L,6,0),"") ->  | T61: =IFERROR(VLOOKUP($M61,'Total Rankings (excl QB)'!$D:$L,7,0),"") ->  | U61: =IFERROR(VLOOKUP($M61,'Total Rankings (excl QB)'!$D:$L,8,0),"") ->  | W61: 58 | X61: =IFERROR(INDEX('Total Rankings (excl QB)'!$D:$D,MATCH(1,("Tight End"='Total Rankings (excl QB)'!$C:$C)*(W61='Total Rankings (excl QB)'!$F:$F),0),1),"") ->  | Y61: =IFERROR(VLOOKUP($X61,'Total Rankings (excl QB)'!$D:$E,2,0),0) -> 0 | Z61: 0 | AB61: =IFERROR(VLOOKUP($X61,'Total Rankings (excl QB)'!$D:$L,4,0),"") ->  | AC61: =IFERROR(VLOOKUP($X61,'Total Rankings (excl QB)'!$D:$L,5,0),"") ->  | AD61: =IFERROR(VLOOKUP($X61,'Total Rankings (excl QB)'!$D:$L,6,0),"") ->  | AE61: =IFERROR(VLOOKUP($X61,'Total Rankings (excl QB)'!$D:$L,7,0),"") ->  | AF61: =IFERROR(VLOOKUP($X61,'Total Rankings (excl QB)'!$D:$L,8,0),"") ->  | AH61: 58 | AI61: ='QB Rankings'!C61 -> 0 | AJ61: ='QB Rankings'!D61 -> 0 | AK61: 0 | AM61: ='QB Rankings'!E61 -> 0 | AN61: ='QB Rankings'!F61 -> 0 | AO61: ='QB Rankings'!G61 -> 0 | AP61: ='QB Rankings'!H61 -> 0 | AQ61: ='QB Rankings'!I61 -> 0
A62: 59 | B62: =IFERROR(INDEX('Total Rankings (excl QB)'!$D:$D,MATCH(1,("Wide Receiver"='Total Rankings (excl QB)'!$C:$C)*(A62='Total Rankings (excl QB)'!$F:$F),0),1),"") ->  | C62: =IFERROR(VLOOKUP($B62,'Total Rankings (excl QB)'!$D:$E,2,0),0) -> 0 | D62: 0 | F62: =IFERROR(VLOOKUP($B62,'Total Rankings (excl QB)'!$D:$L,4,0),"") ->  | G62: =IFERROR(VLOOKUP($B62,'Total Rankings (excl QB)'!$D:$L,5,0),"") ->  | H62: =IFERROR(VLOOKUP($B62,'Total Rankings (excl QB)'!$D:$L,6,0),"") ->  | I62: =IFERROR(VLOOKUP($B62,'Total Rankings (excl QB)'!$D:$L,7,0),"") ->  | J62: =IFERROR(VLOOKUP($B62,'Total Rankings (excl QB)'!$D:$L,8,0),"") ->  | L62: 59 | M62: =IFERROR(INDEX('Total Rankings (excl QB)'!$D:$D,MATCH(1,("Running Back"='Total Rankings (excl QB)'!$C:$C)*(L62='Total Rankings (excl QB)'!$F:$F),0),1),"") ->  | N62: =IFERROR(VLOOKUP($M62,'Total Rankings (excl QB)'!$D:$E,2,0),0) -> 0 | O62: 0 | Q62: =IFERROR(VLOOKUP($M62,'Total Rankings (excl QB)'!$D:$L,4,0),"") ->  | R62: =IFERROR(VLOOKUP($M62,'Total Rankings (excl QB)'!$D:$L,5,0),"") ->  | S62: =IFERROR(VLOOKUP($M62,'Total Rankings (excl QB)'!$D:$L,6,0),"") ->  | T62: =IFERROR(VLOOKUP($M62,'Total Rankings (excl QB)'!$D:$L,7,0),"") ->  | U62: =IFERROR(VLOOKUP($M62,'Total Rankings (excl QB)'!$D:$L,8,0),"") ->  | W62: 59 | X62: =IFERROR(INDEX('Total Rankings (excl QB)'!$D:$D,MATCH(1,("Tight End"='Total Rankings (excl QB)'!$C:$C)*(W62='Total Rankings (excl QB)'!$F:$F),0),1),"") ->  | Y62: =IFERROR(VLOOKUP($X62,'Total Rankings (excl QB)'!$D:$E,2,0),0) -> 0 | Z62: 0 | AB62: =IFERROR(VLOOKUP($X62,'Total Rankings (excl QB)'!$D:$L,4,0),"") ->  | AC62: =IFERROR(VLOOKUP($X62,'Total Rankings (excl QB)'!$D:$L,5,0),"") ->  | AD62: =IFERROR(VLOOKUP($X62,'Total Rankings (excl QB)'!$D:$L,6,0),"") ->  | AE62: =IFERROR(VLOOKUP($X62,'Total Rankings (excl QB)'!$D:$L,7,0),"") ->  | AF62: =IFERROR(VLOOKUP($X62,'Total Rankings (excl QB)'!$D:$L,8,0),"") ->  | AH62: 59 | AI62: ='QB Rankings'!C62 -> 0 | AJ62: ='QB Rankings'!D62 -> 0 | AK62: 0 | AM62: ='QB Rankings'!E62 -> 0 | AN62: ='QB Rankings'!F62 -> 0 | AO62: ='QB Rankings'!G62 -> 0 | AP62: ='QB Rankings'!H62 -> 0 | AQ62: ='QB Rankings'!I62 -> 0
A63: 60 | B63: =IFERROR(INDEX('Total Rankings (excl QB)'!$D:$D,MATCH(1,("Wide Receiver"='Total Rankings (excl QB)'!$C:$C)*(A63='Total Rankings (excl QB)'!$F:$F),0),1),"") ->  | C63: =IFERROR(VLOOKUP($B63,'Total Rankings (excl QB)'!$D:$E,2,0),0) -> 0 | D63: 0 | F63: =IFERROR(VLOOKUP($B63,'Total Rankings (excl QB)'!$D:$L,4,0),"") ->  | G63: =IFERROR(VLOOKUP($B63,'Total Rankings (excl QB)'!$D:$L,5,0),"") ->  | H63: =IFERROR(VLOOKUP($B63,'Total Rankings (excl QB)'!$D:$L,6,0),"") ->  | I63: =IFERROR(VLOOKUP($B63,'Total Rankings (excl QB)'!$D:$L,7,0),"") ->  | J63: =IFERROR(VLOOKUP($B63,'Total Rankings (excl QB)'!$D:$L,8,0),"") ->  | L63: 60 | M63: =IFERROR(INDEX('Total Rankings (excl QB)'!$D:$D,MATCH(1,("Running Back"='Total Rankings (excl QB)'!$C:$C)*(L63='Total Rankings (excl QB)'!$F:$F),0),1),"") ->  | N63: =IFERROR(VLOOKUP($M63,'Total Rankings (excl QB)'!$D:$E,2,0),0) -> 0 | O63: 0 | Q63: =IFERROR(VLOOKUP($M63,'Total Rankings (excl QB)'!$D:$L,4,0),"") ->  | R63: =IFERROR(VLOOKUP($M63,'Total Rankings (excl QB)'!$D:$L,5,0),"") ->  | S63: =IFERROR(VLOOKUP($M63,'Total Rankings (excl QB)'!$D:$L,6,0),"") ->  | T63: =IFERROR(VLOOKUP($M63,'Total Rankings (excl QB)'!$D:$L,7,0),"") ->  | U63: =IFERROR(VLOOKUP($M63,'Total Rankings (excl QB)'!$D:$L,8,0),"") ->  | W63: 60 | X63: =IFERROR(INDEX('Total Rankings (excl QB)'!$D:$D,MATCH(1,("Tight End"='Total Rankings (excl QB)'!$C:$C)*(W63='Total Rankings (excl QB)'!$F:$F),0),1),"") ->  | Y63: =IFERROR(VLOOKUP($X63,'Total Rankings (excl QB)'!$D:$E,2,0),0) -> 0 | Z63: 0 | AB63: =IFERROR(VLOOKUP($X63,'Total Rankings (excl QB)'!$D:$L,4,0),"") ->  | AC63: =IFERROR(VLOOKUP($X63,'Total Rankings (excl QB)'!$D:$L,5,0),"") ->  | AD63: =IFERROR(VLOOKUP($X63,'Total Rankings (excl QB)'!$D:$L,6,0),"") ->  | AE63: =IFERROR(VLOOKUP($X63,'Total Rankings (excl QB)'!$D:$L,7,0),"") ->  | AF63: =IFERROR(VLOOKUP($X63,'Total Rankings (excl QB)'!$D:$L,8,0),"") ->  | AH63: 60 | AI63: ='QB Rankings'!C63 -> 0 | AJ63: ='QB Rankings'!D63 -> 0 | AK63: 0 | AM63: ='QB Rankings'!E63 -> 0 | AN63: ='QB Rankings'!F63 -> 0 | AO63: ='QB Rankings'!G63 -> 0 | AP63: ='QB Rankings'!H63 -> 0 | AQ63: ='QB Rankings'!I63 -> 0
A64: 61 | B64: =IFERROR(INDEX('Total Rankings (excl QB)'!$D:$D,MATCH(1,("Wide Receiver"='Total Rankings (excl QB)'!$C:$C)*(A64='Total Rankings (excl QB)'!$F:$F),0),1),"") ->  | C64: =IFERROR(VLOOKUP($B64,'Total Rankings (excl QB)'!$D:$E,2,0),0) -> 0 | D64: 0 | F64: =IFERROR(VLOOKUP($B64,'Total Rankings (excl QB)'!$D:$L,4,0),"") ->  | G64: =IFERROR(VLOOKUP($B64,'Total Rankings (excl QB)'!$D:$L,5,0),"") ->  | H64: =IFERROR(VLOOKUP($B64,'Total Rankings (excl QB)'!$D:$L,6,0),"") ->  | I64: =IFERROR(VLOOKUP($B64,'Total Rankings (excl QB)'!$D:$L,7,0),"") ->  | J64: =IFERROR(VLOOKUP($B64,'Total Rankings (excl QB)'!$D:$L,8,0),"") ->  | L64: 61 | M64: =IFERROR(INDEX('Total Rankings (excl QB)'!$D:$D,MATCH(1,("Running Back"='Total Rankings (excl QB)'!$C:$C)*(L64='Total Rankings (excl QB)'!$F:$F),0),1),"") ->  | N64: =IFERROR(VLOOKUP($M64,'Total Rankings (excl QB)'!$D:$E,2,0),0) -> 0 | O64: 0 | Q64: =IFERROR(VLOOKUP($M64,'Total Rankings (excl QB)'!$D:$L,4,0),"") ->  | R64: =IFERROR(VLOOKUP($M64,'Total Rankings (excl QB)'!$D:$L,5,0),"") ->  | S64: =IFERROR(VLOOKUP($M64,'Total Rankings (excl QB)'!$D:$L,6,0),"") ->  | T64: =IFERROR(VLOOKUP($M64,'Total Rankings (excl QB)'!$D:$L,7,0),"") ->  | U64: =IFERROR(VLOOKUP($M64,'Total Rankings (excl QB)'!$D:$L,8,0),"") ->  | W64: 61 | X64: =IFERROR(INDEX('Total Rankings (excl QB)'!$D:$D,MATCH(1,("Tight End"='Total Rankings (excl QB)'!$C:$C)*(W64='Total Rankings (excl QB)'!$F:$F),0),1),"") ->  | Y64: =IFERROR(VLOOKUP($X64,'Total Rankings (excl QB)'!$D:$E,2,0),0) -> 0 | Z64: 0 | AB64: =IFERROR(VLOOKUP($X64,'Total Rankings (excl QB)'!$D:$L,4,0),"") ->  | AC64: =IFERROR(VLOOKUP($X64,'Total Rankings (excl QB)'!$D:$L,5,0),"") ->  | AD64: =IFERROR(VLOOKUP($X64,'Total Rankings (excl QB)'!$D:$L,6,0),"") ->  | AE64: =IFERROR(VLOOKUP($X64,'Total Rankings (excl QB)'!$D:$L,7,0),"") ->  | AF64: =IFERROR(VLOOKUP($X64,'Total Rankings (excl QB)'!$D:$L,8,0),"") ->  | AH64: 61 | AI64: ='QB Rankings'!C64 -> 0 | AJ64: ='QB Rankings'!D64 -> 0 | AK64: 0 | AM64: ='QB Rankings'!E64 -> 0 | AN64: ='QB Rankings'!F64 -> 0 | AO64: ='QB Rankings'!G64 -> 0 | AP64: ='QB Rankings'!H64 -> 0 | AQ64: ='QB Rankings'!I64 -> 0
A65: 62 | B65: =IFERROR(INDEX('Total Rankings (excl QB)'!$D:$D,MATCH(1,("Wide Receiver"='Total Rankings (excl QB)'!$C:$C)*(A65='Total Rankings (excl QB)'!$F:$F),0),1),"") ->  | C65: =IFERROR(VLOOKUP($B65,'Total Rankings (excl QB)'!$D:$E,2,0),0) -> 0 | D65: 0 | F65: =IFERROR(VLOOKUP($B65,'Total Rankings (excl QB)'!$D:$L,4,0),"") ->  | G65: =IFERROR(VLOOKUP($B65,'Total Rankings (excl QB)'!$D:$L,5,0),"") ->  | H65: =IFERROR(VLOOKUP($B65,'Total Rankings (excl QB)'!$D:$L,6,0),"") ->  | I65: =IFERROR(VLOOKUP($B65,'Total Rankings (excl QB)'!$D:$L,7,0),"") ->  | J65: =IFERROR(VLOOKUP($B65,'Total Rankings (excl QB)'!$D:$L,8,0),"") ->  | L65: 62 | M65: =IFERROR(INDEX('Total Rankings (excl QB)'!$D:$D,MATCH(1,("Running Back"='Total Rankings (excl QB)'!$C:$C)*(L65='Total Rankings (excl QB)'!$F:$F),0),1),"") ->  | N65: =IFERROR(VLOOKUP($M65,'Total Rankings (excl QB)'!$D:$E,2,0),0) -> 0 | O65: 0 | Q65: =IFERROR(VLOOKUP($M65,'Total Rankings (excl QB)'!$D:$L,4,0),"") ->  | R65: =IFERROR(VLOOKUP($M65,'Total Rankings (excl QB)'!$D:$L,5,0),"") ->  | S65: =IFERROR(VLOOKUP($M65,'Total Rankings (excl QB)'!$D:$L,6,0),"") ->  | T65: =IFERROR(VLOOKUP($M65,'Total Rankings (excl QB)'!$D:$L,7,0),"") ->  | U65: =IFERROR(VLOOKUP($M65,'Total Rankings (excl QB)'!$D:$L,8,0),"") ->  | W65: 62 | X65: =IFERROR(INDEX('Total Rankings (excl QB)'!$D:$D,MATCH(1,("Tight End"='Total Rankings (excl QB)'!$C:$C)*(W65='Total Rankings (excl QB)'!$F:$F),0),1),"") ->  | Y65: =IFERROR(VLOOKUP($X65,'Total Rankings (excl QB)'!$D:$E,2,0),0) -> 0 | Z65: 0 | AB65: =IFERROR(VLOOKUP($X65,'Total Rankings (excl QB)'!$D:$L,4,0),"") ->  | AC65: =IFERROR(VLOOKUP($X65,'Total Rankings (excl QB)'!$D:$L,5,0),"") ->  | AD65: =IFERROR(VLOOKUP($X65,'Total Rankings (excl QB)'!$D:$L,6,0),"") ->  | AE65: =IFERROR(VLOOKUP($X65,'Total Rankings (excl QB)'!$D:$L,7,0),"") ->  | AF65: =IFERROR(VLOOKUP($X65,'Total Rankings (excl QB)'!$D:$L,8,0),"") ->  | AH65: 62 | AI65: ='QB Rankings'!C65 -> 0 | AJ65: ='QB Rankings'!D65 -> 0 | AK65: 0 | AM65: ='QB Rankings'!E65 -> 0 | AN65: ='QB Rankings'!F65 -> 0 | AO65: ='QB Rankings'!G65 -> 0 | AP65: ='QB Rankings'!H65 -> 0 | AQ65: ='QB Rankings'!I65 -> 0
A66: 63 | B66: =IFERROR(INDEX('Total Rankings (excl QB)'!$D:$D,MATCH(1,("Wide Receiver"='Total Rankings (excl QB)'!$C:$C)*(A66='Total Rankings (excl QB)'!$F:$F),0),1),"") ->  | C66: =IFERROR(VLOOKUP($B66,'Total Rankings (excl QB)'!$D:$E,2,0),0) -> 0 | D66: 0 | F66: =IFERROR(VLOOKUP($B66,'Total Rankings (excl QB)'!$D:$L,4,0),"") ->  | G66: =IFERROR(VLOOKUP($B66,'Total Rankings (excl QB)'!$D:$L,5,0),"") ->  | H66: =IFERROR(VLOOKUP($B66,'Total Rankings (excl QB)'!$D:$L,6,0),"") ->  | I66: =IFERROR(VLOOKUP($B66,'Total Rankings (excl QB)'!$D:$L,7,0),"") ->  | J66: =IFERROR(VLOOKUP($B66,'Total Rankings (excl QB)'!$D:$L,8,0),"") ->  | L66: 63 | M66: =IFERROR(INDEX('Total Rankings (excl QB)'!$D:$D,MATCH(1,("Running Back"='Total Rankings (excl QB)'!$C:$C)*(L66='Total Rankings (excl QB)'!$F:$F),0),1),"") ->  | N66: =IFERROR(VLOOKUP($M66,'Total Rankings (excl QB)'!$D:$E,2,0),0) -> 0 | O66: 0 | Q66: =IFERROR(VLOOKUP($M66,'Total Rankings (excl QB)'!$D:$L,4,0),"") ->  | R66: =IFERROR(VLOOKUP($M66,'Total Rankings (excl QB)'!$D:$L,5,0),"") ->  | S66: =IFERROR(VLOOKUP($M66,'Total Rankings (excl QB)'!$D:$L,6,0),"") ->  | T66: =IFERROR(VLOOKUP($M66,'Total Rankings (excl QB)'!$D:$L,7,0),"") ->  | U66: =IFERROR(VLOOKUP($M66,'Total Rankings (excl QB)'!$D:$L,8,0),"") ->  | W66: 63 | X66: =IFERROR(INDEX('Total Rankings (excl QB)'!$D:$D,MATCH(1,("Tight End"='Total Rankings (excl QB)'!$C:$C)*(W66='Total Rankings (excl QB)'!$F:$F),0),1),"") ->  | Y66: =IFERROR(VLOOKUP($X66,'Total Rankings (excl QB)'!$D:$E,2,0),0) -> 0 | Z66: 0 | AB66: =IFERROR(VLOOKUP($X66,'Total Rankings (excl QB)'!$D:$L,4,0),"") ->  | AC66: =IFERROR(VLOOKUP($X66,'Total Rankings (excl QB)'!$D:$L,5,0),"") ->  | AD66: =IFERROR(VLOOKUP($X66,'Total Rankings (excl QB)'!$D:$L,6,0),"") ->  | AE66: =IFERROR(VLOOKUP($X66,'Total Rankings (excl QB)'!$D:$L,7,0),"") ->  | AF66: =IFERROR(VLOOKUP($X66,'Total Rankings (excl QB)'!$D:$L,8,0),"") ->  | AH66: 63 | AI66: ='QB Rankings'!C66 -> 0 | AJ66: ='QB Rankings'!D66 -> 0 | AK66: 0 | AM66: ='QB Rankings'!E66 -> 0 | AN66: ='QB Rankings'!F66 -> 0 | AO66: ='QB Rankings'!G66 -> 0 | AP66: ='QB Rankings'!H66 -> 0 | AQ66: ='QB Rankings'!I66 -> 0
A67: 64 | B67: =IFERROR(INDEX('Total Rankings (excl QB)'!$D:$D,MATCH(1,("Wide Receiver"='Total Rankings (excl QB)'!$C:$C)*(A67='Total Rankings (excl QB)'!$F:$F),0),1),"") ->  | C67: =IFERROR(VLOOKUP($B67,'Total Rankings (excl QB)'!$D:$E,2,0),0) -> 0 | D67: 0 | F67: =IFERROR(VLOOKUP($B67,'Total Rankings (excl QB)'!$D:$L,4,0),"") ->  | G67: =IFERROR(VLOOKUP($B67,'Total Rankings (excl QB)'!$D:$L,5,0),"") ->  | H67: =IFERROR(VLOOKUP($B67,'Total Rankings (excl QB)'!$D:$L,6,0),"") ->  | I67: =IFERROR(VLOOKUP($B67,'Total Rankings (excl QB)'!$D:$L,7,0),"") ->  | J67: =IFERROR(VLOOKUP($B67,'Total Rankings (excl QB)'!$D:$L,8,0),"") ->  | L67: 64 | M67: =IFERROR(INDEX('Total Rankings (excl QB)'!$D:$D,MATCH(1,("Running Back"='Total Rankings (excl QB)'!$C:$C)*(L67='Total Rankings (excl QB)'!$F:$F),0),1),"") ->  | N67: =IFERROR(VLOOKUP($M67,'Total Rankings (excl QB)'!$D:$E,2,0),0) -> 0 | O67: 0 | Q67: =IFERROR(VLOOKUP($M67,'Total Rankings (excl QB)'!$D:$L,4,0),"") ->  | R67: =IFERROR(VLOOKUP($M67,'Total Rankings (excl QB)'!$D:$L,5,0),"") ->  | S67: =IFERROR(VLOOKUP($M67,'Total Rankings (excl QB)'!$D:$L,6,0),"") ->  | T67: =IFERROR(VLOOKUP($M67,'Total Rankings (excl QB)'!$D:$L,7,0),"") ->  | U67: =IFERROR(VLOOKUP($M67,'Total Rankings (excl QB)'!$D:$L,8,0),"") ->  | W67: 64 | X67: =IFERROR(INDEX('Total Rankings (excl QB)'!$D:$D,MATCH(1,("Tight End"='Total Rankings (excl QB)'!$C:$C)*(W67='Total Rankings (excl QB)'!$F:$F),0),1),"") ->  | Y67: =IFERROR(VLOOKUP($X67,'Total Rankings (excl QB)'!$D:$E,2,0),0) -> 0 | Z67: 0 | AB67: =IFERROR(VLOOKUP($X67,'Total Rankings (excl QB)'!$D:$L,4,0),"") ->  | AC67: =IFERROR(VLOOKUP($X67,'Total Rankings (excl QB)'!$D:$L,5,0),"") ->  | AD67: =IFERROR(VLOOKUP($X67,'Total Rankings (excl QB)'!$D:$L,6,0),"") ->  | AE67: =IFERROR(VLOOKUP($X67,'Total Rankings (excl QB)'!$D:$L,7,0),"") ->  | AF67: =IFERROR(VLOOKUP($X67,'Total Rankings (excl QB)'!$D:$L,8,0),"") ->  | AH67: 64 | AI67: ='QB Rankings'!C67 -> 0 | AJ67: ='QB Rankings'!D67 -> 0 | AK67: 0 | AM67: ='QB Rankings'!E67 -> 0 | AN67: ='QB Rankings'!F67 -> 0 | AO67: ='QB Rankings'!G67 -> 0 | AP67: ='QB Rankings'!H67 -> 0 | AQ67: ='QB Rankings'!I67 -> 0
A68: 65 | B68: =IFERROR(INDEX('Total Rankings (excl QB)'!$D:$D,MATCH(1,("Wide Receiver"='Total Rankings (excl QB)'!$C:$C)*(A68='Total Rankings (excl QB)'!$F:$F),0),1),"") ->  | C68: =IFERROR(VLOOKUP($B68,'Total Rankings (excl QB)'!$D:$E,2,0),0) -> 0 | D68: 0 | F68: =IFERROR(VLOOKUP($B68,'Total Rankings (excl QB)'!$D:$L,4,0),"") ->  | G68: =IFERROR(VLOOKUP($B68,'Total Rankings (excl QB)'!$D:$L,5,0),"") ->  | H68: =IFERROR(VLOOKUP($B68,'Total Rankings (excl QB)'!$D:$L,6,0),"") ->  | I68: =IFERROR(VLOOKUP($B68,'Total Rankings (excl QB)'!$D:$L,7,0),"") ->  | J68: =IFERROR(VLOOKUP($B68,'Total Rankings (excl QB)'!$D:$L,8,0),"") ->  | L68: 65 | M68: =IFERROR(INDEX('Total Rankings (excl QB)'!$D:$D,MATCH(1,("Running Back"='Total Rankings (excl QB)'!$C:$C)*(L68='Total Rankings (excl QB)'!$F:$F),0),1),"") ->  | N68: =IFERROR(VLOOKUP($M68,'Total Rankings (excl QB)'!$D:$E,2,0),0) -> 0 | O68: 0 | Q68: =IFERROR(VLOOKUP($M68,'Total Rankings (excl QB)'!$D:$L,4,0),"") ->  | R68: =IFERROR(VLOOKUP($M68,'Total Rankings (excl QB)'!$D:$L,5,0),"") ->  | S68: =IFERROR(VLOOKUP($M68,'Total Rankings (excl QB)'!$D:$L,6,0),"") ->  | T68: =IFERROR(VLOOKUP($M68,'Total Rankings (excl QB)'!$D:$L,7,0),"") ->  | U68: =IFERROR(VLOOKUP($M68,'Total Rankings (excl QB)'!$D:$L,8,0),"") ->  | W68: 65 | X68: =IFERROR(INDEX('Total Rankings (excl QB)'!$D:$D,MATCH(1,("Tight End"='Total Rankings (excl QB)'!$C:$C)*(W68='Total Rankings (excl QB)'!$F:$F),0),1),"") ->  | Y68: =IFERROR(VLOOKUP($X68,'Total Rankings (excl QB)'!$D:$E,2,0),0) -> 0 | Z68: 0 | AB68: =IFERROR(VLOOKUP($X68,'Total Rankings (excl QB)'!$D:$L,4,0),"") ->  | AC68: =IFERROR(VLOOKUP($X68,'Total Rankings (excl QB)'!$D:$L,5,0),"") ->  | AD68: =IFERROR(VLOOKUP($X68,'Total Rankings (excl QB)'!$D:$L,6,0),"") ->  | AE68: =IFERROR(VLOOKUP($X68,'Total Rankings (excl QB)'!$D:$L,7,0),"") ->  | AF68: =IFERROR(VLOOKUP($X68,'Total Rankings (excl QB)'!$D:$L,8,0),"") -> 
A69: 66 | B69: =IFERROR(INDEX('Total Rankings (excl QB)'!$D:$D,MATCH(1,("Wide Receiver"='Total Rankings (excl QB)'!$C:$C)*(A69='Total Rankings (excl QB)'!$F:$F),0),1),"") ->  | C69: =IFERROR(VLOOKUP($B69,'Total Rankings (excl QB)'!$D:$E,2,0),0) -> 0 | D69: =IFERROR(C69/17,0) -> 0 | F69: =IFERROR(VLOOKUP($B69,'Total Rankings (excl QB)'!$D:$L,4,0),"") ->  | G69: =IFERROR(VLOOKUP($B69,'Total Rankings (excl QB)'!$D:$L,5,0),"") ->  | H69: =IFERROR(VLOOKUP($B69,'Total Rankings (excl QB)'!$D:$L,6,0),"") ->  | I69: =IFERROR(VLOOKUP($B69,'Total Rankings (excl QB)'!$D:$L,7,0),"") ->  | J69: =IFERROR(VLOOKUP($B69,'Total Rankings (excl QB)'!$D:$L,8,0),"") ->  | L69: 66 | M69: =IFERROR(INDEX('Total Rankings (excl QB)'!$D:$D,MATCH(1,("Running Back"='Total Rankings (excl QB)'!$C:$C)*(L69='Total Rankings (excl QB)'!$F:$F),0),1),"") ->  | N69: =IFERROR(VLOOKUP($M69,'Total Rankings (excl QB)'!$D:$E,2,0),0) -> 0 | O69: =IFERROR(N69/17,0) -> 0 | Q69: =IFERROR(VLOOKUP($M69,'Total Rankings (excl QB)'!$D:$L,4,0),"") ->  | R69: =IFERROR(VLOOKUP($M69,'Total Rankings (excl QB)'!$D:$L,5,0),"") ->  | S69: =IFERROR(VLOOKUP($M69,'Total Rankings (excl QB)'!$D:$L,6,0),"") ->  | T69: =IFERROR(VLOOKUP($M69,'Total Rankings (excl QB)'!$D:$L,7,0),"") ->  | U69: =IFERROR(VLOOKUP($M69,'Total Rankings (excl QB)'!$D:$L,8,0),"") ->  | W69: 66 | X69: =IFERROR(INDEX('Total Rankings (excl QB)'!$D:$D,MATCH(1,("Tight End"='Total Rankings (excl QB)'!$C:$C)*(W69='Total Rankings (excl QB)'!$F:$F),0),1),"") ->  | Y69: =IFERROR(VLOOKUP($X69,'Total Rankings (excl QB)'!$D:$E,2,0),0) -> 0 | Z69: =IFERROR(Y69/17,0) -> 0 | AB69: =IFERROR(VLOOKUP($X69,'Total Rankings (excl QB)'!$D:$L,4,0),"") ->  | AC69: =IFERROR(VLOOKUP($X69,'Total Rankings (excl QB)'!$D:$L,5,0),"") ->  | AD69: =IFERROR(VLOOKUP($X69,'Total Rankings (excl QB)'!$D:$L,6,0),"") ->  | AE69: =IFERROR(VLOOKUP($X69,'Total Rankings (excl QB)'!$D:$L,7,0),"") ->  | AF69: =IFERROR(VLOOKUP($X69,'Total Rankings (excl QB)'!$D:$L,8,0),"") -> 
A70: 67 | B70: =IFERROR(INDEX('Total Rankings (excl QB)'!$D:$D,MATCH(1,("Wide Receiver"='Total Rankings (excl QB)'!$C:$C)*(A70='Total Rankings (excl QB)'!$F:$F),0),1),"") ->  | C70: =IFERROR(VLOOKUP($B70,'Total Rankings (excl QB)'!$D:$E,2,0),0) -> 0 | D70: 0 | F70: =IFERROR(VLOOKUP($B70,'Total Rankings (excl QB)'!$D:$L,4,0),"") ->  | G70: =IFERROR(VLOOKUP($B70,'Total Rankings (excl QB)'!$D:$L,5,0),"") ->  | H70: =IFERROR(VLOOKUP($B70,'Total Rankings (excl QB)'!$D:$L,6,0),"") ->  | I70: =IFERROR(VLOOKUP($B70,'Total Rankings (excl QB)'!$D:$L,7,0),"") ->  | J70: =IFERROR(VLOOKUP($B70,'Total Rankings (excl QB)'!$D:$L,8,0),"") ->  | L70: 67 | M70: =IFERROR(INDEX('Total Rankings (excl QB)'!$D:$D,MATCH(1,("Running Back"='Total Rankings (excl QB)'!$C:$C)*(L70='Total Rankings (excl QB)'!$F:$F),0),1),"") ->  | N70: =IFERROR(VLOOKUP($M70,'Total Rankings (excl QB)'!$D:$E,2,0),0) -> 0 | O70: 0 | Q70: =IFERROR(VLOOKUP($M70,'Total Rankings (excl QB)'!$D:$L,4,0),"") ->  | R70: =IFERROR(VLOOKUP($M70,'Total Rankings (excl QB)'!$D:$L,5,0),"") ->  | S70: =IFERROR(VLOOKUP($M70,'Total Rankings (excl QB)'!$D:$L,6,0),"") ->  | T70: =IFERROR(VLOOKUP($M70,'Total Rankings (excl QB)'!$D:$L,7,0),"") ->  | U70: =IFERROR(VLOOKUP($M70,'Total Rankings (excl QB)'!$D:$L,8,0),"") ->  | W70: 67 | X70: =IFERROR(INDEX('Total Rankings (excl QB)'!$D:$D,MATCH(1,("Tight End"='Total Rankings (excl QB)'!$C:$C)*(W70='Total Rankings (excl QB)'!$F:$F),0),1),"") ->  | Y70: =IFERROR(VLOOKUP($X70,'Total Rankings (excl QB)'!$D:$E,2,0),0) -> 0 | Z70: 0 | AB70: =IFERROR(VLOOKUP($X70,'Total Rankings (excl QB)'!$D:$L,4,0),"") ->  | AC70: =IFERROR(VLOOKUP($X70,'Total Rankings (excl QB)'!$D:$L,5,0),"") ->  | AD70: =IFERROR(VLOOKUP($X70,'Total Rankings (excl QB)'!$D:$L,6,0),"") ->  | AE70: =IFERROR(VLOOKUP($X70,'Total Rankings (excl QB)'!$D:$L,7,0),"") ->  | AF70: =IFERROR(VLOOKUP($X70,'Total Rankings (excl QB)'!$D:$L,8,0),"") -> 
A71: 68 | B71: =IFERROR(INDEX('Total Rankings (excl QB)'!$D:$D,MATCH(1,("Wide Receiver"='Total Rankings (excl QB)'!$C:$C)*(A71='Total Rankings (excl QB)'!$F:$F),0),1),"") ->  | C71: =IFERROR(VLOOKUP($B71,'Total Rankings (excl QB)'!$D:$E,2,0),0) -> 0 | D71: 0 | F71: =IFERROR(VLOOKUP($B71,'Total Rankings (excl QB)'!$D:$L,4,0),"") ->  | G71: =IFERROR(VLOOKUP($B71,'Total Rankings (excl QB)'!$D:$L,5,0),"") ->  | H71: =IFERROR(VLOOKUP($B71,'Total Rankings (excl QB)'!$D:$L,6,0),"") ->  | I71: =IFERROR(VLOOKUP($B71,'Total Rankings (excl QB)'!$D:$L,7,0),"") ->  | J71: =IFERROR(VLOOKUP($B71,'Total Rankings (excl QB)'!$D:$L,8,0),"") ->  | L71: 68 | M71: =IFERROR(INDEX('Total Rankings (excl QB)'!$D:$D,MATCH(1,("Running Back"='Total Rankings (excl QB)'!$C:$C)*(L71='Total Rankings (excl QB)'!$F:$F),0),1),"") ->  | N71: =IFERROR(VLOOKUP($M71,'Total Rankings (excl QB)'!$D:$E,2,0),0) -> 0 | O71: 0 | Q71: =IFERROR(VLOOKUP($M71,'Total Rankings (excl QB)'!$D:$L,4,0),"") ->  | R71: =IFERROR(VLOOKUP($M71,'Total Rankings (excl QB)'!$D:$L,5,0),"") ->  | S71: =IFERROR(VLOOKUP($M71,'Total Rankings (excl QB)'!$D:$L,6,0),"") ->  | T71: =IFERROR(VLOOKUP($M71,'Total Rankings (excl QB)'!$D:$L,7,0),"") ->  | U71: =IFERROR(VLOOKUP($M71,'Total Rankings (excl QB)'!$D:$L,8,0),"") ->  | W71: 68 | X71: =IFERROR(INDEX('Total Rankings (excl QB)'!$D:$D,MATCH(1,("Tight End"='Total Rankings (excl QB)'!$C:$C)*(W71='Total Rankings (excl QB)'!$F:$F),0),1),"") ->  | Y71: =IFERROR(VLOOKUP($X71,'Total Rankings (excl QB)'!$D:$E,2,0),0) -> 0 | Z71: 0 | AB71: =IFERROR(VLOOKUP($X71,'Total Rankings (excl QB)'!$D:$L,4,0),"") ->  | AC71: =IFERROR(VLOOKUP($X71,'Total Rankings (excl QB)'!$D:$L,5,0),"") ->  | AD71: =IFERROR(VLOOKUP($X71,'Total Rankings (excl QB)'!$D:$L,6,0),"") ->  | AE71: =IFERROR(VLOOKUP($X71,'Total Rankings (excl QB)'!$D:$L,7,0),"") ->  | AF71: =IFERROR(VLOOKUP($X71,'Total Rankings (excl QB)'!$D:$L,8,0),"") -> 
A72: 69 | B72: =IFERROR(INDEX('Total Rankings (excl QB)'!$D:$D,MATCH(1,("Wide Receiver"='Total Rankings (excl QB)'!$C:$C)*(A72='Total Rankings (excl QB)'!$F:$F),0),1),"") ->  | C72: =IFERROR(VLOOKUP($B72,'Total Rankings (excl QB)'!$D:$E,2,0),0) -> 0 | D72: 0 | F72: =IFERROR(VLOOKUP($B72,'Total Rankings (excl QB)'!$D:$L,4,0),"") ->  | G72: =IFERROR(VLOOKUP($B72,'Total Rankings (excl QB)'!$D:$L,5,0),"") ->  | H72: =IFERROR(VLOOKUP($B72,'Total Rankings (excl QB)'!$D:$L,6,0),"") ->  | I72: =IFERROR(VLOOKUP($B72,'Total Rankings (excl QB)'!$D:$L,7,0),"") ->  | J72: =IFERROR(VLOOKUP($B72,'Total Rankings (excl QB)'!$D:$L,8,0),"") ->  | L72: 69 | M72: =IFERROR(INDEX('Total Rankings (excl QB)'!$D:$D,MATCH(1,("Running Back"='Total Rankings (excl QB)'!$C:$C)*(L72='Total Rankings (excl QB)'!$F:$F),0),1),"") ->  | N72: =IFERROR(VLOOKUP($M72,'Total Rankings (excl QB)'!$D:$E,2,0),0) -> 0 | O72: 0 | Q72: =IFERROR(VLOOKUP($M72,'Total Rankings (excl QB)'!$D:$L,4,0),"") ->  | R72: =IFERROR(VLOOKUP($M72,'Total Rankings (excl QB)'!$D:$L,5,0),"") ->  | S72: =IFERROR(VLOOKUP($M72,'Total Rankings (excl QB)'!$D:$L,6,0),"") ->  | T72: =IFERROR(VLOOKUP($M72,'Total Rankings (excl QB)'!$D:$L,7,0),"") ->  | U72: =IFERROR(VLOOKUP($M72,'Total Rankings (excl QB)'!$D:$L,8,0),"") ->  | W72: 69 | X72: =IFERROR(INDEX('Total Rankings (excl QB)'!$D:$D,MATCH(1,("Tight End"='Total Rankings (excl QB)'!$C:$C)*(W72='Total Rankings (excl QB)'!$F:$F),0),1),"") ->  | Y72: =IFERROR(VLOOKUP($X72,'Total Rankings (excl QB)'!$D:$E,2,0),0) -> 0 | Z72: 0 | AB72: =IFERROR(VLOOKUP($X72,'Total Rankings (excl QB)'!$D:$L,4,0),"") ->  | AC72: =IFERROR(VLOOKUP($X72,'Total Rankings (excl QB)'!$D:$L,5,0),"") ->  | AD72: =IFERROR(VLOOKUP($X72,'Total Rankings (excl QB)'!$D:$L,6,0),"") ->  | AE72: =IFERROR(VLOOKUP($X72,'Total Rankings (excl QB)'!$D:$L,7,0),"") ->  | AF72: =IFERROR(VLOOKUP($X72,'Total Rankings (excl QB)'!$D:$L,8,0),"") -> 
A73: 70 | B73: =IFERROR(INDEX('Total Rankings (excl QB)'!$D:$D,MATCH(1,("Wide Receiver"='Total Rankings (excl QB)'!$C:$C)*(A73='Total Rankings (excl QB)'!$F:$F),0),1),"") ->  | C73: =IFERROR(VLOOKUP($B73,'Total Rankings (excl QB)'!$D:$E,2,0),0) -> 0 | D73: 0 | F73: =IFERROR(VLOOKUP($B73,'Total Rankings (excl QB)'!$D:$L,4,0),"") ->  | G73: =IFERROR(VLOOKUP($B73,'Total Rankings (excl QB)'!$D:$L,5,0),"") ->  | H73: =IFERROR(VLOOKUP($B73,'Total Rankings (excl QB)'!$D:$L,6,0),"") ->  | I73: =IFERROR(VLOOKUP($B73,'Total Rankings (excl QB)'!$D:$L,7,0),"") ->  | J73: =IFERROR(VLOOKUP($B73,'Total Rankings (excl QB)'!$D:$L,8,0),"") ->  | L73: 70 | M73: =IFERROR(INDEX('Total Rankings (excl QB)'!$D:$D,MATCH(1,("Running Back"='Total Rankings (excl QB)'!$C:$C)*(L73='Total Rankings (excl QB)'!$F:$F),0),1),"") ->  | N73: =IFERROR(VLOOKUP($M73,'Total Rankings (excl QB)'!$D:$E,2,0),0) -> 0 | O73: 0 | Q73: =IFERROR(VLOOKUP($M73,'Total Rankings (excl QB)'!$D:$L,4,0),"") ->  | R73: =IFERROR(VLOOKUP($M73,'Total Rankings (excl QB)'!$D:$L,5,0),"") ->  | S73: =IFERROR(VLOOKUP($M73,'Total Rankings (excl QB)'!$D:$L,6,0),"") ->  | T73: =IFERROR(VLOOKUP($M73,'Total Rankings (excl QB)'!$D:$L,7,0),"") ->  | U73: =IFERROR(VLOOKUP($M73,'Total Rankings (excl QB)'!$D:$L,8,0),"") ->  | W73: 70 | X73: =IFERROR(INDEX('Total Rankings (excl QB)'!$D:$D,MATCH(1,("Tight End"='Total Rankings (excl QB)'!$C:$C)*(W73='Total Rankings (excl QB)'!$F:$F),0),1),"") ->  | Y73: =IFERROR(VLOOKUP($X73,'Total Rankings (excl QB)'!$D:$E,2,0),0) -> 0 | Z73: 0 | AB73: =IFERROR(VLOOKUP($X73,'Total Rankings (excl QB)'!$D:$L,4,0),"") ->  | AC73: =IFERROR(VLOOKUP($X73,'Total Rankings (excl QB)'!$D:$L,5,0),"") ->  | AD73: =IFERROR(VLOOKUP($X73,'Total Rankings (excl QB)'!$D:$L,6,0),"") ->  | AE73: =IFERROR(VLOOKUP($X73,'Total Rankings (excl QB)'!$D:$L,7,0),"") ->  | AF73: =IFERROR(VLOOKUP($X73,'Total Rankings (excl QB)'!$D:$L,8,0),"") -> 
A74: 71 | B74: =IFERROR(INDEX('Total Rankings (excl QB)'!$D:$D,MATCH(1,("Wide Receiver"='Total Rankings (excl QB)'!$C:$C)*(A74='Total Rankings (excl QB)'!$F:$F),0),1),"") ->  | C74: =IFERROR(VLOOKUP($B74,'Total Rankings (excl QB)'!$D:$E,2,0),0) -> 0 | D74: 0 | F74: =IFERROR(VLOOKUP($B74,'Total Rankings (excl QB)'!$D:$L,4,0),"") ->  | G74: =IFERROR(VLOOKUP($B74,'Total Rankings (excl QB)'!$D:$L,5,0),"") ->  | H74: =IFERROR(VLOOKUP($B74,'Total Rankings (excl QB)'!$D:$L,6,0),"") ->  | I74: =IFERROR(VLOOKUP($B74,'Total Rankings (excl QB)'!$D:$L,7,0),"") ->  | J74: =IFERROR(VLOOKUP($B74,'Total Rankings (excl QB)'!$D:$L,8,0),"") ->  | L74: 71 | M74: =IFERROR(INDEX('Total Rankings (excl QB)'!$D:$D,MATCH(1,("Running Back"='Total Rankings (excl QB)'!$C:$C)*(L74='Total Rankings (excl QB)'!$F:$F),0),1),"") ->  | N74: =IFERROR(VLOOKUP($M74,'Total Rankings (excl QB)'!$D:$E,2,0),0) -> 0 | O74: 0 | Q74: =IFERROR(VLOOKUP($M74,'Total Rankings (excl QB)'!$D:$L,4,0),"") ->  | R74: =IFERROR(VLOOKUP($M74,'Total Rankings (excl QB)'!$D:$L,5,0),"") ->  | S74: =IFERROR(VLOOKUP($M74,'Total Rankings (excl QB)'!$D:$L,6,0),"") ->  | T74: =IFERROR(VLOOKUP($M74,'Total Rankings (excl QB)'!$D:$L,7,0),"") ->  | U74: =IFERROR(VLOOKUP($M74,'Total Rankings (excl QB)'!$D:$L,8,0),"") ->  | W74: 71 | X74: =IFERROR(INDEX('Total Rankings (excl QB)'!$D:$D,MATCH(1,("Tight End"='Total Rankings (excl QB)'!$C:$C)*(W74='Total Rankings (excl QB)'!$F:$F),0),1),"") ->  | Y74: =IFERROR(VLOOKUP($X74,'Total Rankings (excl QB)'!$D:$E,2,0),0) -> 0 | Z74: 0 | AB74: =IFERROR(VLOOKUP($X74,'Total Rankings (excl QB)'!$D:$L,4,0),"") ->  | AC74: =IFERROR(VLOOKUP($X74,'Total Rankings (excl QB)'!$D:$L,5,0),"") ->  | AD74: =IFERROR(VLOOKUP($X74,'Total Rankings (excl QB)'!$D:$L,6,0),"") ->  | AE74: =IFERROR(VLOOKUP($X74,'Total Rankings (excl QB)'!$D:$L,7,0),"") ->  | AF74: =IFERROR(VLOOKUP($X74,'Total Rankings (excl QB)'!$D:$L,8,0),"") -> 
A75: 72 | B75: =IFERROR(INDEX('Total Rankings (excl QB)'!$D:$D,MATCH(1,("Wide Receiver"='Total Rankings (excl QB)'!$C:$C)*(A75='Total Rankings (excl QB)'!$F:$F),0),1),"") ->  | C75: =IFERROR(VLOOKUP($B75,'Total Rankings (excl QB)'!$D:$E,2,0),0) -> 0 | D75: 0 | F75: =IFERROR(VLOOKUP($B75,'Total Rankings (excl QB)'!$D:$L,4,0),"") ->  | G75: =IFERROR(VLOOKUP($B75,'Total Rankings (excl QB)'!$D:$L,5,0),"") ->  | H75: =IFERROR(VLOOKUP($B75,'Total Rankings (excl QB)'!$D:$L,6,0),"") ->  | I75: =IFERROR(VLOOKUP($B75,'Total Rankings (excl QB)'!$D:$L,7,0),"") ->  | J75: =IFERROR(VLOOKUP($B75,'Total Rankings (excl QB)'!$D:$L,8,0),"") ->  | L75: 72 | M75: =IFERROR(INDEX('Total Rankings (excl QB)'!$D:$D,MATCH(1,("Running Back"='Total Rankings (excl QB)'!$C:$C)*(L75='Total Rankings (excl QB)'!$F:$F),0),1),"") ->  | N75: =IFERROR(VLOOKUP($M75,'Total Rankings (excl QB)'!$D:$E,2,0),0) -> 0 | O75: 0 | Q75: =IFERROR(VLOOKUP($M75,'Total Rankings (excl QB)'!$D:$L,4,0),"") ->  | R75: =IFERROR(VLOOKUP($M75,'Total Rankings (excl QB)'!$D:$L,5,0),"") ->  | S75: =IFERROR(VLOOKUP($M75,'Total Rankings (excl QB)'!$D:$L,6,0),"") ->  | T75: =IFERROR(VLOOKUP($M75,'Total Rankings (excl QB)'!$D:$L,7,0),"") ->  | U75: =IFERROR(VLOOKUP($M75,'Total Rankings (excl QB)'!$D:$L,8,0),"") ->  | W75: 72 | X75: =IFERROR(INDEX('Total Rankings (excl QB)'!$D:$D,MATCH(1,("Tight End"='Total Rankings (excl QB)'!$C:$C)*(W75='Total Rankings (excl QB)'!$F:$F),0),1),"") ->  | Y75: =IFERROR(VLOOKUP($X75,'Total Rankings (excl QB)'!$D:$E,2,0),0) -> 0 | Z75: 0 | AB75: =IFERROR(VLOOKUP($X75,'Total Rankings (excl QB)'!$D:$L,4,0),"") ->  | AC75: =IFERROR(VLOOKUP($X75,'Total Rankings (excl QB)'!$D:$L,5,0),"") ->  | AD75: =IFERROR(VLOOKUP($X75,'Total Rankings (excl QB)'!$D:$L,6,0),"") ->  | AE75: =IFERROR(VLOOKUP($X75,'Total Rankings (excl QB)'!$D:$L,7,0),"") ->  | AF75: =IFERROR(VLOOKUP($X75,'Total Rankings (excl QB)'!$D:$L,8,0),"") -> 
A76: 73 | B76: =IFERROR(INDEX('Total Rankings (excl QB)'!$D:$D,MATCH(1,("Wide Receiver"='Total Rankings (excl QB)'!$C:$C)*(A76='Total Rankings (excl QB)'!$F:$F),0),1),"") ->  | C76: =IFERROR(VLOOKUP($B76,'Total Rankings (excl QB)'!$D:$E,2,0),0) -> 0 | D76: 0 | F76: =IFERROR(VLOOKUP($B76,'Total Rankings (excl QB)'!$D:$L,4,0),"") ->  | G76: =IFERROR(VLOOKUP($B76,'Total Rankings (excl QB)'!$D:$L,5,0),"") ->  | H76: =IFERROR(VLOOKUP($B76,'Total Rankings (excl QB)'!$D:$L,6,0),"") ->  | I76: =IFERROR(VLOOKUP($B76,'Total Rankings (excl QB)'!$D:$L,7,0),"") ->  | J76: =IFERROR(VLOOKUP($B76,'Total Rankings (excl QB)'!$D:$L,8,0),"") ->  | L76: 73 | M76: =IFERROR(INDEX('Total Rankings (excl QB)'!$D:$D,MATCH(1,("Running Back"='Total Rankings (excl QB)'!$C:$C)*(L76='Total Rankings (excl QB)'!$F:$F),0),1),"") ->  | N76: =IFERROR(VLOOKUP($M76,'Total Rankings (excl QB)'!$D:$E,2,0),0) -> 0 | O76: 0 | Q76: =IFERROR(VLOOKUP($M76,'Total Rankings (excl QB)'!$D:$L,4,0),"") ->  | R76: =IFERROR(VLOOKUP($M76,'Total Rankings (excl QB)'!$D:$L,5,0),"") ->  | S76: =IFERROR(VLOOKUP($M76,'Total Rankings (excl QB)'!$D:$L,6,0),"") ->  | T76: =IFERROR(VLOOKUP($M76,'Total Rankings (excl QB)'!$D:$L,7,0),"") ->  | U76: =IFERROR(VLOOKUP($M76,'Total Rankings (excl QB)'!$D:$L,8,0),"") ->  | W76: 73 | X76: =IFERROR(INDEX('Total Rankings (excl QB)'!$D:$D,MATCH(1,("Tight End"='Total Rankings (excl QB)'!$C:$C)*(W76='Total Rankings (excl QB)'!$F:$F),0),1),"") ->  | Y76: =IFERROR(VLOOKUP($X76,'Total Rankings (excl QB)'!$D:$E,2,0),0) -> 0 | Z76: 0 | AB76: =IFERROR(VLOOKUP($X76,'Total Rankings (excl QB)'!$D:$L,4,0),"") ->  | AC76: =IFERROR(VLOOKUP($X76,'Total Rankings (excl QB)'!$D:$L,5,0),"") ->  | AD76: =IFERROR(VLOOKUP($X76,'Total Rankings (excl QB)'!$D:$L,6,0),"") ->  | AE76: =IFERROR(VLOOKUP($X76,'Total Rankings (excl QB)'!$D:$L,7,0),"") ->  | AF76: =IFERROR(VLOOKUP($X76,'Total Rankings (excl QB)'!$D:$L,8,0),"") -> 
A77: 74 | B77: =IFERROR(INDEX('Total Rankings (excl QB)'!$D:$D,MATCH(1,("Wide Receiver"='Total Rankings (excl QB)'!$C:$C)*(A77='Total Rankings (excl QB)'!$F:$F),0),1),"") ->  | C77: =IFERROR(VLOOKUP($B77,'Total Rankings (excl QB)'!$D:$E,2,0),0) -> 0 | D77: 0 | F77: =IFERROR(VLOOKUP($B77,'Total Rankings (excl QB)'!$D:$L,4,0),"") ->  | G77: =IFERROR(VLOOKUP($B77,'Total Rankings (excl QB)'!$D:$L,5,0),"") ->  | H77: =IFERROR(VLOOKUP($B77,'Total Rankings (excl QB)'!$D:$L,6,0),"") ->  | I77: =IFERROR(VLOOKUP($B77,'Total Rankings (excl QB)'!$D:$L,7,0),"") ->  | J77: =IFERROR(VLOOKUP($B77,'Total Rankings (excl QB)'!$D:$L,8,0),"") ->  | L77: 74 | M77: =IFERROR(INDEX('Total Rankings (excl QB)'!$D:$D,MATCH(1,("Running Back"='Total Rankings (excl QB)'!$C:$C)*(L77='Total Rankings (excl QB)'!$F:$F),0),1),"") ->  | N77: =IFERROR(VLOOKUP($M77,'Total Rankings (excl QB)'!$D:$E,2,0),0) -> 0 | O77: 0 | Q77: =IFERROR(VLOOKUP($M77,'Total Rankings (excl QB)'!$D:$L,4,0),"") ->  | R77: =IFERROR(VLOOKUP($M77,'Total Rankings (excl QB)'!$D:$L,5,0),"") ->  | S77: =IFERROR(VLOOKUP($M77,'Total Rankings (excl QB)'!$D:$L,6,0),"") ->  | T77: =IFERROR(VLOOKUP($M77,'Total Rankings (excl QB)'!$D:$L,7,0),"") ->  | U77: =IFERROR(VLOOKUP($M77,'Total Rankings (excl QB)'!$D:$L,8,0),"") ->  | W77: 74 | X77: =IFERROR(INDEX('Total Rankings (excl QB)'!$D:$D,MATCH(1,("Tight End"='Total Rankings (excl QB)'!$C:$C)*(W77='Total Rankings (excl QB)'!$F:$F),0),1),"") ->  | Y77: =IFERROR(VLOOKUP($X77,'Total Rankings (excl QB)'!$D:$E,2,0),0) -> 0 | Z77: 0 | AB77: =IFERROR(VLOOKUP($X77,'Total Rankings (excl QB)'!$D:$L,4,0),"") ->  | AC77: =IFERROR(VLOOKUP($X77,'Total Rankings (excl QB)'!$D:$L,5,0),"") ->  | AD77: =IFERROR(VLOOKUP($X77,'Total Rankings (excl QB)'!$D:$L,6,0),"") ->  | AE77: =IFERROR(VLOOKUP($X77,'Total Rankings (excl QB)'!$D:$L,7,0),"") ->  | AF77: =IFERROR(VLOOKUP($X77,'Total Rankings (excl QB)'!$D:$L,8,0),"") -> 
A78: 75 | B78: =IFERROR(INDEX('Total Rankings (excl QB)'!$D:$D,MATCH(1,("Wide Receiver"='Total Rankings (excl QB)'!$C:$C)*(A78='Total Rankings (excl QB)'!$F:$F),0),1),"") ->  | C78: =IFERROR(VLOOKUP($B78,'Total Rankings (excl QB)'!$D:$E,2,0),0) -> 0 | D78: 0 | F78: =IFERROR(VLOOKUP($B78,'Total Rankings (excl QB)'!$D:$L,4,0),"") ->  | G78: =IFERROR(VLOOKUP($B78,'Total Rankings (excl QB)'!$D:$L,5,0),"") ->  | H78: =IFERROR(VLOOKUP($B78,'Total Rankings (excl QB)'!$D:$L,6,0),"") ->  | I78: =IFERROR(VLOOKUP($B78,'Total Rankings (excl QB)'!$D:$L,7,0),"") ->  | J78: =IFERROR(VLOOKUP($B78,'Total Rankings (excl QB)'!$D:$L,8,0),"") ->  | L78: 75 | M78: =IFERROR(INDEX('Total Rankings (excl QB)'!$D:$D,MATCH(1,("Running Back"='Total Rankings (excl QB)'!$C:$C)*(L78='Total Rankings (excl QB)'!$F:$F),0),1),"") ->  | N78: =IFERROR(VLOOKUP($M78,'Total Rankings (excl QB)'!$D:$E,2,0),0) -> 0 | O78: 0 | Q78: =IFERROR(VLOOKUP($M78,'Total Rankings (excl QB)'!$D:$L,4,0),"") ->  | R78: =IFERROR(VLOOKUP($M78,'Total Rankings (excl QB)'!$D:$L,5,0),"") ->  | S78: =IFERROR(VLOOKUP($M78,'Total Rankings (excl QB)'!$D:$L,6,0),"") ->  | T78: =IFERROR(VLOOKUP($M78,'Total Rankings (excl QB)'!$D:$L,7,0),"") ->  | U78: =IFERROR(VLOOKUP($M78,'Total Rankings (excl QB)'!$D:$L,8,0),"") ->  | W78: 75 | X78: =IFERROR(INDEX('Total Rankings (excl QB)'!$D:$D,MATCH(1,("Tight End"='Total Rankings (excl QB)'!$C:$C)*(W78='Total Rankings (excl QB)'!$F:$F),0),1),"") ->  | Y78: =IFERROR(VLOOKUP($X78,'Total Rankings (excl QB)'!$D:$E,2,0),0) -> 0 | Z78: 0 | AB78: =IFERROR(VLOOKUP($X78,'Total Rankings (excl QB)'!$D:$L,4,0),"") ->  | AC78: =IFERROR(VLOOKUP($X78,'Total Rankings (excl QB)'!$D:$L,5,0),"") ->  | AD78: =IFERROR(VLOOKUP($X78,'Total Rankings (excl QB)'!$D:$L,6,0),"") ->  | AE78: =IFERROR(VLOOKUP($X78,'Total Rankings (excl QB)'!$D:$L,7,0),"") ->  | AF78: =IFERROR(VLOOKUP($X78,'Total Rankings (excl QB)'!$D:$L,8,0),"") -> 
A79: 76 | B79: =IFERROR(INDEX('Total Rankings (excl QB)'!$D:$D,MATCH(1,("Wide Receiver"='Total Rankings (excl QB)'!$C:$C)*(A79='Total Rankings (excl QB)'!$F:$F),0),1),"") ->  | C79: =IFERROR(VLOOKUP($B79,'Total Rankings (excl QB)'!$D:$E,2,0),0) -> 0 | D79: 0 | F79: =IFERROR(VLOOKUP($B79,'Total Rankings (excl QB)'!$D:$L,4,0),"") ->  | G79: =IFERROR(VLOOKUP($B79,'Total Rankings (excl QB)'!$D:$L,5,0),"") ->  | H79: =IFERROR(VLOOKUP($B79,'Total Rankings (excl QB)'!$D:$L,6,0),"") ->  | I79: =IFERROR(VLOOKUP($B79,'Total Rankings (excl QB)'!$D:$L,7,0),"") ->  | J79: =IFERROR(VLOOKUP($B79,'Total Rankings (excl QB)'!$D:$L,8,0),"") ->  | L79: 76 | M79: =IFERROR(INDEX('Total Rankings (excl QB)'!$D:$D,MATCH(1,("Running Back"='Total Rankings (excl QB)'!$C:$C)*(L79='Total Rankings (excl QB)'!$F:$F),0),1),"") ->  | N79: =IFERROR(VLOOKUP($M79,'Total Rankings (excl QB)'!$D:$E,2,0),0) -> 0 | O79: 0 | Q79: =IFERROR(VLOOKUP($M79,'Total Rankings (excl QB)'!$D:$L,4,0),"") ->  | R79: =IFERROR(VLOOKUP($M79,'Total Rankings (excl QB)'!$D:$L,5,0),"") ->  | S79: =IFERROR(VLOOKUP($M79,'Total Rankings (excl QB)'!$D:$L,6,0),"") ->  | T79: =IFERROR(VLOOKUP($M79,'Total Rankings (excl QB)'!$D:$L,7,0),"") ->  | U79: =IFERROR(VLOOKUP($M79,'Total Rankings (excl QB)'!$D:$L,8,0),"") ->  | W79: 76 | X79: =IFERROR(INDEX('Total Rankings (excl QB)'!$D:$D,MATCH(1,("Tight End"='Total Rankings (excl QB)'!$C:$C)*(W79='Total Rankings (excl QB)'!$F:$F),0),1),"") ->  | Y79: =IFERROR(VLOOKUP($X79,'Total Rankings (excl QB)'!$D:$E,2,0),0) -> 0 | Z79: 0 | AB79: =IFERROR(VLOOKUP($X79,'Total Rankings (excl QB)'!$D:$L,4,0),"") ->  | AC79: =IFERROR(VLOOKUP($X79,'Total Rankings (excl QB)'!$D:$L,5,0),"") ->  | AD79: =IFERROR(VLOOKUP($X79,'Total Rankings (excl QB)'!$D:$L,6,0),"") ->  | AE79: =IFERROR(VLOOKUP($X79,'Total Rankings (excl QB)'!$D:$L,7,0),"") ->  | AF79: =IFERROR(VLOOKUP($X79,'Total Rankings (excl QB)'!$D:$L,8,0),"") -> 
A80: 77 | B80: =IFERROR(INDEX('Total Rankings (excl QB)'!$D:$D,MATCH(1,("Wide Receiver"='Total Rankings (excl QB)'!$C:$C)*(A80='Total Rankings (excl QB)'!$F:$F),0),1),"") ->  | C80: =IFERROR(VLOOKUP($B80,'Total Rankings (excl QB)'!$D:$E,2,0),0) -> 0 | D80: 0 | F80: =IFERROR(VLOOKUP($B80,'Total Rankings (excl QB)'!$D:$L,4,0),"") ->  | G80: =IFERROR(VLOOKUP($B80,'Total Rankings (excl QB)'!$D:$L,5,0),"") ->  | H80: =IFERROR(VLOOKUP($B80,'Total Rankings (excl QB)'!$D:$L,6,0),"") ->  | I80: =IFERROR(VLOOKUP($B80,'Total Rankings (excl QB)'!$D:$L,7,0),"") ->  | J80: =IFERROR(VLOOKUP($B80,'Total Rankings (excl QB)'!$D:$L,8,0),"") ->  | L80: 77 | M80: =IFERROR(INDEX('Total Rankings (excl QB)'!$D:$D,MATCH(1,("Running Back"='Total Rankings (excl QB)'!$C:$C)*(L80='Total Rankings (excl QB)'!$F:$F),0),1),"") ->  | N80: =IFERROR(VLOOKUP($M80,'Total Rankings (excl QB)'!$D:$E,2,0),0) -> 0 | O80: 0 | Q80: =IFERROR(VLOOKUP($M80,'Total Rankings (excl QB)'!$D:$L,4,0),"") ->  | R80: =IFERROR(VLOOKUP($M80,'Total Rankings (excl QB)'!$D:$L,5,0),"") ->  | S80: =IFERROR(VLOOKUP($M80,'Total Rankings (excl QB)'!$D:$L,6,0),"") ->  | T80: =IFERROR(VLOOKUP($M80,'Total Rankings (excl QB)'!$D:$L,7,0),"") ->  | U80: =IFERROR(VLOOKUP($M80,'Total Rankings (excl QB)'!$D:$L,8,0),"") ->  | W80: 77 | X80: =IFERROR(INDEX('Total Rankings (excl QB)'!$D:$D,MATCH(1,("Tight End"='Total Rankings (excl QB)'!$C:$C)*(W80='Total Rankings (excl QB)'!$F:$F),0),1),"") ->  | Y80: =IFERROR(VLOOKUP($X80,'Total Rankings (excl QB)'!$D:$E,2,0),0) -> 0 | Z80: 0 | AB80: =IFERROR(VLOOKUP($X80,'Total Rankings (excl QB)'!$D:$L,4,0),"") ->  | AC80: =IFERROR(VLOOKUP($X80,'Total Rankings (excl QB)'!$D:$L,5,0),"") ->  | AD80: =IFERROR(VLOOKUP($X80,'Total Rankings (excl QB)'!$D:$L,6,0),"") ->  | AE80: =IFERROR(VLOOKUP($X80,'Total Rankings (excl QB)'!$D:$L,7,0),"") ->  | AF80: =IFERROR(VLOOKUP($X80,'Total Rankings (excl QB)'!$D:$L,8,0),"") -> 
A81: 78 | B81: =IFERROR(INDEX('Total Rankings (excl QB)'!$D:$D,MATCH(1,("Wide Receiver"='Total Rankings (excl QB)'!$C:$C)*(A81='Total Rankings (excl QB)'!$F:$F),0),1),"") ->  | C81: =IFERROR(VLOOKUP($B81,'Total Rankings (excl QB)'!$D:$E,2,0),0) -> 0 | D81: 0 | F81: =IFERROR(VLOOKUP($B81,'Total Rankings (excl QB)'!$D:$L,4,0),"") ->  | G81: =IFERROR(VLOOKUP($B81,'Total Rankings (excl QB)'!$D:$L,5,0),"") ->  | H81: =IFERROR(VLOOKUP($B81,'Total Rankings (excl QB)'!$D:$L,6,0),"") ->  | I81: =IFERROR(VLOOKUP($B81,'Total Rankings (excl QB)'!$D:$L,7,0),"") ->  | J81: =IFERROR(VLOOKUP($B81,'Total Rankings (excl QB)'!$D:$L,8,0),"") ->  | L81: 78 | M81: =IFERROR(INDEX('Total Rankings (excl QB)'!$D:$D,MATCH(1,("Running Back"='Total Rankings (excl QB)'!$C:$C)*(L81='Total Rankings (excl QB)'!$F:$F),0),1),"") ->  | N81: =IFERROR(VLOOKUP($M81,'Total Rankings (excl QB)'!$D:$E,2,0),0) -> 0 | O81: 0 | Q81: =IFERROR(VLOOKUP($M81,'Total Rankings (excl QB)'!$D:$L,4,0),"") ->  | R81: =IFERROR(VLOOKUP($M81,'Total Rankings (excl QB)'!$D:$L,5,0),"") ->  | S81: =IFERROR(VLOOKUP($M81,'Total Rankings (excl QB)'!$D:$L,6,0),"") ->  | T81: =IFERROR(VLOOKUP($M81,'Total Rankings (excl QB)'!$D:$L,7,0),"") ->  | U81: =IFERROR(VLOOKUP($M81,'Total Rankings (excl QB)'!$D:$L,8,0),"") ->  | W81: 78 | X81: =IFERROR(INDEX('Total Rankings (excl QB)'!$D:$D,MATCH(1,("Tight End"='Total Rankings (excl QB)'!$C:$C)*(W81='Total Rankings (excl QB)'!$F:$F),0),1),"") ->  | Y81: =IFERROR(VLOOKUP($X81,'Total Rankings (excl QB)'!$D:$E,2,0),0) -> 0 | Z81: 0 | AB81: =IFERROR(VLOOKUP($X81,'Total Rankings (excl QB)'!$D:$L,4,0),"") ->  | AC81: =IFERROR(VLOOKUP($X81,'Total Rankings (excl QB)'!$D:$L,5,0),"") ->  | AD81: =IFERROR(VLOOKUP($X81,'Total Rankings (excl QB)'!$D:$L,6,0),"") ->  | AE81: =IFERROR(VLOOKUP($X81,'Total Rankings (excl QB)'!$D:$L,7,0),"") ->  | AF81: =IFERROR(VLOOKUP($X81,'Total Rankings (excl QB)'!$D:$L,8,0),"") -> 
A82: 79 | B82: =IFERROR(INDEX('Total Rankings (excl QB)'!$D:$D,MATCH(1,("Wide Receiver"='Total Rankings (excl QB)'!$C:$C)*(A82='Total Rankings (excl QB)'!$F:$F),0),1),"") ->  | C82: =IFERROR(VLOOKUP($B82,'Total Rankings (excl QB)'!$D:$E,2,0),0) -> 0 | D82: 0 | F82: =IFERROR(VLOOKUP($B82,'Total Rankings (excl QB)'!$D:$L,4,0),"") ->  | G82: =IFERROR(VLOOKUP($B82,'Total Rankings (excl QB)'!$D:$L,5,0),"") ->  | H82: =IFERROR(VLOOKUP($B82,'Total Rankings (excl QB)'!$D:$L,6,0),"") ->  | I82: =IFERROR(VLOOKUP($B82,'Total Rankings (excl QB)'!$D:$L,7,0),"") ->  | J82: =IFERROR(VLOOKUP($B82,'Total Rankings (excl QB)'!$D:$L,8,0),"") ->  | L82: 79 | M82: =IFERROR(INDEX('Total Rankings (excl QB)'!$D:$D,MATCH(1,("Running Back"='Total Rankings (excl QB)'!$C:$C)*(L82='Total Rankings (excl QB)'!$F:$F),0),1),"") ->  | N82: =IFERROR(VLOOKUP($M82,'Total Rankings (excl QB)'!$D:$E,2,0),0) -> 0 | O82: 0 | Q82: =IFERROR(VLOOKUP($M82,'Total Rankings (excl QB)'!$D:$L,4,0),"") ->  | R82: =IFERROR(VLOOKUP($M82,'Total Rankings (excl QB)'!$D:$L,5,0),"") ->  | S82: =IFERROR(VLOOKUP($M82,'Total Rankings (excl QB)'!$D:$L,6,0),"") ->  | T82: =IFERROR(VLOOKUP($M82,'Total Rankings (excl QB)'!$D:$L,7,0),"") ->  | U82: =IFERROR(VLOOKUP($M82,'Total Rankings (excl QB)'!$D:$L,8,0),"") ->  | W82: 79 | X82: =IFERROR(INDEX('Total Rankings (excl QB)'!$D:$D,MATCH(1,("Tight End"='Total Rankings (excl QB)'!$C:$C)*(W82='Total Rankings (excl QB)'!$F:$F),0),1),"") ->  | Y82: =IFERROR(VLOOKUP($X82,'Total Rankings (excl QB)'!$D:$E,2,0),0) -> 0 | Z82: 0 | AB82: =IFERROR(VLOOKUP($X82,'Total Rankings (excl QB)'!$D:$L,4,0),"") ->  | AC82: =IFERROR(VLOOKUP($X82,'Total Rankings (excl QB)'!$D:$L,5,0),"") ->  | AD82: =IFERROR(VLOOKUP($X82,'Total Rankings (excl QB)'!$D:$L,6,0),"") ->  | AE82: =IFERROR(VLOOKUP($X82,'Total Rankings (excl QB)'!$D:$L,7,0),"") ->  | AF82: =IFERROR(VLOOKUP($X82,'Total Rankings (excl QB)'!$D:$L,8,0),"") -> 
A83: 80 | B83: =IFERROR(INDEX('Total Rankings (excl QB)'!$D:$D,MATCH(1,("Wide Receiver"='Total Rankings (excl QB)'!$C:$C)*(A83='Total Rankings (excl QB)'!$F:$F),0),1),"") ->  | C83: =IFERROR(VLOOKUP($B83,'Total Rankings (excl QB)'!$D:$E,2,0),0) -> 0 | D83: 0 | F83: =IFERROR(VLOOKUP($B83,'Total Rankings (excl QB)'!$D:$L,4,0),"") ->  | G83: =IFERROR(VLOOKUP($B83,'Total Rankings (excl QB)'!$D:$L,5,0),"") ->  | H83: =IFERROR(VLOOKUP($B83,'Total Rankings (excl QB)'!$D:$L,6,0),"") ->  | I83: =IFERROR(VLOOKUP($B83,'Total Rankings (excl QB)'!$D:$L,7,0),"") ->  | J83: =IFERROR(VLOOKUP($B83,'Total Rankings (excl QB)'!$D:$L,8,0),"") ->  | L83: 80 | M83: =IFERROR(INDEX('Total Rankings (excl QB)'!$D:$D,MATCH(1,("Running Back"='Total Rankings (excl QB)'!$C:$C)*(L83='Total Rankings (excl QB)'!$F:$F),0),1),"") ->  | N83: =IFERROR(VLOOKUP($M83,'Total Rankings (excl QB)'!$D:$E,2,0),0) -> 0 | O83: 0 | Q83: =IFERROR(VLOOKUP($M83,'Total Rankings (excl QB)'!$D:$L,4,0),"") ->  | R83: =IFERROR(VLOOKUP($M83,'Total Rankings (excl QB)'!$D:$L,5,0),"") ->  | S83: =IFERROR(VLOOKUP($M83,'Total Rankings (excl QB)'!$D:$L,6,0),"") ->  | T83: =IFERROR(VLOOKUP($M83,'Total Rankings (excl QB)'!$D:$L,7,0),"") ->  | U83: =IFERROR(VLOOKUP($M83,'Total Rankings (excl QB)'!$D:$L,8,0),"") ->  | W83: 80 | X83: =IFERROR(INDEX('Total Rankings (excl QB)'!$D:$D,MATCH(1,("Tight End"='Total Rankings (excl QB)'!$C:$C)*(W83='Total Rankings (excl QB)'!$F:$F),0),1),"") ->  | Y83: =IFERROR(VLOOKUP($X83,'Total Rankings (excl QB)'!$D:$E,2,0),0) -> 0 | Z83: 0 | AB83: =IFERROR(VLOOKUP($X83,'Total Rankings (excl QB)'!$D:$L,4,0),"") ->  | AC83: =IFERROR(VLOOKUP($X83,'Total Rankings (excl QB)'!$D:$L,5,0),"") ->  | AD83: =IFERROR(VLOOKUP($X83,'Total Rankings (excl QB)'!$D:$L,6,0),"") ->  | AE83: =IFERROR(VLOOKUP($X83,'Total Rankings (excl QB)'!$D:$L,7,0),"") ->  | AF83: =IFERROR(VLOOKUP($X83,'Total Rankings (excl QB)'!$D:$L,8,0),"") -> 
A84: 81 | B84: =IFERROR(INDEX('Total Rankings (excl QB)'!$D:$D,MATCH(1,("Wide Receiver"='Total Rankings (excl QB)'!$C:$C)*(A84='Total Rankings (excl QB)'!$F:$F),0),1),"") ->  | C84: =IFERROR(VLOOKUP($B84,'Total Rankings (excl QB)'!$D:$E,2,0),0) -> 0 | D84: 0 | F84: =IFERROR(VLOOKUP($B84,'Total Rankings (excl QB)'!$D:$L,4,0),"") ->  | G84: =IFERROR(VLOOKUP($B84,'Total Rankings (excl QB)'!$D:$L,5,0),"") ->  | H84: =IFERROR(VLOOKUP($B84,'Total Rankings (excl QB)'!$D:$L,6,0),"") ->  | I84: =IFERROR(VLOOKUP($B84,'Total Rankings (excl QB)'!$D:$L,7,0),"") ->  | J84: =IFERROR(VLOOKUP($B84,'Total Rankings (excl QB)'!$D:$L,8,0),"") ->  | L84: 81 | M84: =IFERROR(INDEX('Total Rankings (excl QB)'!$D:$D,MATCH(1,("Running Back"='Total Rankings (excl QB)'!$C:$C)*(L84='Total Rankings (excl QB)'!$F:$F),0),1),"") ->  | N84: =IFERROR(VLOOKUP($M84,'Total Rankings (excl QB)'!$D:$E,2,0),0) -> 0 | O84: 0 | Q84: =IFERROR(VLOOKUP($M84,'Total Rankings (excl QB)'!$D:$L,4,0),"") ->  | R84: =IFERROR(VLOOKUP($M84,'Total Rankings (excl QB)'!$D:$L,5,0),"") ->  | S84: =IFERROR(VLOOKUP($M84,'Total Rankings (excl QB)'!$D:$L,6,0),"") ->  | T84: =IFERROR(VLOOKUP($M84,'Total Rankings (excl QB)'!$D:$L,7,0),"") ->  | U84: =IFERROR(VLOOKUP($M84,'Total Rankings (excl QB)'!$D:$L,8,0),"") ->  | W84: 81 | X84: =IFERROR(INDEX('Total Rankings (excl QB)'!$D:$D,MATCH(1,("Tight End"='Total Rankings (excl QB)'!$C:$C)*(W84='Total Rankings (excl QB)'!$F:$F),0),1),"") ->  | Y84: =IFERROR(VLOOKUP($X84,'Total Rankings (excl QB)'!$D:$E,2,0),0) -> 0 | Z84: 0 | AB84: =IFERROR(VLOOKUP($X84,'Total Rankings (excl QB)'!$D:$L,4,0),"") ->  | AC84: =IFERROR(VLOOKUP($X84,'Total Rankings (excl QB)'!$D:$L,5,0),"") ->  | AD84: =IFERROR(VLOOKUP($X84,'Total Rankings (excl QB)'!$D:$L,6,0),"") ->  | AE84: =IFERROR(VLOOKUP($X84,'Total Rankings (excl QB)'!$D:$L,7,0),"") ->  | AF84: =IFERROR(VLOOKUP($X84,'Total Rankings (excl QB)'!$D:$L,8,0),"") -> 
A85: 82 | B85: =IFERROR(INDEX('Total Rankings (excl QB)'!$D:$D,MATCH(1,("Wide Receiver"='Total Rankings (excl QB)'!$C:$C)*(A85='Total Rankings (excl QB)'!$F:$F),0),1),"") ->  | C85: =IFERROR(VLOOKUP($B85,'Total Rankings (excl QB)'!$D:$E,2,0),0) -> 0 | D85: 0 | F85: =IFERROR(VLOOKUP($B85,'Total Rankings (excl QB)'!$D:$L,4,0),"") ->  | G85: =IFERROR(VLOOKUP($B85,'Total Rankings (excl QB)'!$D:$L,5,0),"") ->  | H85: =IFERROR(VLOOKUP($B85,'Total Rankings (excl QB)'!$D:$L,6,0),"") ->  | I85: =IFERROR(VLOOKUP($B85,'Total Rankings (excl QB)'!$D:$L,7,0),"") ->  | J85: =IFERROR(VLOOKUP($B85,'Total Rankings (excl QB)'!$D:$L,8,0),"") ->  | L85: 82 | M85: =IFERROR(INDEX('Total Rankings (excl QB)'!$D:$D,MATCH(1,("Running Back"='Total Rankings (excl QB)'!$C:$C)*(L85='Total Rankings (excl QB)'!$F:$F),0),1),"") ->  | N85: =IFERROR(VLOOKUP($M85,'Total Rankings (excl QB)'!$D:$E,2,0),0) -> 0 | O85: 0 | Q85: =IFERROR(VLOOKUP($M85,'Total Rankings (excl QB)'!$D:$L,4,0),"") ->  | R85: =IFERROR(VLOOKUP($M85,'Total Rankings (excl QB)'!$D:$L,5,0),"") ->  | S85: =IFERROR(VLOOKUP($M85,'Total Rankings (excl QB)'!$D:$L,6,0),"") ->  | T85: =IFERROR(VLOOKUP($M85,'Total Rankings (excl QB)'!$D:$L,7,0),"") ->  | U85: =IFERROR(VLOOKUP($M85,'Total Rankings (excl QB)'!$D:$L,8,0),"") ->  | W85: 82 | X85: =IFERROR(INDEX('Total Rankings (excl QB)'!$D:$D,MATCH(1,("Tight End"='Total Rankings (excl QB)'!$C:$C)*(W85='Total Rankings (excl QB)'!$F:$F),0),1),"") ->  | Y85: =IFERROR(VLOOKUP($X85,'Total Rankings (excl QB)'!$D:$E,2,0),0) -> 0 | Z85: 0 | AB85: =IFERROR(VLOOKUP($X85,'Total Rankings (excl QB)'!$D:$L,4,0),"") ->  | AC85: =IFERROR(VLOOKUP($X85,'Total Rankings (excl QB)'!$D:$L,5,0),"") ->  | AD85: =IFERROR(VLOOKUP($X85,'Total Rankings (excl QB)'!$D:$L,6,0),"") ->  | AE85: =IFERROR(VLOOKUP($X85,'Total Rankings (excl QB)'!$D:$L,7,0),"") ->  | AF85: =IFERROR(VLOOKUP($X85,'Total Rankings (excl QB)'!$D:$L,8,0),"") -> 
A86: 83 | B86: =IFERROR(INDEX('Total Rankings (excl QB)'!$D:$D,MATCH(1,("Wide Receiver"='Total Rankings (excl QB)'!$C:$C)*(A86='Total Rankings (excl QB)'!$F:$F),0),1),"") ->  | C86: =IFERROR(VLOOKUP($B86,'Total Rankings (excl QB)'!$D:$E,2,0),0) -> 0 | D86: 0 | F86: =IFERROR(VLOOKUP($B86,'Total Rankings (excl QB)'!$D:$L,4,0),"") ->  | G86: =IFERROR(VLOOKUP($B86,'Total Rankings (excl QB)'!$D:$L,5,0),"") ->  | H86: =IFERROR(VLOOKUP($B86,'Total Rankings (excl QB)'!$D:$L,6,0),"") ->  | I86: =IFERROR(VLOOKUP($B86,'Total Rankings (excl QB)'!$D:$L,7,0),"") ->  | J86: =IFERROR(VLOOKUP($B86,'Total Rankings (excl QB)'!$D:$L,8,0),"") ->  | L86: 83 | M86: =IFERROR(INDEX('Total Rankings (excl QB)'!$D:$D,MATCH(1,("Running Back"='Total Rankings (excl QB)'!$C:$C)*(L86='Total Rankings (excl QB)'!$F:$F),0),1),"") ->  | N86: =IFERROR(VLOOKUP($M86,'Total Rankings (excl QB)'!$D:$E,2,0),0) -> 0 | O86: 0 | Q86: =IFERROR(VLOOKUP($M86,'Total Rankings (excl QB)'!$D:$L,4,0),"") ->  | R86: =IFERROR(VLOOKUP($M86,'Total Rankings (excl QB)'!$D:$L,5,0),"") ->  | S86: =IFERROR(VLOOKUP($M86,'Total Rankings (excl QB)'!$D:$L,6,0),"") ->  | T86: =IFERROR(VLOOKUP($M86,'Total Rankings (excl QB)'!$D:$L,7,0),"") ->  | U86: =IFERROR(VLOOKUP($M86,'Total Rankings (excl QB)'!$D:$L,8,0),"") ->  | W86: 83 | X86: =IFERROR(INDEX('Total Rankings (excl QB)'!$D:$D,MATCH(1,("Tight End"='Total Rankings (excl QB)'!$C:$C)*(W86='Total Rankings (excl QB)'!$F:$F),0),1),"") ->  | Y86: =IFERROR(VLOOKUP($X86,'Total Rankings (excl QB)'!$D:$E,2,0),0) -> 0 | Z86: 0 | AB86: =IFERROR(VLOOKUP($X86,'Total Rankings (excl QB)'!$D:$L,4,0),"") ->  | AC86: =IFERROR(VLOOKUP($X86,'Total Rankings (excl QB)'!$D:$L,5,0),"") ->  | AD86: =IFERROR(VLOOKUP($X86,'Total Rankings (excl QB)'!$D:$L,6,0),"") ->  | AE86: =IFERROR(VLOOKUP($X86,'Total Rankings (excl QB)'!$D:$L,7,0),"") ->  | AF86: =IFERROR(VLOOKUP($X86,'Total Rankings (excl QB)'!$D:$L,8,0),"") -> 
A87: 84 | B87: =IFERROR(INDEX('Total Rankings (excl QB)'!$D:$D,MATCH(1,("Wide Receiver"='Total Rankings (excl QB)'!$C:$C)*(A87='Total Rankings (excl QB)'!$F:$F),0),1),"") ->  | C87: =IFERROR(VLOOKUP($B87,'Total Rankings (excl QB)'!$D:$E,2,0),0) -> 0 | D87: 0 | F87: =IFERROR(VLOOKUP($B87,'Total Rankings (excl QB)'!$D:$L,4,0),"") ->  | G87: =IFERROR(VLOOKUP($B87,'Total Rankings (excl QB)'!$D:$L,5,0),"") ->  | H87: =IFERROR(VLOOKUP($B87,'Total Rankings (excl QB)'!$D:$L,6,0),"") ->  | I87: =IFERROR(VLOOKUP($B87,'Total Rankings (excl QB)'!$D:$L,7,0),"") ->  | J87: =IFERROR(VLOOKUP($B87,'Total Rankings (excl QB)'!$D:$L,8,0),"") ->  | L87: 84 | M87: =IFERROR(INDEX('Total Rankings (excl QB)'!$D:$D,MATCH(1,("Running Back"='Total Rankings (excl QB)'!$C:$C)*(L87='Total Rankings (excl QB)'!$F:$F),0),1),"") ->  | N87: =IFERROR(VLOOKUP($M87,'Total Rankings (excl QB)'!$D:$E,2,0),0) -> 0 | O87: 0 | Q87: =IFERROR(VLOOKUP($M87,'Total Rankings (excl QB)'!$D:$L,4,0),"") ->  | R87: =IFERROR(VLOOKUP($M87,'Total Rankings (excl QB)'!$D:$L,5,0),"") ->  | S87: =IFERROR(VLOOKUP($M87,'Total Rankings (excl QB)'!$D:$L,6,0),"") ->  | T87: =IFERROR(VLOOKUP($M87,'Total Rankings (excl QB)'!$D:$L,7,0),"") ->  | U87: =IFERROR(VLOOKUP($M87,'Total Rankings (excl QB)'!$D:$L,8,0),"") ->  | W87: 84 | X87: =IFERROR(INDEX('Total Rankings (excl QB)'!$D:$D,MATCH(1,("Tight End"='Total Rankings (excl QB)'!$C:$C)*(W87='Total Rankings (excl QB)'!$F:$F),0),1),"") ->  | Y87: =IFERROR(VLOOKUP($X87,'Total Rankings (excl QB)'!$D:$E,2,0),0) -> 0 | Z87: 0 | AB87: =IFERROR(VLOOKUP($X87,'Total Rankings (excl QB)'!$D:$L,4,0),"") ->  | AC87: =IFERROR(VLOOKUP($X87,'Total Rankings (excl QB)'!$D:$L,5,0),"") ->  | AD87: =IFERROR(VLOOKUP($X87,'Total Rankings (excl QB)'!$D:$L,6,0),"") ->  | AE87: =IFERROR(VLOOKUP($X87,'Total Rankings (excl QB)'!$D:$L,7,0),"") ->  | AF87: =IFERROR(VLOOKUP($X87,'Total Rankings (excl QB)'!$D:$L,8,0),"") -> 
A88: 85 | B88: =IFERROR(INDEX('Total Rankings (excl QB)'!$D:$D,MATCH(1,("Wide Receiver"='Total Rankings (excl QB)'!$C:$C)*(A88='Total Rankings (excl QB)'!$F:$F),0),1),"") ->  | C88: =IFERROR(VLOOKUP($B88,'Total Rankings (excl QB)'!$D:$E,2,0),0) -> 0 | D88: 0 | F88: =IFERROR(VLOOKUP($B88,'Total Rankings (excl QB)'!$D:$L,4,0),"") ->  | G88: =IFERROR(VLOOKUP($B88,'Total Rankings (excl QB)'!$D:$L,5,0),"") ->  | H88: =IFERROR(VLOOKUP($B88,'Total Rankings (excl QB)'!$D:$L,6,0),"") ->  | I88: =IFERROR(VLOOKUP($B88,'Total Rankings (excl QB)'!$D:$L,7,0),"") ->  | J88: =IFERROR(VLOOKUP($B88,'Total Rankings (excl QB)'!$D:$L,8,0),"") ->  | L88: 85 | M88: =IFERROR(INDEX('Total Rankings (excl QB)'!$D:$D,MATCH(1,("Running Back"='Total Rankings (excl QB)'!$C:$C)*(L88='Total Rankings (excl QB)'!$F:$F),0),1),"") ->  | N88: =IFERROR(VLOOKUP($M88,'Total Rankings (excl QB)'!$D:$E,2,0),0) -> 0 | O88: 0 | Q88: =IFERROR(VLOOKUP($M88,'Total Rankings (excl QB)'!$D:$L,4,0),"") ->  | R88: =IFERROR(VLOOKUP($M88,'Total Rankings (excl QB)'!$D:$L,5,0),"") ->  | S88: =IFERROR(VLOOKUP($M88,'Total Rankings (excl QB)'!$D:$L,6,0),"") ->  | T88: =IFERROR(VLOOKUP($M88,'Total Rankings (excl QB)'!$D:$L,7,0),"") ->  | U88: =IFERROR(VLOOKUP($M88,'Total Rankings (excl QB)'!$D:$L,8,0),"") ->  | W88: 85 | X88: =IFERROR(INDEX('Total Rankings (excl QB)'!$D:$D,MATCH(1,("Tight End"='Total Rankings (excl QB)'!$C:$C)*(W88='Total Rankings (excl QB)'!$F:$F),0),1),"") ->  | Y88: =IFERROR(VLOOKUP($X88,'Total Rankings (excl QB)'!$D:$E,2,0),0) -> 0 | Z88: 0 | AB88: =IFERROR(VLOOKUP($X88,'Total Rankings (excl QB)'!$D:$L,4,0),"") ->  | AC88: =IFERROR(VLOOKUP($X88,'Total Rankings (excl QB)'!$D:$L,5,0),"") ->  | AD88: =IFERROR(VLOOKUP($X88,'Total Rankings (excl QB)'!$D:$L,6,0),"") ->  | AE88: =IFERROR(VLOOKUP($X88,'Total Rankings (excl QB)'!$D:$L,7,0),"") ->  | AF88: =IFERROR(VLOOKUP($X88,'Total Rankings (excl QB)'!$D:$L,8,0),"") -> 
A89: 86 | B89: =IFERROR(INDEX('Total Rankings (excl QB)'!$D:$D,MATCH(1,("Wide Receiver"='Total Rankings (excl QB)'!$C:$C)*(A89='Total Rankings (excl QB)'!$F:$F),0),1),"") ->  | C89: =IFERROR(VLOOKUP($B89,'Total Rankings (excl QB)'!$D:$E,2,0),0) -> 0 | D89: 0 | F89: =IFERROR(VLOOKUP($B89,'Total Rankings (excl QB)'!$D:$L,4,0),"") ->  | G89: =IFERROR(VLOOKUP($B89,'Total Rankings (excl QB)'!$D:$L,5,0),"") ->  | H89: =IFERROR(VLOOKUP($B89,'Total Rankings (excl QB)'!$D:$L,6,0),"") ->  | I89: =IFERROR(VLOOKUP($B89,'Total Rankings (excl QB)'!$D:$L,7,0),"") ->  | J89: =IFERROR(VLOOKUP($B89,'Total Rankings (excl QB)'!$D:$L,8,0),"") ->  | L89: 86 | M89: =IFERROR(INDEX('Total Rankings (excl QB)'!$D:$D,MATCH(1,("Running Back"='Total Rankings (excl QB)'!$C:$C)*(L89='Total Rankings (excl QB)'!$F:$F),0),1),"") ->  | N89: =IFERROR(VLOOKUP($M89,'Total Rankings (excl QB)'!$D:$E,2,0),0) -> 0 | O89: 0 | Q89: =IFERROR(VLOOKUP($M89,'Total Rankings (excl QB)'!$D:$L,4,0),"") ->  | R89: =IFERROR(VLOOKUP($M89,'Total Rankings (excl QB)'!$D:$L,5,0),"") ->  | S89: =IFERROR(VLOOKUP($M89,'Total Rankings (excl QB)'!$D:$L,6,0),"") ->  | T89: =IFERROR(VLOOKUP($M89,'Total Rankings (excl QB)'!$D:$L,7,0),"") ->  | U89: =IFERROR(VLOOKUP($M89,'Total Rankings (excl QB)'!$D:$L,8,0),"") ->  | W89: 86 | X89: =IFERROR(INDEX('Total Rankings (excl QB)'!$D:$D,MATCH(1,("Tight End"='Total Rankings (excl QB)'!$C:$C)*(W89='Total Rankings (excl QB)'!$F:$F),0),1),"") ->  | Y89: =IFERROR(VLOOKUP($X89,'Total Rankings (excl QB)'!$D:$E,2,0),0) -> 0 | Z89: 0 | AB89: =IFERROR(VLOOKUP($X89,'Total Rankings (excl QB)'!$D:$L,4,0),"") ->  | AC89: =IFERROR(VLOOKUP($X89,'Total Rankings (excl QB)'!$D:$L,5,0),"") ->  | AD89: =IFERROR(VLOOKUP($X89,'Total Rankings (excl QB)'!$D:$L,6,0),"") ->  | AE89: =IFERROR(VLOOKUP($X89,'Total Rankings (excl QB)'!$D:$L,7,0),"") ->  | AF89: =IFERROR(VLOOKUP($X89,'Total Rankings (excl QB)'!$D:$L,8,0),"") -> 
A90: 87 | B90: =IFERROR(INDEX('Total Rankings (excl QB)'!$D:$D,MATCH(1,("Wide Receiver"='Total Rankings (excl QB)'!$C:$C)*(A90='Total Rankings (excl QB)'!$F:$F),0),1),"") ->  | C90: =IFERROR(VLOOKUP($B90,'Total Rankings (excl QB)'!$D:$E,2,0),0) -> 0 | D90: 0 | F90: =IFERROR(VLOOKUP($B90,'Total Rankings (excl QB)'!$D:$L,4,0),"") ->  | G90: =IFERROR(VLOOKUP($B90,'Total Rankings (excl QB)'!$D:$L,5,0),"") ->  | H90: =IFERROR(VLOOKUP($B90,'Total Rankings (excl QB)'!$D:$L,6,0),"") ->  | I90: =IFERROR(VLOOKUP($B90,'Total Rankings (excl QB)'!$D:$L,7,0),"") ->  | J90: =IFERROR(VLOOKUP($B90,'Total Rankings (excl QB)'!$D:$L,8,0),"") ->  | L90: 87 | M90: =IFERROR(INDEX('Total Rankings (excl QB)'!$D:$D,MATCH(1,("Running Back"='Total Rankings (excl QB)'!$C:$C)*(L90='Total Rankings (excl QB)'!$F:$F),0),1),"") ->  | N90: =IFERROR(VLOOKUP($M90,'Total Rankings (excl QB)'!$D:$E,2,0),0) -> 0 | O90: 0 | Q90: =IFERROR(VLOOKUP($M90,'Total Rankings (excl QB)'!$D:$L,4,0),"") ->  | R90: =IFERROR(VLOOKUP($M90,'Total Rankings (excl QB)'!$D:$L,5,0),"") ->  | S90: =IFERROR(VLOOKUP($M90,'Total Rankings (excl QB)'!$D:$L,6,0),"") ->  | T90: =IFERROR(VLOOKUP($M90,'Total Rankings (excl QB)'!$D:$L,7,0),"") ->  | U90: =IFERROR(VLOOKUP($M90,'Total Rankings (excl QB)'!$D:$L,8,0),"") ->  | W90: 87 | X90: =IFERROR(INDEX('Total Rankings (excl QB)'!$D:$D,MATCH(1,("Tight End"='Total Rankings (excl QB)'!$C:$C)*(W90='Total Rankings (excl QB)'!$F:$F),0),1),"") ->  | Y90: =IFERROR(VLOOKUP($X90,'Total Rankings (excl QB)'!$D:$E,2,0),0) -> 0 | Z90: 0 | AB90: =IFERROR(VLOOKUP($X90,'Total Rankings (excl QB)'!$D:$L,4,0),"") ->  | AC90: =IFERROR(VLOOKUP($X90,'Total Rankings (excl QB)'!$D:$L,5,0),"") ->  | AD90: =IFERROR(VLOOKUP($X90,'Total Rankings (excl QB)'!$D:$L,6,0),"") ->  | AE90: =IFERROR(VLOOKUP($X90,'Total Rankings (excl QB)'!$D:$L,7,0),"") ->  | AF90: =IFERROR(VLOOKUP($X90,'Total Rankings (excl QB)'!$D:$L,8,0),"") -> 
A91: 88 | B91: =IFERROR(INDEX('Total Rankings (excl QB)'!$D:$D,MATCH(1,("Wide Receiver"='Total Rankings (excl QB)'!$C:$C)*(A91='Total Rankings (excl QB)'!$F:$F),0),1),"") ->  | C91: =IFERROR(VLOOKUP($B91,'Total Rankings (excl QB)'!$D:$E,2,0),0) -> 0 | D91: 0 | F91: =IFERROR(VLOOKUP($B91,'Total Rankings (excl QB)'!$D:$L,4,0),"") ->  | G91: =IFERROR(VLOOKUP($B91,'Total Rankings (excl QB)'!$D:$L,5,0),"") ->  | H91: =IFERROR(VLOOKUP($B91,'Total Rankings (excl QB)'!$D:$L,6,0),"") ->  | I91: =IFERROR(VLOOKUP($B91,'Total Rankings (excl QB)'!$D:$L,7,0),"") ->  | J91: =IFERROR(VLOOKUP($B91,'Total Rankings (excl QB)'!$D:$L,8,0),"") ->  | L91: 88 | M91: =IFERROR(INDEX('Total Rankings (excl QB)'!$D:$D,MATCH(1,("Running Back"='Total Rankings (excl QB)'!$C:$C)*(L91='Total Rankings (excl QB)'!$F:$F),0),1),"") ->  | N91: =IFERROR(VLOOKUP($M91,'Total Rankings (excl QB)'!$D:$E,2,0),0) -> 0 | O91: 0 | Q91: =IFERROR(VLOOKUP($M91,'Total Rankings (excl QB)'!$D:$L,4,0),"") ->  | R91: =IFERROR(VLOOKUP($M91,'Total Rankings (excl QB)'!$D:$L,5,0),"") ->  | S91: =IFERROR(VLOOKUP($M91,'Total Rankings (excl QB)'!$D:$L,6,0),"") ->  | T91: =IFERROR(VLOOKUP($M91,'Total Rankings (excl QB)'!$D:$L,7,0),"") ->  | U91: =IFERROR(VLOOKUP($M91,'Total Rankings (excl QB)'!$D:$L,8,0),"") ->  | W91: 88 | X91: =IFERROR(INDEX('Total Rankings (excl QB)'!$D:$D,MATCH(1,("Tight End"='Total Rankings (excl QB)'!$C:$C)*(W91='Total Rankings (excl QB)'!$F:$F),0),1),"") ->  | Y91: =IFERROR(VLOOKUP($X91,'Total Rankings (excl QB)'!$D:$E,2,0),0) -> 0 | Z91: 0 | AB91: =IFERROR(VLOOKUP($X91,'Total Rankings (excl QB)'!$D:$L,4,0),"") ->  | AC91: =IFERROR(VLOOKUP($X91,'Total Rankings (excl QB)'!$D:$L,5,0),"") ->  | AD91: =IFERROR(VLOOKUP($X91,'Total Rankings (excl QB)'!$D:$L,6,0),"") ->  | AE91: =IFERROR(VLOOKUP($X91,'Total Rankings (excl QB)'!$D:$L,7,0),"") ->  | AF91: =IFERROR(VLOOKUP($X91,'Total Rankings (excl QB)'!$D:$L,8,0),"") -> 
A92: 89 | B92: =IFERROR(INDEX('Total Rankings (excl QB)'!$D:$D,MATCH(1,("Wide Receiver"='Total Rankings (excl QB)'!$C:$C)*(A92='Total Rankings (excl QB)'!$F:$F),0),1),"") ->  | C92: =IFERROR(VLOOKUP($B92,'Total Rankings (excl QB)'!$D:$E,2,0),0) -> 0 | D92: 0 | F92: =IFERROR(VLOOKUP($B92,'Total Rankings (excl QB)'!$D:$L,4,0),"") ->  | G92: =IFERROR(VLOOKUP($B92,'Total Rankings (excl QB)'!$D:$L,5,0),"") ->  | H92: =IFERROR(VLOOKUP($B92,'Total Rankings (excl QB)'!$D:$L,6,0),"") ->  | I92: =IFERROR(VLOOKUP($B92,'Total Rankings (excl QB)'!$D:$L,7,0),"") ->  | J92: =IFERROR(VLOOKUP($B92,'Total Rankings (excl QB)'!$D:$L,8,0),"") ->  | L92: 89 | M92: =IFERROR(INDEX('Total Rankings (excl QB)'!$D:$D,MATCH(1,("Running Back"='Total Rankings (excl QB)'!$C:$C)*(L92='Total Rankings (excl QB)'!$F:$F),0),1),"") ->  | N92: =IFERROR(VLOOKUP($M92,'Total Rankings (excl QB)'!$D:$E,2,0),0) -> 0 | O92: 0 | Q92: =IFERROR(VLOOKUP($M92,'Total Rankings (excl QB)'!$D:$L,4,0),"") ->  | R92: =IFERROR(VLOOKUP($M92,'Total Rankings (excl QB)'!$D:$L,5,0),"") ->  | S92: =IFERROR(VLOOKUP($M92,'Total Rankings (excl QB)'!$D:$L,6,0),"") ->  | T92: =IFERROR(VLOOKUP($M92,'Total Rankings (excl QB)'!$D:$L,7,0),"") ->  | U92: =IFERROR(VLOOKUP($M92,'Total Rankings (excl QB)'!$D:$L,8,0),"") ->  | W92: 89 | X92: =IFERROR(INDEX('Total Rankings (excl QB)'!$D:$D,MATCH(1,("Tight End"='Total Rankings (excl QB)'!$C:$C)*(W92='Total Rankings (excl QB)'!$F:$F),0),1),"") ->  | Y92: =IFERROR(VLOOKUP($X92,'Total Rankings (excl QB)'!$D:$E,2,0),0) -> 0 | Z92: 0 | AB92: =IFERROR(VLOOKUP($X92,'Total Rankings (excl QB)'!$D:$L,4,0),"") ->  | AC92: =IFERROR(VLOOKUP($X92,'Total Rankings (excl QB)'!$D:$L,5,0),"") ->  | AD92: =IFERROR(VLOOKUP($X92,'Total Rankings (excl QB)'!$D:$L,6,0),"") ->  | AE92: =IFERROR(VLOOKUP($X92,'Total Rankings (excl QB)'!$D:$L,7,0),"") ->  | AF92: =IFERROR(VLOOKUP($X92,'Total Rankings (excl QB)'!$D:$L,8,0),"") -> 
A93: 90 | B93: =IFERROR(INDEX('Total Rankings (excl QB)'!$D:$D,MATCH(1,("Wide Receiver"='Total Rankings (excl QB)'!$C:$C)*(A93='Total Rankings (excl QB)'!$F:$F),0),1),"") ->  | C93: =IFERROR(VLOOKUP($B93,'Total Rankings (excl QB)'!$D:$E,2,0),0) -> 0 | D93: 0 | F93: =IFERROR(VLOOKUP($B93,'Total Rankings (excl QB)'!$D:$L,4,0),"") ->  | G93: =IFERROR(VLOOKUP($B93,'Total Rankings (excl QB)'!$D:$L,5,0),"") ->  | H93: =IFERROR(VLOOKUP($B93,'Total Rankings (excl QB)'!$D:$L,6,0),"") ->  | I93: =IFERROR(VLOOKUP($B93,'Total Rankings (excl QB)'!$D:$L,7,0),"") ->  | J93: =IFERROR(VLOOKUP($B93,'Total Rankings (excl QB)'!$D:$L,8,0),"") ->  | L93: 90 | M93: =IFERROR(INDEX('Total Rankings (excl QB)'!$D:$D,MATCH(1,("Running Back"='Total Rankings (excl QB)'!$C:$C)*(L93='Total Rankings (excl QB)'!$F:$F),0),1),"") ->  | N93: =IFERROR(VLOOKUP($M93,'Total Rankings (excl QB)'!$D:$E,2,0),0) -> 0 | O93: 0 | Q93: =IFERROR(VLOOKUP($M93,'Total Rankings (excl QB)'!$D:$L,4,0),"") ->  | R93: =IFERROR(VLOOKUP($M93,'Total Rankings (excl QB)'!$D:$L,5,0),"") ->  | S93: =IFERROR(VLOOKUP($M93,'Total Rankings (excl QB)'!$D:$L,6,0),"") ->  | T93: =IFERROR(VLOOKUP($M93,'Total Rankings (excl QB)'!$D:$L,7,0),"") ->  | U93: =IFERROR(VLOOKUP($M93,'Total Rankings (excl QB)'!$D:$L,8,0),"") ->  | W93: 90 | X93: =IFERROR(INDEX('Total Rankings (excl QB)'!$D:$D,MATCH(1,("Tight End"='Total Rankings (excl QB)'!$C:$C)*(W93='Total Rankings (excl QB)'!$F:$F),0),1),"") ->  | Y93: =IFERROR(VLOOKUP($X93,'Total Rankings (excl QB)'!$D:$E,2,0),0) -> 0 | Z93: 0 | AB93: =IFERROR(VLOOKUP($X93,'Total Rankings (excl QB)'!$D:$L,4,0),"") ->  | AC93: =IFERROR(VLOOKUP($X93,'Total Rankings (excl QB)'!$D:$L,5,0),"") ->  | AD93: =IFERROR(VLOOKUP($X93,'Total Rankings (excl QB)'!$D:$L,6,0),"") ->  | AE93: =IFERROR(VLOOKUP($X93,'Total Rankings (excl QB)'!$D:$L,7,0),"") ->  | AF93: =IFERROR(VLOOKUP($X93,'Total Rankings (excl QB)'!$D:$L,8,0),"") -> 
A94: 91 | B94: =IFERROR(INDEX('Total Rankings (excl QB)'!$D:$D,MATCH(1,("Wide Receiver"='Total Rankings (excl QB)'!$C:$C)*(A94='Total Rankings (excl QB)'!$F:$F),0),1),"") ->  | C94: =IFERROR(VLOOKUP($B94,'Total Rankings (excl QB)'!$D:$E,2,0),0) -> 0 | D94: 0 | F94: =IFERROR(VLOOKUP($B94,'Total Rankings (excl QB)'!$D:$L,4,0),"") ->  | G94: =IFERROR(VLOOKUP($B94,'Total Rankings (excl QB)'!$D:$L,5,0),"") ->  | H94: =IFERROR(VLOOKUP($B94,'Total Rankings (excl QB)'!$D:$L,6,0),"") ->  | I94: =IFERROR(VLOOKUP($B94,'Total Rankings (excl QB)'!$D:$L,7,0),"") ->  | J94: =IFERROR(VLOOKUP($B94,'Total Rankings (excl QB)'!$D:$L,8,0),"") ->  | L94: 91 | M94: =IFERROR(INDEX('Total Rankings (excl QB)'!$D:$D,MATCH(1,("Running Back"='Total Rankings (excl QB)'!$C:$C)*(L94='Total Rankings (excl QB)'!$F:$F),0),1),"") ->  | N94: =IFERROR(VLOOKUP($M94,'Total Rankings (excl QB)'!$D:$E,2,0),0) -> 0 | O94: 0 | Q94: =IFERROR(VLOOKUP($M94,'Total Rankings (excl QB)'!$D:$L,4,0),"") ->  | R94: =IFERROR(VLOOKUP($M94,'Total Rankings (excl QB)'!$D:$L,5,0),"") ->  | S94: =IFERROR(VLOOKUP($M94,'Total Rankings (excl QB)'!$D:$L,6,0),"") ->  | T94: =IFERROR(VLOOKUP($M94,'Total Rankings (excl QB)'!$D:$L,7,0),"") ->  | U94: =IFERROR(VLOOKUP($M94,'Total Rankings (excl QB)'!$D:$L,8,0),"") ->  | W94: 91 | X94: =IFERROR(INDEX('Total Rankings (excl QB)'!$D:$D,MATCH(1,("Tight End"='Total Rankings (excl QB)'!$C:$C)*(W94='Total Rankings (excl QB)'!$F:$F),0),1),"") ->  | Y94: =IFERROR(VLOOKUP($X94,'Total Rankings (excl QB)'!$D:$E,2,0),0) -> 0 | Z94: 0 | AB94: =IFERROR(VLOOKUP($X94,'Total Rankings (excl QB)'!$D:$L,4,0),"") ->  | AC94: =IFERROR(VLOOKUP($X94,'Total Rankings (excl QB)'!$D:$L,5,0),"") ->  | AD94: =IFERROR(VLOOKUP($X94,'Total Rankings (excl QB)'!$D:$L,6,0),"") ->  | AE94: =IFERROR(VLOOKUP($X94,'Total Rankings (excl QB)'!$D:$L,7,0),"") ->  | AF94: =IFERROR(VLOOKUP($X94,'Total Rankings (excl QB)'!$D:$L,8,0),"") -> 
A95: 92 | B95: =IFERROR(INDEX('Total Rankings (excl QB)'!$D:$D,MATCH(1,("Wide Receiver"='Total Rankings (excl QB)'!$C:$C)*(A95='Total Rankings (excl QB)'!$F:$F),0),1),"") ->  | C95: =IFERROR(VLOOKUP($B95,'Total Rankings (excl QB)'!$D:$E,2,0),0) -> 0 | D95: 0 | F95: =IFERROR(VLOOKUP($B95,'Total Rankings (excl QB)'!$D:$L,4,0),"") ->  | G95: =IFERROR(VLOOKUP($B95,'Total Rankings (excl QB)'!$D:$L,5,0),"") ->  | H95: =IFERROR(VLOOKUP($B95,'Total Rankings (excl QB)'!$D:$L,6,0),"") ->  | I95: =IFERROR(VLOOKUP($B95,'Total Rankings (excl QB)'!$D:$L,7,0),"") ->  | J95: =IFERROR(VLOOKUP($B95,'Total Rankings (excl QB)'!$D:$L,8,0),"") ->  | L95: 92 | M95: =IFERROR(INDEX('Total Rankings (excl QB)'!$D:$D,MATCH(1,("Running Back"='Total Rankings (excl QB)'!$C:$C)*(L95='Total Rankings (excl QB)'!$F:$F),0),1),"") ->  | N95: =IFERROR(VLOOKUP($M95,'Total Rankings (excl QB)'!$D:$E,2,0),0) -> 0 | O95: 0 | Q95: =IFERROR(VLOOKUP($M95,'Total Rankings (excl QB)'!$D:$L,4,0),"") ->  | R95: =IFERROR(VLOOKUP($M95,'Total Rankings (excl QB)'!$D:$L,5,0),"") ->  | S95: =IFERROR(VLOOKUP($M95,'Total Rankings (excl QB)'!$D:$L,6,0),"") ->  | T95: =IFERROR(VLOOKUP($M95,'Total Rankings (excl QB)'!$D:$L,7,0),"") ->  | U95: =IFERROR(VLOOKUP($M95,'Total Rankings (excl QB)'!$D:$L,8,0),"") ->  | W95: 92 | X95: =IFERROR(INDEX('Total Rankings (excl QB)'!$D:$D,MATCH(1,("Tight End"='Total Rankings (excl QB)'!$C:$C)*(W95='Total Rankings (excl QB)'!$F:$F),0),1),"") ->  | Y95: =IFERROR(VLOOKUP($X95,'Total Rankings (excl QB)'!$D:$E,2,0),0) -> 0 | Z95: 0 | AB95: =IFERROR(VLOOKUP($X95,'Total Rankings (excl QB)'!$D:$L,4,0),"") ->  | AC95: =IFERROR(VLOOKUP($X95,'Total Rankings (excl QB)'!$D:$L,5,0),"") ->  | AD95: =IFERROR(VLOOKUP($X95,'Total Rankings (excl QB)'!$D:$L,6,0),"") ->  | AE95: =IFERROR(VLOOKUP($X95,'Total Rankings (excl QB)'!$D:$L,7,0),"") ->  | AF95: =IFERROR(VLOOKUP($X95,'Total Rankings (excl QB)'!$D:$L,8,0),"") -> 
A96: 93 | B96: =IFERROR(INDEX('Total Rankings (excl QB)'!$D:$D,MATCH(1,("Wide Receiver"='Total Rankings (excl QB)'!$C:$C)*(A96='Total Rankings (excl QB)'!$F:$F),0),1),"") ->  | C96: =IFERROR(VLOOKUP($B96,'Total Rankings (excl QB)'!$D:$E,2,0),0) -> 0 | D96: 0 | F96: =IFERROR(VLOOKUP($B96,'Total Rankings (excl QB)'!$D:$L,4,0),"") ->  | G96: =IFERROR(VLOOKUP($B96,'Total Rankings (excl QB)'!$D:$L,5,0),"") ->  | H96: =IFERROR(VLOOKUP($B96,'Total Rankings (excl QB)'!$D:$L,6,0),"") ->  | I96: =IFERROR(VLOOKUP($B96,'Total Rankings (excl QB)'!$D:$L,7,0),"") ->  | J96: =IFERROR(VLOOKUP($B96,'Total Rankings (excl QB)'!$D:$L,8,0),"") ->  | L96: 93 | M96: =IFERROR(INDEX('Total Rankings (excl QB)'!$D:$D,MATCH(1,("Running Back"='Total Rankings (excl QB)'!$C:$C)*(L96='Total Rankings (excl QB)'!$F:$F),0),1),"") ->  | N96: =IFERROR(VLOOKUP($M96,'Total Rankings (excl QB)'!$D:$E,2,0),0) -> 0 | O96: 0 | Q96: =IFERROR(VLOOKUP($M96,'Total Rankings (excl QB)'!$D:$L,4,0),"") ->  | R96: =IFERROR(VLOOKUP($M96,'Total Rankings (excl QB)'!$D:$L,5,0),"") ->  | S96: =IFERROR(VLOOKUP($M96,'Total Rankings (excl QB)'!$D:$L,6,0),"") ->  | T96: =IFERROR(VLOOKUP($M96,'Total Rankings (excl QB)'!$D:$L,7,0),"") ->  | U96: =IFERROR(VLOOKUP($M96,'Total Rankings (excl QB)'!$D:$L,8,0),"") ->  | W96: 93 | X96: =IFERROR(INDEX('Total Rankings (excl QB)'!$D:$D,MATCH(1,("Tight End"='Total Rankings (excl QB)'!$C:$C)*(W96='Total Rankings (excl QB)'!$F:$F),0),1),"") ->  | Y96: =IFERROR(VLOOKUP($X96,'Total Rankings (excl QB)'!$D:$E,2,0),0) -> 0 | Z96: 0 | AB96: =IFERROR(VLOOKUP($X96,'Total Rankings (excl QB)'!$D:$L,4,0),"") ->  | AC96: =IFERROR(VLOOKUP($X96,'Total Rankings (excl QB)'!$D:$L,5,0),"") ->  | AD96: =IFERROR(VLOOKUP($X96,'Total Rankings (excl QB)'!$D:$L,6,0),"") ->  | AE96: =IFERROR(VLOOKUP($X96,'Total Rankings (excl QB)'!$D:$L,7,0),"") ->  | AF96: =IFERROR(VLOOKUP($X96,'Total Rankings (excl QB)'!$D:$L,8,0),"") -> 
A97: 94 | B97: =IFERROR(INDEX('Total Rankings (excl QB)'!$D:$D,MATCH(1,("Wide Receiver"='Total Rankings (excl QB)'!$C:$C)*(A97='Total Rankings (excl QB)'!$F:$F),0),1),"") ->  | C97: =IFERROR(VLOOKUP($B97,'Total Rankings (excl QB)'!$D:$E,2,0),0) -> 0 | D97: 0 | F97: =IFERROR(VLOOKUP($B97,'Total Rankings (excl QB)'!$D:$L,4,0),"") ->  | G97: =IFERROR(VLOOKUP($B97,'Total Rankings (excl QB)'!$D:$L,5,0),"") ->  | H97: =IFERROR(VLOOKUP($B97,'Total Rankings (excl QB)'!$D:$L,6,0),"") ->  | I97: =IFERROR(VLOOKUP($B97,'Total Rankings (excl QB)'!$D:$L,7,0),"") ->  | J97: =IFERROR(VLOOKUP($B97,'Total Rankings (excl QB)'!$D:$L,8,0),"") ->  | L97: 94 | M97: =IFERROR(INDEX('Total Rankings (excl QB)'!$D:$D,MATCH(1,("Running Back"='Total Rankings (excl QB)'!$C:$C)*(L97='Total Rankings (excl QB)'!$F:$F),0),1),"") ->  | N97: =IFERROR(VLOOKUP($M97,'Total Rankings (excl QB)'!$D:$E,2,0),0) -> 0 | O97: 0 | Q97: =IFERROR(VLOOKUP($M97,'Total Rankings (excl QB)'!$D:$L,4,0),"") ->  | R97: =IFERROR(VLOOKUP($M97,'Total Rankings (excl QB)'!$D:$L,5,0),"") ->  | S97: =IFERROR(VLOOKUP($M97,'Total Rankings (excl QB)'!$D:$L,6,0),"") ->  | T97: =IFERROR(VLOOKUP($M97,'Total Rankings (excl QB)'!$D:$L,7,0),"") ->  | U97: =IFERROR(VLOOKUP($M97,'Total Rankings (excl QB)'!$D:$L,8,0),"") ->  | W97: 94 | X97: =IFERROR(INDEX('Total Rankings (excl QB)'!$D:$D,MATCH(1,("Tight End"='Total Rankings (excl QB)'!$C:$C)*(W97='Total Rankings (excl QB)'!$F:$F),0),1),"") ->  | Y97: =IFERROR(VLOOKUP($X97,'Total Rankings (excl QB)'!$D:$E,2,0),0) -> 0 | Z97: 0 | AB97: =IFERROR(VLOOKUP($X97,'Total Rankings (excl QB)'!$D:$L,4,0),"") ->  | AC97: =IFERROR(VLOOKUP($X97,'Total Rankings (excl QB)'!$D:$L,5,0),"") ->  | AD97: =IFERROR(VLOOKUP($X97,'Total Rankings (excl QB)'!$D:$L,6,0),"") ->  | AE97: =IFERROR(VLOOKUP($X97,'Total Rankings (excl QB)'!$D:$L,7,0),"") ->  | AF97: =IFERROR(VLOOKUP($X97,'Total Rankings (excl QB)'!$D:$L,8,0),"") -> 
A98: 95 | B98: =IFERROR(INDEX('Total Rankings (excl QB)'!$D:$D,MATCH(1,("Wide Receiver"='Total Rankings (excl QB)'!$C:$C)*(A98='Total Rankings (excl QB)'!$F:$F),0),1),"") ->  | C98: =IFERROR(VLOOKUP($B98,'Total Rankings (excl QB)'!$D:$E,2,0),0) -> 0 | D98: 0 | F98: =IFERROR(VLOOKUP($B98,'Total Rankings (excl QB)'!$D:$L,4,0),"") ->  | G98: =IFERROR(VLOOKUP($B98,'Total Rankings (excl QB)'!$D:$L,5,0),"") ->  | H98: =IFERROR(VLOOKUP($B98,'Total Rankings (excl QB)'!$D:$L,6,0),"") ->  | I98: =IFERROR(VLOOKUP($B98,'Total Rankings (excl QB)'!$D:$L,7,0),"") ->  | J98: =IFERROR(VLOOKUP($B98,'Total Rankings (excl QB)'!$D:$L,8,0),"") ->  | L98: 95 | M98: =IFERROR(INDEX('Total Rankings (excl QB)'!$D:$D,MATCH(1,("Running Back"='Total Rankings (excl QB)'!$C:$C)*(L98='Total Rankings (excl QB)'!$F:$F),0),1),"") ->  | N98: =IFERROR(VLOOKUP($M98,'Total Rankings (excl QB)'!$D:$E,2,0),0) -> 0 | O98: 0 | Q98: =IFERROR(VLOOKUP($M98,'Total Rankings (excl QB)'!$D:$L,4,0),"") ->  | R98: =IFERROR(VLOOKUP($M98,'Total Rankings (excl QB)'!$D:$L,5,0),"") ->  | S98: =IFERROR(VLOOKUP($M98,'Total Rankings (excl QB)'!$D:$L,6,0),"") ->  | T98: =IFERROR(VLOOKUP($M98,'Total Rankings (excl QB)'!$D:$L,7,0),"") ->  | U98: =IFERROR(VLOOKUP($M98,'Total Rankings (excl QB)'!$D:$L,8,0),"") ->  | W98: 95 | X98: =IFERROR(INDEX('Total Rankings (excl QB)'!$D:$D,MATCH(1,("Tight End"='Total Rankings (excl QB)'!$C:$C)*(W98='Total Rankings (excl QB)'!$F:$F),0),1),"") ->  | Y98: =IFERROR(VLOOKUP($X98,'Total Rankings (excl QB)'!$D:$E,2,0),0) -> 0 | Z98: 0 | AB98: =IFERROR(VLOOKUP($X98,'Total Rankings (excl QB)'!$D:$L,4,0),"") ->  | AC98: =IFERROR(VLOOKUP($X98,'Total Rankings (excl QB)'!$D:$L,5,0),"") ->  | AD98: =IFERROR(VLOOKUP($X98,'Total Rankings (excl QB)'!$D:$L,6,0),"") ->  | AE98: =IFERROR(VLOOKUP($X98,'Total Rankings (excl QB)'!$D:$L,7,0),"") ->  | AF98: =IFERROR(VLOOKUP($X98,'Total Rankings (excl QB)'!$D:$L,8,0),"") -> 
A99: 96 | B99: =IFERROR(INDEX('Total Rankings (excl QB)'!$D:$D,MATCH(1,("Wide Receiver"='Total Rankings (excl QB)'!$C:$C)*(A99='Total Rankings (excl QB)'!$F:$F),0),1),"") ->  | C99: =IFERROR(VLOOKUP($B99,'Total Rankings (excl QB)'!$D:$E,2,0),0) -> 0 | D99: 0 | F99: =IFERROR(VLOOKUP($B99,'Total Rankings (excl QB)'!$D:$L,4,0),"") ->  | G99: =IFERROR(VLOOKUP($B99,'Total Rankings (excl QB)'!$D:$L,5,0),"") ->  | H99: =IFERROR(VLOOKUP($B99,'Total Rankings (excl QB)'!$D:$L,6,0),"") ->  | I99: =IFERROR(VLOOKUP($B99,'Total Rankings (excl QB)'!$D:$L,7,0),"") ->  | J99: =IFERROR(VLOOKUP($B99,'Total Rankings (excl QB)'!$D:$L,8,0),"") ->  | L99: 96 | M99: =IFERROR(INDEX('Total Rankings (excl QB)'!$D:$D,MATCH(1,("Running Back"='Total Rankings (excl QB)'!$C:$C)*(L99='Total Rankings (excl QB)'!$F:$F),0),1),"") ->  | N99: =IFERROR(VLOOKUP($M99,'Total Rankings (excl QB)'!$D:$E,2,0),0) -> 0 | O99: 0 | Q99: =IFERROR(VLOOKUP($M99,'Total Rankings (excl QB)'!$D:$L,4,0),"") ->  | R99: =IFERROR(VLOOKUP($M99,'Total Rankings (excl QB)'!$D:$L,5,0),"") ->  | S99: =IFERROR(VLOOKUP($M99,'Total Rankings (excl QB)'!$D:$L,6,0),"") ->  | T99: =IFERROR(VLOOKUP($M99,'Total Rankings (excl QB)'!$D:$L,7,0),"") ->  | U99: =IFERROR(VLOOKUP($M99,'Total Rankings (excl QB)'!$D:$L,8,0),"") ->  | W99: 96 | X99: =IFERROR(INDEX('Total Rankings (excl QB)'!$D:$D,MATCH(1,("Tight End"='Total Rankings (excl QB)'!$C:$C)*(W99='Total Rankings (excl QB)'!$F:$F),0),1),"") ->  | Y99: =IFERROR(VLOOKUP($X99,'Total Rankings (excl QB)'!$D:$E,2,0),0) -> 0 | Z99: 0 | AB99: =IFERROR(VLOOKUP($X99,'Total Rankings (excl QB)'!$D:$L,4,0),"") ->  | AC99: =IFERROR(VLOOKUP($X99,'Total Rankings (excl QB)'!$D:$L,5,0),"") ->  | AD99: =IFERROR(VLOOKUP($X99,'Total Rankings (excl QB)'!$D:$L,6,0),"") ->  | AE99: =IFERROR(VLOOKUP($X99,'Total Rankings (excl QB)'!$D:$L,7,0),"") ->  | AF99: =IFERROR(VLOOKUP($X99,'Total Rankings (excl QB)'!$D:$L,8,0),"") -> 
A100: 97 | B100: =IFERROR(INDEX('Total Rankings (excl QB)'!$D:$D,MATCH(1,("Wide Receiver"='Total Rankings (excl QB)'!$C:$C)*(A100='Total Rankings (excl QB)'!$F:$F),0),1),"") ->  | C100: =IFERROR(VLOOKUP($B100,'Total Rankings (excl QB)'!$D:$E,2,0),0) -> 0 | D100: 0 | F100: =IFERROR(VLOOKUP($B100,'Total Rankings (excl QB)'!$D:$L,4,0),"") ->  | G100: =IFERROR(VLOOKUP($B100,'Total Rankings (excl QB)'!$D:$L,5,0),"") ->  | H100: =IFERROR(VLOOKUP($B100,'Total Rankings (excl QB)'!$D:$L,6,0),"") ->  | I100: =IFERROR(VLOOKUP($B100,'Total Rankings (excl QB)'!$D:$L,7,0),"") ->  | J100: =IFERROR(VLOOKUP($B100,'Total Rankings (excl QB)'!$D:$L,8,0),"") ->  | L100: 97 | M100: =IFERROR(INDEX('Total Rankings (excl QB)'!$D:$D,MATCH(1,("Running Back"='Total Rankings (excl QB)'!$C:$C)*(L100='Total Rankings (excl QB)'!$F:$F),0),1),"") ->  | N100: =IFERROR(VLOOKUP($M100,'Total Rankings (excl QB)'!$D:$E,2,0),0) -> 0 | O100: 0 | Q100: =IFERROR(VLOOKUP($M100,'Total Rankings (excl QB)'!$D:$L,4,0),"") ->  | R100: =IFERROR(VLOOKUP($M100,'Total Rankings (excl QB)'!$D:$L,5,0),"") ->  | S100: =IFERROR(VLOOKUP($M100,'Total Rankings (excl QB)'!$D:$L,6,0),"") ->  | T100: =IFERROR(VLOOKUP($M100,'Total Rankings (excl QB)'!$D:$L,7,0),"") ->  | U100: =IFERROR(VLOOKUP($M100,'Total Rankings (excl QB)'!$D:$L,8,0),"") ->  | W100: 97 | X100: =IFERROR(INDEX('Total Rankings (excl QB)'!$D:$D,MATCH(1,("Tight End"='Total Rankings (excl QB)'!$C:$C)*(W100='Total Rankings (excl QB)'!$F:$F),0),1),"") ->  | Y100: =IFERROR(VLOOKUP($X100,'Total Rankings (excl QB)'!$D:$E,2,0),0) -> 0 | Z100: 0 | AB100: =IFERROR(VLOOKUP($X100,'Total Rankings (excl QB)'!$D:$L,4,0),"") ->  | AC100: =IFERROR(VLOOKUP($X100,'Total Rankings (excl QB)'!$D:$L,5,0),"") ->  | AD100: =IFERROR(VLOOKUP($X100,'Total Rankings (excl QB)'!$D:$L,6,0),"") ->  | AE100: =IFERROR(VLOOKUP($X100,'Total Rankings (excl QB)'!$D:$L,7,0),"") ->  | AF100: =IFERROR(VLOOKUP($X100,'Total Rankings (excl QB)'!$D:$L,8,0),"") -> 
A101: 98 | B101: =IFERROR(INDEX('Total Rankings (excl QB)'!$D:$D,MATCH(1,("Wide Receiver"='Total Rankings (excl QB)'!$C:$C)*(A101='Total Rankings (excl QB)'!$F:$F),0),1),"") ->  | C101: =IFERROR(VLOOKUP($B101,'Total Rankings (excl QB)'!$D:$E,2,0),0) -> 0 | D101: 0 | F101: =IFERROR(VLOOKUP($B101,'Total Rankings (excl QB)'!$D:$L,4,0),"") ->  | G101: =IFERROR(VLOOKUP($B101,'Total Rankings (excl QB)'!$D:$L,5,0),"") ->  | H101: =IFERROR(VLOOKUP($B101,'Total Rankings (excl QB)'!$D:$L,6,0),"") ->  | I101: =IFERROR(VLOOKUP($B101,'Total Rankings (excl QB)'!$D:$L,7,0),"") ->  | J101: =IFERROR(VLOOKUP($B101,'Total Rankings (excl QB)'!$D:$L,8,0),"") ->  | L101: 98 | M101: =IFERROR(INDEX('Total Rankings (excl QB)'!$D:$D,MATCH(1,("Running Back"='Total Rankings (excl QB)'!$C:$C)*(L101='Total Rankings (excl QB)'!$F:$F),0),1),"") ->  | N101: =IFERROR(VLOOKUP($M101,'Total Rankings (excl QB)'!$D:$E,2,0),0) -> 0 | O101: 0 | Q101: =IFERROR(VLOOKUP($M101,'Total Rankings (excl QB)'!$D:$L,4,0),"") ->  | R101: =IFERROR(VLOOKUP($M101,'Total Rankings (excl QB)'!$D:$L,5,0),"") ->  | S101: =IFERROR(VLOOKUP($M101,'Total Rankings (excl QB)'!$D:$L,6,0),"") ->  | T101: =IFERROR(VLOOKUP($M101,'Total Rankings (excl QB)'!$D:$L,7,0),"") ->  | U101: =IFERROR(VLOOKUP($M101,'Total Rankings (excl QB)'!$D:$L,8,0),"") ->  | W101: 98 | X101: =IFERROR(INDEX('Total Rankings (excl QB)'!$D:$D,MATCH(1,("Tight End"='Total Rankings (excl QB)'!$C:$C)*(W101='Total Rankings (excl QB)'!$F:$F),0),1),"") ->  | Y101: =IFERROR(VLOOKUP($X101,'Total Rankings (excl QB)'!$D:$E,2,0),0) -> 0 | Z101: 0 | AB101: =IFERROR(VLOOKUP($X101,'Total Rankings (excl QB)'!$D:$L,4,0),"") ->  | AC101: =IFERROR(VLOOKUP($X101,'Total Rankings (excl QB)'!$D:$L,5,0),"") ->  | AD101: =IFERROR(VLOOKUP($X101,'Total Rankings (excl QB)'!$D:$L,6,0),"") ->  | AE101: =IFERROR(VLOOKUP($X101,'Total Rankings (excl QB)'!$D:$L,7,0),"") ->  | AF101: =IFERROR(VLOOKUP($X101,'Total Rankings (excl QB)'!$D:$L,8,0),"") -> 
A102: 99 | B102: =IFERROR(INDEX('Total Rankings (excl QB)'!$D:$D,MATCH(1,("Wide Receiver"='Total Rankings (excl QB)'!$C:$C)*(A102='Total Rankings (excl QB)'!$F:$F),0),1),"") ->  | C102: =IFERROR(VLOOKUP($B102,'Total Rankings (excl QB)'!$D:$E,2,0),0) -> 0 | D102: 0 | F102: =IFERROR(VLOOKUP($B102,'Total Rankings (excl QB)'!$D:$L,4,0),"") ->  | G102: =IFERROR(VLOOKUP($B102,'Total Rankings (excl QB)'!$D:$L,5,0),"") ->  | H102: =IFERROR(VLOOKUP($B102,'Total Rankings (excl QB)'!$D:$L,6,0),"") ->  | I102: =IFERROR(VLOOKUP($B102,'Total Rankings (excl QB)'!$D:$L,7,0),"") ->  | J102: =IFERROR(VLOOKUP($B102,'Total Rankings (excl QB)'!$D:$L,8,0),"") ->  | L102: 99 | M102: =IFERROR(INDEX('Total Rankings (excl QB)'!$D:$D,MATCH(1,("Running Back"='Total Rankings (excl QB)'!$C:$C)*(L102='Total Rankings (excl QB)'!$F:$F),0),1),"") ->  | N102: =IFERROR(VLOOKUP($M102,'Total Rankings (excl QB)'!$D:$E,2,0),0) -> 0 | O102: 0 | Q102: =IFERROR(VLOOKUP($M102,'Total Rankings (excl QB)'!$D:$L,4,0),"") ->  | R102: =IFERROR(VLOOKUP($M102,'Total Rankings (excl QB)'!$D:$L,5,0),"") ->  | S102: =IFERROR(VLOOKUP($M102,'Total Rankings (excl QB)'!$D:$L,6,0),"") ->  | T102: =IFERROR(VLOOKUP($M102,'Total Rankings (excl QB)'!$D:$L,7,0),"") ->  | U102: =IFERROR(VLOOKUP($M102,'Total Rankings (excl QB)'!$D:$L,8,0),"") ->  | W102: 99 | X102: =IFERROR(INDEX('Total Rankings (excl QB)'!$D:$D,MATCH(1,("Tight End"='Total Rankings (excl QB)'!$C:$C)*(W102='Total Rankings (excl QB)'!$F:$F),0),1),"") ->  | Y102: =IFERROR(VLOOKUP($X102,'Total Rankings (excl QB)'!$D:$E,2,0),0) -> 0 | Z102: 0 | AB102: =IFERROR(VLOOKUP($X102,'Total Rankings (excl QB)'!$D:$L,4,0),"") ->  | AC102: =IFERROR(VLOOKUP($X102,'Total Rankings (excl QB)'!$D:$L,5,0),"") ->  | AD102: =IFERROR(VLOOKUP($X102,'Total Rankings (excl QB)'!$D:$L,6,0),"") ->  | AE102: =IFERROR(VLOOKUP($X102,'Total Rankings (excl QB)'!$D:$L,7,0),"") ->  | AF102: =IFERROR(VLOOKUP($X102,'Total Rankings (excl QB)'!$D:$L,8,0),"") -> 
A103: 100 | B103: =IFERROR(INDEX('Total Rankings (excl QB)'!$D:$D,MATCH(1,("Wide Receiver"='Total Rankings (excl QB)'!$C:$C)*(A103='Total Rankings (excl QB)'!$F:$F),0),1),"") ->  | C103: =IFERROR(VLOOKUP($B103,'Total Rankings (excl QB)'!$D:$E,2,0),0) -> 0 | D103: 0 | F103: =IFERROR(VLOOKUP($B103,'Total Rankings (excl QB)'!$D:$L,4,0),"") ->  | G103: =IFERROR(VLOOKUP($B103,'Total Rankings (excl QB)'!$D:$L,5,0),"") ->  | H103: =IFERROR(VLOOKUP($B103,'Total Rankings (excl QB)'!$D:$L,6,0),"") ->  | I103: =IFERROR(VLOOKUP($B103,'Total Rankings (excl QB)'!$D:$L,7,0),"") ->  | J103: =IFERROR(VLOOKUP($B103,'Total Rankings (excl QB)'!$D:$L,8,0),"") ->  | L103: 100 | M103: =IFERROR(INDEX('Total Rankings (excl QB)'!$D:$D,MATCH(1,("Running Back"='Total Rankings (excl QB)'!$C:$C)*(L103='Total Rankings (excl QB)'!$F:$F),0),1),"") ->  | N103: =IFERROR(VLOOKUP($M103,'Total Rankings (excl QB)'!$D:$E,2,0),0) -> 0 | O103: 0 | Q103: =IFERROR(VLOOKUP($M103,'Total Rankings (excl QB)'!$D:$L,4,0),"") ->  | R103: =IFERROR(VLOOKUP($M103,'Total Rankings (excl QB)'!$D:$L,5,0),"") ->  | S103: =IFERROR(VLOOKUP($M103,'Total Rankings (excl QB)'!$D:$L,6,0),"") ->  | T103: =IFERROR(VLOOKUP($M103,'Total Rankings (excl QB)'!$D:$L,7,0),"") ->  | U103: =IFERROR(VLOOKUP($M103,'Total Rankings (excl QB)'!$D:$L,8,0),"") ->  | W103: 100 | X103: =IFERROR(INDEX('Total Rankings (excl QB)'!$D:$D,MATCH(1,("Tight End"='Total Rankings (excl QB)'!$C:$C)*(W103='Total Rankings (excl QB)'!$F:$F),0),1),"") ->  | Y103: =IFERROR(VLOOKUP($X103,'Total Rankings (excl QB)'!$D:$E,2,0),0) -> 0 | Z103: 0 | AB103: =IFERROR(VLOOKUP($X103,'Total Rankings (excl QB)'!$D:$L,4,0),"") ->  | AC103: =IFERROR(VLOOKUP($X103,'Total Rankings (excl QB)'!$D:$L,5,0),"") ->  | AD103: =IFERROR(VLOOKUP($X103,'Total Rankings (excl QB)'!$D:$L,6,0),"") ->  | AE103: =IFERROR(VLOOKUP($X103,'Total Rankings (excl QB)'!$D:$L,7,0),"") ->  | AF103: =IFERROR(VLOOKUP($X103,'Total Rankings (excl QB)'!$D:$L,8,0),"") -> 
A104: 101 | B104: =IFERROR(INDEX('Total Rankings (excl QB)'!$D:$D,MATCH(1,("Wide Receiver"='Total Rankings (excl QB)'!$C:$C)*(A104='Total Rankings (excl QB)'!$F:$F),0),1),"") ->  | C104: =IFERROR(VLOOKUP($B104,'Total Rankings (excl QB)'!$D:$E,2,0),0) -> 0 | D104: 0 | F104: =IFERROR(VLOOKUP($B104,'Total Rankings (excl QB)'!$D:$L,4,0),"") ->  | G104: =IFERROR(VLOOKUP($B104,'Total Rankings (excl QB)'!$D:$L,5,0),"") ->  | H104: =IFERROR(VLOOKUP($B104,'Total Rankings (excl QB)'!$D:$L,6,0),"") ->  | I104: =IFERROR(VLOOKUP($B104,'Total Rankings (excl QB)'!$D:$L,7,0),"") ->  | J104: =IFERROR(VLOOKUP($B104,'Total Rankings (excl QB)'!$D:$L,8,0),"") ->  | L104: 101 | M104: =IFERROR(INDEX('Total Rankings (excl QB)'!$D:$D,MATCH(1,("Running Back"='Total Rankings (excl QB)'!$C:$C)*(L104='Total Rankings (excl QB)'!$F:$F),0),1),"") ->  | N104: =IFERROR(VLOOKUP($M104,'Total Rankings (excl QB)'!$D:$E,2,0),0) -> 0 | O104: 0 | Q104: =IFERROR(VLOOKUP($M104,'Total Rankings (excl QB)'!$D:$L,4,0),"") ->  | R104: =IFERROR(VLOOKUP($M104,'Total Rankings (excl QB)'!$D:$L,5,0),"") ->  | S104: =IFERROR(VLOOKUP($M104,'Total Rankings (excl QB)'!$D:$L,6,0),"") ->  | T104: =IFERROR(VLOOKUP($M104,'Total Rankings (excl QB)'!$D:$L,7,0),"") ->  | U104: =IFERROR(VLOOKUP($M104,'Total Rankings (excl QB)'!$D:$L,8,0),"") ->  | W104: 101 | X104: =IFERROR(INDEX('Total Rankings (excl QB)'!$D:$D,MATCH(1,("Tight End"='Total Rankings (excl QB)'!$C:$C)*(W104='Total Rankings (excl QB)'!$F:$F),0),1),"") ->  | Y104: =IFERROR(VLOOKUP($X104,'Total Rankings (excl QB)'!$D:$E,2,0),0) -> 0 | Z104: 0 | AB104: =IFERROR(VLOOKUP($X104,'Total Rankings (excl QB)'!$D:$L,4,0),"") ->  | AC104: =IFERROR(VLOOKUP($X104,'Total Rankings (excl QB)'!$D:$L,5,0),"") ->  | AD104: =IFERROR(VLOOKUP($X104,'Total Rankings (excl QB)'!$D:$L,6,0),"") ->  | AE104: =IFERROR(VLOOKUP($X104,'Total Rankings (excl QB)'!$D:$L,7,0),"") ->  | AF104: =IFERROR(VLOOKUP($X104,'Total Rankings (excl QB)'!$D:$L,8,0),"") -> 
A105: 102 | B105: =IFERROR(INDEX('Total Rankings (excl QB)'!$D:$D,MATCH(1,("Wide Receiver"='Total Rankings (excl QB)'!$C:$C)*(A105='Total Rankings (excl QB)'!$F:$F),0),1),"") ->  | C105: =IFERROR(VLOOKUP($B105,'Total Rankings (excl QB)'!$D:$E,2,0),0) -> 0 | D105: 0 | F105: =IFERROR(VLOOKUP($B105,'Total Rankings (excl QB)'!$D:$L,4,0),"") ->  | G105: =IFERROR(VLOOKUP($B105,'Total Rankings (excl QB)'!$D:$L,5,0),"") ->  | H105: =IFERROR(VLOOKUP($B105,'Total Rankings (excl QB)'!$D:$L,6,0),"") ->  | I105: =IFERROR(VLOOKUP($B105,'Total Rankings (excl QB)'!$D:$L,7,0),"") ->  | J105: =IFERROR(VLOOKUP($B105,'Total Rankings (excl QB)'!$D:$L,8,0),"") ->  | L105: 102 | M105: =IFERROR(INDEX('Total Rankings (excl QB)'!$D:$D,MATCH(1,("Running Back"='Total Rankings (excl QB)'!$C:$C)*(L105='Total Rankings (excl QB)'!$F:$F),0),1),"") ->  | N105: =IFERROR(VLOOKUP($M105,'Total Rankings (excl QB)'!$D:$E,2,0),0) -> 0 | O105: 0 | Q105: =IFERROR(VLOOKUP($M105,'Total Rankings (excl QB)'!$D:$L,4,0),"") ->  | R105: =IFERROR(VLOOKUP($M105,'Total Rankings (excl QB)'!$D:$L,5,0),"") ->  | S105: =IFERROR(VLOOKUP($M105,'Total Rankings (excl QB)'!$D:$L,6,0),"") ->  | T105: =IFERROR(VLOOKUP($M105,'Total Rankings (excl QB)'!$D:$L,7,0),"") ->  | U105: =IFERROR(VLOOKUP($M105,'Total Rankings (excl QB)'!$D:$L,8,0),"") ->  | W105: 102 | X105: =IFERROR(INDEX('Total Rankings (excl QB)'!$D:$D,MATCH(1,("Tight End"='Total Rankings (excl QB)'!$C:$C)*(W105='Total Rankings (excl QB)'!$F:$F),0),1),"") ->  | Y105: =IFERROR(VLOOKUP($X105,'Total Rankings (excl QB)'!$D:$E,2,0),0) -> 0 | Z105: 0 | AB105: =IFERROR(VLOOKUP($X105,'Total Rankings (excl QB)'!$D:$L,4,0),"") ->  | AC105: =IFERROR(VLOOKUP($X105,'Total Rankings (excl QB)'!$D:$L,5,0),"") ->  | AD105: =IFERROR(VLOOKUP($X105,'Total Rankings (excl QB)'!$D:$L,6,0),"") ->  | AE105: =IFERROR(VLOOKUP($X105,'Total Rankings (excl QB)'!$D:$L,7,0),"") ->  | AF105: =IFERROR(VLOOKUP($X105,'Total Rankings (excl QB)'!$D:$L,8,0),"") -> 
A106: 103 | B106: =IFERROR(INDEX('Total Rankings (excl QB)'!$D:$D,MATCH(1,("Wide Receiver"='Total Rankings (excl QB)'!$C:$C)*(A106='Total Rankings (excl QB)'!$F:$F),0),1),"") ->  | C106: =IFERROR(VLOOKUP($B106,'Total Rankings (excl QB)'!$D:$E,2,0),0) -> 0 | D106: 0 | F106: =IFERROR(VLOOKUP($B106,'Total Rankings (excl QB)'!$D:$L,4,0),"") ->  | G106: =IFERROR(VLOOKUP($B106,'Total Rankings (excl QB)'!$D:$L,5,0),"") ->  | H106: =IFERROR(VLOOKUP($B106,'Total Rankings (excl QB)'!$D:$L,6,0),"") ->  | I106: =IFERROR(VLOOKUP($B106,'Total Rankings (excl QB)'!$D:$L,7,0),"") ->  | J106: =IFERROR(VLOOKUP($B106,'Total Rankings (excl QB)'!$D:$L,8,0),"") ->  | L106: 103 | M106: =IFERROR(INDEX('Total Rankings (excl QB)'!$D:$D,MATCH(1,("Running Back"='Total Rankings (excl QB)'!$C:$C)*(L106='Total Rankings (excl QB)'!$F:$F),0),1),"") ->  | N106: =IFERROR(VLOOKUP($M106,'Total Rankings (excl QB)'!$D:$E,2,0),0) -> 0 | O106: 0 | Q106: =IFERROR(VLOOKUP($M106,'Total Rankings (excl QB)'!$D:$L,4,0),"") ->  | R106: =IFERROR(VLOOKUP($M106,'Total Rankings (excl QB)'!$D:$L,5,0),"") ->  | S106: =IFERROR(VLOOKUP($M106,'Total Rankings (excl QB)'!$D:$L,6,0),"") ->  | T106: =IFERROR(VLOOKUP($M106,'Total Rankings (excl QB)'!$D:$L,7,0),"") ->  | U106: =IFERROR(VLOOKUP($M106,'Total Rankings (excl QB)'!$D:$L,8,0),"") ->  | W106: 103 | X106: =IFERROR(INDEX('Total Rankings (excl QB)'!$D:$D,MATCH(1,("Tight End"='Total Rankings (excl QB)'!$C:$C)*(W106='Total Rankings (excl QB)'!$F:$F),0),1),"") ->  | Y106: =IFERROR(VLOOKUP($X106,'Total Rankings (excl QB)'!$D:$E,2,0),0) -> 0 | Z106: 0 | AB106: =IFERROR(VLOOKUP($X106,'Total Rankings (excl QB)'!$D:$L,4,0),"") ->  | AC106: =IFERROR(VLOOKUP($X106,'Total Rankings (excl QB)'!$D:$L,5,0),"") ->  | AD106: =IFERROR(VLOOKUP($X106,'Total Rankings (excl QB)'!$D:$L,6,0),"") ->  | AE106: =IFERROR(VLOOKUP($X106,'Total Rankings (excl QB)'!$D:$L,7,0),"") ->  | AF106: =IFERROR(VLOOKUP($X106,'Total Rankings (excl QB)'!$D:$L,8,0),"") -> 
A107: 104 | B107: =IFERROR(INDEX('Total Rankings (excl QB)'!$D:$D,MATCH(1,("Wide Receiver"='Total Rankings (excl QB)'!$C:$C)*(A107='Total Rankings (excl QB)'!$F:$F),0),1),"") ->  | C107: =IFERROR(VLOOKUP($B107,'Total Rankings (excl QB)'!$D:$E,2,0),0) -> 0 | D107: 0 | F107: =IFERROR(VLOOKUP($B107,'Total Rankings (excl QB)'!$D:$L,4,0),"") ->  | G107: =IFERROR(VLOOKUP($B107,'Total Rankings (excl QB)'!$D:$L,5,0),"") ->  | H107: =IFERROR(VLOOKUP($B107,'Total Rankings (excl QB)'!$D:$L,6,0),"") ->  | I107: =IFERROR(VLOOKUP($B107,'Total Rankings (excl QB)'!$D:$L,7,0),"") ->  | J107: =IFERROR(VLOOKUP($B107,'Total Rankings (excl QB)'!$D:$L,8,0),"") ->  | L107: 104 | M107: =IFERROR(INDEX('Total Rankings (excl QB)'!$D:$D,MATCH(1,("Running Back"='Total Rankings (excl QB)'!$C:$C)*(L107='Total Rankings (excl QB)'!$F:$F),0),1),"") ->  | N107: =IFERROR(VLOOKUP($M107,'Total Rankings (excl QB)'!$D:$E,2,0),0) -> 0 | O107: 0 | Q107: =IFERROR(VLOOKUP($M107,'Total Rankings (excl QB)'!$D:$L,4,0),"") ->  | R107: =IFERROR(VLOOKUP($M107,'Total Rankings (excl QB)'!$D:$L,5,0),"") ->  | S107: =IFERROR(VLOOKUP($M107,'Total Rankings (excl QB)'!$D:$L,6,0),"") ->  | T107: =IFERROR(VLOOKUP($M107,'Total Rankings (excl QB)'!$D:$L,7,0),"") ->  | U107: =IFERROR(VLOOKUP($M107,'Total Rankings (excl QB)'!$D:$L,8,0),"") ->  | W107: 104 | X107: =IFERROR(INDEX('Total Rankings (excl QB)'!$D:$D,MATCH(1,("Tight End"='Total Rankings (excl QB)'!$C:$C)*(W107='Total Rankings (excl QB)'!$F:$F),0),1),"") ->  | Y107: =IFERROR(VLOOKUP($X107,'Total Rankings (excl QB)'!$D:$E,2,0),0) -> 0 | Z107: 0 | AB107: =IFERROR(VLOOKUP($X107,'Total Rankings (excl QB)'!$D:$L,4,0),"") ->  | AC107: =IFERROR(VLOOKUP($X107,'Total Rankings (excl QB)'!$D:$L,5,0),"") ->  | AD107: =IFERROR(VLOOKUP($X107,'Total Rankings (excl QB)'!$D:$L,6,0),"") ->  | AE107: =IFERROR(VLOOKUP($X107,'Total Rankings (excl QB)'!$D:$L,7,0),"") ->  | AF107: =IFERROR(VLOOKUP($X107,'Total Rankings (excl QB)'!$D:$L,8,0),"") -> 
A108: 105 | B108: =IFERROR(INDEX('Total Rankings (excl QB)'!$D:$D,MATCH(1,("Wide Receiver"='Total Rankings (excl QB)'!$C:$C)*(A108='Total Rankings (excl QB)'!$F:$F),0),1),"") ->  | C108: =IFERROR(VLOOKUP($B108,'Total Rankings (excl QB)'!$D:$E,2,0),0) -> 0 | D108: 0 | F108: =IFERROR(VLOOKUP($B108,'Total Rankings (excl QB)'!$D:$L,4,0),"") ->  | G108: =IFERROR(VLOOKUP($B108,'Total Rankings (excl QB)'!$D:$L,5,0),"") ->  | H108: =IFERROR(VLOOKUP($B108,'Total Rankings (excl QB)'!$D:$L,6,0),"") ->  | I108: =IFERROR(VLOOKUP($B108,'Total Rankings (excl QB)'!$D:$L,7,0),"") ->  | J108: =IFERROR(VLOOKUP($B108,'Total Rankings (excl QB)'!$D:$L,8,0),"") ->  | L108: 105 | M108: =IFERROR(INDEX('Total Rankings (excl QB)'!$D:$D,MATCH(1,("Running Back"='Total Rankings (excl QB)'!$C:$C)*(L108='Total Rankings (excl QB)'!$F:$F),0),1),"") ->  | N108: =IFERROR(VLOOKUP($M108,'Total Rankings (excl QB)'!$D:$E,2,0),0) -> 0 | O108: 0 | Q108: =IFERROR(VLOOKUP($M108,'Total Rankings (excl QB)'!$D:$L,4,0),"") ->  | R108: =IFERROR(VLOOKUP($M108,'Total Rankings (excl QB)'!$D:$L,5,0),"") ->  | S108: =IFERROR(VLOOKUP($M108,'Total Rankings (excl QB)'!$D:$L,6,0),"") ->  | T108: =IFERROR(VLOOKUP($M108,'Total Rankings (excl QB)'!$D:$L,7,0),"") ->  | U108: =IFERROR(VLOOKUP($M108,'Total Rankings (excl QB)'!$D:$L,8,0),"") ->  | W108: 105 | X108: =IFERROR(INDEX('Total Rankings (excl QB)'!$D:$D,MATCH(1,("Tight End"='Total Rankings (excl QB)'!$C:$C)*(W108='Total Rankings (excl QB)'!$F:$F),0),1),"") ->  | Y108: =IFERROR(VLOOKUP($X108,'Total Rankings (excl QB)'!$D:$E,2,0),0) -> 0 | Z108: 0 | AB108: =IFERROR(VLOOKUP($X108,'Total Rankings (excl QB)'!$D:$L,4,0),"") ->  | AC108: =IFERROR(VLOOKUP($X108,'Total Rankings (excl QB)'!$D:$L,5,0),"") ->  | AD108: =IFERROR(VLOOKUP($X108,'Total Rankings (excl QB)'!$D:$L,6,0),"") ->  | AE108: =IFERROR(VLOOKUP($X108,'Total Rankings (excl QB)'!$D:$L,7,0),"") ->  | AF108: =IFERROR(VLOOKUP($X108,'Total Rankings (excl QB)'!$D:$L,8,0),"") -> 
A109: 106 | B109: =IFERROR(INDEX('Total Rankings (excl QB)'!$D:$D,MATCH(1,("Wide Receiver"='Total Rankings (excl QB)'!$C:$C)*(A109='Total Rankings (excl QB)'!$F:$F),0),1),"") ->  | C109: =IFERROR(VLOOKUP($B109,'Total Rankings (excl QB)'!$D:$E,2,0),0) -> 0 | D109: 0 | F109: =IFERROR(VLOOKUP($B109,'Total Rankings (excl QB)'!$D:$L,4,0),"") ->  | G109: =IFERROR(VLOOKUP($B109,'Total Rankings (excl QB)'!$D:$L,5,0),"") ->  | H109: =IFERROR(VLOOKUP($B109,'Total Rankings (excl QB)'!$D:$L,6,0),"") ->  | I109: =IFERROR(VLOOKUP($B109,'Total Rankings (excl QB)'!$D:$L,7,0),"") ->  | J109: =IFERROR(VLOOKUP($B109,'Total Rankings (excl QB)'!$D:$L,8,0),"") ->  | L109: 106 | M109: =IFERROR(INDEX('Total Rankings (excl QB)'!$D:$D,MATCH(1,("Running Back"='Total Rankings (excl QB)'!$C:$C)*(L109='Total Rankings (excl QB)'!$F:$F),0),1),"") ->  | N109: =IFERROR(VLOOKUP($M109,'Total Rankings (excl QB)'!$D:$E,2,0),0) -> 0 | O109: 0 | Q109: =IFERROR(VLOOKUP($M109,'Total Rankings (excl QB)'!$D:$L,4,0),"") ->  | R109: =IFERROR(VLOOKUP($M109,'Total Rankings (excl QB)'!$D:$L,5,0),"") ->  | S109: =IFERROR(VLOOKUP($M109,'Total Rankings (excl QB)'!$D:$L,6,0),"") ->  | T109: =IFERROR(VLOOKUP($M109,'Total Rankings (excl QB)'!$D:$L,7,0),"") ->  | U109: =IFERROR(VLOOKUP($M109,'Total Rankings (excl QB)'!$D:$L,8,0),"") ->  | W109: 106 | X109: =IFERROR(INDEX('Total Rankings (excl QB)'!$D:$D,MATCH(1,("Tight End"='Total Rankings (excl QB)'!$C:$C)*(W109='Total Rankings (excl QB)'!$F:$F),0),1),"") ->  | Y109: =IFERROR(VLOOKUP($X109,'Total Rankings (excl QB)'!$D:$E,2,0),0) -> 0 | Z109: 0 | AB109: =IFERROR(VLOOKUP($X109,'Total Rankings (excl QB)'!$D:$L,4,0),"") ->  | AC109: =IFERROR(VLOOKUP($X109,'Total Rankings (excl QB)'!$D:$L,5,0),"") ->  | AD109: =IFERROR(VLOOKUP($X109,'Total Rankings (excl QB)'!$D:$L,6,0),"") ->  | AE109: =IFERROR(VLOOKUP($X109,'Total Rankings (excl QB)'!$D:$L,7,0),"") ->  | AF109: =IFERROR(VLOOKUP($X109,'Total Rankings (excl QB)'!$D:$L,8,0),"") -> 
A110: 107 | B110: =IFERROR(INDEX('Total Rankings (excl QB)'!$D:$D,MATCH(1,("Wide Receiver"='Total Rankings (excl QB)'!$C:$C)*(A110='Total Rankings (excl QB)'!$F:$F),0),1),"") ->  | C110: =IFERROR(VLOOKUP($B110,'Total Rankings (excl QB)'!$D:$E,2,0),0) -> 0 | D110: 0 | F110: =IFERROR(VLOOKUP($B110,'Total Rankings (excl QB)'!$D:$L,4,0),"") ->  | G110: =IFERROR(VLOOKUP($B110,'Total Rankings (excl QB)'!$D:$L,5,0),"") ->  | H110: =IFERROR(VLOOKUP($B110,'Total Rankings (excl QB)'!$D:$L,6,0),"") ->  | I110: =IFERROR(VLOOKUP($B110,'Total Rankings (excl QB)'!$D:$L,7,0),"") ->  | J110: =IFERROR(VLOOKUP($B110,'Total Rankings (excl QB)'!$D:$L,8,0),"") ->  | L110: 107 | M110: =IFERROR(INDEX('Total Rankings (excl QB)'!$D:$D,MATCH(1,("Running Back"='Total Rankings (excl QB)'!$C:$C)*(L110='Total Rankings (excl QB)'!$F:$F),0),1),"") ->  | N110: =IFERROR(VLOOKUP($M110,'Total Rankings (excl QB)'!$D:$E,2,0),0) -> 0 | O110: 0 | Q110: =IFERROR(VLOOKUP($M110,'Total Rankings (excl QB)'!$D:$L,4,0),"") ->  | R110: =IFERROR(VLOOKUP($M110,'Total Rankings (excl QB)'!$D:$L,5,0),"") ->  | S110: =IFERROR(VLOOKUP($M110,'Total Rankings (excl QB)'!$D:$L,6,0),"") ->  | T110: =IFERROR(VLOOKUP($M110,'Total Rankings (excl QB)'!$D:$L,7,0),"") ->  | U110: =IFERROR(VLOOKUP($M110,'Total Rankings (excl QB)'!$D:$L,8,0),"") ->  | W110: 107 | X110: =IFERROR(INDEX('Total Rankings (excl QB)'!$D:$D,MATCH(1,("Tight End"='Total Rankings (excl QB)'!$C:$C)*(W110='Total Rankings (excl QB)'!$F:$F),0),1),"") ->  | Y110: =IFERROR(VLOOKUP($X110,'Total Rankings (excl QB)'!$D:$E,2,0),0) -> 0 | Z110: 0 | AB110: =IFERROR(VLOOKUP($X110,'Total Rankings (excl QB)'!$D:$L,4,0),"") ->  | AC110: =IFERROR(VLOOKUP($X110,'Total Rankings (excl QB)'!$D:$L,5,0),"") ->  | AD110: =IFERROR(VLOOKUP($X110,'Total Rankings (excl QB)'!$D:$L,6,0),"") ->  | AE110: =IFERROR(VLOOKUP($X110,'Total Rankings (excl QB)'!$D:$L,7,0),"") ->  | AF110: =IFERROR(VLOOKUP($X110,'Total Rankings (excl QB)'!$D:$L,8,0),"") -> 
A111: 108 | B111: =IFERROR(INDEX('Total Rankings (excl QB)'!$D:$D,MATCH(1,("Wide Receiver"='Total Rankings (excl QB)'!$C:$C)*(A111='Total Rankings (excl QB)'!$F:$F),0),1),"") ->  | C111: =IFERROR(VLOOKUP($B111,'Total Rankings (excl QB)'!$D:$E,2,0),0) -> 0 | D111: 0 | F111: =IFERROR(VLOOKUP($B111,'Total Rankings (excl QB)'!$D:$L,4,0),"") ->  | G111: =IFERROR(VLOOKUP($B111,'Total Rankings (excl QB)'!$D:$L,5,0),"") ->  | H111: =IFERROR(VLOOKUP($B111,'Total Rankings (excl QB)'!$D:$L,6,0),"") ->  | I111: =IFERROR(VLOOKUP($B111,'Total Rankings (excl QB)'!$D:$L,7,0),"") ->  | J111: =IFERROR(VLOOKUP($B111,'Total Rankings (excl QB)'!$D:$L,8,0),"") ->  | L111: 108 | M111: =IFERROR(INDEX('Total Rankings (excl QB)'!$D:$D,MATCH(1,("Running Back"='Total Rankings (excl QB)'!$C:$C)*(L111='Total Rankings (excl QB)'!$F:$F),0),1),"") ->  | N111: =IFERROR(VLOOKUP($M111,'Total Rankings (excl QB)'!$D:$E,2,0),0) -> 0 | O111: 0 | Q111: =IFERROR(VLOOKUP($M111,'Total Rankings (excl QB)'!$D:$L,4,0),"") ->  | R111: =IFERROR(VLOOKUP($M111,'Total Rankings (excl QB)'!$D:$L,5,0),"") ->  | S111: =IFERROR(VLOOKUP($M111,'Total Rankings (excl QB)'!$D:$L,6,0),"") ->  | T111: =IFERROR(VLOOKUP($M111,'Total Rankings (excl QB)'!$D:$L,7,0),"") ->  | U111: =IFERROR(VLOOKUP($M111,'Total Rankings (excl QB)'!$D:$L,8,0),"") ->  | W111: 108 | X111: =IFERROR(INDEX('Total Rankings (excl QB)'!$D:$D,MATCH(1,("Tight End"='Total Rankings (excl QB)'!$C:$C)*(W111='Total Rankings (excl QB)'!$F:$F),0),1),"") ->  | Y111: =IFERROR(VLOOKUP($X111,'Total Rankings (excl QB)'!$D:$E,2,0),0) -> 0 | Z111: 0 | AB111: =IFERROR(VLOOKUP($X111,'Total Rankings (excl QB)'!$D:$L,4,0),"") ->  | AC111: =IFERROR(VLOOKUP($X111,'Total Rankings (excl QB)'!$D:$L,5,0),"") ->  | AD111: =IFERROR(VLOOKUP($X111,'Total Rankings (excl QB)'!$D:$L,6,0),"") ->  | AE111: =IFERROR(VLOOKUP($X111,'Total Rankings (excl QB)'!$D:$L,7,0),"") ->  | AF111: =IFERROR(VLOOKUP($X111,'Total Rankings (excl QB)'!$D:$L,8,0),"") -> 
A112: 109 | B112: =IFERROR(INDEX('Total Rankings (excl QB)'!$D:$D,MATCH(1,("Wide Receiver"='Total Rankings (excl QB)'!$C:$C)*(A112='Total Rankings (excl QB)'!$F:$F),0),1),"") ->  | C112: =IFERROR(VLOOKUP($B112,'Total Rankings (excl QB)'!$D:$E,2,0),0) -> 0 | D112: 0 | F112: =IFERROR(VLOOKUP($B112,'Total Rankings (excl QB)'!$D:$L,4,0),"") ->  | G112: =IFERROR(VLOOKUP($B112,'Total Rankings (excl QB)'!$D:$L,5,0),"") ->  | H112: =IFERROR(VLOOKUP($B112,'Total Rankings (excl QB)'!$D:$L,6,0),"") ->  | I112: =IFERROR(VLOOKUP($B112,'Total Rankings (excl QB)'!$D:$L,7,0),"") ->  | J112: =IFERROR(VLOOKUP($B112,'Total Rankings (excl QB)'!$D:$L,8,0),"") ->  | L112: 109 | M112: =IFERROR(INDEX('Total Rankings (excl QB)'!$D:$D,MATCH(1,("Running Back"='Total Rankings (excl QB)'!$C:$C)*(L112='Total Rankings (excl QB)'!$F:$F),0),1),"") ->  | N112: =IFERROR(VLOOKUP($M112,'Total Rankings (excl QB)'!$D:$E,2,0),0) -> 0 | O112: 0 | Q112: =IFERROR(VLOOKUP($M112,'Total Rankings (excl QB)'!$D:$L,4,0),"") ->  | R112: =IFERROR(VLOOKUP($M112,'Total Rankings (excl QB)'!$D:$L,5,0),"") ->  | S112: =IFERROR(VLOOKUP($M112,'Total Rankings (excl QB)'!$D:$L,6,0),"") ->  | T112: =IFERROR(VLOOKUP($M112,'Total Rankings (excl QB)'!$D:$L,7,0),"") ->  | U112: =IFERROR(VLOOKUP($M112,'Total Rankings (excl QB)'!$D:$L,8,0),"") ->  | W112: 109 | X112: =IFERROR(INDEX('Total Rankings (excl QB)'!$D:$D,MATCH(1,("Tight End"='Total Rankings (excl QB)'!$C:$C)*(W112='Total Rankings (excl QB)'!$F:$F),0),1),"") ->  | Y112: =IFERROR(VLOOKUP($X112,'Total Rankings (excl QB)'!$D:$E,2,0),0) -> 0 | Z112: 0 | AB112: =IFERROR(VLOOKUP($X112,'Total Rankings (excl QB)'!$D:$L,4,0),"") ->  | AC112: =IFERROR(VLOOKUP($X112,'Total Rankings (excl QB)'!$D:$L,5,0),"") ->  | AD112: =IFERROR(VLOOKUP($X112,'Total Rankings (excl QB)'!$D:$L,6,0),"") ->  | AE112: =IFERROR(VLOOKUP($X112,'Total Rankings (excl QB)'!$D:$L,7,0),"") ->  | AF112: =IFERROR(VLOOKUP($X112,'Total Rankings (excl QB)'!$D:$L,8,0),"") -> 
A113: 110 | B113: =IFERROR(INDEX('Total Rankings (excl QB)'!$D:$D,MATCH(1,("Wide Receiver"='Total Rankings (excl QB)'!$C:$C)*(A113='Total Rankings (excl QB)'!$F:$F),0),1),"") ->  | C113: =IFERROR(VLOOKUP($B113,'Total Rankings (excl QB)'!$D:$E,2,0),0) -> 0 | D113: 0 | F113: =IFERROR(VLOOKUP($B113,'Total Rankings (excl QB)'!$D:$L,4,0),"") ->  | G113: =IFERROR(VLOOKUP($B113,'Total Rankings (excl QB)'!$D:$L,5,0),"") ->  | H113: =IFERROR(VLOOKUP($B113,'Total Rankings (excl QB)'!$D:$L,6,0),"") ->  | I113: =IFERROR(VLOOKUP($B113,'Total Rankings (excl QB)'!$D:$L,7,0),"") ->  | J113: =IFERROR(VLOOKUP($B113,'Total Rankings (excl QB)'!$D:$L,8,0),"") ->  | L113: 110 | M113: =IFERROR(INDEX('Total Rankings (excl QB)'!$D:$D,MATCH(1,("Running Back"='Total Rankings (excl QB)'!$C:$C)*(L113='Total Rankings (excl QB)'!$F:$F),0),1),"") ->  | N113: =IFERROR(VLOOKUP($M113,'Total Rankings (excl QB)'!$D:$E,2,0),0) -> 0 | O113: 0 | Q113: =IFERROR(VLOOKUP($M113,'Total Rankings (excl QB)'!$D:$L,4,0),"") ->  | R113: =IFERROR(VLOOKUP($M113,'Total Rankings (excl QB)'!$D:$L,5,0),"") ->  | S113: =IFERROR(VLOOKUP($M113,'Total Rankings (excl QB)'!$D:$L,6,0),"") ->  | T113: =IFERROR(VLOOKUP($M113,'Total Rankings (excl QB)'!$D:$L,7,0),"") ->  | U113: =IFERROR(VLOOKUP($M113,'Total Rankings (excl QB)'!$D:$L,8,0),"") ->  | W113: 110 | X113: =IFERROR(INDEX('Total Rankings (excl QB)'!$D:$D,MATCH(1,("Tight End"='Total Rankings (excl QB)'!$C:$C)*(W113='Total Rankings (excl QB)'!$F:$F),0),1),"") ->  | Y113: =IFERROR(VLOOKUP($X113,'Total Rankings (excl QB)'!$D:$E,2,0),0) -> 0 | Z113: 0 | AB113: =IFERROR(VLOOKUP($X113,'Total Rankings (excl QB)'!$D:$L,4,0),"") ->  | AC113: =IFERROR(VLOOKUP($X113,'Total Rankings (excl QB)'!$D:$L,5,0),"") ->  | AD113: =IFERROR(VLOOKUP($X113,'Total Rankings (excl QB)'!$D:$L,6,0),"") ->  | AE113: =IFERROR(VLOOKUP($X113,'Total Rankings (excl QB)'!$D:$L,7,0),"") ->  | AF113: =IFERROR(VLOOKUP($X113,'Total Rankings (excl QB)'!$D:$L,8,0),"") -> 
A114: 111 | B114: =IFERROR(INDEX('Total Rankings (excl QB)'!$D:$D,MATCH(1,("Wide Receiver"='Total Rankings (excl QB)'!$C:$C)*(A114='Total Rankings (excl QB)'!$F:$F),0),1),"") ->  | C114: =IFERROR(VLOOKUP($B114,'Total Rankings (excl QB)'!$D:$E,2,0),0) -> 0 | D114: 0 | F114: =IFERROR(VLOOKUP($B114,'Total Rankings (excl QB)'!$D:$L,4,0),"") ->  | G114: =IFERROR(VLOOKUP($B114,'Total Rankings (excl QB)'!$D:$L,5,0),"") ->  | H114: =IFERROR(VLOOKUP($B114,'Total Rankings (excl QB)'!$D:$L,6,0),"") ->  | I114: =IFERROR(VLOOKUP($B114,'Total Rankings (excl QB)'!$D:$L,7,0),"") ->  | J114: =IFERROR(VLOOKUP($B114,'Total Rankings (excl QB)'!$D:$L,8,0),"") ->  | L114: 111 | M114: =IFERROR(INDEX('Total Rankings (excl QB)'!$D:$D,MATCH(1,("Running Back"='Total Rankings (excl QB)'!$C:$C)*(L114='Total Rankings (excl QB)'!$F:$F),0),1),"") ->  | N114: =IFERROR(VLOOKUP($M114,'Total Rankings (excl QB)'!$D:$E,2,0),0) -> 0 | O114: 0 | Q114: =IFERROR(VLOOKUP($M114,'Total Rankings (excl QB)'!$D:$L,4,0),"") ->  | R114: =IFERROR(VLOOKUP($M114,'Total Rankings (excl QB)'!$D:$L,5,0),"") ->  | S114: =IFERROR(VLOOKUP($M114,'Total Rankings (excl QB)'!$D:$L,6,0),"") ->  | T114: =IFERROR(VLOOKUP($M114,'Total Rankings (excl QB)'!$D:$L,7,0),"") ->  | U114: =IFERROR(VLOOKUP($M114,'Total Rankings (excl QB)'!$D:$L,8,0),"") ->  | W114: 111 | X114: =IFERROR(INDEX('Total Rankings (excl QB)'!$D:$D,MATCH(1,("Tight End"='Total Rankings (excl QB)'!$C:$C)*(W114='Total Rankings (excl QB)'!$F:$F),0),1),"") ->  | Y114: =IFERROR(VLOOKUP($X114,'Total Rankings (excl QB)'!$D:$E,2,0),0) -> 0 | Z114: 0 | AB114: =IFERROR(VLOOKUP($X114,'Total Rankings (excl QB)'!$D:$L,4,0),"") ->  | AC114: =IFERROR(VLOOKUP($X114,'Total Rankings (excl QB)'!$D:$L,5,0),"") ->  | AD114: =IFERROR(VLOOKUP($X114,'Total Rankings (excl QB)'!$D:$L,6,0),"") ->  | AE114: =IFERROR(VLOOKUP($X114,'Total Rankings (excl QB)'!$D:$L,7,0),"") ->  | AF114: =IFERROR(VLOOKUP($X114,'Total Rankings (excl QB)'!$D:$L,8,0),"") -> 
A115: 112 | B115: =IFERROR(INDEX('Total Rankings (excl QB)'!$D:$D,MATCH(1,("Wide Receiver"='Total Rankings (excl QB)'!$C:$C)*(A115='Total Rankings (excl QB)'!$F:$F),0),1),"") ->  | C115: =IFERROR(VLOOKUP($B115,'Total Rankings (excl QB)'!$D:$E,2,0),0) -> 0 | D115: 0 | F115: =IFERROR(VLOOKUP($B115,'Total Rankings (excl QB)'!$D:$L,4,0),"") ->  | G115: =IFERROR(VLOOKUP($B115,'Total Rankings (excl QB)'!$D:$L,5,0),"") ->  | H115: =IFERROR(VLOOKUP($B115,'Total Rankings (excl QB)'!$D:$L,6,0),"") ->  | I115: =IFERROR(VLOOKUP($B115,'Total Rankings (excl QB)'!$D:$L,7,0),"") ->  | J115: =IFERROR(VLOOKUP($B115,'Total Rankings (excl QB)'!$D:$L,8,0),"") ->  | L115: 112 | M115: =IFERROR(INDEX('Total Rankings (excl QB)'!$D:$D,MATCH(1,("Running Back"='Total Rankings (excl QB)'!$C:$C)*(L115='Total Rankings (excl QB)'!$F:$F),0),1),"") ->  | N115: =IFERROR(VLOOKUP($M115,'Total Rankings (excl QB)'!$D:$E,2,0),0) -> 0 | O115: 0 | Q115: =IFERROR(VLOOKUP($M115,'Total Rankings (excl QB)'!$D:$L,4,0),"") ->  | R115: =IFERROR(VLOOKUP($M115,'Total Rankings (excl QB)'!$D:$L,5,0),"") ->  | S115: =IFERROR(VLOOKUP($M115,'Total Rankings (excl QB)'!$D:$L,6,0),"") ->  | T115: =IFERROR(VLOOKUP($M115,'Total Rankings (excl QB)'!$D:$L,7,0),"") ->  | U115: =IFERROR(VLOOKUP($M115,'Total Rankings (excl QB)'!$D:$L,8,0),"") ->  | W115: 112 | X115: =IFERROR(INDEX('Total Rankings (excl QB)'!$D:$D,MATCH(1,("Tight End"='Total Rankings (excl QB)'!$C:$C)*(W115='Total Rankings (excl QB)'!$F:$F),0),1),"") ->  | Y115: =IFERROR(VLOOKUP($X115,'Total Rankings (excl QB)'!$D:$E,2,0),0) -> 0 | Z115: 0 | AB115: =IFERROR(VLOOKUP($X115,'Total Rankings (excl QB)'!$D:$L,4,0),"") ->  | AC115: =IFERROR(VLOOKUP($X115,'Total Rankings (excl QB)'!$D:$L,5,0),"") ->  | AD115: =IFERROR(VLOOKUP($X115,'Total Rankings (excl QB)'!$D:$L,6,0),"") ->  | AE115: =IFERROR(VLOOKUP($X115,'Total Rankings (excl QB)'!$D:$L,7,0),"") ->  | AF115: =IFERROR(VLOOKUP($X115,'Total Rankings (excl QB)'!$D:$L,8,0),"") -> 
A116: 113 | B116: =IFERROR(INDEX('Total Rankings (excl QB)'!$D:$D,MATCH(1,("Wide Receiver"='Total Rankings (excl QB)'!$C:$C)*(A116='Total Rankings (excl QB)'!$F:$F),0),1),"") ->  | C116: =IFERROR(VLOOKUP($B116,'Total Rankings (excl QB)'!$D:$E,2,0),0) -> 0 | D116: 0 | F116: =IFERROR(VLOOKUP($B116,'Total Rankings (excl QB)'!$D:$L,4,0),"") ->  | G116: =IFERROR(VLOOKUP($B116,'Total Rankings (excl QB)'!$D:$L,5,0),"") ->  | H116: =IFERROR(VLOOKUP($B116,'Total Rankings (excl QB)'!$D:$L,6,0),"") ->  | I116: =IFERROR(VLOOKUP($B116,'Total Rankings (excl QB)'!$D:$L,7,0),"") ->  | J116: =IFERROR(VLOOKUP($B116,'Total Rankings (excl QB)'!$D:$L,8,0),"") ->  | L116: 113 | M116: =IFERROR(INDEX('Total Rankings (excl QB)'!$D:$D,MATCH(1,("Running Back"='Total Rankings (excl QB)'!$C:$C)*(L116='Total Rankings (excl QB)'!$F:$F),0),1),"") ->  | N116: =IFERROR(VLOOKUP($M116,'Total Rankings (excl QB)'!$D:$E,2,0),0) -> 0 | O116: 0 | Q116: =IFERROR(VLOOKUP($M116,'Total Rankings (excl QB)'!$D:$L,4,0),"") ->  | R116: =IFERROR(VLOOKUP($M116,'Total Rankings (excl QB)'!$D:$L,5,0),"") ->  | S116: =IFERROR(VLOOKUP($M116,'Total Rankings (excl QB)'!$D:$L,6,0),"") ->  | T116: =IFERROR(VLOOKUP($M116,'Total Rankings (excl QB)'!$D:$L,7,0),"") ->  | U116: =IFERROR(VLOOKUP($M116,'Total Rankings (excl QB)'!$D:$L,8,0),"") ->  | W116: 113 | X116: =IFERROR(INDEX('Total Rankings (excl QB)'!$D:$D,MATCH(1,("Tight End"='Total Rankings (excl QB)'!$C:$C)*(W116='Total Rankings (excl QB)'!$F:$F),0),1),"") ->  | Y116: =IFERROR(VLOOKUP($X116,'Total Rankings (excl QB)'!$D:$E,2,0),0) -> 0 | Z116: 0 | AB116: =IFERROR(VLOOKUP($X116,'Total Rankings (excl QB)'!$D:$L,4,0),"") ->  | AC116: =IFERROR(VLOOKUP($X116,'Total Rankings (excl QB)'!$D:$L,5,0),"") ->  | AD116: =IFERROR(VLOOKUP($X116,'Total Rankings (excl QB)'!$D:$L,6,0),"") ->  | AE116: =IFERROR(VLOOKUP($X116,'Total Rankings (excl QB)'!$D:$L,7,0),"") ->  | AF116: =IFERROR(VLOOKUP($X116,'Total Rankings (excl QB)'!$D:$L,8,0),"") -> 
A117: 114 | B117: =IFERROR(INDEX('Total Rankings (excl QB)'!$D:$D,MATCH(1,("Wide Receiver"='Total Rankings (excl QB)'!$C:$C)*(A117='Total Rankings (excl QB)'!$F:$F),0),1),"") ->  | C117: =IFERROR(VLOOKUP($B117,'Total Rankings (excl QB)'!$D:$E,2,0),0) -> 0 | D117: 0 | F117: =IFERROR(VLOOKUP($B117,'Total Rankings (excl QB)'!$D:$L,4,0),"") ->  | G117: =IFERROR(VLOOKUP($B117,'Total Rankings (excl QB)'!$D:$L,5,0),"") ->  | H117: =IFERROR(VLOOKUP($B117,'Total Rankings (excl QB)'!$D:$L,6,0),"") ->  | I117: =IFERROR(VLOOKUP($B117,'Total Rankings (excl QB)'!$D:$L,7,0),"") ->  | J117: =IFERROR(VLOOKUP($B117,'Total Rankings (excl QB)'!$D:$L,8,0),"") ->  | L117: 114 | M117: =IFERROR(INDEX('Total Rankings (excl QB)'!$D:$D,MATCH(1,("Running Back"='Total Rankings (excl QB)'!$C:$C)*(L117='Total Rankings (excl QB)'!$F:$F),0),1),"") ->  | N117: =IFERROR(VLOOKUP($M117,'Total Rankings (excl QB)'!$D:$E,2,0),0) -> 0 | O117: 0 | Q117: =IFERROR(VLOOKUP($M117,'Total Rankings (excl QB)'!$D:$L,4,0),"") ->  | R117: =IFERROR(VLOOKUP($M117,'Total Rankings (excl QB)'!$D:$L,5,0),"") ->  | S117: =IFERROR(VLOOKUP($M117,'Total Rankings (excl QB)'!$D:$L,6,0),"") ->  | T117: =IFERROR(VLOOKUP($M117,'Total Rankings (excl QB)'!$D:$L,7,0),"") ->  | U117: =IFERROR(VLOOKUP($M117,'Total Rankings (excl QB)'!$D:$L,8,0),"") ->  | W117: 114 | X117: =IFERROR(INDEX('Total Rankings (excl QB)'!$D:$D,MATCH(1,("Tight End"='Total Rankings (excl QB)'!$C:$C)*(W117='Total Rankings (excl QB)'!$F:$F),0),1),"") ->  | Y117: =IFERROR(VLOOKUP($X117,'Total Rankings (excl QB)'!$D:$E,2,0),0) -> 0 | Z117: 0 | AB117: =IFERROR(VLOOKUP($X117,'Total Rankings (excl QB)'!$D:$L,4,0),"") ->  | AC117: =IFERROR(VLOOKUP($X117,'Total Rankings (excl QB)'!$D:$L,5,0),"") ->  | AD117: =IFERROR(VLOOKUP($X117,'Total Rankings (excl QB)'!$D:$L,6,0),"") ->  | AE117: =IFERROR(VLOOKUP($X117,'Total Rankings (excl QB)'!$D:$L,7,0),"") ->  | AF117: =IFERROR(VLOOKUP($X117,'Total Rankings (excl QB)'!$D:$L,8,0),"") -> 
A118: 115 | B118: =IFERROR(INDEX('Total Rankings (excl QB)'!$D:$D,MATCH(1,("Wide Receiver"='Total Rankings (excl QB)'!$C:$C)*(A118='Total Rankings (excl QB)'!$F:$F),0),1),"") ->  | C118: =IFERROR(VLOOKUP($B118,'Total Rankings (excl QB)'!$D:$E,2,0),0) -> 0 | D118: 0 | F118: =IFERROR(VLOOKUP($B118,'Total Rankings (excl QB)'!$D:$L,4,0),"") ->  | G118: =IFERROR(VLOOKUP($B118,'Total Rankings (excl QB)'!$D:$L,5,0),"") ->  | H118: =IFERROR(VLOOKUP($B118,'Total Rankings (excl QB)'!$D:$L,6,0),"") ->  | I118: =IFERROR(VLOOKUP($B118,'Total Rankings (excl QB)'!$D:$L,7,0),"") ->  | J118: =IFERROR(VLOOKUP($B118,'Total Rankings (excl QB)'!$D:$L,8,0),"") ->  | L118: 115 | M118: =IFERROR(INDEX('Total Rankings (excl QB)'!$D:$D,MATCH(1,("Running Back"='Total Rankings (excl QB)'!$C:$C)*(L118='Total Rankings (excl QB)'!$F:$F),0),1),"") ->  | N118: =IFERROR(VLOOKUP($M118,'Total Rankings (excl QB)'!$D:$E,2,0),0) -> 0 | O118: 0 | Q118: =IFERROR(VLOOKUP($M118,'Total Rankings (excl QB)'!$D:$L,4,0),"") ->  | R118: =IFERROR(VLOOKUP($M118,'Total Rankings (excl QB)'!$D:$L,5,0),"") ->  | S118: =IFERROR(VLOOKUP($M118,'Total Rankings (excl QB)'!$D:$L,6,0),"") ->  | T118: =IFERROR(VLOOKUP($M118,'Total Rankings (excl QB)'!$D:$L,7,0),"") ->  | U118: =IFERROR(VLOOKUP($M118,'Total Rankings (excl QB)'!$D:$L,8,0),"") ->  | W118: 115 | X118: =IFERROR(INDEX('Total Rankings (excl QB)'!$D:$D,MATCH(1,("Tight End"='Total Rankings (excl QB)'!$C:$C)*(W118='Total Rankings (excl QB)'!$F:$F),0),1),"") ->  | Y118: =IFERROR(VLOOKUP($X118,'Total Rankings (excl QB)'!$D:$E,2,0),0) -> 0 | Z118: 0 | AB118: =IFERROR(VLOOKUP($X118,'Total Rankings (excl QB)'!$D:$L,4,0),"") ->  | AC118: =IFERROR(VLOOKUP($X118,'Total Rankings (excl QB)'!$D:$L,5,0),"") ->  | AD118: =IFERROR(VLOOKUP($X118,'Total Rankings (excl QB)'!$D:$L,6,0),"") ->  | AE118: =IFERROR(VLOOKUP($X118,'Total Rankings (excl QB)'!$D:$L,7,0),"") ->  | AF118: =IFERROR(VLOOKUP($X118,'Total Rankings (excl QB)'!$D:$L,8,0),"") -> 
